Workbook

Sheet Índice
A1: Índice de Contenidos
H2: Significado de los colores:
B3: Hoja | D3: Descripción | H3: Decisiones a tomar/Intervenciones
H4: Carga de Datos Externos (o vinculados)
B5: ProyDda | D5: Selección de proyección de datos de la empresa o de ASEP | H5: Cálculos
D6: Selección de Año Base
D7: Energía y cantidad de Clientes categorizados por tipo. Proyección Empresa y ASEP. | G7: Decisiones para el cálculo de los nuevos cargos y carga de inputs
B9: Asignación | D9: Porcentaje de asginación de cada componente de costos por categoría tarifaria
D10: Tablero de control de asignaciones
D11: Criterio Ingreso a Tarifa Vigente (por defecto) y Posibilidad de Asignación Económica
B13: Pérdidas | D13: Porcentaje de pérdidas reales
B15: Parámetros | D15: Parámetros característicos para las categorías tarifarias vigentes
D16: Parámetros característicos para las nuevas categorías tarifarias
B18: PremisaCosto | D18: Datos IMP
D19: Porcentajes de pérdidas permitidas
D20: Precios Energía y Potencia
D21: Costos de Conexión por categoría tarifaria
D22: Cargos Fijos de Comercialización por categorías tarifaria
D23: Ingresar la ponderación de cargos fijos
B25: DdaAñoBase | D25: Nombres de las categorías tarifarias | G25: Tipeo de datos en diseño de tarifas e ingreso de nuevas categorías
D26: Energía por tipo de cliente por categoría tarifaria
D27: Cantidad de clientes por tipo y categoría tarifaria
D28: Potencia por categoría tarifaria
D29: Carga de consumos de las nuevas categorías
B31: Diseño | D31: Criterio de Recupero por componente de costos y categoría tarifaria
D32: Cargo Relativo Intra-categoria por componente de costo y categorías tarifaria
B34: Límites | D34: Límites superiores de Bloques y Escalones de Categorías Tarifarias
D35: Punto de corte hasta donde se subsidia a determinadas subcategorías
D36: Alícuotas de subsidios a aplicar
B38: Energía | D38: Proyección de Energía y ajustes para facturación | G38: Proyección de Demanda desagregada por categoría tarifaria
B40: Clientes | D40: Proyección de cantidad de Clientes y ajustes para facturación
B42: Potencia | D42: Proyección de Potencia y ajustes para facturación
B44: AsigEco | D44: Asignación siguiendo criterios económicos
D45: Selección de ponderadores de Energía y Potencia por componente de costo | G45: Cálculos Auxiliares necesarios para tener una asignación de costos basada en criterios económicos.
B47: CIP | D47: Cálculo de porcentajes de asignación de costos de distribución por nivel de tensión
B49: AsigTV | D49: Asignación siguiendo estructura de Ingreso a Tarifa Vigente
B51: PliegoVig | D51: Pliego vigente
B53: DdaAñoBaseVig | D53: Energía por tipo de cliente por categoría tarifaria vigente para asignación de costos
D54: Cantidad de clientes por tipo y categoría tarifaria vigente para asignación de costos
D55: Potencia por categoría tarifaria vigente para asignación de costos
B57: EnergíaVig | D57: Proyección de Energía vigente y ajustes para asignación de costos
B59: ClientesVig | D59: Proyección de cantidad de Clientes vigentes y ajustes para asignación de costos
B61: PotenciaVig | D61: Proyección de Potencia vigente y ajustes para asginación
B63: ITV_CD | D63: Cálculo de Ingreso a Tarifa Vigente par asignación de costos de distribución | G63: Cálculos Auxiliares necesarios para asignación de costos siguiendo la estructura de ingresos generada por la tarifa vigente
B65: ITV_CCOMF | D65: Cálculo de Ingreso a Tarifa Vigente par asignación de costos de comercialización fijo
B67: ITV_CCOMV | D67: Cálculo de Ingreso a Tarifa Vigente par asignación de costos de comercialización variable
B69: ITV_CSERAP | D69: Cálculo de Ingreso a Tarifa Vigente par asignación de costos de servicio de alumbrado púlbico
B71: ITV_CX | D71: Cálculo de Ingreso a Tarifa Vigente par asignación de costos de conexión
B73: ITV_CCONAP | D73: Cálculo de Ingreso a Tarifa Vigente par asignación de costos de consumo de alumbrado público
B75: ITV_CENEGEN | D75: Cálculo de Ingreso a Tarifa Vigente par asignación de costos de generación de energía
B77: ITV_CPOTGEN | D77: Cálculo de Ingreso a Tarifa Vigente par asignación de costos de generación de potencia
B79: ITV_CPT | D79: Cálculo de Ingreso a Tarifa Vigente par asignación de costos por potencia de transmisión
B81: ITV_CPET | D81: Cálculo de Ingreso a Tarifa Vigente par asignación de costos de pérdida de energía en transmisión
B83: ITV_CPERDP | D83: Cálculo de Ingreso a Tarifa Vigente par asignación de costos de pérdida de potencia en distribución
B85: ITV_CPERDE | D85: Cálculo de Ingreso a Tarifa Vigente par asignación de costos de pérdida de energía en distribución

Sheet ProyDda
A1: Proyección y Selección de Consumo
A3: Selector de Fuente de Proyección:
A4: ASEP | B4: 1
A5: PROPIA | B5: Energía por tipo de Clientes (MWh/año) | I5: Cantidad de Clientes categorizados (Clientes/año)
A6: Proyección Propia | B6: =+D33 -> 2025 | C6: 2026 | D6: 2027 | E6: 2028 | F6: 2029 | G6: 2030 | I6: =+B6 -> 2025 | J6: 2026 | K6: 2027 | L6: 2028 | M6: 2029 | N6: 2030
A7: Residenciales | B7: =+'[2]ProyDda CHI'!B5 -> 450930.0432 | C7: =+'[2]ProyDda CHI'!C5 -> 445551.7657 | D7: =+'[2]ProyDda CHI'!D5 -> 474376.5797 | E7: =+'[2]ProyDda CHI'!E5 -> 457595.8665 | F7: =+'[2]ProyDda CHI'!F5 -> 486558.2448 | G7: =+'[2]ProyDda CHI'!G5 -> 470764.2884 | I7: =+'[2]ProyDda CHI'!I5 -> 167411.4493 | J7: =+'[2]ProyDda CHI'!J5 -> 171714.066 | K7: =+'[2]ProyDda CHI'!K5 -> 176106.9674 | L7: =+'[2]ProyDda CHI'!L5 -> 180592.2984 | M7: =+'[2]ProyDda CHI'!M5 -> 185172.219 | N7: =+'[2]ProyDda CHI'!N5 -> 189848.8954
A8: Generales | B8: =+'[2]ProyDda CHI'!B6 -> 608430.6717 | C8: =+'[2]ProyDda CHI'!C6 -> 606704.5315 | D8: =+'[2]ProyDda CHI'!D6 -> 653917.9598 | E8: =+'[2]ProyDda CHI'!E6 -> 639026.5527 | F8: =+'[2]ProyDda CHI'!F6 -> 688775.0459 | G8: =+'[2]ProyDda CHI'!G6 -> 675833.02 | I8: =+'[2]ProyDda CHI'!I6 -> 19095.52696 | J8: =+'[2]ProyDda CHI'!J6 -> 19347.77545 | K8: =+'[2]ProyDda CHI'!K6 -> 19603.24726 | L8: =+'[2]ProyDda CHI'!L6 -> 19861.55784 | M8: =+'[2]ProyDda CHI'!M6 -> 20122.28052 | N8: =+'[2]ProyDda CHI'!N6 -> 20385.0297
A9: AP | B9: =+'[2]ProyDda CHI'!B7 -> 42083.78432 | C9: =+'[2]ProyDda CHI'!C7 -> 40622.08879 | D9: =+'[2]ProyDda CHI'!D7 -> 42519.22179 | E9: =+'[2]ProyDda CHI'!E7 -> 41059.81879 | F9: =+'[2]ProyDda CHI'!F7 -> 42959.25639 | G9: =+'[2]ProyDda CHI'!G7 -> 41502.17012 | I9: =+'[2]ProyDda CHI'!I7 -> 0 | J9: =+'[2]ProyDda CHI'!J7 -> 0 | K9: =+'[2]ProyDda CHI'!K7 -> 0 | L9: =+'[2]ProyDda CHI'!L7 -> 0 | M9: =+'[2]ProyDda CHI'!M7 -> 0 | N9: =+'[2]ProyDda CHI'!N7 -> 0
A10: Consumo Propio | B10: =+'[2]ProyDda CHI'!B8 -> 761.666 | C10: =+'[2]ProyDda CHI'!C8 -> 743.4814111 | D10: =+'[2]ProyDda CHI'!D8 -> 781.9032768 | E10: =+'[2]ProyDda CHI'!E8 -> 744.8148288 | F10: =+'[2]ProyDda CHI'!F8 -> 781.7185182 | G10: =+'[2]ProyDda CHI'!G8 -> 746.148337 | I10: =+'[2]ProyDda CHI'!I8 -> 33.66666667 | J10: =+'[2]ProyDda CHI'!J8 -> 33.66666667 | K10: =+'[2]ProyDda CHI'!K8 -> 33.66666667 | L10: =+'[2]ProyDda CHI'!L8 -> 33.66666667 | M10: =+'[2]ProyDda CHI'!M8 -> 33.66666667 | N10: =+'[2]ProyDda CHI'!N8 -> 33.66666667
A11: Total | B11: =+SUM(B7:B10) -> 1102206.165 | C11: 1093621.867 | D11: 1171595.665 | E11: 1138427.053 | F11: 1219074.266 | G11: 1188845.627 | I11: =+SUM(I7:I10) -> 186540.643 | J11: 191095.5081 | K11: 195743.8814 | L11: 200487.5229 | M11: 205328.1662 | N11: 210267.5918
A12: Crecimiento | C12: =+C11/B11-1 -> -0.007788286849 | D12: =+(D11/AVERAGE(B11:C11))-1 -> 0.06711058162 | E12: =+E11/D11-1 -> -0.02831063021 | F12: =+F11/E11-1 -> 0.0708409138 | G12: =+G11/F11-1 -> -0.0247963882 | J12: =+J11/I11-1 -> 0.02441754809 | K12: =+(K11/AVERAGE(I11:J11))-1 -> 0.03667978207 | L12: =+L11/K11-1 -> 0.02423391993 | M12: =+M11/L11-1 -> 0.02414436166 | N12: =+N11/M11-1 -> 0.02405624964
A14: Proyección ASEP | B14: =+B6 -> 2025 | C14: 2026 | D14: 2027 | E14: 2028 | F14: 2029 | G14: 2030 | I14: =+I6 -> 2025 | J14: 2026 | K14: 2027 | L14: 2028 | M14: 2029 | N14: 2030
A15: Residenciales | B15: =+B7/SUM(B$7:B$10)*B$19 -> 450930.0432 | C15: 445551.7657 | D15: 474376.5797 | E15: 457595.8665 | F15: 486558.2448 | G15: 470764.2884 | I15: =+I7/SUM(I$7:I$10)*I$19 -> 167411.4493 | J15: 173283.8556 | K15: 179357.81 | L15: 185640.6433 | M15: 192139.9759 | N15: 198863.6487
A16: Generales | B16: 608430.6717 | C16: 606704.5315 | D16: 653917.9598 | E16: 639026.5527 | F16: 688775.0459 | G16: 675833.02 | I16: 19095.52696 | J16: 19524.65053 | K16: 19965.11296 | L16: 20416.77528 | M16: 20879.45219 | N16: 21352.98905
A17: AP | B17: =+B9/SUM(B$7:B$10)*B$19 -> 42083.78432 | C17: 40622.08879 | D17: 42519.22179 | E17: 41059.81879 | F17: 42959.25639 | G17: 41502.17012 | I17: 0 | J17: 0 | K17: 0 | L17: 0 | M17: 0 | N17: 0
A18: Consumo Propio | B18: 761.666 | C18: 743.4814111 | D18: 781.9032768 | E18: 744.8148288 | F18: 781.7185182 | G18: 746.148337 | I18: 33.66666667 | J18: 33.97444335 | K18: 34.28813573 | L18: 34.6077973 | M18: 34.93349358 | N18: 35.26528904
A19: Total | B19: =+'[2]ProyDda CHI'!B11 -> 1102206.165 | C19: =+'[2]ProyDda CHI'!C11 -> 1093621.867 | D19: =+'[2]ProyDda CHI'!D11 -> 1171595.665 | E19: =+'[2]ProyDda CHI'!E11 -> 1138427.053 | F19: =+'[2]ProyDda CHI'!F11 -> 1219074.266 | G19: =+'[2]ProyDda CHI'!G11 -> 1188845.627 | I19: =+'[2]ProyDda CHI'!I11 -> 186540.643 | J19: =+'[2]ProyDda CHI'!J11 -> 192842.4806 | K19: =+'[2]ProyDda CHI'!K11 -> 199357.2111 | L19: =+'[2]ProyDda CHI'!L11 -> 206092.0264 | M19: =+'[2]ProyDda CHI'!M11 -> 213054.3616 | N19: =+'[2]ProyDda CHI'!N11 -> 220251.903
A20: Crecimiento | C20: =+C19/B19-1 -> -0.007788286849 | D20: =+(D19/AVERAGE(B19:C19))-1 -> 0.06711058162 | E20: =+E19/D19-1 -> -0.02831063021 | F20: =+F19/E19-1 -> 0.0708409138 | G20: =+G19/F19-1 -> -0.0247963882 | J20: =+J19/I19-1 -> 0.03378265217 | K20: =+(K19/AVERAGE(I19:J19))-1 -> 0.05095455582 | L20: =+L19/K19-1 -> 0.03378265217 | M20: =+M19/L19-1 -> 0.03378265217 | N20: =+N19/M19-1 -> 0.03378265217
A22: Selección | B22: =+D35 -> 2025 | C22: 2026 | D22: 2026/2027 | E22: 2027/2028 | F22: 2028/2029 | G22: 2029/2030 | I22: =+D35 -> 2025 | J22: 2026 | K22: 2026/2027 | L22: 2027/2028 | M22: 2028/2029 | N22: 2029/2030
A23: Residenciales | B23: =+IF($B$4=1,B15,B7) -> 450930.0432 | C23: 445551.7657 | D23: =+IF($B$4=1,AVERAGE(C15:D15),AVERAGE(C7:D7)) -> 459964.1727 | E23: 465986.2231 | F23: 472077.0557 | G23: 478661.2666 | I23: =+IF($B$4=1,I15,I7) -> 167411.4493 | J23: 173283.8556 | K23: =+IF($B$4=1,AVERAGE(J15:K15),AVERAGE(J7:K7)) -> 176320.8328 | L23: 182499.2266 | M23: 188890.3096 | N23: 195501.8123
A24: Generales | B24: 608430.6717 | C24: 606704.5315 | D24: 630311.2456 | E24: 646472.2563 | F24: 663900.7993 | G24: 682304.0329 | I24: 19095.52696 | J24: 19524.65053 | K24: 19744.88174 | L24: 20190.94412 | M24: 20648.11374 | N24: 21116.22062
A25: AP | B25: 42083.78432 | C25: 40622.08879 | D25: 41570.65529 | E25: 41789.52029 | F25: 42009.53759 | G25: 42230.71326 | I25: 0 | J25: 0 | K25: 0 | L25: 0 | M25: 0 | N25: 0
A26: Consumo Propio | B26: 761.666 | C26: 743.4814111 | D26: 762.6923439 | E26: 763.3590528 | F26: 763.2666735 | G26: 763.9334276 | I26: 33.66666667 | J26: 33.97444335 | K26: 34.13128954 | L26: 34.44796651 | M26: 34.77064544 | N26: 35.09939131
A27: Total | B27: =+SUM(B23:B26) -> 1102206.165 | C27: 1093621.867 | D27: 1132608.766 | E27: 1155011.359 | F27: 1178750.659 | G27: 1203959.946 | I27: =+SUM(I23:I26) -> 186540.643 | J27: 192842.4806 | K27: 196099.8458 | L27: 202724.6187 | M27: 209573.194 | N27: 216653.1323
A28: Nota1: en el caso de la Potencia se utiliza la suministrada por la Empresa en el año base y luego se proyecto con los FC.
A29: Nota2: Esta Hoja asume que los datos de ASEP que se ingresan al modelo son totales. Luego toma la estructura porcentual de la proyección propia para los distintos tipos de clientes.
A32: Selección año base del modelo
A33: Ventana de Años Calendario del Modelo | D33: 2025 | E33: =+D33+1 -> 2026 | F33: 2027 | G33: 2028 | H33: 2029 | I33: 2030 | J33: 2031 | K33: 2032 | L33: 2033 | M33: 2034 | N33: 2035 | O33: 2036
A34: Ventana de Años Regulatorios del Modelo | F34: =+E33&"/"&F33 -> 2026/2027 | G34: 2027/2028 | H34: 2028/2029 | I34: 2029/2030 | J34: 2030/2031 | K34: 2031/2032 | L34: 2032/2033 | M34: 2033/2034 | N34: 2034/2035 | O34: 2035/2036
A35: Ventana de Años Calendario+Regulatorio | D35: =+D33 -> 2025 | E35: =+E33 -> 2026 | F35: =+F34 -> 2026/2027 | G35: =+G34 -> 2027/2028 | H35: =+H34 -> 2028/2029 | I35: =+I34 -> 2029/2030 | J35: =+J34 -> 2030/2031 | K35: 2031/2032 | L35: 2032/2033 | M35: 2033/2034 | N35: 2034/2035 | O35: 2035/2036

Sheet Asignación
A1: Asignación de Costos para Cálculo de Cargos
B4: =+IF(ROUND(B7-1,6)=0,"OK","Error") -> OK | C4: OK | D4: OK | E4: OK | F4: OK | G4: OK | H4: OK | I4: =+IF(ROUND(I7-1,15)=0,"OK","Error") -> OK | J4: =+IF(ROUND(J7-1,15)=0,"OK","Error") -> OK | K4: =+IF(ROUND(K7-1,15)=0,"OK","Error") -> OK | L4: =+IF(ROUND(L7-1,15)=0,"OK","Error") -> Error | M4: =+IF(ROUND(M7-1,15)=0,"OK","Error") -> OK | O4: 3 | P4: Ingreso a Tarifa Vigente
B5: Componentes de Costo | P5: Asignación Económica
A6: Asignación de Costos Seleccionada para cálculo tarifario | B6: CD | C6: CCOMF | D6: CCOMV | E6: CSERAP | F6: CX | G6: CCONAP | H6: CENEGEN | I6: CPOTGEN | J6: CPT | K6: CPET | L6: CPERDP | M6: CPERDE | P6: Asignación Manual
A7: =+AsigTV!A5 -> TOTAL | B7: =+SUM(B8:B19) -> 1 | C7: =+SUM(C8:C19) -> 1 | D7: 1 | E7: 1 | F7: 1 | G7: 1 | H7: 1 | I7: 1 | J7: 1 | K7: 1 | L7: 0 | M7: 1
A8: =+AsigTV!A6 -> ATH | B8: =+B23/B$35 -> 0.001152807809 | C8: 5.171902606e-05 | D8: 0.002215325979 | E8: 0.00219630706 | F8: 8.382726963e-05 | G8: 0.00219511205 | H8: 0.001941310604 | I8: 0.004491295335 | J8: 0.001980812351 | K8: 0.002292362106 | L8: =+IFERROR(L23/L$35,0) -> 0 | M8: 0.002206570326
A9: =+AsigTV!A10 -> ATD | B9: =+B24/B$35 -> 1.52358277e-06 | C9: =+C24/C$35 -> 2.585951303e-09 | D9: 1.008614981e-06 | E9: 9.999558642e-07 | F9: 4.191363482e-09 | G9: 9.994117887e-07 | H9: 1.297447684e-06 | I9: 1.104623456e-06 | J9: 3.52830925e-06 | K9: 1.043688732e-06 | L9: =+IFERROR(L24/L$35,0) -> 0 | M9: 1.006821614e-06
A10: =+AsigTV!A11 -> MTH | B10: =+B25/B$35 -> 0.03412134551 | C10: 0.0003620331824 | D10: 0.08443972625 | E10: 0.08371479801 | F10: 0.0004107158369 | G10: 0.08366924884 | H10: 0.06660161751 | I10: 0.04429953963 | J10: 0.02928952182 | K10: 0.08737604783 | L10: 0 | M10: 0.08405367957
A11: =+AsigTV!A15 -> MTD | B11: =+B26/B$35 -> 0.1215313251 | C11: 0.006792472457 | D11: 0.1162277607 | E11: 0.1152299272 | F11: 0.007903737372 | G11: 0.1151763162 | H11: 0.0935543465 | I11: 0.1942694536 | J11: 0.1391408995 | K11: 0.1202789729 | L11: 0 | M11: 0.1150980418
A12: =+AsigTV!A16 -> BTH | B12: =+B27/B$35 -> 0.0009763578232 | C12: 0.0001029642344 | D12: 0.0006592559672 | E12: 0.0006535961517 | F12: 0.000148978277 | G12: 0.0006532405304 | H12: 0.0006011151646 | I12: 0.0007873516347 | J12: 0.0004806836648 | K12: 0.0006821810477 | L12: 0 | M12: 0.0007245930869
A13: =+AsigTV!A20 -> BTD | B13: =+B28/B$35 -> 0.2820389796 | C13: 0.01254545286 | D13: 0.2083948032 | E13: 0.2077159905 | F13: 0.01818971311 | G13: 0.2065967901 | H13: 0.1756561292 | I13: 0.3078979782 | J13: 0.1902875639 | K13: 0.2150690501 | L13: 0 | M13: 0.2066847353
A14: =+AsigTV!A21 -> BTS | B14: =+B29/B$35 -> 0.5599566574 | C14: 0.9797896225 | D14: 0.5878300651 | E14: 0.5902525347 | F14: 0.9724854847 | G14: 0.5914740449 | H14: 0.6615154761 | I14: 0.4480018245 | J14: 0.6385649301 | K14: 0.5740773128 | L14: 0 | M14: 0.5909779067
A15: =+DdaAñoBase!A193 -> BTSH | B15: =+B30/B$35 -> 4.2354551e-05 | C15: 2.400676427e-05 | D15: 4.473805713e-05 | E15: 4.528814089e-05 | F15: 1.497879416e-05 | G15: 4.39915271e-05 | H15: 3.774629438e-05 | I15: 5.784572033e-05 | J15: 4.75457558e-05 | K15: 3.944889375e-05 | L15: 0 | M15: 4.582256986e-05
A16: =+DdaAñoBase!A206 -> BTS Prepago | B16: =+B31/B$35 -> 0.0001786486273 | C16: 0.000331726375 | D16: 0.0001873160925 | E16: 0.0001905582392 | F16: 0.0007625604373 | G16: 0.0001902564736 | H16: 9.096117458e-05 | I16: 0.0001936067409 | J16: 0.0002045145284 | K16: 0.0001835806682 | L16: 0 | M16: 0.0002076438296
A17: =+DdaAñoBase!A262 -> X2H | B17: =+B32/B$35 -> 0 | C17: 0 | D17: 0 | E17: 0 | F17: 0 | G17: 0 | H17: 0 | I17: 0 | J17: 0 | K17: 0 | L17: 0 | M17: 0
A18: =+DdaAñoBase!A265 -> X2D | B18: =+B33/B$35 -> 0 | C18: 0 | D18: 0 | E18: 0 | F18: 0 | G18: 0 | H18: 0 | I18: 0 | J18: 0 | K18: 0 | L18: 0 | M18: 0
A19: =+DdaAñoBase!A321 -> X3D | B19: =+B34/B$35 -> 0 | C19: 0 | D19: 0 | E19: 0 | F19: 0 | G19: 0 | H19: 0 | I19: 0 | J19: 0 | K19: 0 | L19: 0 | M19: 0
A21: Selección | B21: CD | C21: CCOMF | D21: CCOMV | E21: CSERAP | F21: CX | G21: CCONAP | H21: CENEGEN | I21: CPOTGEN | J21: CPT | K21: CPET | L21: CPERDP | M21: CPERDE | O21: Tablero de Control de Asignaciones
A22: =+A7 -> TOTAL | B22: =+SUM(B23:B34) -> 1 | C22: =+SUM(C23:C34) -> 1 | D22: 1 | E22: 1 | F22: 1 | G22: 1.000190293 | H22: 0.9919882993 | I22: 0.4660603264 | J22: 0.9879283369 | K22: 1 | L22: 0 | M22: 1 | O22: CD | P22: CCOMF | Q22: CCOMV | R22: CSERAP | S22: CX | T22: CCONAP | U22: CENEGEN | V22: CPOTGEN | W22: CPT | X22: CPET | Y22: CPERDP | Z22: CPERDE
A23: =+A8 -> ATH | B23: =+IF($O$4=1,B40,IF($O$4=2,B55,B70))*Asignación!O23 -> 0.001152807809 | C23: =+IF($O$4=1,C40,IF($O$4=2,C55,C70))*Asignación!P23 -> 5.171902606e-05 | D23: =+IF($O$4=1,D40,IF($O$4=2,D55,D70))*Asignación!Q23 -> 0.002215325979 | E23: =+IF($O$4=1,E40,IF($O$4=2,E55,E70))*Asignación!R23 -> 0.00219630706 | F23: =+IF($O$4=1,F40,IF($O$4=2,F55,F70))*Asignación!S23 -> 8.382726963e-05 | G23: =+IF($O$4=1,G40,IF($O$4=2,G55,G70))*Asignación!T23 -> 0.002195529764 | H23: =+IF($O$4=1,H40,IF($O$4=2,H55,H70))*Asignación!U23 -> 0.001925757404 | I23: =+IF($O$4=1,I40,IF($O$4=2,I55,I70))*Asignación!V23 -> 0.00209321457 | J23: =+IF($O$4=1,J40,IF($O$4=2,J55,J70))*Asignación!W23 -> 0.001956900652 | K23: =+IF($O$4=1,K40,IF($O$4=2,K55,K70))*Asignación!X23 -> 0.002292362106 | L23: =+IF($O$4=1,L40,IF($O$4=2,L55,L70))*Asignación!Y23 -> 0 | M23: =+IF($O$4=1,M40,IF($O$4=2,M55,M70))*Asignación!Z23 -> 0.002206570326 | O23: 1 | P23: 1 | Q23: 1 | R23: 1 | S23: 1 | T23: 1 | U23: 0.92 | V23: 1 | W23: 1 | X23: 1 | Y23: 1 | Z23: 1
A24: ATD | B24: =+IF($O$4=1,B41,IF($O$4=2,B56,B71))*Asignación!O24 -> 1.52358277e-06 | C24: =+IF($O$4=1,C41,IF($O$4=2,C56,C71))*Asignación!P24 -> 2.585951303e-09 | D24: =+IF($O$4=1,D41,IF($O$4=2,D56,D71))*Asignación!Q24 -> 1.008614981e-06 | E24: =+IF($O$4=1,E41,IF($O$4=2,E56,E71))*Asignación!R24 -> 9.999558642e-07 | F24: =+IF($O$4=1,F41,IF($O$4=2,F56,F71))*Asignación!S24 -> 4.191363482e-09 | G24: =+IF($O$4=1,G41,IF($O$4=2,G56,G71))*Asignación!T24 -> 9.996019694e-07 | H24: =+IF($O$4=1,H41,IF($O$4=2,H56,H71))*Asignación!U24 -> 1.287052921e-06 | I24: =+IF($O$4=1,I41,IF($O$4=2,I56,I71))*Asignación!V24 -> 5.148211684e-07 | J24: =+IF($O$4=1,J41,IF($O$4=2,J56,J71))*Asignación!W24 -> 3.485716689e-06 | K24: =+IF($O$4=1,K41,IF($O$4=2,K56,K71))*Asignación!X24 -> 1.043688732e-06 | L24: =+IF($O$4=1,L41,IF($O$4=2,L56,L71))*Asignación!Y24 -> 0 | M24: =+IF($O$4=1,M41,IF($O$4=2,M56,M71))*Asignación!Z24 -> 1.006821614e-06 | O24: 1 | P24: 1 | Q24: 1 | R24: 1 | S24: 1 | T24: 1 | U24: 2.5 | V24: 1 | W24: 1 | X24: 1 | Y24: 1 | Z24: 1
A25: MTH | B25: =+IF($O$4=1,B42,IF($O$4=2,B57,B72))*Asignación!O25 -> 0.03412134551 | C25: =+IF($O$4=1,C42,IF($O$4=2,C57,C72))*Asignación!P25 -> 0.0003620331824 | D25: =+IF($O$4=1,D42,IF($O$4=2,D57,D72))*Asignación!Q25 -> 0.08443972625 | E25: =+IF($O$4=1,E42,IF($O$4=2,E57,E72))*Asignación!R25 -> 0.08371479801 | F25: =+IF($O$4=1,F42,IF($O$4=2,F57,F72))*Asignación!S25 -> 0.0004107158369 | G25: =+IF($O$4=1,G42,IF($O$4=2,G57,G72))*Asignación!T25 -> 0.08368517048 | H25: =+IF($O$4=1,H42,IF($O$4=2,H57,H72))*Asignación!U25 -> 0.06606802528 | I25: =+IF($O$4=1,I42,IF($O$4=2,I57,I72))*Asignación!V25 -> 0.0206462579 | J25: =+IF($O$4=1,J42,IF($O$4=2,J57,J72))*Asignación!W25 -> 0.02893594859 | K25: =+IF($O$4=1,K42,IF($O$4=2,K57,K72))*Asignación!X25 -> 0.08737604783 | L25: =+IF($O$4=1,L42,IF($O$4=2,L57,L72))*Asignación!Y25 -> 0 | M25: =+IF($O$4=1,M42,IF($O$4=2,M57,M72))*Asignación!Z25 -> 0.08405367957 | O25: 1 | P25: 1 | Q25: 1 | R25: 1 | S25: 1 | T25: 1 | U25: 0.8 | V25: 0.25 | W25: 1 | X25: 1 | Y25: 1 | Z25: 1
A26: MTD | B26: =+IF($O$4=1,B43,IF($O$4=2,B58,B73))*Asignación!O26 -> 0.1215313251 | C26: =+IF($O$4=1,C43,IF($O$4=2,C58,C73))*Asignación!P26 -> 0.006792472457 | D26: =+IF($O$4=1,D43,IF($O$4=2,D58,D73))*Asignación!Q26 -> 0.1162277607 | E26: =+IF($O$4=1,E43,IF($O$4=2,E58,E73))*Asignación!R26 -> 0.1152299272 | F26: =+IF($O$4=1,F43,IF($O$4=2,F58,F73))*Asignación!S26 -> 0.007903737372 | G26: =+IF($O$4=1,G43,IF($O$4=2,G58,G73))*Asignación!T26 -> 0.1151982334 | H26: =+IF($O$4=1,H43,IF($O$4=2,H58,H73))*Asignación!U26 -> 0.09280481707 | I26: =+IF($O$4=1,I43,IF($O$4=2,I58,I73))*Asignación!V26 -> 0.09054128495 | J26: =+IF($O$4=1,J43,IF($O$4=2,J58,J73))*Asignación!W26 -> 0.1374612374 | K26: =+IF($O$4=1,K43,IF($O$4=2,K58,K73))*Asignación!X26 -> 0.1202789729 | L26: =+IF($O$4=1,L43,IF($O$4=2,L58,L73))*Asignación!Y26 -> 0 | M26: =+IF($O$4=1,M43,IF($O$4=2,M58,M73))*Asignación!Z26 -> 0.1150980418 | O26: 1 | P26: 1 | Q26: 1 | R26: 1 | S26: 1 | T26: 1 | U26: 0.82 | V26: 0.8 | W26: 1 | X26: 1 | Y26: 1 | Z26: 1
A27: BTH | B27: =+IF($O$4=1,B44,IF($O$4=2,B59,B74))*Asignación!O27 -> 0.0009763578232 | C27: =+IF($O$4=1,C44,IF($O$4=2,C59,C74))*Asignación!P27 -> 0.0001029642344 | D27: =+IF($O$4=1,D44,IF($O$4=2,D59,D74))*Asignación!Q27 -> 0.0006592559672 | E27: =+IF($O$4=1,E44,IF($O$4=2,E59,E74))*Asignación!R27 -> 0.0006535961517 | F27: =+IF($O$4=1,F44,IF($O$4=2,F59,F74))*Asignación!S27 -> 0.000148978277 | G27: =+IF($O$4=1,G44,IF($O$4=2,G59,G74))*Asignación!T27 -> 0.0006533648373 | H27: =+IF($O$4=1,H44,IF($O$4=2,H59,H74))*Asignación!U27 -> 0.0005962992098 | I27: =+IF($O$4=1,I44,IF($O$4=2,I59,I74))*Asignación!V27 -> 0.0003669533599 | J27: =+IF($O$4=1,J44,IF($O$4=2,J59,J74))*Asignación!W27 -> 0.0004748810135 | K27: =+IF($O$4=1,K44,IF($O$4=2,K59,K74))*Asignación!X27 -> 0.0006821810477 | L27: =+IF($O$4=1,L44,IF($O$4=2,L59,L74))*Asignación!Y27 -> 0 | M27: =+IF($O$4=1,M44,IF($O$4=2,M59,M74))*Asignación!Z27 -> 0.0007245930869 | O27: 1 | P27: 1 | Q27: 1 | R27: 1 | S27: 1 | T27: 1 | U27: 1.3 | V27: 0.8 | W27: 1 | X27: 1 | Y27: 1 | Z27: 1
A28: BTD | B28: =+IF($O$4=1,B45,IF($O$4=2,B60,B75))*Asignación!O28 -> 0.2820389796 | C28: =+IF($O$4=1,C45,IF($O$4=2,C60,C75))*Asignación!P28 -> 0.01254545286 | D28: =+IF($O$4=1,D45,IF($O$4=2,D60,D75))*Asignación!Q28 -> 0.2083948032 | E28: =+IF($O$4=1,E45,IF($O$4=2,E60,E75))*Asignación!R28 -> 0.2077159905 | F28: =+IF($O$4=1,F45,IF($O$4=2,F60,F75))*Asignación!S28 -> 0.01818971311 | G28: =+IF($O$4=1,G45,IF($O$4=2,G60,G75))*Asignación!T28 -> 0.206636104 | H28: =+IF($O$4=1,H45,IF($O$4=2,H60,H75))*Asignación!U28 -> 0.1742488249 | I28: =+IF($O$4=1,I45,IF($O$4=2,I60,I75))*Asignación!V28 -> 0.1434990322 | J28: =+IF($O$4=1,J45,IF($O$4=2,J60,J75))*Asignación!W28 -> 0.1879904766 | K28: =+IF($O$4=1,K45,IF($O$4=2,K60,K75))*Asignación!X28 -> 0.2150690501 | L28: =+IF($O$4=1,L45,IF($O$4=2,L60,L75))*Asignación!Y28 -> 0 | M28: =+IF($O$4=1,M45,IF($O$4=2,M60,M75))*Asignación!Z28 -> 0.2066847353 | O28: 1 | P28: 1 | Q28: 1 | R28: 1 | S28: 1 | T28: 1 | U28: 0.85 | V28: 0.7 | W28: 1 | X28: 1 | Y28: 1 | Z28: 1
A29: BTS | B29: =+IF($O$4=1,B46,IF($O$4=2,B61,B76))*Asignación!O29 -> 0.5599566574 | C29: =+IF($O$4=1,C46,IF($O$4=2,C61,C76))*Asignación!P29 -> 0.9797896225 | D29: =+IF($O$4=1,D46,IF($O$4=2,D61,D76))*Asignación!Q29 -> 0.5878300651 | E29: =+IF($O$4=1,E46,IF($O$4=2,E61,E76))*Asignación!R29 -> 0.5902525347 | F29: =+IF($O$4=1,F46,IF($O$4=2,F61,F76))*Asignación!S29 -> 0.9724854847 | G29: =+IF($O$4=1,G46,IF($O$4=2,G61,G76))*Asignación!T29 -> 0.5915865981 | H29: =+IF($O$4=1,H46,IF($O$4=2,H61,H76))*Asignación!U29 -> 0.6562156121 | I29: =+IF($O$4=1,I46,IF($O$4=2,I61,I76))*Asignación!V29 -> 0.2087958766 | J29: =+IF($O$4=1,J46,IF($O$4=2,J61,J76))*Asignación!W29 -> 0.6308563895 | K29: =+IF($O$4=1,K46,IF($O$4=2,K61,K76))*Asignación!X29 -> 0.5740773128 | L29: =+IF($O$4=1,L46,IF($O$4=2,L61,L76))*Asignación!Y29 -> 0 | M29: =+IF($O$4=1,M46,IF($O$4=2,M61,M76))*Asignación!Z29 -> 0.5909779067 | O29: 1 | P29: 1 | Q29: 1 | R29: 1 | S29: 1 | T29: 1 | U29: 1.1 | V29: 0.35 | W29: 1 | X29: 1 | Y29: 1 | Z29: 1
A30: BTSH | B30: =+IF($O$4=1,B47,IF($O$4=2,B62,B77))*Asignación!O30 -> 4.2354551e-05 | C30: =+IF($O$4=1,C47,IF($O$4=2,C62,C77))*Asignación!P30 -> 2.400676427e-05 | D30: =+IF($O$4=1,D47,IF($O$4=2,D62,D77))*Asignación!Q30 -> 4.473805713e-05 | E30: =+IF($O$4=1,E47,IF($O$4=2,E62,E77))*Asignación!R30 -> 4.528814089e-05 | F30: =+IF($O$4=1,F47,IF($O$4=2,F62,F77))*Asignación!S30 -> 1.497879416e-05 | G30: =+IF($O$4=1,G47,IF($O$4=2,G62,G77))*Asignación!T30 -> 4.399989836e-05 | H30: =+IF($O$4=1,H47,IF($O$4=2,H62,H77))*Asignación!U30 -> 3.744388236e-05 | I30: =+IF($O$4=1,I47,IF($O$4=2,I62,I77))*Asignación!V30 -> 2.69595953e-05 | J30: =+IF($O$4=1,J47,IF($O$4=2,J62,J77))*Asignación!W30 -> 4.697179946e-05 | K30: =+IF($O$4=1,K47,IF($O$4=2,K62,K77))*Asignación!X30 -> 3.944889375e-05 | L30: =+IF($O$4=1,L47,IF($O$4=2,L62,L77))*Asignación!Y30 -> 0 | M30: =+IF($O$4=1,M47,IF($O$4=2,M62,M77))*Asignación!Z30 -> 4.582256986e-05 | O30: 1 | P30: 1 | Q30: 1 | R30: 1 | S30: 1 | T30: 1 | U30: 1 | V30: 0.72 | W30: 1 | X30: 1 | Y30: 1 | Z30: 1
A31: BTS Prepago | B31: =+IF($O$4=1,B48,IF($O$4=2,B63,B78))*Asignación!O31 -> 0.0001786486273 | C31: =+IF($O$4=1,C48,IF($O$4=2,C63,C78))*Asignación!P31 -> 0.000331726375 | D31: =+IF($O$4=1,D48,IF($O$4=2,D63,D78))*Asignación!Q31 -> 0.0001873160925 | E31: =+IF($O$4=1,E48,IF($O$4=2,E63,E78))*Asignación!R31 -> 0.0001905582392 | F31: =+IF($O$4=1,F48,IF($O$4=2,F63,F78))*Asignación!S31 -> 0.0007625604373 | G31: =+IF($O$4=1,G48,IF($O$4=2,G63,G78))*Asignación!T31 -> 0.000190292678 | H31: =+IF($O$4=1,H48,IF($O$4=2,H63,H78))*Asignación!U31 -> 9.023242087e-05 | I31: =+IF($O$4=1,I48,IF($O$4=2,I63,I78))*Asignación!V31 -> 9.023242087e-05 | J31: =+IF($O$4=1,J48,IF($O$4=2,J63,J78))*Asignación!W31 -> 0.0002020456979 | K31: =+IF($O$4=1,K48,IF($O$4=2,K63,K78))*Asignación!X31 -> 0.0001835806682 | L31: =+IF($O$4=1,L48,IF($O$4=2,L63,L78))*Asignación!Y31 -> 0 | M31: =+IF($O$4=1,M48,IF($O$4=2,M63,M78))*Asignación!Z31 -> 0.0002076438296 | O31: 1 | P31: 1 | Q31: 1 | R31: 1 | S31: 1 | T31: 1 | U31: 1 | V31: 1 | W31: 1 | X31: 1 | Y31: 1 | Z31: 1
A32: X2H | B32: =+IF($O$4=1,B49,IF($O$4=2,B64,B79))*Asignación!O32 -> 0 | C32: =+IF($O$4=1,C49,IF($O$4=2,C64,C79))*Asignación!P32 -> 0 | D32: =+IF($O$4=1,D49,IF($O$4=2,D64,D79))*Asignación!Q32 -> 0 | E32: =+IF($O$4=1,E49,IF($O$4=2,E64,E79))*Asignación!R32 -> 0 | F32: =+IF($O$4=1,F49,IF($O$4=2,F64,F79))*Asignación!S32 -> 0 | G32: =+IF($O$4=1,G49,IF($O$4=2,G64,G79))*Asignación!T32 -> 0 | H32: =+IF($O$4=1,H49,IF($O$4=2,H64,H79))*Asignación!U32 -> 0 | I32: =+IF($O$4=1,I49,IF($O$4=2,I64,I79))*Asignación!V32 -> 0 | J32: =+IF($O$4=1,J49,IF($O$4=2,J64,J79))*Asignación!W32 -> 0 | K32: =+IF($O$4=1,K49,IF($O$4=2,K64,K79))*Asignación!X32 -> 0 | L32: =+IF($O$4=1,L49,IF($O$4=2,L64,L79))*Asignación!Y32 -> 0 | M32: =+IF($O$4=1,M49,IF($O$4=2,M64,M79))*Asignación!Z32 -> 0 | O32: 1 | P32: 1 | Q32: 1 | R32: 1 | S32: 1 | T32: 1 | U32: 1 | V32: 1 | W32: 1 | X32: 1 | Y32: 1 | Z32: 1
A33: X2D | B33: =+IF($O$4=1,B50,IF($O$4=2,B65,B80))*Asignación!O33 -> 0 | C33: =+IF($O$4=1,C50,IF($O$4=2,C65,C80))*Asignación!P33 -> 0 | D33: =+IF($O$4=1,D50,IF($O$4=2,D65,D80))*Asignación!Q33 -> 0 | E33: =+IF($O$4=1,E50,IF($O$4=2,E65,E80))*Asignación!R33 -> 0 | F33: =+IF($O$4=1,F50,IF($O$4=2,F65,F80))*Asignación!S33 -> 0 | G33: =+IF($O$4=1,G50,IF($O$4=2,G65,G80))*Asignación!T33 -> 0 | H33: =+IF($O$4=1,H50,IF($O$4=2,H65,H80))*Asignación!U33 -> 0 | I33: =+IF($O$4=1,I50,IF($O$4=2,I65,I80))*Asignación!V33 -> 0 | J33: =+IF($O$4=1,J50,IF($O$4=2,J65,J80))*Asignación!W33 -> 0 | K33: =+IF($O$4=1,K50,IF($O$4=2,K65,K80))*Asignación!X33 -> 0 | L33: =+IF($O$4=1,L50,IF($O$4=2,L65,L80))*Asignación!Y33 -> 0 | M33: =+IF($O$4=1,M50,IF($O$4=2,M65,M80))*Asignación!Z33 -> 0 | O33: 1 | P33: 1 | Q33: 1 | R33: 1 | S33: 1 | T33: 1 | U33: 1 | V33: 1 | W33: 1 | X33: 1 | Y33: 1 | Z33: 1
A34: X3D | B34: =+IF($O$4=1,B51,IF($O$4=2,B66,B81))*Asignación!O34 -> 0 | C34: =+IF($O$4=1,C51,IF($O$4=2,C66,C81))*Asignación!P34 -> 0 | D34: =+IF($O$4=1,D51,IF($O$4=2,D66,D81))*Asignación!Q34 -> 0 | E34: =+IF($O$4=1,E51,IF($O$4=2,E66,E81))*Asignación!R34 -> 0 | F34: =+IF($O$4=1,F51,IF($O$4=2,F66,F81))*Asignación!S34 -> 0 | G34: =+IF($O$4=1,G51,IF($O$4=2,G66,G81))*Asignación!T34 -> 0 | H34: =+IF($O$4=1,H51,IF($O$4=2,H66,H81))*Asignación!U34 -> 0 | I34: =+IF($O$4=1,I51,IF($O$4=2,I66,I81))*Asignación!V34 -> 0 | J34: =+IF($O$4=1,J51,IF($O$4=2,J66,J81))*Asignación!W34 -> 0 | K34: =+IF($O$4=1,K51,IF($O$4=2,K66,K81))*Asignación!X34 -> 0 | L34: =+IF($O$4=1,L51,IF($O$4=2,L66,L81))*Asignación!Y34 -> 0 | M34: =+IF($O$4=1,M51,IF($O$4=2,M66,M81))*Asignación!Z34 -> 0 | O34: 1 | P34: 1 | Q34: 1 | R34: 1 | S34: 1 | T34: 1 | U34: 1 | V34: 1 | W34: 1 | X34: 1 | Y34: 1 | Z34: 1
B35: =+SUM(B23:B34) -> 1 | C35: =+SUM(C23:C34) -> 1 | D35: 1 | E35: 1 | F35: 1 | G35: 1.000190293 | H35: 0.9919882993 | I35: 0.4660603264 | J35: 0.9879283369 | K35: 1 | L35: 0 | M35: 1
A36: Opciones de Asignación de Costos
A38: Asignación siguiendo estructura de Ingreso a Tarifa Vigente | B38: =+AsigTV!B4 -> CD | C38: =+AsigTV!C4 -> CCOMF | D38: =+AsigTV!D4 -> CCOMV | E38: =+AsigTV!E4 -> CSERAP | F38: =+AsigTV!F4 -> CX | G38: =+AsigTV!G4 -> CCONAP | H38: =+AsigTV!H4 -> CENEGEN | I38: =+AsigTV!I4 -> CPOTGEN | J38: =+AsigTV!J4 -> CPT | K38: =+AsigTV!K4 -> CPET | L38: =+AsigTV!L4 -> CPERDP | M38: =+AsigTV!M4 -> CPERDE
A39: TOTAL | B39: =+SUM(B40:B48) -> 1 | C39: =+SUM(C40:C48) -> 1 | D39: 1 | E39: 1 | F39: 1 | G39: 1.000190293 | H39: 1 | I39: 1 | J39: 1 | K39: 1 | L39: 0 | M39: 1
A40: =+AsigTV!A6 -> ATH | B40: =+AsigTV!B6 -> 0.001152807809 | C40: =+AsigTV!C6 -> 5.171902606e-05 | D40: =+AsigTV!D6 -> 0.002215325979 | E40: =+AsigTV!E6 -> 0.00219630706 | F40: =+AsigTV!F6 -> 8.382726963e-05 | G40: =+AsigTV!G6 -> 0.002195529764 | H40: =+AsigTV!H6 -> 0.00209321457 | I40: =+AsigTV!I6 -> 0.003722495827 | J40: =+AsigTV!J6 -> 0.001956900652 | K40: =+AsigTV!K6 -> 0.002292362106 | L40: =+AsigTV!L6 -> 0 | M40: =+AsigTV!M6 -> 0.002206570326
A41: =+AsigTV!A10 -> ATD | B41: =+AsigTV!B10 -> 1.52358277e-06 | C41: =+AsigTV!C10 -> 2.585951303e-09 | D41: =+AsigTV!D10 -> 1.008614981e-06 | E41: =+AsigTV!E10 -> 9.999558642e-07 | F41: =+AsigTV!F10 -> 4.191363482e-09 | G41: =+AsigTV!G10 -> 9.996019694e-07 | H41: =+AsigTV!H10 -> 5.148211684e-07 | I41: =+AsigTV!I10 -> 2.769206083e-06 | J41: =+AsigTV!J10 -> 3.485716689e-06 | K41: =+AsigTV!K10 -> 1.043688732e-06 | L41: =+AsigTV!L10 -> 0 | M41: =+AsigTV!M10 -> 1.006821614e-06
A42: =+AsigTV!A11 -> MTH | B42: =+AsigTV!B11 -> 0.03412134551 | C42: =+AsigTV!C11 -> 0.0003620331824 | D42: =+AsigTV!D11 -> 0.08443972625 | E42: =+AsigTV!E11 -> 0.08371479801 | F42: =+AsigTV!F11 -> 0.0004107158369 | G42: =+AsigTV!G11 -> 0.08368517048 | H42: =+AsigTV!H11 -> 0.0825850316 | I42: =+AsigTV!I11 -> 4.75931554e-05 | J42: =+AsigTV!J11 -> 0.02893594859 | K42: =+AsigTV!K11 -> 0.08737604783 | L42: =+AsigTV!L11 -> 0 | M42: =+AsigTV!M11 -> 0.08405367957
A43: =+AsigTV!A15 -> MTD | B43: =+AsigTV!B15 -> 0.1215313251 | C43: =+AsigTV!C15 -> 0.006792472457 | D43: =+AsigTV!D15 -> 0.1162277607 | E43: =+AsigTV!E15 -> 0.1152299272 | F43: =+AsigTV!F15 -> 0.007903737372 | G43: =+AsigTV!G15 -> 0.1151982334 | H43: =+AsigTV!H15 -> 0.1131766062 | I43: =+AsigTV!I15 -> 0.08306591128 | J43: =+AsigTV!J15 -> 0.1374612374 | K43: =+AsigTV!K15 -> 0.1202789729 | L43: =+AsigTV!L15 -> 0 | M43: =+AsigTV!M15 -> 0.1150980418
A44: =+AsigTV!A16 -> BTH | B44: =+AsigTV!B16 -> 0.0009763578232 | C44: =+AsigTV!C16 -> 0.0001029642344 | D44: =+AsigTV!D16 -> 0.0006592559672 | E44: =+AsigTV!E16 -> 0.0006535961517 | F44: =+AsigTV!F16 -> 0.000148978277 | G44: =+AsigTV!G16 -> 0.0006533648373 | H44: =+AsigTV!H16 -> 0.0004586916999 | I44: =+AsigTV!I16 -> 1.540015606e-05 | J44: =+AsigTV!J16 -> 0.01254654406 | K44: =+AsigTV!K16 -> 0.0006821810477 | L44: =+AsigTV!L16 -> 0 | M44: =+AsigTV!M16 -> 0.0007245930869
A45: =+AsigTV!A20 -> BTD | B45: =+AsigTV!B20 -> 0.2820389796 | C45: =+AsigTV!C20 -> 0.01254545286 | D45: =+AsigTV!D20 -> 0.2083948032 | E45: =+AsigTV!E20 -> 0.2077159905 | F45: =+AsigTV!F20 -> 0.01818971311 | G45: =+AsigTV!G20 -> 0.206636104 | H45: =+AsigTV!H20 -> 0.2049986175 | I45: =+AsigTV!I20 -> 0.1615102175 | J45: =+AsigTV!J20 -> 0.1879904766 | K45: =+AsigTV!K20 -> 0.2150690501 | L45: =+AsigTV!L20 -> 0 | M45: =+AsigTV!M20 -> 0.2066847353
A46: =+AsigTV!A21 -> BTS | B46: =+AsigTV!B21 -> 0.5599566574 | C46: =+AsigTV!C21 -> 0.9797896225 | D46: =+AsigTV!D21 -> 0.5878300651 | E46: =+AsigTV!E21 -> 0.5902525347 | F46: =+AsigTV!F21 -> 0.9724854847 | G46: =+AsigTV!G21 -> 0.5915865981 | H46: =+AsigTV!H21 -> 0.5965596473 | I46: =+AsigTV!I21 -> 0.7514673601 | J46: =+AsigTV!J21 -> 0.6308563895 | K46: =+AsigTV!K21 -> 0.5740773128 | L46: =+AsigTV!L21 -> 0 | M46: =+AsigTV!M21 -> 0.5909779067
A47: =+A15 -> BTSH | B47: =+AsigTV!B22 -> 4.2354551e-05 | C47: =+AsigTV!C22 -> 2.400676427e-05 | D47: =+AsigTV!D22 -> 4.473805713e-05 | E47: =+AsigTV!E22 -> 4.528814089e-05 | F47: =+AsigTV!F22 -> 1.497879416e-05 | G47: =+AsigTV!G22 -> 4.399989836e-05 | H47: =+AsigTV!H22 -> 3.744388236e-05 | I47: =+AsigTV!I22 -> 5.458985842e-05 | J47: =+AsigTV!J22 -> 4.697179946e-05 | K47: =+AsigTV!K22 -> 3.944889375e-05 | L47: =+AsigTV!L22 -> 0 | M47: =+AsigTV!M22 -> 4.582256986e-05
A48: =+A16 -> BTS Prepago | B48: =+AsigTV!B23 -> 0.0001786486273 | C48: =+AsigTV!C23 -> 0.000331726375 | D48: =+AsigTV!D23 -> 0.0001873160925 | E48: =+AsigTV!E23 -> 0.0001905582392 | F48: =+AsigTV!F23 -> 0.0007625604373 | G48: =+AsigTV!G23 -> 0.000190292678 | H48: =+AsigTV!H23 -> 9.023242087e-05 | I48: =+AsigTV!I23 -> 0.0001136629328 | J48: =+AsigTV!J23 -> 0.0002020456979 | K48: =+AsigTV!K23 -> 0.0001835806682 | L48: =+AsigTV!L23 -> 0 | M48: =+AsigTV!M23 -> 0.0002076438296
A49: =+A17 -> X2H
A50: =+A18 -> X2D
A51: =+A19 -> X3D
A53: Asignación económica | B53: =+AsigEco!B11 -> CD | C53: =+AsigEco!C11 -> CCOMF | D53: =+AsigEco!D11 -> CCOMV | E53: =+AsigEco!E11 -> CSERAP | F53: =+AsigEco!F11 -> CX | G53: =+AsigEco!G11 -> CCONAP | H53: =+AsigEco!H11 -> CENEGEN | I53: =+AsigEco!I11 -> CPOTGEN | J53: =+AsigEco!J11 -> CPT | K53: =+AsigEco!K11 -> CPET | L53: =+AsigEco!L11 -> CPERDP | M53: =+AsigEco!M11 -> CPERDE
A54: =+AsigEco!A12 -> TOTAL | B54: =+SUM(B55:B66) -> 1 | C54: =+SUM(C55:C66) -> 1 | D54: 1 | E54: 1 | F54: 1 | G54: 1 | H54: 1 | I54: 1 | J54: 1 | K54: 1 | L54: 1 | M54: 1
A55: =+AsigEco!A13 -> ATH | B55: =+AsigEco!B13 -> 0.0001038323087 | C55: =+AsigEco!C13 -> 1.044856345e-05 | D55: =+AsigEco!D13 -> 0.002173388331 | E55: =+AsigEco!E13 -> 0.002173388331 | F55: =+AsigEco!F13 -> 1.044856345e-05 | G55: =+AsigEco!G13 -> 0.002156934952 | H55: =+AsigEco!H13 -> 0.002156934952 | I55: =+AsigEco!I13 -> 0.0006234341994 | J55: =+AsigEco!J13 -> 0.001390184576 | K55: =+AsigEco!K13 -> 0.002156934952 | L55: =+AsigEco!L13 -> 0.0006234341994 | M55: =+AsigEco!M13 -> 0.002156934952
A56: =+AsigEco!A14 -> ATD | B56: =+AsigEco!B14 -> 3.347721206e-07 | C56: =+AsigEco!C14 -> 5.224281725e-10 | D56: =+AsigEco!D14 -> 9.89521204e-07 | E56: =+AsigEco!E14 -> 9.89521204e-07 | F56: =+AsigEco!F14 -> 5.224281725e-10 | G56: =+AsigEco!G14 -> 9.820301511e-07 | H56: =+AsigEco!H14 -> 9.820301511e-07 | I56: =+AsigEco!I14 -> 1.98248664e-06 | J56: =+AsigEco!J14 -> 1.482258396e-06 | K56: =+AsigEco!K14 -> 9.820301511e-07 | L56: =+AsigEco!L14 -> 1.98248664e-06 | M56: =+AsigEco!M14 -> 9.820301511e-07
A57: =+AsigEco!A15 -> MTH | B57: =+AsigEco!B15 -> 0.006141373695 | C57: =+AsigEco!C15 -> 7.313994415e-05 | D57: =+AsigEco!D15 -> 0.08284122399 | E57: =+AsigEco!E15 -> 0.08284122399 | F57: =+AsigEco!F15 -> 7.313994415e-05 | G57: =+AsigEco!G15 -> 0.08221408433 | H57: =+AsigEco!H15 -> 0.08221408433 | I57: =+AsigEco!I15 -> 0.004103427756 | J57: =+AsigEco!J15 -> 0.04315875604 | K57: =+AsigEco!K15 -> 0.08221408433 | L57: =+AsigEco!L15 -> 0.004103427756 | M57: =+AsigEco!M15 -> 0.08221408433
A58: =+AsigEco!A16 -> MTD | B58: =+AsigEco!B16 -> 0.105111433 | C58: =+AsigEco!C16 -> 0.001373500937 | D58: =+AsigEco!D16 -> 0.1140865256 | E58: =+AsigEco!E16 -> 0.1140865256 | F58: =+AsigEco!F16 -> 0.001373500937 | G58: =+AsigEco!G16 -> 0.1132318055 | H58: =+AsigEco!H16 -> 0.1132318055 | I58: =+AsigEco!I16 -> 0.1200617627 | J58: =+AsigEco!J16 -> 0.1166467841 | K58: =+AsigEco!K16 -> 0.1132318055 | L58: =+AsigEco!L16 -> 0.1200617627 | M58: =+AsigEco!M16 -> 0.1132318055
A59: =+AsigEco!A17 -> BTH | B59: =+AsigEco!B17 -> 0.0002932312068 | C59: =+AsigEco!C17 -> 5.224281725e-05 | D59: =+AsigEco!D17 -> 0.000646775797 | E59: =+AsigEco!E17 -> 0.000646775797 | F59: =+AsigEco!F17 -> 5.224281725e-05 | G59: =+AsigEco!G17 -> 0.0006418794575 | H59: =+AsigEco!H17 -> 0.0006418794575 | I59: =+AsigEco!I17 -> 0.0003078825695 | J59: =+AsigEco!J17 -> 0.0004748810135 | K59: =+AsigEco!K17 -> 0.0006418794575 | L59: =+AsigEco!L17 -> 0.0003078825695 | M59: =+AsigEco!M17 -> 0.0006418794575
A60: =+AsigEco!A18 -> BTD | B60: =+AsigEco!B18 -> 0.2685073863 | C60: =+AsigEco!C18 -> 0.006367632588 | D60: =+AsigEco!D18 -> 0.2041401133 | E60: =+AsigEco!E18 -> 0.2041401133 | F60: =+AsigEco!F18 -> 0.006367632588 | G60: =+AsigEco!G18 -> 0.2026024234 | H60: =+AsigEco!H18 -> 0.2026024234 | I60: =+AsigEco!I18 -> 0.2644537063 | J60: =+AsigEco!J18 -> 0.2335280648 | K60: =+AsigEco!K18 -> 0.2026024234 | L60: =+AsigEco!L18 -> 0.2644537063 | M60: =+AsigEco!M18 -> 0.2026024234
A61: =+AsigEco!A19 -> BTS | B61: =+AsigEco!B19 -> 0.6196775573 | C61: =+AsigEco!C19 -> 0.9913311613 | D61: =+AsigEco!D19 -> 0.5958657104 | E61: =+AsigEco!E19 -> 0.5958657104 | F61: =+AsigEco!F19 -> 0.9913311613 | G61: =+AsigEco!G19 -> 0.5989050072 | H61: =+AsigEco!H19 -> 0.5989050072 | I61: =+AsigEco!I19 -> 0.6102839106 | J61: =+AsigEco!J19 -> 0.6045944589 | K61: =+AsigEco!K19 -> 0.5989050072 | L61: =+AsigEco!L19 -> 0.6102839106 | M61: =+AsigEco!M19 -> 0.5989050072
A62: =+AsigEco!A20 -> BTSH | B62: =+AsigEco!B20 -> 1.873481201e-05 | C62: =+AsigEco!C20 -> 2.263855414e-05 | D62: =+AsigEco!D20 -> 4.324405566e-05 | E62: =+AsigEco!E20 -> 4.324405566e-05 | F62: =+AsigEco!F20 -> 2.263855414e-05 | G62: =+AsigEco!G20 -> 4.291668166e-05 | H62: =+AsigEco!H20 -> 4.291668166e-05 | I62: =+AsigEco!I20 -> 1.940619208e-05 | J62: =+AsigEco!J20 -> 3.116143687e-05 | K62: =+AsigEco!K20 -> 4.291668166e-05 | L62: =+AsigEco!L20 -> 1.940619208e-05 | M62: =+AsigEco!M20 -> 4.291668166e-05
A63: =+AsigEco!A21 -> BTS Prepago | B63: =+AsigEco!B21 -> 0.0001461165658 | C63: =+AsigEco!C21 -> 0.000769234758 | D63: =+AsigEco!D21 -> 0.0002020290286 | E63: =+AsigEco!E21 -> 0.0002020290286 | F63: =+AsigEco!F21 -> 0.000769234758 | G63: =+AsigEco!G21 -> 0.0002039665341 | H63: =+AsigEco!H21 -> 0.0002039665341 | I63: =+AsigEco!I21 -> 0.0001444871516 | J63: =+AsigEco!J21 -> 0.0001742268429 | K63: =+AsigEco!K21 -> 0.0002039665341 | L63: =+AsigEco!L21 -> 0.0001444871516 | M63: =+AsigEco!M21 -> 0.0002039665341
A64: =+AsigEco!A22 -> X2H | B64: =+AsigEco!B22 -> 0 | C64: =+AsigEco!C22 -> 0 | D64: =+AsigEco!D22 -> 0 | E64: =+AsigEco!E22 -> 0 | F64: =+AsigEco!F22 -> 0 | G64: =+AsigEco!G22 -> 0 | H64: =+AsigEco!H22 -> 0 | I64: =+AsigEco!I22 -> 0 | J64: =+AsigEco!J22 -> 0 | K64: =+AsigEco!K22 -> 0 | L64: =+AsigEco!L22 -> 0 | M64: =+AsigEco!M22 -> 0
A65: =+AsigEco!A23 -> X2D | B65: =+AsigEco!B23 -> 0 | C65: =+AsigEco!C23 -> 0 | D65: =+AsigEco!D23 -> 0 | E65: =+AsigEco!E23 -> 0 | F65: =+AsigEco!F23 -> 0 | G65: =+AsigEco!G23 -> 0 | H65: =+AsigEco!H23 -> 0 | I65: =+AsigEco!I23 -> 0 | J65: =+AsigEco!J23 -> 0 | K65: =+AsigEco!K23 -> 0 | L65: =+AsigEco!L23 -> 0 | M65: =+AsigEco!M23 -> 0
A66: =+AsigEco!A24 -> X3D | B66: =+AsigEco!B24 -> 0 | C66: =+AsigEco!C24 -> 0 | D66: =+AsigEco!D24 -> 0 | E66: =+AsigEco!E24 -> 0 | F66: =+AsigEco!F24 -> 0 | G66: =+AsigEco!G24 -> 0 | H66: =+AsigEco!H24 -> 0 | I66: =+AsigEco!I24 -> 0 | J66: =+AsigEco!J24 -> 0 | K66: =+AsigEco!K24 -> 0 | L66: =+AsigEco!L24 -> 0 | M66: =+AsigEco!M24 -> 0
B67: ITV | C67: ITV | D67: Eco | E67: Eco | F67: ITV | G67: Eco | H67: ITV | I67: ITV | J67: ITV | K67: Eco | L67: ITV | M67: Eco
A68: Asignación Manual | B68: =+B53 -> CD | C68: =+C53 -> CCOMF | D68: CCOMV | E68: CSERAP | F68: CX | G68: CCONAP | H68: CENEGEN | I68: CPOTGEN | J68: CPT | K68: CPET | L68: CPERDP | M68: CPERDE
A69: =+A54 -> TOTAL | B69: =+SUM(B70:B81) -> 1 | C69: =+SUM(C70:C81) -> 1 | D69: 1 | E69: 1 | F69: 1 | G69: 1.000190293 | H69: 1 | I69: 1 | J69: 0.9879283369 | K69: 1 | L69: 0 | M69: 1
A70: =+A55 -> ATH | B70: =+B40 -> 0.001152807809 | C70: =+C40 -> 5.171902606e-05 | D70: 0.002215325979 | E70: 0.00219630706 | F70: 8.382726963e-05 | G70: 0.002195529764 | H70: 0.00209321457 | I70: =+H70 -> 0.00209321457 | J70: 0.001956900652 | K70: 0.002292362106 | L70: 0 | M70: 0.002206570326
A71: =+A56 -> ATD | B71: =+B41 -> 1.52358277e-06 | C71: 2.585951303e-09 | D71: 1.008614981e-06 | E71: 9.999558642e-07 | F71: 4.191363482e-09 | G71: 9.996019694e-07 | H71: 5.148211684e-07 | I71: =+H71 -> 5.148211684e-07 | J71: 3.485716689e-06 | K71: 1.043688732e-06 | L71: 0 | M71: 1.006821614e-06
A72: MTH | B72: 0.03412134551 | C72: 0.0003620331824 | D72: 0.08443972625 | E72: 0.08371479801 | F72: 0.0004107158369 | G72: 0.08368517048 | H72: 0.0825850316 | I72: 0.0825850316 | J72: 0.02893594859 | K72: 0.08737604783 | L72: 0 | M72: 0.08405367957
A73: MTD | B73: 0.1215313251 | C73: 0.006792472457 | D73: 0.1162277607 | E73: 0.1152299272 | F73: 0.007903737372 | G73: 0.1151982334 | H73: 0.1131766062 | I73: 0.1131766062 | J73: 0.1374612374 | K73: 0.1202789729 | L73: 0 | M73: 0.1150980418
A74: BTH | B74: 0.0009763578232 | C74: 0.0001029642344 | D74: 0.0006592559672 | E74: 0.0006535961517 | F74: 0.000148978277 | G74: 0.0006533648373 | H74: 0.0004586916999 | I74: 0.0004586916999 | J74: =+J59 -> 0.0004748810135 | K74: 0.0006821810477 | L74: 0 | M74: 0.0007245930869
A75: =+A60 -> BTD | B75: 0.2820389796 | C75: 0.01254545286 | D75: 0.2083948032 | E75: 0.2077159905 | F75: 0.01818971311 | G75: 0.206636104 | H75: 0.2049986175 | I75: 0.2049986175 | J75: 0.1879904766 | K75: 0.2150690501 | L75: 0 | M75: 0.2066847353
A76: =+A61 -> BTS | B76: 0.5599566574 | C76: 0.9797896225 | D76: 0.5878300651 | E76: 0.5902525347 | F76: 0.9724854847 | G76: 0.5915865981 | H76: 0.5965596473 | I76: 0.5965596473 | J76: 0.6308563895 | K76: 0.5740773128 | L76: 0 | M76: 0.5909779067
A77: =+A62 -> BTSH | B77: 4.2354551e-05 | C77: 2.400676427e-05 | D77: 4.473805713e-05 | E77: 4.528814089e-05 | F77: 1.497879416e-05 | G77: 4.399989836e-05 | H77: 3.744388236e-05 | I77: 3.744388236e-05 | J77: 4.697179946e-05 | K77: 3.944889375e-05 | L77: 0 | M77: 4.582256986e-05
A78: =+A63 -> BTS Prepago | B78: 0.0001786486273 | C78: 0.000331726375 | D78: 0.0001873160925 | E78: 0.0001905582392 | F78: 0.0007625604373 | G78: 0.000190292678 | H78: 9.023242087e-05 | I78: 9.023242087e-05 | J78: 0.0002020456979 | K78: 0.0001835806682 | L78: 0 | M78: 0.0002076438296
A79: X2H | B79: =+B49 -> 0 | C79: 0 | D79: 0 | E79: 0 | F79: 0 | G79: 0 | H79: 0 | I79: 0 | J79: 0 | K79: 0 | L79: 0 | M79: 0
A80: X2D | B80: 0 | C80: 0 | D80: 0 | E80: 0 | F80: 0 | G80: 0 | H80: 0 | I80: 0 | J80: 0 | K80: 0 | L80: 0 | M80: 0
A81: X3D | B81: 0 | C81: 0 | D81: 0 | E81: 0 | F81: 0 | G81: 0 | H81: 0 | I81: 0 | J81: 0 | K81: 0 | L81: 0 | M81: 0
B83: =+B46 -> 0.5599566574 | C83: =+C46 -> 0.9797896225 | H83: =+H46 -> 0.5965596473 | I83: =+I46 -> 0.7514673601 | J83: =+J46 -> 0.6308563895 | L83: =+L46 -> 0
A84: =+DdaAñoBase!B207/(DdaAñoBase!B207+DdaAñoBase!B133+DdaAñoBase!C133+DdaAñoBase!E133) -> 0.0003264933871 | B84: =+$A$84 -> 0.0003264933871 | C84: =+$A$84 -> 0.0003264933871 | H84: =+$A$84 -> 0.0003264933871 | I84: =+$A$84 -> 0.0003264933871 | J84: =+$A$84 -> 0.0003264933871 | L84: =+$A$84 -> 0.0003264933871
A86: BTS total | B86: =+B46+B48 -> 0.560135306 | C86: =+C46+C48 -> 0.9801213489 | D86: 0.5880173812 | E86: 0.590443093 | F86: 0.9732480451 | G86: 0.5917768908 | H86: 0.5966498798 | I86: 0.751581023 | J86: 0.6310584352 | K86: 0.5742608935 | L86: 0 | M86: 0.5911855505
A88: Factor BTSH | B88: 0.822 | C88: 0.793 | D88: 0.805 | E88: 0.7 | F88: 1 | G88: 1.035 | H88: 1.038 | I88: 1.035 | J88: 1.035 | K88: 1 | L88: 1 | M88: 1.08
A89: FactorBTS Prepago | B89: 0.8325 | C89: 0.845 | D89: 0.862 | E89: 0.885 | F89: 1 | G89: 0.82 | H89: 0.652 | I89: 1.035 | J89: 0.805 | K89: 0.85 | L89: 1 | M89: 0.823
B90: =+B46-B77-B78 -> 0.5597356542 | C90: =+C46-C77-C78 -> 0.9794338894 | D90: 0.587598011 | E90: 0.5900166884 | F90: 0.9717079455 | G90: 0.5913523055 | H90: 0.596431971 | I90: 0.7513396838 | J90: 0.630607372 | K90: 0.5738542833 | L90: 0 | M90: 0.5907244403
A91: % base BTSH | B91: =+'[2]DdaAñoBase CHI'!$O$191*B46 -> 0 | C91: =+'[2]DdaAñoBase CHI'!$O$191*C46 -> 0 | D91: =+'[2]DdaAñoBase CHI'!$O$191*D46 -> 0 | E91: =+'[2]DdaAñoBase CHI'!$O$191*E46 -> 0 | F91: =+'[2]DdaAñoBase CHI'!$O$191*F46 -> 0 | G91: =+'[2]DdaAñoBase CHI'!$O$191*G46 -> 0 | H91: =+'[2]DdaAñoBase CHI'!$O$191*H46 -> 0 | I91: =+'[2]DdaAñoBase CHI'!$O$191*I46 -> 0 | J91: =+'[2]DdaAñoBase CHI'!$O$191*J46 -> 0 | K91: =+'[2]DdaAñoBase CHI'!$O$191*K46 -> 0 | L91: =+'[2]DdaAñoBase CHI'!$O$191*L46 -> 0 | M91: =+'[2]DdaAñoBase CHI'!$O$191*M46 -> 0
A92: % base Prepago | B92: =+B48 -> 0.0001786486273 | C92: =+C48 -> 0.000331726375 | D92: 0.0001873160925 | E92: 0.0001905582392 | F92: 0.0007625604373 | G92: 0.000190292678 | H92: 9.023242087e-05 | I92: 0.0001136629328 | J92: 0.0002020456979 | K92: 0.0001835806682 | L92: 0 | M92: 0.0002076438296
A93: Total BTS | B93: =+SUM(B90:B92) -> 0.5599143029 | C93: =+SUM(C90:C92) -> 0.9797656158 | D93: 0.5877853271 | E93: 0.5902072466 | F93: 0.9724705059 | G93: 0.5915425982 | H93: 0.5965222035 | I93: 0.7514533467 | J93: 0.6308094177 | K93: 0.5740378639 | L93: 0 | M93: 0.5909320841
A94: Nuevo BTS | B94: =+(B93-B91*B88-B92*B89) -> 0.5597655779 | C94: =+(C93-C91*C88-C92*C89) -> 0.979485307 | D94: 0.5876238606 | E94: 0.5900386026 | F94: 0.9717079455 | G94: 0.5913865582 | H94: 0.5964633719 | I94: 0.7513357056 | J94: 0.6306467709 | K94: 0.5738818204 | L94: 0 | M94: 0.5907611932

Sheet Pérdidas
A1: Pérdidas Reales
A4: Coeficientes Pérdidas Energía | B4: u.m. | C4: Año base
A5: pe ST | B5: % | C5: 0.04386995691
A6: pe AT | B6: % | C6: 0.0073
A7: pe MT | B7: % | C7: 0.0421
A8: pe BT | B8: % | C8: 0.06075

Sheet Parámetros
A1: Parámetros Característicos de Consumo obtenidos en Campaña de Caracterización de Cargas - 2025
B2: % de Energía Pico | C2: % de Energía Resto | D2: Factor de Uso de la Potencia Máxima | E2: Factor de Coincidencia Total de Pico en ST | F2: Factor de Coincidencia Total de Pico en AT | G2: Factor de Coincidencia Total de Pico en MT | H2: Factor de Coincidencia Total de Pico en BT | I2: Factor de Coincidencia Total Fuera de punta AT | J2: Factor de Coincidencia Total fuera de MT | K2: Factor de Coincidencia Total fuera de punta BT
A3: Categorías | B3: Kep | C3: Kefp | D3: FC | E3: FCTT | F3: FCTATp | G3: FCTMTp | H3: FCTBTp | I3: FCTATfp | J3: FCTMTfp | K3: FCTBTfp
A4: BTS | B4: =+[3]EDECHI!N4 -> 0.3785369469 | C4: =+[3]EDECHI!O4 -> 0.6214630531 | D4: =+[3]EDECHI!P4 -> 0.4090232694 | E4: =+[3]EDECHI!Q4 -> 0.693344052 | F4: =+[3]EDECHI!R4 -> 0.693344052 | G4: =+[3]EDECHI!S4 -> 0.693344052 | H4: =+[3]EDECHI!T4 -> 0.693344052 | I4: =+[3]EDECHI!U4 -> 0.5520235451 | J4: =+[3]EDECHI!V4 -> 0.5520235451 | K4: =+[3]EDECHI!W4 -> 0.5520235451
A5: BTD | B5: =+[3]EDECHI!N5 -> 0.4091375972 | C5: =+[3]EDECHI!O5 -> 0.5908624028 | D5: =+[3]EDECHI!P5 -> 0.52369825 | E5: =+[3]EDECHI!Q5 -> 0.8836386629 | F5: =+[3]EDECHI!R5 -> 0.8836386629 | G5: =+[3]EDECHI!S5 -> 0.8836386629 | H5: =+[3]EDECHI!T5 -> 0.8836386629 | I5: =+[3]EDECHI!U5 -> 0.6443140666 | J5: =+[3]EDECHI!V5 -> 0.6443140666 | K5: =+[3]EDECHI!W5 -> 0.6443140666
A6: BTH | B6: =+[3]EDECHI!N6 -> 0.1725522789 | C6: =+[3]EDECHI!O6 -> 0.8274477211 | D6: =+[3]EDECHI!P6 -> 0.1478316619 | E6: =+[3]EDECHI!Q6 -> 0.4644251524 | F6: =+[3]EDECHI!R6 -> 0.4644251524 | G6: =+[3]EDECHI!S6 -> 0.4644251524 | H6: =+[3]EDECHI!T6 -> 0.4644251524 | I6: =+[3]EDECHI!U6 -> 0.04296891797 | J6: =+[3]EDECHI!V6 -> 0.04296891797 | K6: =+[3]EDECHI!W6 -> 0.04296891797
A7: MTD | B7: =+[3]EDECHI!N7 -> 0.3475943679 | C7: =+[3]EDECHI!O7 -> 0.6524056321 | D7: =+[3]EDECHI!P7 -> 0.5885656811 | E7: =+[3]EDECHI!Q7 -> 0.8810840087 | F7: =+[3]EDECHI!R7 -> 0.8810840087 | G7: =+[3]EDECHI!S7 -> 0.8810840087 | H7: =+[3]EDECHI!T7 -> 0.8810840087 | I7: =+[3]EDECHI!U7 -> 0.7487655119 | J7: =+[3]EDECHI!V7 -> 0.7487655119 | K7: =+[3]EDECHI!W7 -> 0.7487655119
A8: MTH | B8: =+[3]EDECHI!N8 -> 0.05442557868 | C8: =+[3]EDECHI!O8 -> 0.9455744213 | D8: =+[3]EDECHI!P8 -> 0.4610438756 | E8: =+[3]EDECHI!Q8 -> 0.2515900685 | F8: =+[3]EDECHI!R8 -> 0.2515900685 | G8: =+[3]EDECHI!S8 -> 0.2515900685 | H8: =+[3]EDECHI!T8 -> 0.2515900685 | I8: =+[3]EDECHI!U8 -> 0.1393744051 | J8: =+[3]EDECHI!V8 -> 0.1393744051 | K8: =+[3]EDECHI!W8 -> 0.1393744051
A9: ATD | B9: =+[3]EDECHI!N9 -> 0.3475943679 | C9: =+[3]EDECHI!O9 -> 0.6524056321 | D9: =+[3]EDECHI!P9 -> 0.5885656811 | E9: =+[3]EDECHI!Q9 -> 0.8810840087 | F9: =+[3]EDECHI!R9 -> 0.8810840087 | I9: =+[3]EDECHI!U9 -> 0.7487655119
A10: ATH | B10: =+[3]EDECHI!N10 -> 0.05442557868 | C10: =+[3]EDECHI!O10 -> 0.9455744213 | D10: =+[3]EDECHI!P10 -> 0.4610438756 | E10: =+[3]EDECHI!Q10 -> 0.2515900685 | F10: =+[3]EDECHI!R10 -> 0.2515900685 | I10: =+[3]EDECHI!U10 -> 0.1393744051
A11: AP - BT | B11: =+[3]EDECHI!N11 -> 0 | C11: =+[3]EDECHI!O11 -> 1 | D11: =+[3]EDECHI!P11 -> 0.5 | E11: =+[3]EDECHI!Q11 -> 0.693344052 | F11: =+[3]EDECHI!R11 -> 0.693344052 | G11: =+[3]EDECHI!S11 -> 0.693344052 | H11: =+[3]EDECHI!T11 -> 0.693344052 | I11: =+[3]EDECHI!U11 -> 0.5520235451 | J11: =+[3]EDECHI!V11 -> 0.5520235451 | K11: =+[3]EDECHI!W11 -> 0.5520235451
A12: BTSH | B12: =+[3]EDECHI!N12 -> 0.3722318016 | C12: =+[3]EDECHI!O12 -> 0.6277681984 | D12: =+[3]EDECHI!P12 -> 0.1895690601 | E12: =+[3]EDECHI!Q12 -> 0.5764264424 | F12: =+[3]EDECHI!R12 -> 0.5764264424 | G12: =+[3]EDECHI!S12 -> 0.5764264424 | H12: =+[3]EDECHI!T12 -> 0.5764264424 | I12: =+[3]EDECHI!U12 -> 0.08924350628 | J12: =+[3]EDECHI!V12 -> 0.08924350628 | K12: =+[3]EDECHI!W12 -> 0.08924350628
A13: BTS Prepago | B13: =+[3]EDECHI!N13 -> 0.3785369469 | C13: =+[3]EDECHI!O13 -> 0.6214630531 | D13: =+[3]EDECHI!P13 -> 0.4090232694 | E13: =+[3]EDECHI!Q13 -> 0.693344052 | F13: =+[3]EDECHI!R13 -> 0.693344052 | G13: =+[3]EDECHI!S13 -> 0.693344052 | H13: =+[3]EDECHI!T13 -> 0.693344052 | I13: =+[3]EDECHI!U13 -> 0.5520235451 | J13: =+[3]EDECHI!V13 -> 0.5520235451 | K13: =+[3]EDECHI!W13 -> 0.5520235451

Sheet PremisaCosto
A1: Inputs para Modelo Tarifario
A2: Deuda Cruz Roja | B2: =+'[1]V2023 v2'!$O$19*0 -> 0 | C2: Se quitó
A3: Cifra de deuda de clientes <200kWh no cortables | B3: =3213811.76*0 -> 0 | C3: Se quitó
A4: Deuda Moratoria Generadores | B4: =922543.75*0 -> 0 | C4: Se quitó
A5: Descuentos por inversiones no ejecutadas | B5: =+'[2]PremisaCosto CHI'!$B$4+B3+B2+B4 -> -9909805.792
A6: Tasa de Rentabilidad regulada | B6: =+'[2]PremisaCosto CHI'!$B$5 -> 0.1074333333
A8: Ingreso Máximo Permitido | B8: u.m. | F8: =+ProyDda!F35 -> 2026/2027 | G8: =+ProyDda!G35 -> 2027/2028 | H8: =+ProyDda!H35 -> 2028/2029 | I8: =+ProyDda!I35 -> 2029/2030
A9: DISTRIBUCION
A10: CO&M | B10: $/año | F10: =+'[2]PremisaCosto CHI'!F9 -> 17801374.53 | G10: =+'[2]PremisaCosto CHI'!G9 -> 18322228.04 | H10: =+'[2]PremisaCosto CHI'!H9 -> 18848837.77 | I10: =+'[2]PremisaCosto CHI'!I9 -> 19401276.3
A11: Rentabilidad | B11: $/año | F11: =+'[2]PremisaCosto CHI'!F10 -> 24631855.7 | G11: =+'[2]PremisaCosto CHI'!G10 -> 25083972.18 | H11: =+'[2]PremisaCosto CHI'!H10 -> 24849535.17 | I11: =+'[2]PremisaCosto CHI'!I10 -> 25878121.95
A12: Depreciación | B12: $/año | F12: =+'[2]PremisaCosto CHI'!F11 -> 10712797.85 | G12: =+'[2]PremisaCosto CHI'!G11 -> 11710473.92 | H12: =+'[2]PremisaCosto CHI'!H11 -> 12049660.03 | I12: =+'[2]PremisaCosto CHI'!I11 -> 12336145.74
A13: Gastos Administrativos | B13: $/año | F13: =+'[2]PremisaCosto CHI'!F12 -> 6690956.403 | G13: =+'[2]PremisaCosto CHI'!G12 -> 6888050.634 | H13: =+'[2]PremisaCosto CHI'!H12 -> 7088986.558 | I13: =+'[2]PremisaCosto CHI'!I12 -> 7297880.015
A17: COMERCIALIZACION
A18: CO&M | B18: $/año | F18: =+'[2]PremisaCosto CHI'!F15 -> 14277827.81 | G18: =+'[2]PremisaCosto CHI'!G15 -> 14776537.67 | H18: =+'[2]PremisaCosto CHI'!H15 -> 15292084.01 | I18: =+'[2]PremisaCosto CHI'!I15 -> 15825034.69
A19: Rentabilidad | B19: $/año | F19: =+'[2]PremisaCosto CHI'!F16 -> 1320600.982 | G19: =+'[2]PremisaCosto CHI'!G16 -> 1353446.543 | H19: =+'[2]PremisaCosto CHI'!H16 -> 1386084.94 | I19: =+'[2]PremisaCosto CHI'!I16 -> 1420374.069
A20: Depreciación | B20: $/año | F20: =+'[2]PremisaCosto CHI'!F17 -> 902987.1946 | G20: =+'[2]PremisaCosto CHI'!G17 -> 931573.6682 | H20: =+'[2]PremisaCosto CHI'!H17 -> 971323.7136 | I20: =+'[2]PremisaCosto CHI'!I17 -> 994939.4863
A24: ALUMBRADO PUBLICO
A25: CO&M | B25: $/año | F25: =+'[2]PremisaCosto CHI'!F20 -> 359393.6099 | G25: =+'[2]PremisaCosto CHI'!G20 -> 362221.1519 | H25: =+'[2]PremisaCosto CHI'!H20 -> 365046.2223 | I25: =+'[2]PremisaCosto CHI'!I20 -> 367866.3495
A26: Rentabilidad | B26: $/año | F26: =+'[2]PremisaCosto CHI'!F21 -> 544208.2305 | G26: =+'[2]PremisaCosto CHI'!G21 -> 516686.06 | H26: =+'[2]PremisaCosto CHI'!H21 -> 489482.6728 | I26: =+'[2]PremisaCosto CHI'!I21 -> 462656.0852
A27: Depreciación | B27: $/año | F27: =+'[2]PremisaCosto CHI'!F22 -> 462684.1982 | G27: =+'[2]PremisaCosto CHI'!G22 -> 456179.0619 | H27: =+'[2]PremisaCosto CHI'!H22 -> 453211.7957 | I27: =+'[2]PremisaCosto CHI'!I22 -> 449704.507
A31: Pérdidas | F31: =+F8 -> 2026/2027 | G31: =+G8 -> 2027/2028 | H31: =+H8 -> 2028/2029 | I31: =+I8 -> 2029/2030
A32: IMP de Pérdidas sin Descuento por Inv. | B32: $/año | F32: =+'[2]PremisaCosto CHI'!F25 -> 10754605.7 | G32: =+'[2]PremisaCosto CHI'!G25 -> 10962655.51 | H32: =+'[2]PremisaCosto CHI'!H25 -> 11183023.54 | I32: =+'[2]PremisaCosto CHI'!I25 -> 11416931.76
A38: Perdidas de Energía Permitidas | B38: u.m. | F38: =+F31 -> 2026/2027 | G38: =+G31 -> 2027/2028 | H38: =+H31 -> 2028/2029 | I38: =+I31 -> 2029/2030
A39: Pérdidas de Energía Permitida | B39: % | F39: =+'[2]PremisaCosto CHI'!F28 -> 0.0775909769 | G39: =+'[2]PremisaCosto CHI'!G28 -> 0.07756048462 | H39: =+'[2]PremisaCosto CHI'!H28 -> 0.07752882438 | I39: =+'[2]PremisaCosto CHI'!I28 -> 0.07749590795
A41: Premisas Costos Abastecimiento | B41: u.m. | F41: =+F38 -> 2026/2027 | G41: =+G38 -> 2027/2028 | H41: =+H38 -> 2028/2029 | I41: =+I38 -> 2029/2030
A42: Costos de Pérdidas de Transmisión Permitidas | B42: $/año | F42: =+'[2]PremisaCosto CHI'!F31 -> 105304.7961 | G42: =+F42 -> 105304.7961 | H42: 105304.7961 | I42: 105304.7961
A43: Sistema Transmisión | B43: $/año | F43: =+'[2]PremisaCosto CHI'!F32 -> 8563776.637 | G43: 8563776.637 | H43: 8563776.637 | I43: 8563776.637
A44: Precio Generación Energía P (en frontera) | B44: $/MWh | F44: =+'[2]PremisaCosto CHI'!F33 -> 78.64170233
A45: Precio Generación Energía FP (en frontera) | B45: $/MWh | F45: =+'[2]PremisaCosto CHI'!F34 -> 71.52528171
A46: Costo Generación de Potencia (en frontera) | B46: $/MW año | F46: =+'[2]PremisaCosto CHI'!F35 -> 207021.9783
A49: Costos de Conexión (Pliego) | B49: u.m. | D49: Cargo
A50: =+Parámetros!A4 -> BTS | B50: $/Cliente | D50: =+SUMIFS(PliegoVig!$C$7:$C$388,PliegoVig!$E$7:$E$388,A50,PliegoVig!$F$7:$F$388,"Cx",PliegoVig!$G$7:$G$388,1) -> 16.65
A51: =+Parámetros!A5 -> BTD | B51: $/Cliente | D51: =+SUMIFS(PliegoVig!$C$7:$C$388,PliegoVig!$E$7:$E$388,A51,PliegoVig!$F$7:$F$388,"Cx",PliegoVig!$G$7:$G$388,1) -> 71.76
A52: =+Parámetros!A6 -> BTH | B52: $/Cliente | D52: =+SUMIFS(PliegoVig!$C$7:$C$388,PliegoVig!$E$7:$E$388,A52,PliegoVig!$F$7:$F$388,"Cx",PliegoVig!$G$7:$G$388,1) -> 71.76
A53: =+Parámetros!A7 -> MTD | B53: $/Cliente | D53: =+SUMIFS(PliegoVig!$C$7:$C$388,PliegoVig!$E$7:$E$388,A53,PliegoVig!$F$7:$F$388,"Cx",PliegoVig!$G$7:$G$388,1) -> 141.31
A54: =+Parámetros!A8 -> MTH | B54: $/Cliente | D54: =+SUMIFS(PliegoVig!$C$7:$C$388,PliegoVig!$E$7:$E$388,A54,PliegoVig!$F$7:$F$388,"Cx",PliegoVig!$G$7:$G$388,1) -> 141.31
A55: =+Parámetros!A9 -> ATD | B55: $/Cliente | D55: =+SUMIFS(PliegoVig!$C$7:$C$388,PliegoVig!$E$7:$E$388,A55,PliegoVig!$F$7:$F$388,"Cx",PliegoVig!$G$7:$G$388,1) -> 201.89
A56: =+Parámetros!A10 -> ATH | B56: $/Cliente | D56: =+SUMIFS(PliegoVig!$C$7:$C$388,PliegoVig!$E$7:$E$388,A56,PliegoVig!$F$7:$F$388,"Cx",PliegoVig!$G$7:$G$388,1) -> 201.89
A57: =+Parámetros!A12 -> BTSH | B57: $/Cliente | D57: =+SUMIFS(PliegoVig!$C$7:$C$388,PliegoVig!$E$7:$E$388,A57,PliegoVig!$F$7:$F$388,"Cx",PliegoVig!$G$7:$G$388,1) -> 16.65
A58: BTS Prepago | B58: $/Cliente | D58: =+SUMIFS(PliegoVig!$C$7:$C$388,PliegoVig!$E$7:$E$388,A58,PliegoVig!$F$7:$F$388,"Cx",PliegoVig!$G$7:$G$388,1) -> 16.65
A59: =+Parámetros!A14 -> 0 | B59: $/Cliente | D59: 0
A60: =+Parámetros!A15 -> 0 | B60: $/Cliente | D60: 0
A61: =+Parámetros!A16 -> 0 | B61: $/Cliente | D61: 0
A63: Cargos Fijos de Comercialización (Pliego) | B63: u.m. | D63: Ponderador
A64: Ponderador Global de Ajuste | B64: % | D64: 1
A66: Actualización | E66: =+ProyDda!E35 -> 2026 | F66: =+ProyDda!F35 -> 2026/2027 | G66: =+ProyDda!G35 -> 2027/2028 | H66: =+ProyDda!H35 -> 2028/2029 | I66: =+ProyDda!I35 -> 2029/2030
A67: Año genérico | E67: 0 | F67: 1 | G67: 2 | H67: 3 | I67: 4
A68: Factor de Descuento | E68: =1/(1+$B$6)^E67 -> 1 | F68: =1/(1+$B$6)^F67 -> 0.9029888932 | G68: =1/(1+$B$6)^G67 -> 0.8153889413 | H68: =1/(1+$B$6)^H67 -> 0.7362871577 | I68: =1/(1+$B$6)^I67 -> 0.6648591256
A69: Promedios | F69: =+AVERAGE(E68:F68) -> 0.9514944466 | G69: =+AVERAGE(F68:G68) -> 0.8591889173 | H69: =+AVERAGE(G68:H68) -> 0.7758380495 | I69: =+AVERAGE(H68:I68) -> 0.7005731416
B77: Ajuste | C77: CPOTGEN | D77: Verificación
B78: 12
C80: DMG mensual
C81: =+'[2]PremisaCosto CHI'!B40 -> 196.194351 | D81: =+'[2]PremisaCosto CHI'!C40 -> 203.342551 | E81: =+'[2]PremisaCosto CHI'!D40 -> 198.3442809 | F81: =+'[2]PremisaCosto CHI'!E40 -> 191.2112516 | G81: =+'[2]PremisaCosto CHI'!F40 -> 177.7501676 | H81: =+'[2]PremisaCosto CHI'!G40 -> 190.5020527
C82: CPOTGEN
B83: 12 | C83: =+C81*$B$83*1000 -> 2354332.213 | D83: =+D81*$B$83*1000 -> 2440110.612 | E83: 2380131.371 | F83: 2294535.02 | G83: 2133002.011 | H83: 2286024.632

Sheet DdaAñoBase
A1: Asignaciones a partir del Año Base (Nueva Estructura Tarifaria)
B5: Energía Categorizada por tipo de cliente (MWh) | F5: Energía Categorizada por tipo de cliente (%) | K5: Cantidad de Clientes categorizados (Clientes) | O5: Cantidad de Clientes categorizados (%) | T5: Potencia (MW)
A6: Nueva Estructura Tarifaria | B6: Residencial | C6: General | D6: AP | E6: Cons. Propio | F6: Residencial | G6: General | H6: AP | I6: Cons. Propio | K6: Residencial | L6: General | M6: AP | N6: Cons. Propio | O6: Residencial | P6: General | Q6: AP | R6: Cons. Propio | T6: Base
A7: TOTAL | B7: =+SUM(B8,B12,B13,B17,B73,B77,B133,B189,B193,B206,B262,B265,B321) -> 444092.9092 | C7: =+SUM(C8,C12,C13,C17,C73,C77,C133,C189,C193,C206,C262,C265,C321) -> 588287.2141 | D7: 41246.67093 | E7: 696.006733 | F7: 1 | G7: 1 | H7: 1 | I7: 1 | K7: =+SUM(K8,K12,K13,K17,K73,K77,K133,K189,K193,K206,K262,K265,K321) -> 166694.5887 | L7: 18984.03935 | M7: 2 | N7: 53.44391667 | O7: 1 | P7: 1 | Q7: 1 | R7: 1 | T7: =+SUM(T8,T12,T13,T17,T73,T77,T133,T189,T193,T206,T262,T265,T321) -> 119.7123533
A8: ATH | B8: =+SUM(B9:B11) -> 0 | C8: =+SUM(C9:C11) -> 2196.404 | D8: =+SUM(D9:D11) -> 0 | E8: =+SUM(E9:E11) -> 0 | F8: =+B8/B$7 -> 0 | G8: =+C8/C$7 -> 0.003733557261 | H8: =+D8/D$7 -> 0 | I8: =+E8/E$7 -> 0 | K8: =+VLOOKUP($A8,'[2]DdaAñoBase CHI'!$A$6:$L$374,7,FALSE) -> 0 | L8: =+VLOOKUP($A8,'[2]DdaAñoBase CHI'!$A$6:$L$374,8,FALSE) -> 2 | M8: =+VLOOKUP($A8,'[2]DdaAñoBase CHI'!$A$6:$L$374,9,FALSE) -> 0 | N8: =+VLOOKUP($A8,'[2]DdaAñoBase CHI'!$A$6:$L$374,10,FALSE) -> 0 | O8: =+K8/K$7 -> 0 | P8: =+L8/L$7 -> 0.0001053516569 | Q8: =+M8/M$7 -> 0 | R8: =+N8/N$7 -> 0 | T8: =+SUM(T9:T11) -> 1.147
A9: ATH Punta | B9: =+VLOOKUP($A9,'[2]DdaAñoBase CHI'!$A$6:$L$374,2,FALSE) -> 0 | C9: =+VLOOKUP($A9,'[2]DdaAñoBase CHI'!$A$6:$L$374,3,FALSE) -> 416.427 | D9: =+VLOOKUP($A9,'[2]DdaAñoBase CHI'!$A$6:$L$374,4,FALSE) -> 0 | E9: =+VLOOKUP($A9,'[2]DdaAñoBase CHI'!$A$6:$L$374,5,FALSE) -> 0 | F9: 0 | G9: 0.0007078634212 | H9: 0 | I9: 0 | K9: =+VLOOKUP($A9,'[2]DdaAñoBase CHI'!$A$6:$L$374,7,FALSE) -> 0 | L9: =+VLOOKUP($A9,'[2]DdaAñoBase CHI'!$A$6:$L$374,8,FALSE) -> 2 | M9: =+VLOOKUP($A9,'[2]DdaAñoBase CHI'!$A$6:$L$374,9,FALSE) -> 0 | N9: =+VLOOKUP($A9,'[2]DdaAñoBase CHI'!$A$6:$L$374,10,FALSE) -> 0 | O9: =+K9/K$7 -> 0 | P9: =+L9/L$7 -> 0.0001053516569 | Q9: =+M9/M$7 -> 0 | R9: =+N9/N$7 -> 0 | T9: =+VLOOKUP($A9,'[2]DdaAñoBase CHI'!$A$6:$L$374,12,FALSE) -> 0.4955833333
A10: ATH Fuera de Punta Medio | B10: =+VLOOKUP($A10,'[2]DdaAñoBase CHI'!$A$6:$L$374,2,FALSE) -> 0 | C10: =+VLOOKUP($A10,'[2]DdaAñoBase CHI'!$A$6:$L$374,3,FALSE) -> 607.527 | D10: =+VLOOKUP($A10,'[2]DdaAñoBase CHI'!$A$6:$L$374,4,FALSE) -> 0 | E10: =+VLOOKUP($A10,'[2]DdaAñoBase CHI'!$A$6:$L$374,5,FALSE) -> 0 | F10: =+B10/B$7 -> 0 | G10: =+C10/C$7 -> 0.001032704749 | H10: =+D10/D$7 -> 0 | I10: =+E10/E$7 -> 0 | K10: =+VLOOKUP($A10,'[2]DdaAñoBase CHI'!$A$6:$L$374,7,FALSE) -> 0 | L10: =+VLOOKUP($A10,'[2]DdaAñoBase CHI'!$A$6:$L$374,8,FALSE) -> 0 | M10: =+VLOOKUP($A10,'[2]DdaAñoBase CHI'!$A$6:$L$374,9,FALSE) -> 0 | N10: =+VLOOKUP($A10,'[2]DdaAñoBase CHI'!$A$6:$L$374,10,FALSE) -> 0 | O10: =+K10/K$7 -> 0 | P10: =+L10/L$7 -> 0 | Q10: =+M10/M$7 -> 0 | R10: =+N10/N$7 -> 0 | T10: =+VLOOKUP($A10,'[2]DdaAñoBase CHI'!$A$6:$L$374,12,FALSE) -> 0.239
A11: ATH Fuera de Punta Bajo | B11: =+VLOOKUP($A11,'[2]DdaAñoBase CHI'!$A$6:$L$374,2,FALSE) -> 0 | C11: =+VLOOKUP($A11,'[2]DdaAñoBase CHI'!$A$6:$L$374,3,FALSE) -> 1172.45 | D11: =+VLOOKUP($A11,'[2]DdaAñoBase CHI'!$A$6:$L$374,4,FALSE) -> 0 | E11: =+VLOOKUP($A11,'[2]DdaAñoBase CHI'!$A$6:$L$374,5,FALSE) -> 0 | F11: 0 | G11: 0.001992989091 | H11: 0 | I11: 0 | K11: =+VLOOKUP($A11,'[2]DdaAñoBase CHI'!$A$6:$L$374,7,FALSE) -> 0 | L11: =+VLOOKUP($A11,'[2]DdaAñoBase CHI'!$A$6:$L$374,8,FALSE) -> 0 | M11: =+VLOOKUP($A11,'[2]DdaAñoBase CHI'!$A$6:$L$374,9,FALSE) -> 0 | N11: =+VLOOKUP($A11,'[2]DdaAñoBase CHI'!$A$6:$L$374,10,FALSE) -> 0 | O11: 0 | P11: 0 | Q11: 0 | R11: 0 | T11: =+VLOOKUP($A11,'[2]DdaAñoBase CHI'!$A$6:$L$374,12,FALSE) -> 0.4124166667
A12: ATD | B12: 0 | C12: =+VLOOKUP($A12,'[2]DdaAñoBase CHI'!$A$6:$L$374,3,FALSE) -> 1 | D12: 0 | E12: 0 | F12: 0 | G12: 1.699849965e-06 | H12: 0 | I12: 0 | K12: =+VLOOKUP($A12,'[2]DdaAñoBase CHI'!$A$6:$L$374,7,FALSE) -> 0 | L12: =+VLOOKUP($A12,'[2]DdaAñoBase CHI'!$A$6:$L$374,8,FALSE) -> 0.0001 | M12: =+VLOOKUP($A12,'[2]DdaAñoBase CHI'!$A$6:$L$374,9,FALSE) -> 0 | N12: =+VLOOKUP($A12,'[2]DdaAñoBase CHI'!$A$6:$L$374,10,FALSE) -> 0 | O12: 0 | P12: 5.267582845e-09 | Q12: 0 | R12: 0 | T12: =+VLOOKUP($A12,'[2]DdaAñoBase CHI'!$A$6:$L$374,12,FALSE) -> 0.00045
A13: MTH | B13: =+SUM(B14:B16) -> 0 | C13: =+SUM(C14:C16) -> 83718.493 | D13: =+SUM(D14:D16) -> 0 | E13: =+SUM(E14:E16) -> 0 | F13: 0 | G13: 0.1423088774 | H13: 0 | I13: 0 | K13: =+VLOOKUP($A13,'[2]DdaAñoBase CHI'!$A$6:$L$374,7,FALSE) -> 0 | L13: =+VLOOKUP($A13,'[2]DdaAñoBase CHI'!$A$6:$L$374,8,FALSE) -> 14 | M13: =+VLOOKUP($A13,'[2]DdaAñoBase CHI'!$A$6:$L$374,9,FALSE) -> 0 | N13: =+VLOOKUP($A13,'[2]DdaAñoBase CHI'!$A$6:$L$374,10,FALSE) -> 0 | O13: 0 | P13: 0.0007374615982 | Q13: 0 | R13: 0 | T13: =+SUM(T14:T16) -> 30.74182667
A14: MTH Punta | B14: =+VLOOKUP($A14,'[2]DdaAñoBase CHI'!$A$6:$L$374,2,FALSE) -> 0 | C14: =+VLOOKUP($A14,'[2]DdaAñoBase CHI'!$A$6:$L$374,3,FALSE) -> 2167.032 | D14: =+VLOOKUP($A14,'[2]DdaAñoBase CHI'!$A$6:$L$374,4,FALSE) -> 0 | E14: =+VLOOKUP($A14,'[2]DdaAñoBase CHI'!$A$6:$L$374,5,FALSE) -> 0 | F14: 0 | G14: 0.003683629268 | H14: 0 | I14: 0 | K14: =+VLOOKUP($A14,'[2]DdaAñoBase CHI'!$A$6:$L$374,7,FALSE) -> 0 | L14: =+VLOOKUP($A14,'[2]DdaAñoBase CHI'!$A$6:$L$374,8,FALSE) -> 0 | M14: =+VLOOKUP($A14,'[2]DdaAñoBase CHI'!$A$6:$L$374,9,FALSE) -> 0 | N14: =+VLOOKUP($A14,'[2]DdaAñoBase CHI'!$A$6:$L$374,10,FALSE) -> 0 | O14: 0 | P14: 0 | Q14: 0 | R14: 0 | T14: =+VLOOKUP($A14,'[2]DdaAñoBase CHI'!$A$6:$L$374,12,FALSE) -> 3.261916667
A15: MTH Fuera de Punta Medio | B15: =+VLOOKUP($A15,'[2]DdaAñoBase CHI'!$A$6:$L$374,2,FALSE) -> 0 | C15: =+VLOOKUP($A15,'[2]DdaAñoBase CHI'!$A$6:$L$374,3,FALSE) -> 28759.947 | D15: =+VLOOKUP($A15,'[2]DdaAñoBase CHI'!$A$6:$L$374,4,FALSE) -> 0 | E15: =+VLOOKUP($A15,'[2]DdaAñoBase CHI'!$A$6:$L$374,5,FALSE) -> 0 | F15: =+B15/B$7 -> 0 | G15: =+C15/C$7 -> 0.04888759489 | H15: =+D15/D$7 -> 0 | I15: =+E15/E$7 -> 0 | K15: =+VLOOKUP($A15,'[2]DdaAñoBase CHI'!$A$6:$L$374,7,FALSE) -> 0 | L15: =+VLOOKUP($A15,'[2]DdaAñoBase CHI'!$A$6:$L$374,8,FALSE) -> 0 | M15: =+VLOOKUP($A15,'[2]DdaAñoBase CHI'!$A$6:$L$374,9,FALSE) -> 0 | N15: =+VLOOKUP($A15,'[2]DdaAñoBase CHI'!$A$6:$L$374,10,FALSE) -> 0 | O15: =+K15/K$7 -> 0 | P15: =+L15/L$7 -> 0 | Q15: =+M15/M$7 -> 0 | R15: =+N15/N$7 -> 0 | T15: =+VLOOKUP($A15,'[2]DdaAñoBase CHI'!$A$6:$L$374,12,FALSE) -> 10.20991
A16: MTH Fuera de Punta Bajo | B16: =+VLOOKUP($A16,'[2]DdaAñoBase CHI'!$A$6:$L$374,2,FALSE) -> 0 | C16: =+VLOOKUP($A16,'[2]DdaAñoBase CHI'!$A$6:$L$374,3,FALSE) -> 52791.514 | D16: =+VLOOKUP($A16,'[2]DdaAñoBase CHI'!$A$6:$L$374,4,FALSE) -> 0 | E16: =+VLOOKUP($A16,'[2]DdaAñoBase CHI'!$A$6:$L$374,5,FALSE) -> 0 | F16: 0 | G16: 0.0897376532 | H16: 0 | I16: 0 | K16: =+VLOOKUP($A16,'[2]DdaAñoBase CHI'!$A$6:$L$374,7,FALSE) -> 0 | L16: =+VLOOKUP($A16,'[2]DdaAñoBase CHI'!$A$6:$L$374,8,FALSE) -> 0 | M16: =+VLOOKUP($A16,'[2]DdaAñoBase CHI'!$A$6:$L$374,9,FALSE) -> 0 | N16: =+VLOOKUP($A16,'[2]DdaAñoBase CHI'!$A$6:$L$374,10,FALSE) -> 0 | O16: 0 | P16: 0 | Q16: 0 | R16: 0 | T16: =+VLOOKUP($A16,'[2]DdaAñoBase CHI'!$A$6:$L$374,12,FALSE) -> 17.27
A17: MTD | B17: =+SUM(B18,B29,B40,B51,B62) -> 527.215 | C17: =+SUM(C18,C29,C40,C51,C62) -> 114794.147 | D17: =+SUM(D18,D29,D40,D51,D62) -> 0 | E17: =+SUM(E18,E29,E40,E51,E62) -> 0 | F17: 0.001187172749 | G17: 0.1951328267 | H17: 0 | I17: 0 | K17: =+SUM(K18,K29,K40,K51,K62) -> 11.83333333 | L17: =+SUM(L18,L29,L40,L51,L62) -> 250.6666667 | M17: =+SUM(M18,M29,M40,M51,M62) -> 0 | N17: =+SUM(N18,N29,N40,N51,N62) -> 0 | O17: 7.098810722e-05 | P17: 0.01320407433 | Q17: 0 | R17: 0 | T17: =+SUM(T18,T29,T40,T51,T62) -> 27.2545
A18: MTD_1 (0-10,000) | B18: =+SUM(B19:B28) -> 527.215 | C18: =+SUM(C19:C28) -> 114794.147 | D18: =+SUM(D19:D28) -> 0 | E18: =+SUM(E19:E28) -> 0 | F18: 0.001187172749 | G18: 0.1951328267 | H18: 0 | I18: 0 | K18: =+SUM(K19:K28) -> 11.83333333 | L18: =+SUM(L19:L28) -> 250.6666667 | M18: =+SUM(M19:M28) -> 0 | N18: =+SUM(N19:N28) -> 0 | O18: 7.098810722e-05 | P18: 0.01320407433 | Q18: 0 | R18: 0 | T18: =+SUM(T19:T28) -> 27.2545
A19: MTD_1 Regular | B19: =+VLOOKUP($A19,'[2]DdaAñoBase CHI'!$A$6:$L$374,2,FALSE) -> 517.765 | C19: =+VLOOKUP($A19,'[2]DdaAñoBase CHI'!$A$6:$L$374,3,FALSE) -> 113635.822 | D19: =+VLOOKUP($A19,'[2]DdaAñoBase CHI'!$A$6:$L$374,4,FALSE) -> 0 | E19: =+VLOOKUP($A19,'[2]DdaAñoBase CHI'!$A$6:$L$374,5,FALSE) -> 0 | F19: 0.001165893418 | G19: 0.193163848 | H19: 0 | I19: 0 | K19: =+VLOOKUP($A19,'[2]DdaAñoBase CHI'!$A$6:$L$374,7,FALSE) -> 10.83333333 | L19: =+VLOOKUP($A19,'[2]DdaAñoBase CHI'!$A$6:$L$374,8,FALSE) -> 243.6666667 | M19: =+VLOOKUP($A19,'[2]DdaAñoBase CHI'!$A$6:$L$374,9,FALSE) -> 0 | N19: =+VLOOKUP($A19,'[2]DdaAñoBase CHI'!$A$6:$L$374,10,FALSE) -> 0 | O19: 6.498911224e-05 | P19: 0.01283534353 | Q19: 0 | R19: 0 | T19: =+VLOOKUP($A19,'[2]DdaAñoBase CHI'!$A$6:$L$374,12,FALSE) -> 26.87141667
A20: MTD_1 Agro | B20: =+VLOOKUP($A20,'[2]DdaAñoBase CHI'!$A$6:$L$374,2,FALSE) -> 0 | C20: =+VLOOKUP($A20,'[2]DdaAñoBase CHI'!$A$6:$L$374,3,FALSE) -> 1158.325 | D20: =+VLOOKUP($A20,'[2]DdaAñoBase CHI'!$A$6:$L$374,4,FALSE) -> 0 | E20: =+VLOOKUP($A20,'[2]DdaAñoBase CHI'!$A$6:$L$374,5,FALSE) -> 0 | F20: 0 | G20: 0.00196897871 | H20: 0 | I20: 0 | K20: =+VLOOKUP($A20,'[2]DdaAñoBase CHI'!$A$6:$L$374,7,FALSE) -> 0 | L20: =+VLOOKUP($A20,'[2]DdaAñoBase CHI'!$A$6:$L$374,8,FALSE) -> 7 | M20: =+VLOOKUP($A20,'[2]DdaAñoBase CHI'!$A$6:$L$374,9,FALSE) -> 0 | N20: =+VLOOKUP($A20,'[2]DdaAñoBase CHI'!$A$6:$L$374,10,FALSE) -> 0 | O20: 0 | P20: 0.0003687307991 | Q20: 0 | R20: 0 | T20: =+VLOOKUP($A20,'[2]DdaAñoBase CHI'!$A$6:$L$374,12,FALSE) -> 0.3751666667
A21: MTD_1 Jub. 1 | B21: =+VLOOKUP($A21,'[2]DdaAñoBase CHI'!$A$6:$L$374,2,FALSE) -> 0 | C21: =+VLOOKUP($A21,'[2]DdaAñoBase CHI'!$A$6:$L$374,3,FALSE) -> 0 | D21: =+VLOOKUP($A21,'[2]DdaAñoBase CHI'!$A$6:$L$374,4,FALSE) -> 0 | E21: =+VLOOKUP($A21,'[2]DdaAñoBase CHI'!$A$6:$L$374,5,FALSE) -> 0 | F21: 0 | G21: 0 | H21: 0 | I21: 0 | K21: =+VLOOKUP($A21,'[2]DdaAñoBase CHI'!$A$6:$L$374,7,FALSE) -> 0 | L21: =+VLOOKUP($A21,'[2]DdaAñoBase CHI'!$A$6:$L$374,8,FALSE) -> 0 | M21: =+VLOOKUP($A21,'[2]DdaAñoBase CHI'!$A$6:$L$374,9,FALSE) -> 0 | N21: =+VLOOKUP($A21,'[2]DdaAñoBase CHI'!$A$6:$L$374,10,FALSE) -> 0 | O21: 0 | P21: 0 | Q21: 0 | R21: 0 | T21: =+VLOOKUP($A21,'[2]DdaAñoBase CHI'!$A$6:$L$374,12,FALSE) -> 0
A22: MTD_1 Jub. 2 | B22: =+VLOOKUP($A22,'[2]DdaAñoBase CHI'!$A$6:$L$374,2,FALSE) -> 9.45 | C22: =+VLOOKUP($A22,'[2]DdaAñoBase CHI'!$A$6:$L$374,3,FALSE) -> 0 | D22: =+VLOOKUP($A22,'[2]DdaAñoBase CHI'!$A$6:$L$374,4,FALSE) -> 0 | E22: =+VLOOKUP($A22,'[2]DdaAñoBase CHI'!$A$6:$L$374,5,FALSE) -> 0 | F22: 2.127933098e-05 | G22: 0 | H22: 0 | I22: 0 | K22: =+VLOOKUP($A22,'[2]DdaAñoBase CHI'!$A$6:$L$374,7,FALSE) -> 1 | L22: =+VLOOKUP($A22,'[2]DdaAñoBase CHI'!$A$6:$L$374,8,FALSE) -> 0 | M22: =+VLOOKUP($A22,'[2]DdaAñoBase CHI'!$A$6:$L$374,9,FALSE) -> 0 | N22: =+VLOOKUP($A22,'[2]DdaAñoBase CHI'!$A$6:$L$374,10,FALSE) -> 0 | O22: 5.998994976e-06 | P22: 0 | Q22: 0 | R22: 0 | T22: =+VLOOKUP($A22,'[2]DdaAñoBase CHI'!$A$6:$L$374,12,FALSE) -> 0.007916666667
A23: MTD_1 Político | B23: =+VLOOKUP($A23,'[2]DdaAñoBase CHI'!$A$6:$L$374,2,FALSE) -> 0 | C23: =+VLOOKUP($A23,'[2]DdaAñoBase CHI'!$A$6:$L$374,3,FALSE) -> 0 | D23: =+VLOOKUP($A23,'[2]DdaAñoBase CHI'!$A$6:$L$374,4,FALSE) -> 0 | E23: =+VLOOKUP($A23,'[2]DdaAñoBase CHI'!$A$6:$L$374,5,FALSE) -> 0 | F23: 0 | G23: 0 | H23: 0 | I23: 0 | K23: =+VLOOKUP($A23,'[2]DdaAñoBase CHI'!$A$6:$L$374,7,FALSE) -> 0 | L23: =+VLOOKUP($A23,'[2]DdaAñoBase CHI'!$A$6:$L$374,8,FALSE) -> 0 | M23: =+VLOOKUP($A23,'[2]DdaAñoBase CHI'!$A$6:$L$374,9,FALSE) -> 0 | N23: =+VLOOKUP($A23,'[2]DdaAñoBase CHI'!$A$6:$L$374,10,FALSE) -> 0 | O23: 0 | P23: 0 | Q23: 0 | R23: 0 | T23: =+VLOOKUP($A23,'[2]DdaAñoBase CHI'!$A$6:$L$374,12,FALSE) -> 0
A24: MTD_1 x1 | B24: =+VLOOKUP($A24,'[2]DdaAñoBase CHI'!$A$6:$L$374,2,FALSE) -> 0 | C24: =+VLOOKUP($A24,'[2]DdaAñoBase CHI'!$A$6:$L$374,3,FALSE) -> 0 | D24: =+VLOOKUP($A24,'[2]DdaAñoBase CHI'!$A$6:$L$374,4,FALSE) -> 0 | E24: =+VLOOKUP($A24,'[2]DdaAñoBase CHI'!$A$6:$L$374,5,FALSE) -> 0 | F24: 0 | G24: 0 | H24: 0 | I24: 0 | K24: =+VLOOKUP($A24,'[2]DdaAñoBase CHI'!$A$6:$L$374,7,FALSE) -> 0 | L24: =+VLOOKUP($A24,'[2]DdaAñoBase CHI'!$A$6:$L$374,8,FALSE) -> 0 | M24: =+VLOOKUP($A24,'[2]DdaAñoBase CHI'!$A$6:$L$374,9,FALSE) -> 0 | N24: =+VLOOKUP($A24,'[2]DdaAñoBase CHI'!$A$6:$L$374,10,FALSE) -> 0 | O24: 0 | P24: 0 | Q24: 0 | R24: 0 | T24: =+VLOOKUP($A24,'[2]DdaAñoBase CHI'!$A$6:$L$374,12,FALSE) -> 0
A25: MTD_1 x2 | B25: =+VLOOKUP($A25,'[2]DdaAñoBase CHI'!$A$6:$L$374,2,FALSE) -> 0 | C25: =+VLOOKUP($A25,'[2]DdaAñoBase CHI'!$A$6:$L$374,3,FALSE) -> 0 | D25: =+VLOOKUP($A25,'[2]DdaAñoBase CHI'!$A$6:$L$374,4,FALSE) -> 0 | E25: =+VLOOKUP($A25,'[2]DdaAñoBase CHI'!$A$6:$L$374,5,FALSE) -> 0 | F25: =+B25/B$7 -> 0 | G25: =+C25/C$7 -> 0 | H25: =+D25/D$7 -> 0 | I25: =+E25/E$7 -> 0 | K25: =+VLOOKUP($A25,'[2]DdaAñoBase CHI'!$A$6:$L$374,7,FALSE) -> 0 | L25: =+VLOOKUP($A25,'[2]DdaAñoBase CHI'!$A$6:$L$374,8,FALSE) -> 0 | M25: =+VLOOKUP($A25,'[2]DdaAñoBase CHI'!$A$6:$L$374,9,FALSE) -> 0 | N25: =+VLOOKUP($A25,'[2]DdaAñoBase CHI'!$A$6:$L$374,10,FALSE) -> 0 | O25: 0 | P25: 0 | Q25: 0 | R25: 0 | T25: =+VLOOKUP($A25,'[2]DdaAñoBase CHI'!$A$6:$L$374,12,FALSE) -> 0
A26: MTD_1 Discap. | B26: =+VLOOKUP($A26,'[2]DdaAñoBase CHI'!$A$6:$L$374,2,FALSE) -> 0 | C26: =+VLOOKUP($A26,'[2]DdaAñoBase CHI'!$A$6:$L$374,3,FALSE) -> 0 | D26: =+VLOOKUP($A26,'[2]DdaAñoBase CHI'!$A$6:$L$374,4,FALSE) -> 0 | E26: =+VLOOKUP($A26,'[2]DdaAñoBase CHI'!$A$6:$L$374,5,FALSE) -> 0 | F26: 0 | G26: 0 | H26: 0 | I26: 0 | K26: =+VLOOKUP($A26,'[2]DdaAñoBase CHI'!$A$6:$L$374,7,FALSE) -> 0 | L26: =+VLOOKUP($A26,'[2]DdaAñoBase CHI'!$A$6:$L$374,8,FALSE) -> 0 | M26: =+VLOOKUP($A26,'[2]DdaAñoBase CHI'!$A$6:$L$374,9,FALSE) -> 0 | N26: =+VLOOKUP($A26,'[2]DdaAñoBase CHI'!$A$6:$L$374,10,FALSE) -> 0 | O26: 0 | P26: 0 | Q26: 0 | R26: 0 | T26: =+VLOOKUP($A26,'[2]DdaAñoBase CHI'!$A$6:$L$374,12,FALSE) -> 0
A27: MTD_1 Discapacitados 601-más | B27: =+VLOOKUP($A27,'[2]DdaAñoBase CHI'!$A$6:$L$374,2,FALSE) -> 0 | C27: =+VLOOKUP($A27,'[2]DdaAñoBase CHI'!$A$6:$L$374,3,FALSE) -> 0 | D27: =+VLOOKUP($A27,'[2]DdaAñoBase CHI'!$A$6:$L$374,4,FALSE) -> 0 | E27: =+VLOOKUP($A27,'[2]DdaAñoBase CHI'!$A$6:$L$374,5,FALSE) -> 0 | F27: 0 | G27: 0 | H27: 0 | I27: 0 | K27: =+VLOOKUP($A27,'[2]DdaAñoBase CHI'!$A$6:$L$374,7,FALSE) -> 0 | L27: =+VLOOKUP($A27,'[2]DdaAñoBase CHI'!$A$6:$L$374,8,FALSE) -> 0 | M27: =+VLOOKUP($A27,'[2]DdaAñoBase CHI'!$A$6:$L$374,9,FALSE) -> 0 | N27: =+VLOOKUP($A27,'[2]DdaAñoBase CHI'!$A$6:$L$374,10,FALSE) -> 0 | O27: 0 | P27: 0 | Q27: 0 | R27: 0 | T27: =+VLOOKUP($A27,'[2]DdaAñoBase CHI'!$A$6:$L$374,12,FALSE) -> 0
A28: MTD_1 Cruz Roja | B28: =+VLOOKUP($A28,'[2]DdaAñoBase CHI'!$A$6:$L$374,2,FALSE) -> 0 | C28: =+VLOOKUP($A28,'[2]DdaAñoBase CHI'!$A$6:$L$374,3,FALSE) -> 0 | D28: =+VLOOKUP($A28,'[2]DdaAñoBase CHI'!$A$6:$L$374,4,FALSE) -> 0 | E28: =+VLOOKUP($A28,'[2]DdaAñoBase CHI'!$A$6:$L$374,5,FALSE) -> 0 | F28: 0 | G28: 0 | H28: 0 | I28: 0 | K28: =+VLOOKUP($A28,'[2]DdaAñoBase CHI'!$A$6:$L$374,7,FALSE) -> 0 | L28: =+VLOOKUP($A28,'[2]DdaAñoBase CHI'!$A$6:$L$374,8,FALSE) -> 0 | M28: =+VLOOKUP($A28,'[2]DdaAñoBase CHI'!$A$6:$L$374,9,FALSE) -> 0 | N28: =+VLOOKUP($A28,'[2]DdaAñoBase CHI'!$A$6:$L$374,10,FALSE) -> 0 | O28: 0 | P28: 0 | Q28: 0 | R28: 0 | T28: =+VLOOKUP($A28,'[2]DdaAñoBase CHI'!$A$6:$L$374,12,FALSE) -> 0
A29: MTD_2 (10,001-30,000) | B29: =+SUM(B30:B39) -> 0 | C29: =+SUM(C30:C39) -> 0 | D29: =+SUM(D30:D39) -> 0 | E29: =+SUM(E30:E39) -> 0 | F29: 0 | G29: 0 | H29: 0 | I29: 0 | K29: =+SUM(K30:K39) -> 0 | L29: =+SUM(L30:L39) -> 0 | M29: =+SUM(M30:M39) -> 0 | N29: =+SUM(N30:N39) -> 0 | O29: 0 | P29: 0 | Q29: 0 | R29: 0 | T29: =+SUM(T30:T39) -> 0
A30: MTD_2 Regular | B30: =+VLOOKUP($A30,'[2]DdaAñoBase CHI'!$A$6:$L$374,2,FALSE) -> 0 | C30: =+VLOOKUP($A30,'[2]DdaAñoBase CHI'!$A$6:$L$374,3,FALSE) -> 0 | D30: =+VLOOKUP($A30,'[2]DdaAñoBase CHI'!$A$6:$L$374,4,FALSE) -> 0 | E30: =+VLOOKUP($A30,'[2]DdaAñoBase CHI'!$A$6:$L$374,5,FALSE) -> 0 | F30: 0 | G30: 0 | H30: 0 | I30: 0 | K30: =+VLOOKUP($A30,'[2]DdaAñoBase CHI'!$A$6:$L$374,7,FALSE) -> 0 | L30: =+VLOOKUP($A30,'[2]DdaAñoBase CHI'!$A$6:$L$374,8,FALSE) -> 0 | M30: =+VLOOKUP($A30,'[2]DdaAñoBase CHI'!$A$6:$L$374,9,FALSE) -> 0 | N30: =+VLOOKUP($A30,'[2]DdaAñoBase CHI'!$A$6:$L$374,10,FALSE) -> 0 | O30: 0 | P30: 0 | Q30: 0 | R30: 0 | T30: =+VLOOKUP($A30,'[2]DdaAñoBase CHI'!$A$6:$L$374,12,FALSE) -> 0
A31: MTD_2 Agro | B31: =+VLOOKUP($A31,'[2]DdaAñoBase CHI'!$A$6:$L$374,2,FALSE) -> 0 | C31: =+VLOOKUP($A31,'[2]DdaAñoBase CHI'!$A$6:$L$374,3,FALSE) -> 0 | D31: =+VLOOKUP($A31,'[2]DdaAñoBase CHI'!$A$6:$L$374,4,FALSE) -> 0 | E31: =+VLOOKUP($A31,'[2]DdaAñoBase CHI'!$A$6:$L$374,5,FALSE) -> 0 | F31: 0 | G31: 0 | H31: 0 | I31: 0 | K31: =+VLOOKUP($A31,'[2]DdaAñoBase CHI'!$A$6:$L$374,7,FALSE) -> 0 | L31: =+VLOOKUP($A31,'[2]DdaAñoBase CHI'!$A$6:$L$374,8,FALSE) -> 0 | M31: =+VLOOKUP($A31,'[2]DdaAñoBase CHI'!$A$6:$L$374,9,FALSE) -> 0 | N31: =+VLOOKUP($A31,'[2]DdaAñoBase CHI'!$A$6:$L$374,10,FALSE) -> 0 | O31: 0 | P31: 0 | Q31: 0 | R31: 0 | T31: =+VLOOKUP($A31,'[2]DdaAñoBase CHI'!$A$6:$L$374,12,FALSE) -> 0
A32: MTD_2 Jub. 1 | B32: =+VLOOKUP($A32,'[2]DdaAñoBase CHI'!$A$6:$L$374,2,FALSE) -> 0 | C32: =+VLOOKUP($A32,'[2]DdaAñoBase CHI'!$A$6:$L$374,3,FALSE) -> 0 | D32: =+VLOOKUP($A32,'[2]DdaAñoBase CHI'!$A$6:$L$374,4,FALSE) -> 0 | E32: =+VLOOKUP($A32,'[2]DdaAñoBase CHI'!$A$6:$L$374,5,FALSE) -> 0 | F32: 0 | G32: 0 | H32: 0 | I32: 0 | K32: =+VLOOKUP($A32,'[2]DdaAñoBase CHI'!$A$6:$L$374,7,FALSE) -> 0 | L32: =+VLOOKUP($A32,'[2]DdaAñoBase CHI'!$A$6:$L$374,8,FALSE) -> 0 | M32: =+VLOOKUP($A32,'[2]DdaAñoBase CHI'!$A$6:$L$374,9,FALSE) -> 0 | N32: =+VLOOKUP($A32,'[2]DdaAñoBase CHI'!$A$6:$L$374,10,FALSE) -> 0 | O32: 0 | P32: 0 | Q32: 0 | R32: 0 | T32: =+VLOOKUP($A32,'[2]DdaAñoBase CHI'!$A$6:$L$374,12,FALSE) -> 0
A33: MTD_2 Jub. 2 | B33: =+VLOOKUP($A33,'[2]DdaAñoBase CHI'!$A$6:$L$374,2,FALSE) -> 0 | C33: =+VLOOKUP($A33,'[2]DdaAñoBase CHI'!$A$6:$L$374,3,FALSE) -> 0 | D33: =+VLOOKUP($A33,'[2]DdaAñoBase CHI'!$A$6:$L$374,4,FALSE) -> 0 | E33: =+VLOOKUP($A33,'[2]DdaAñoBase CHI'!$A$6:$L$374,5,FALSE) -> 0 | F33: 0 | G33: 0 | H33: 0 | I33: 0 | K33: =+VLOOKUP($A33,'[2]DdaAñoBase CHI'!$A$6:$L$374,7,FALSE) -> 0 | L33: =+VLOOKUP($A33,'[2]DdaAñoBase CHI'!$A$6:$L$374,8,FALSE) -> 0 | M33: =+VLOOKUP($A33,'[2]DdaAñoBase CHI'!$A$6:$L$374,9,FALSE) -> 0 | N33: =+VLOOKUP($A33,'[2]DdaAñoBase CHI'!$A$6:$L$374,10,FALSE) -> 0 | O33: 0 | P33: 0 | Q33: 0 | R33: 0 | T33: =+VLOOKUP($A33,'[2]DdaAñoBase CHI'!$A$6:$L$374,12,FALSE) -> 0
A34: MTD_2 Político | B34: =+VLOOKUP($A34,'[2]DdaAñoBase CHI'!$A$6:$L$374,2,FALSE) -> 0 | C34: =+VLOOKUP($A34,'[2]DdaAñoBase CHI'!$A$6:$L$374,3,FALSE) -> 0 | D34: =+VLOOKUP($A34,'[2]DdaAñoBase CHI'!$A$6:$L$374,4,FALSE) -> 0 | E34: =+VLOOKUP($A34,'[2]DdaAñoBase CHI'!$A$6:$L$374,5,FALSE) -> 0 | F34: 0 | G34: 0 | H34: 0 | I34: 0 | K34: =+VLOOKUP($A34,'[2]DdaAñoBase CHI'!$A$6:$L$374,7,FALSE) -> 0 | L34: =+VLOOKUP($A34,'[2]DdaAñoBase CHI'!$A$6:$L$374,8,FALSE) -> 0 | M34: =+VLOOKUP($A34,'[2]DdaAñoBase CHI'!$A$6:$L$374,9,FALSE) -> 0 | N34: =+VLOOKUP($A34,'[2]DdaAñoBase CHI'!$A$6:$L$374,10,FALSE) -> 0 | O34: 0 | P34: 0 | Q34: 0 | R34: 0 | T34: =+VLOOKUP($A34,'[2]DdaAñoBase CHI'!$A$6:$L$374,12,FALSE) -> 0
A35: MTD_2 x1 | B35: =+VLOOKUP($A35,'[2]DdaAñoBase CHI'!$A$6:$L$374,2,FALSE) -> 0 | C35: =+VLOOKUP($A35,'[2]DdaAñoBase CHI'!$A$6:$L$374,3,FALSE) -> 0 | D35: =+VLOOKUP($A35,'[2]DdaAñoBase CHI'!$A$6:$L$374,4,FALSE) -> 0 | E35: =+VLOOKUP($A35,'[2]DdaAñoBase CHI'!$A$6:$L$374,5,FALSE) -> 0 | F35: 0 | G35: 0 | H35: 0 | I35: 0 | K35: =+VLOOKUP($A35,'[2]DdaAñoBase CHI'!$A$6:$L$374,7,FALSE) -> 0 | L35: =+VLOOKUP($A35,'[2]DdaAñoBase CHI'!$A$6:$L$374,8,FALSE) -> 0 | M35: =+VLOOKUP($A35,'[2]DdaAñoBase CHI'!$A$6:$L$374,9,FALSE) -> 0 | N35: =+VLOOKUP($A35,'[2]DdaAñoBase CHI'!$A$6:$L$374,10,FALSE) -> 0 | O35: 0 | P35: 0 | Q35: 0 | R35: 0 | T35: =+VLOOKUP($A35,'[2]DdaAñoBase CHI'!$A$6:$L$374,12,FALSE) -> 0
A36: MTD_2 x2 | B36: =+VLOOKUP($A36,'[2]DdaAñoBase CHI'!$A$6:$L$374,2,FALSE) -> 0 | C36: =+VLOOKUP($A36,'[2]DdaAñoBase CHI'!$A$6:$L$374,3,FALSE) -> 0 | D36: =+VLOOKUP($A36,'[2]DdaAñoBase CHI'!$A$6:$L$374,4,FALSE) -> 0 | E36: =+VLOOKUP($A36,'[2]DdaAñoBase CHI'!$A$6:$L$374,5,FALSE) -> 0 | F36: 0 | G36: 0 | H36: 0 | I36: 0 | K36: =+VLOOKUP($A36,'[2]DdaAñoBase CHI'!$A$6:$L$374,7,FALSE) -> 0 | L36: =+VLOOKUP($A36,'[2]DdaAñoBase CHI'!$A$6:$L$374,8,FALSE) -> 0 | M36: =+VLOOKUP($A36,'[2]DdaAñoBase CHI'!$A$6:$L$374,9,FALSE) -> 0 | N36: =+VLOOKUP($A36,'[2]DdaAñoBase CHI'!$A$6:$L$374,10,FALSE) -> 0 | O36: 0 | P36: 0 | Q36: 0 | R36: 0 | T36: =+VLOOKUP($A36,'[2]DdaAñoBase CHI'!$A$6:$L$374,12,FALSE) -> 0
A37: MTD_2 Discap. | B37: =+VLOOKUP($A37,'[2]DdaAñoBase CHI'!$A$6:$L$374,2,FALSE) -> 0 | C37: =+VLOOKUP($A37,'[2]DdaAñoBase CHI'!$A$6:$L$374,3,FALSE) -> 0 | D37: =+VLOOKUP($A37,'[2]DdaAñoBase CHI'!$A$6:$L$374,4,FALSE) -> 0 | E37: =+VLOOKUP($A37,'[2]DdaAñoBase CHI'!$A$6:$L$374,5,FALSE) -> 0 | F37: 0 | G37: 0 | H37: 0 | I37: 0 | K37: =+VLOOKUP($A37,'[2]DdaAñoBase CHI'!$A$6:$L$374,7,FALSE) -> 0 | L37: =+VLOOKUP($A37,'[2]DdaAñoBase CHI'!$A$6:$L$374,8,FALSE) -> 0 | M37: =+VLOOKUP($A37,'[2]DdaAñoBase CHI'!$A$6:$L$374,9,FALSE) -> 0 | N37: =+VLOOKUP($A37,'[2]DdaAñoBase CHI'!$A$6:$L$374,10,FALSE) -> 0 | O37: 0 | P37: 0 | Q37: 0 | R37: 0 | T37: =+VLOOKUP($A37,'[2]DdaAñoBase CHI'!$A$6:$L$374,12,FALSE) -> 0
A38: MTD_2 Discapacitados 601-más | B38: =+VLOOKUP($A38,'[2]DdaAñoBase CHI'!$A$6:$L$374,2,FALSE) -> 0 | C38: =+VLOOKUP($A38,'[2]DdaAñoBase CHI'!$A$6:$L$374,3,FALSE) -> 0 | D38: =+VLOOKUP($A38,'[2]DdaAñoBase CHI'!$A$6:$L$374,4,FALSE) -> 0 | E38: =+VLOOKUP($A38,'[2]DdaAñoBase CHI'!$A$6:$L$374,5,FALSE) -> 0 | F38: 0 | G38: 0 | H38: 0 | I38: 0 | K38: =+VLOOKUP($A38,'[2]DdaAñoBase CHI'!$A$6:$L$374,7,FALSE) -> 0 | L38: =+VLOOKUP($A38,'[2]DdaAñoBase CHI'!$A$6:$L$374,8,FALSE) -> 0 | M38: =+VLOOKUP($A38,'[2]DdaAñoBase CHI'!$A$6:$L$374,9,FALSE) -> 0 | N38: =+VLOOKUP($A38,'[2]DdaAñoBase CHI'!$A$6:$L$374,10,FALSE) -> 0 | O38: 0 | P38: 0 | Q38: 0 | R38: 0 | T38: =+VLOOKUP($A38,'[2]DdaAñoBase CHI'!$A$6:$L$374,12,FALSE) -> 0
A39: MTD_2 Cruz Roja | B39: =+VLOOKUP($A39,'[2]DdaAñoBase CHI'!$A$6:$L$374,2,FALSE) -> 0 | C39: =+VLOOKUP($A39,'[2]DdaAñoBase CHI'!$A$6:$L$374,3,FALSE) -> 0 | D39: =+VLOOKUP($A39,'[2]DdaAñoBase CHI'!$A$6:$L$374,4,FALSE) -> 0 | E39: =+VLOOKUP($A39,'[2]DdaAñoBase CHI'!$A$6:$L$374,5,FALSE) -> 0 | F39: 0 | G39: 0 | H39: 0 | I39: 0 | K39: =+VLOOKUP($A39,'[2]DdaAñoBase CHI'!$A$6:$L$374,7,FALSE) -> 0 | L39: =+VLOOKUP($A39,'[2]DdaAñoBase CHI'!$A$6:$L$374,8,FALSE) -> 0 | M39: =+VLOOKUP($A39,'[2]DdaAñoBase CHI'!$A$6:$L$374,9,FALSE) -> 0 | N39: =+VLOOKUP($A39,'[2]DdaAñoBase CHI'!$A$6:$L$374,10,FALSE) -> 0 | O39: 0 | P39: 0 | Q39: 0 | R39: 0 | T39: =+VLOOKUP($A39,'[2]DdaAñoBase CHI'!$A$6:$L$374,12,FALSE) -> 0
A40: MTD_3 (30,001-50,000) | B40: =+SUM(B41:B50) -> 0 | C40: =+SUM(C41:C50) -> 0 | D40: =+SUM(D41:D50) -> 0 | E40: =+SUM(E41:E50) -> 0 | F40: 0 | G40: 0 | H40: 0 | I40: 0 | K40: =+SUM(K41:K50) -> 0 | L40: =+SUM(L41:L50) -> 0 | M40: =+SUM(M41:M50) -> 0 | N40: =+SUM(N41:N50) -> 0 | O40: 0 | P40: 0 | Q40: 0 | R40: 0 | T40: =+SUM(T41:T50) -> 0
A41: MTD_3 Regular | B41: =+VLOOKUP($A41,'[2]DdaAñoBase CHI'!$A$6:$L$374,2,FALSE) -> 0 | C41: =+VLOOKUP($A41,'[2]DdaAñoBase CHI'!$A$6:$L$374,3,FALSE) -> 0 | D41: =+VLOOKUP($A41,'[2]DdaAñoBase CHI'!$A$6:$L$374,4,FALSE) -> 0 | E41: =+VLOOKUP($A41,'[2]DdaAñoBase CHI'!$A$6:$L$374,5,FALSE) -> 0 | F41: 0 | G41: 0 | H41: 0 | I41: 0 | K41: =+VLOOKUP($A41,'[2]DdaAñoBase CHI'!$A$6:$L$374,7,FALSE) -> 0 | L41: =+VLOOKUP($A41,'[2]DdaAñoBase CHI'!$A$6:$L$374,8,FALSE) -> 0 | M41: =+VLOOKUP($A41,'[2]DdaAñoBase CHI'!$A$6:$L$374,9,FALSE) -> 0 | N41: =+VLOOKUP($A41,'[2]DdaAñoBase CHI'!$A$6:$L$374,10,FALSE) -> 0 | O41: 0 | P41: 0 | Q41: 0 | R41: 0 | T41: =+VLOOKUP($A41,'[2]DdaAñoBase CHI'!$A$6:$L$374,12,FALSE) -> 0
A42: MTD_3 Agro | B42: =+VLOOKUP($A42,'[2]DdaAñoBase CHI'!$A$6:$L$374,2,FALSE) -> 0 | C42: =+VLOOKUP($A42,'[2]DdaAñoBase CHI'!$A$6:$L$374,3,FALSE) -> 0 | D42: =+VLOOKUP($A42,'[2]DdaAñoBase CHI'!$A$6:$L$374,4,FALSE) -> 0 | E42: =+VLOOKUP($A42,'[2]DdaAñoBase CHI'!$A$6:$L$374,5,FALSE) -> 0 | F42: 0 | G42: 0 | H42: 0 | I42: 0 | K42: =+VLOOKUP($A42,'[2]DdaAñoBase CHI'!$A$6:$L$374,7,FALSE) -> 0 | L42: =+VLOOKUP($A42,'[2]DdaAñoBase CHI'!$A$6:$L$374,8,FALSE) -> 0 | M42: =+VLOOKUP($A42,'[2]DdaAñoBase CHI'!$A$6:$L$374,9,FALSE) -> 0 | N42: =+VLOOKUP($A42,'[2]DdaAñoBase CHI'!$A$6:$L$374,10,FALSE) -> 0 | O42: 0 | P42: 0 | Q42: 0 | R42: 0 | T42: =+VLOOKUP($A42,'[2]DdaAñoBase CHI'!$A$6:$L$374,12,FALSE) -> 0
A43: MTD_3 Jub. 1 | B43: =+VLOOKUP($A43,'[2]DdaAñoBase CHI'!$A$6:$L$374,2,FALSE) -> 0 | C43: =+VLOOKUP($A43,'[2]DdaAñoBase CHI'!$A$6:$L$374,3,FALSE) -> 0 | D43: =+VLOOKUP($A43,'[2]DdaAñoBase CHI'!$A$6:$L$374,4,FALSE) -> 0 | E43: =+VLOOKUP($A43,'[2]DdaAñoBase CHI'!$A$6:$L$374,5,FALSE) -> 0 | F43: 0 | G43: 0 | H43: 0 | I43: 0 | K43: =+VLOOKUP($A43,'[2]DdaAñoBase CHI'!$A$6:$L$374,7,FALSE) -> 0 | L43: =+VLOOKUP($A43,'[2]DdaAñoBase CHI'!$A$6:$L$374,8,FALSE) -> 0 | M43: =+VLOOKUP($A43,'[2]DdaAñoBase CHI'!$A$6:$L$374,9,FALSE) -> 0 | N43: =+VLOOKUP($A43,'[2]DdaAñoBase CHI'!$A$6:$L$374,10,FALSE) -> 0 | O43: 0 | P43: 0 | Q43: 0 | R43: 0 | T43: =+VLOOKUP($A43,'[2]DdaAñoBase CHI'!$A$6:$L$374,12,FALSE) -> 0
A44: MTD_3 Jub. 2 | B44: =+VLOOKUP($A44,'[2]DdaAñoBase CHI'!$A$6:$L$374,2,FALSE) -> 0 | C44: =+VLOOKUP($A44,'[2]DdaAñoBase CHI'!$A$6:$L$374,3,FALSE) -> 0 | D44: =+VLOOKUP($A44,'[2]DdaAñoBase CHI'!$A$6:$L$374,4,FALSE) -> 0 | E44: =+VLOOKUP($A44,'[2]DdaAñoBase CHI'!$A$6:$L$374,5,FALSE) -> 0 | F44: 0 | G44: 0 | H44: 0 | I44: 0 | K44: =+VLOOKUP($A44,'[2]DdaAñoBase CHI'!$A$6:$L$374,7,FALSE) -> 0 | L44: =+VLOOKUP($A44,'[2]DdaAñoBase CHI'!$A$6:$L$374,8,FALSE) -> 0 | M44: =+VLOOKUP($A44,'[2]DdaAñoBase CHI'!$A$6:$L$374,9,FALSE) -> 0 | N44: =+VLOOKUP($A44,'[2]DdaAñoBase CHI'!$A$6:$L$374,10,FALSE) -> 0 | O44: 0 | P44: 0 | Q44: 0 | R44: 0 | T44: =+VLOOKUP($A44,'[2]DdaAñoBase CHI'!$A$6:$L$374,12,FALSE) -> 0
A45: MTD_3 Político | B45: =+VLOOKUP($A45,'[2]DdaAñoBase CHI'!$A$6:$L$374,2,FALSE) -> 0 | C45: =+VLOOKUP($A45,'[2]DdaAñoBase CHI'!$A$6:$L$374,3,FALSE) -> 0 | D45: =+VLOOKUP($A45,'[2]DdaAñoBase CHI'!$A$6:$L$374,4,FALSE) -> 0 | E45: =+VLOOKUP($A45,'[2]DdaAñoBase CHI'!$A$6:$L$374,5,FALSE) -> 0 | F45: 0 | G45: 0 | H45: 0 | I45: 0 | K45: =+VLOOKUP($A45,'[2]DdaAñoBase CHI'!$A$6:$L$374,7,FALSE) -> 0 | L45: =+VLOOKUP($A45,'[2]DdaAñoBase CHI'!$A$6:$L$374,8,FALSE) -> 0 | M45: =+VLOOKUP($A45,'[2]DdaAñoBase CHI'!$A$6:$L$374,9,FALSE) -> 0 | N45: =+VLOOKUP($A45,'[2]DdaAñoBase CHI'!$A$6:$L$374,10,FALSE) -> 0 | O45: 0 | P45: 0 | Q45: 0 | R45: 0 | T45: =+VLOOKUP($A45,'[2]DdaAñoBase CHI'!$A$6:$L$374,12,FALSE) -> 0
A46: MTD_3 x1 | B46: =+VLOOKUP($A46,'[2]DdaAñoBase CHI'!$A$6:$L$374,2,FALSE) -> 0 | C46: =+VLOOKUP($A46,'[2]DdaAñoBase CHI'!$A$6:$L$374,3,FALSE) -> 0 | D46: =+VLOOKUP($A46,'[2]DdaAñoBase CHI'!$A$6:$L$374,4,FALSE) -> 0 | E46: =+VLOOKUP($A46,'[2]DdaAñoBase CHI'!$A$6:$L$374,5,FALSE) -> 0 | F46: 0 | G46: 0 | H46: 0 | I46: 0 | K46: =+VLOOKUP($A46,'[2]DdaAñoBase CHI'!$A$6:$L$374,7,FALSE) -> 0 | L46: =+VLOOKUP($A46,'[2]DdaAñoBase CHI'!$A$6:$L$374,8,FALSE) -> 0 | M46: =+VLOOKUP($A46,'[2]DdaAñoBase CHI'!$A$6:$L$374,9,FALSE) -> 0 | N46: =+VLOOKUP($A46,'[2]DdaAñoBase CHI'!$A$6:$L$374,10,FALSE) -> 0 | O46: 0 | P46: 0 | Q46: 0 | R46: 0 | T46: =+VLOOKUP($A46,'[2]DdaAñoBase CHI'!$A$6:$L$374,12,FALSE) -> 0
A47: MTD_3 x2 | B47: =+VLOOKUP($A47,'[2]DdaAñoBase CHI'!$A$6:$L$374,2,FALSE) -> 0 | C47: =+VLOOKUP($A47,'[2]DdaAñoBase CHI'!$A$6:$L$374,3,FALSE) -> 0 | D47: =+VLOOKUP($A47,'[2]DdaAñoBase CHI'!$A$6:$L$374,4,FALSE) -> 0 | E47: =+VLOOKUP($A47,'[2]DdaAñoBase CHI'!$A$6:$L$374,5,FALSE) -> 0 | F47: 0 | G47: 0 | H47: 0 | I47: 0 | K47: =+VLOOKUP($A47,'[2]DdaAñoBase CHI'!$A$6:$L$374,7,FALSE) -> 0 | L47: =+VLOOKUP($A47,'[2]DdaAñoBase CHI'!$A$6:$L$374,8,FALSE) -> 0 | M47: =+VLOOKUP($A47,'[2]DdaAñoBase CHI'!$A$6:$L$374,9,FALSE) -> 0 | N47: =+VLOOKUP($A47,'[2]DdaAñoBase CHI'!$A$6:$L$374,10,FALSE) -> 0 | O47: 0 | P47: 0 | Q47: 0 | R47: 0 | T47: =+VLOOKUP($A47,'[2]DdaAñoBase CHI'!$A$6:$L$374,12,FALSE) -> 0
A48: MTD_3 Discap. | B48: =+VLOOKUP($A48,'[2]DdaAñoBase CHI'!$A$6:$L$374,2,FALSE) -> 0 | C48: =+VLOOKUP($A48,'[2]DdaAñoBase CHI'!$A$6:$L$374,3,FALSE) -> 0 | D48: =+VLOOKUP($A48,'[2]DdaAñoBase CHI'!$A$6:$L$374,4,FALSE) -> 0 | E48: =+VLOOKUP($A48,'[2]DdaAñoBase CHI'!$A$6:$L$374,5,FALSE) -> 0 | F48: 0 | G48: 0 | H48: 0 | I48: 0 | K48: =+VLOOKUP($A48,'[2]DdaAñoBase CHI'!$A$6:$L$374,7,FALSE) -> 0 | L48: =+VLOOKUP($A48,'[2]DdaAñoBase CHI'!$A$6:$L$374,8,FALSE) -> 0 | M48: =+VLOOKUP($A48,'[2]DdaAñoBase CHI'!$A$6:$L$374,9,FALSE) -> 0 | N48: =+VLOOKUP($A48,'[2]DdaAñoBase CHI'!$A$6:$L$374,10,FALSE) -> 0 | O48: 0 | P48: 0 | Q48: 0 | R48: 0 | T48: =+VLOOKUP($A48,'[2]DdaAñoBase CHI'!$A$6:$L$374,12,FALSE) -> 0
A49: MTD_3 Discapacitados 601-más | B49: =+VLOOKUP($A49,'[2]DdaAñoBase CHI'!$A$6:$L$374,2,FALSE) -> 0 | C49: =+VLOOKUP($A49,'[2]DdaAñoBase CHI'!$A$6:$L$374,3,FALSE) -> 0 | D49: =+VLOOKUP($A49,'[2]DdaAñoBase CHI'!$A$6:$L$374,4,FALSE) -> 0 | E49: =+VLOOKUP($A49,'[2]DdaAñoBase CHI'!$A$6:$L$374,5,FALSE) -> 0 | F49: 0 | G49: 0 | H49: 0 | I49: 0 | K49: =+VLOOKUP($A49,'[2]DdaAñoBase CHI'!$A$6:$L$374,7,FALSE) -> 0 | L49: =+VLOOKUP($A49,'[2]DdaAñoBase CHI'!$A$6:$L$374,8,FALSE) -> 0 | M49: =+VLOOKUP($A49,'[2]DdaAñoBase CHI'!$A$6:$L$374,9,FALSE) -> 0 | N49: =+VLOOKUP($A49,'[2]DdaAñoBase CHI'!$A$6:$L$374,10,FALSE) -> 0 | O49: 0 | P49: 0 | Q49: 0 | R49: 0 | T49: =+VLOOKUP($A49,'[2]DdaAñoBase CHI'!$A$6:$L$374,12,FALSE) -> 0
A50: MTD_3 Cruz Roja | B50: =+VLOOKUP($A50,'[2]DdaAñoBase CHI'!$A$6:$L$374,2,FALSE) -> 0 | C50: =+VLOOKUP($A50,'[2]DdaAñoBase CHI'!$A$6:$L$374,3,FALSE) -> 0 | D50: =+VLOOKUP($A50,'[2]DdaAñoBase CHI'!$A$6:$L$374,4,FALSE) -> 0 | E50: =+VLOOKUP($A50,'[2]DdaAñoBase CHI'!$A$6:$L$374,5,FALSE) -> 0 | F50: 0 | G50: 0 | H50: 0 | I50: 0 | K50: =+VLOOKUP($A50,'[2]DdaAñoBase CHI'!$A$6:$L$374,7,FALSE) -> 0 | L50: =+VLOOKUP($A50,'[2]DdaAñoBase CHI'!$A$6:$L$374,8,FALSE) -> 0 | M50: =+VLOOKUP($A50,'[2]DdaAñoBase CHI'!$A$6:$L$374,9,FALSE) -> 0 | N50: =+VLOOKUP($A50,'[2]DdaAñoBase CHI'!$A$6:$L$374,10,FALSE) -> 0 | O50: 0 | P50: 0 | Q50: 0 | R50: 0 | T50: =+VLOOKUP($A50,'[2]DdaAñoBase CHI'!$A$6:$L$374,12,FALSE) -> 0
A51: MTD_4 (50,001-más) | B51: =+SUM(B52:B61) -> 0 | C51: =+SUM(C52:C61) -> 0 | D51: =+SUM(D52:D61) -> 0 | E51: =+SUM(E52:E61) -> 0 | F51: 0 | G51: 0 | H51: 0 | I51: 0 | K51: =+SUM(K52:K61) -> 0 | L51: =+SUM(L52:L61) -> 0 | M51: =+SUM(M52:M61) -> 0 | N51: =+SUM(N52:N61) -> 0 | O51: 0 | P51: 0 | Q51: 0 | R51: 0 | T51: =+SUM(T52:T61) -> 0
A52: MTD_4 Regular | B52: =+VLOOKUP($A52,'[2]DdaAñoBase CHI'!$A$6:$L$374,2,FALSE) -> 0 | C52: =+VLOOKUP($A52,'[2]DdaAñoBase CHI'!$A$6:$L$374,3,FALSE) -> 0 | D52: =+VLOOKUP($A52,'[2]DdaAñoBase CHI'!$A$6:$L$374,4,FALSE) -> 0 | E52: =+VLOOKUP($A52,'[2]DdaAñoBase CHI'!$A$6:$L$374,5,FALSE) -> 0 | F52: 0 | G52: 0 | H52: 0 | I52: 0 | K52: =+VLOOKUP($A52,'[2]DdaAñoBase CHI'!$A$6:$L$374,7,FALSE) -> 0 | L52: =+VLOOKUP($A52,'[2]DdaAñoBase CHI'!$A$6:$L$374,8,FALSE) -> 0 | M52: =+VLOOKUP($A52,'[2]DdaAñoBase CHI'!$A$6:$L$374,9,FALSE) -> 0 | N52: =+VLOOKUP($A52,'[2]DdaAñoBase CHI'!$A$6:$L$374,10,FALSE) -> 0 | O52: 0 | P52: 0 | Q52: 0 | R52: 0 | T52: =+VLOOKUP($A52,'[2]DdaAñoBase CHI'!$A$6:$L$374,12,FALSE) -> 0
A53: MTD_4 Agro | B53: =+VLOOKUP($A53,'[2]DdaAñoBase CHI'!$A$6:$L$374,2,FALSE) -> 0 | C53: =+VLOOKUP($A53,'[2]DdaAñoBase CHI'!$A$6:$L$374,3,FALSE) -> 0 | D53: =+VLOOKUP($A53,'[2]DdaAñoBase CHI'!$A$6:$L$374,4,FALSE) -> 0 | E53: =+VLOOKUP($A53,'[2]DdaAñoBase CHI'!$A$6:$L$374,5,FALSE) -> 0 | F53: 0 | G53: 0 | H53: 0 | I53: 0 | K53: =+VLOOKUP($A53,'[2]DdaAñoBase CHI'!$A$6:$L$374,7,FALSE) -> 0 | L53: =+VLOOKUP($A53,'[2]DdaAñoBase CHI'!$A$6:$L$374,8,FALSE) -> 0 | M53: =+VLOOKUP($A53,'[2]DdaAñoBase CHI'!$A$6:$L$374,9,FALSE) -> 0 | N53: =+VLOOKUP($A53,'[2]DdaAñoBase CHI'!$A$6:$L$374,10,FALSE) -> 0 | O53: 0 | P53: 0 | Q53: 0 | R53: 0 | T53: =+VLOOKUP($A53,'[2]DdaAñoBase CHI'!$A$6:$L$374,12,FALSE) -> 0
A54: MTD_4 Jub. 1 | B54: =+VLOOKUP($A54,'[2]DdaAñoBase CHI'!$A$6:$L$374,2,FALSE) -> 0 | C54: =+VLOOKUP($A54,'[2]DdaAñoBase CHI'!$A$6:$L$374,3,FALSE) -> 0 | D54: =+VLOOKUP($A54,'[2]DdaAñoBase CHI'!$A$6:$L$374,4,FALSE) -> 0 | E54: =+VLOOKUP($A54,'[2]DdaAñoBase CHI'!$A$6:$L$374,5,FALSE) -> 0 | F54: 0 | G54: 0 | H54: 0 | I54: 0 | K54: =+VLOOKUP($A54,'[2]DdaAñoBase CHI'!$A$6:$L$374,7,FALSE) -> 0 | L54: =+VLOOKUP($A54,'[2]DdaAñoBase CHI'!$A$6:$L$374,8,FALSE) -> 0 | M54: =+VLOOKUP($A54,'[2]DdaAñoBase CHI'!$A$6:$L$374,9,FALSE) -> 0 | N54: =+VLOOKUP($A54,'[2]DdaAñoBase CHI'!$A$6:$L$374,10,FALSE) -> 0 | O54: 0 | P54: 0 | Q54: 0 | R54: 0 | T54: =+VLOOKUP($A54,'[2]DdaAñoBase CHI'!$A$6:$L$374,12,FALSE) -> 0
A55: MTD_4 Jub. 2 | B55: =+VLOOKUP($A55,'[2]DdaAñoBase CHI'!$A$6:$L$374,2,FALSE) -> 0 | C55: =+VLOOKUP($A55,'[2]DdaAñoBase CHI'!$A$6:$L$374,3,FALSE) -> 0 | D55: =+VLOOKUP($A55,'[2]DdaAñoBase CHI'!$A$6:$L$374,4,FALSE) -> 0 | E55: =+VLOOKUP($A55,'[2]DdaAñoBase CHI'!$A$6:$L$374,5,FALSE) -> 0 | F55: 0 | G55: 0 | H55: 0 | I55: 0 | K55: =+VLOOKUP($A55,'[2]DdaAñoBase CHI'!$A$6:$L$374,7,FALSE) -> 0 | L55: =+VLOOKUP($A55,'[2]DdaAñoBase CHI'!$A$6:$L$374,8,FALSE) -> 0 | M55: =+VLOOKUP($A55,'[2]DdaAñoBase CHI'!$A$6:$L$374,9,FALSE) -> 0 | N55: =+VLOOKUP($A55,'[2]DdaAñoBase CHI'!$A$6:$L$374,10,FALSE) -> 0 | O55: 0 | P55: 0 | Q55: 0 | R55: 0 | T55: =+VLOOKUP($A55,'[2]DdaAñoBase CHI'!$A$6:$L$374,12,FALSE) -> 0
A56: MTD_4 Político | B56: =+VLOOKUP($A56,'[2]DdaAñoBase CHI'!$A$6:$L$374,2,FALSE) -> 0 | C56: =+VLOOKUP($A56,'[2]DdaAñoBase CHI'!$A$6:$L$374,3,FALSE) -> 0 | D56: =+VLOOKUP($A56,'[2]DdaAñoBase CHI'!$A$6:$L$374,4,FALSE) -> 0 | E56: =+VLOOKUP($A56,'[2]DdaAñoBase CHI'!$A$6:$L$374,5,FALSE) -> 0 | F56: 0 | G56: 0 | H56: 0 | I56: 0 | K56: =+VLOOKUP($A56,'[2]DdaAñoBase CHI'!$A$6:$L$374,7,FALSE) -> 0 | L56: =+VLOOKUP($A56,'[2]DdaAñoBase CHI'!$A$6:$L$374,8,FALSE) -> 0 | M56: =+VLOOKUP($A56,'[2]DdaAñoBase CHI'!$A$6:$L$374,9,FALSE) -> 0 | N56: =+VLOOKUP($A56,'[2]DdaAñoBase CHI'!$A$6:$L$374,10,FALSE) -> 0 | O56: 0 | P56: 0 | Q56: 0 | R56: 0 | T56: =+VLOOKUP($A56,'[2]DdaAñoBase CHI'!$A$6:$L$374,12,FALSE) -> 0
A57: MTD_4 x1 | B57: =+VLOOKUP($A57,'[2]DdaAñoBase CHI'!$A$6:$L$374,2,FALSE) -> 0 | C57: =+VLOOKUP($A57,'[2]DdaAñoBase CHI'!$A$6:$L$374,3,FALSE) -> 0 | D57: =+VLOOKUP($A57,'[2]DdaAñoBase CHI'!$A$6:$L$374,4,FALSE) -> 0 | E57: =+VLOOKUP($A57,'[2]DdaAñoBase CHI'!$A$6:$L$374,5,FALSE) -> 0 | F57: 0 | G57: 0 | H57: 0 | I57: 0 | K57: =+VLOOKUP($A57,'[2]DdaAñoBase CHI'!$A$6:$L$374,7,FALSE) -> 0 | L57: =+VLOOKUP($A57,'[2]DdaAñoBase CHI'!$A$6:$L$374,8,FALSE) -> 0 | M57: =+VLOOKUP($A57,'[2]DdaAñoBase CHI'!$A$6:$L$374,9,FALSE) -> 0 | N57: =+VLOOKUP($A57,'[2]DdaAñoBase CHI'!$A$6:$L$374,10,FALSE) -> 0 | O57: 0 | P57: 0 | Q57: 0 | R57: 0 | T57: =+VLOOKUP($A57,'[2]DdaAñoBase CHI'!$A$6:$L$374,12,FALSE) -> 0
A58: MTD_4 x2 | B58: =+VLOOKUP($A58,'[2]DdaAñoBase CHI'!$A$6:$L$374,2,FALSE) -> 0 | C58: =+VLOOKUP($A58,'[2]DdaAñoBase CHI'!$A$6:$L$374,3,FALSE) -> 0 | D58: =+VLOOKUP($A58,'[2]DdaAñoBase CHI'!$A$6:$L$374,4,FALSE) -> 0 | E58: =+VLOOKUP($A58,'[2]DdaAñoBase CHI'!$A$6:$L$374,5,FALSE) -> 0 | F58: 0 | G58: 0 | H58: 0 | I58: 0 | K58: =+VLOOKUP($A58,'[2]DdaAñoBase CHI'!$A$6:$L$374,7,FALSE) -> 0 | L58: =+VLOOKUP($A58,'[2]DdaAñoBase CHI'!$A$6:$L$374,8,FALSE) -> 0 | M58: =+VLOOKUP($A58,'[2]DdaAñoBase CHI'!$A$6:$L$374,9,FALSE) -> 0 | N58: =+VLOOKUP($A58,'[2]DdaAñoBase CHI'!$A$6:$L$374,10,FALSE) -> 0 | O58: 0 | P58: 0 | Q58: 0 | R58: 0 | T58: =+VLOOKUP($A58,'[2]DdaAñoBase CHI'!$A$6:$L$374,12,FALSE) -> 0
A59: MTD_4 Discap. | B59: =+VLOOKUP($A59,'[2]DdaAñoBase CHI'!$A$6:$L$374,2,FALSE) -> 0 | C59: =+VLOOKUP($A59,'[2]DdaAñoBase CHI'!$A$6:$L$374,3,FALSE) -> 0 | D59: =+VLOOKUP($A59,'[2]DdaAñoBase CHI'!$A$6:$L$374,4,FALSE) -> 0 | E59: =+VLOOKUP($A59,'[2]DdaAñoBase CHI'!$A$6:$L$374,5,FALSE) -> 0 | F59: 0 | G59: 0 | H59: 0 | I59: 0 | K59: =+VLOOKUP($A59,'[2]DdaAñoBase CHI'!$A$6:$L$374,7,FALSE) -> 0 | L59: =+VLOOKUP($A59,'[2]DdaAñoBase CHI'!$A$6:$L$374,8,FALSE) -> 0 | M59: =+VLOOKUP($A59,'[2]DdaAñoBase CHI'!$A$6:$L$374,9,FALSE) -> 0 | N59: =+VLOOKUP($A59,'[2]DdaAñoBase CHI'!$A$6:$L$374,10,FALSE) -> 0 | O59: 0 | P59: 0 | Q59: 0 | R59: 0 | T59: =+VLOOKUP($A59,'[2]DdaAñoBase CHI'!$A$6:$L$374,12,FALSE) -> 0
A60: MTD_4 Discapacitados 601-más | B60: =+VLOOKUP($A60,'[2]DdaAñoBase CHI'!$A$6:$L$374,2,FALSE) -> 0 | C60: =+VLOOKUP($A60,'[2]DdaAñoBase CHI'!$A$6:$L$374,3,FALSE) -> 0 | D60: =+VLOOKUP($A60,'[2]DdaAñoBase CHI'!$A$6:$L$374,4,FALSE) -> 0 | E60: =+VLOOKUP($A60,'[2]DdaAñoBase CHI'!$A$6:$L$374,5,FALSE) -> 0 | F60: 0 | G60: 0 | H60: 0 | I60: 0 | K60: =+VLOOKUP($A60,'[2]DdaAñoBase CHI'!$A$6:$L$374,7,FALSE) -> 0 | L60: =+VLOOKUP($A60,'[2]DdaAñoBase CHI'!$A$6:$L$374,8,FALSE) -> 0 | M60: =+VLOOKUP($A60,'[2]DdaAñoBase CHI'!$A$6:$L$374,9,FALSE) -> 0 | N60: =+VLOOKUP($A60,'[2]DdaAñoBase CHI'!$A$6:$L$374,10,FALSE) -> 0 | O60: 0 | P60: 0 | Q60: 0 | R60: 0 | T60: =+VLOOKUP($A60,'[2]DdaAñoBase CHI'!$A$6:$L$374,12,FALSE) -> 0
A61: MTD_4 Cruz Roja | B61: =+VLOOKUP($A61,'[2]DdaAñoBase CHI'!$A$6:$L$374,2,FALSE) -> 0 | C61: =+VLOOKUP($A61,'[2]DdaAñoBase CHI'!$A$6:$L$374,3,FALSE) -> 0 | D61: =+VLOOKUP($A61,'[2]DdaAñoBase CHI'!$A$6:$L$374,4,FALSE) -> 0 | E61: =+VLOOKUP($A61,'[2]DdaAñoBase CHI'!$A$6:$L$374,5,FALSE) -> 0 | F61: 0 | G61: 0 | H61: 0 | I61: 0 | K61: =+VLOOKUP($A61,'[2]DdaAñoBase CHI'!$A$6:$L$374,7,FALSE) -> 0 | L61: =+VLOOKUP($A61,'[2]DdaAñoBase CHI'!$A$6:$L$374,8,FALSE) -> 0 | M61: =+VLOOKUP($A61,'[2]DdaAñoBase CHI'!$A$6:$L$374,9,FALSE) -> 0 | N61: =+VLOOKUP($A61,'[2]DdaAñoBase CHI'!$A$6:$L$374,10,FALSE) -> 0 | O61: 0 | P61: 0 | Q61: 0 | R61: 0 | T61: =+VLOOKUP($A61,'[2]DdaAñoBase CHI'!$A$6:$L$374,12,FALSE) -> 0
A62: MTD_5 (xxx) | B62: =+SUM(B63:B72) -> 0 | C62: =+SUM(C63:C72) -> 0 | D62: =+SUM(D63:D72) -> 0 | E62: =+SUM(E63:E72) -> 0 | F62: 0 | G62: 0 | H62: 0 | I62: 0 | K62: =+SUM(K63:K72) -> 0 | L62: =+SUM(L63:L72) -> 0 | M62: =+SUM(M63:M72) -> 0 | N62: =+SUM(N63:N72) -> 0 | O62: 0 | P62: 0 | Q62: 0 | R62: 0 | T62: =+SUM(T63:T72) -> 0
A63: MTD_5 Regular | B63: =+VLOOKUP($A63,'[2]DdaAñoBase CHI'!$A$6:$L$374,2,FALSE) -> 0 | C63: =+VLOOKUP($A63,'[2]DdaAñoBase CHI'!$A$6:$L$374,3,FALSE) -> 0 | D63: =+VLOOKUP($A63,'[2]DdaAñoBase CHI'!$A$6:$L$374,4,FALSE) -> 0 | E63: =+VLOOKUP($A63,'[2]DdaAñoBase CHI'!$A$6:$L$374,5,FALSE) -> 0 | F63: 0 | G63: 0 | H63: 0 | I63: 0 | K63: =+VLOOKUP($A63,'[2]DdaAñoBase CHI'!$A$6:$L$374,7,FALSE) -> 0 | L63: =+VLOOKUP($A63,'[2]DdaAñoBase CHI'!$A$6:$L$374,8,FALSE) -> 0 | M63: =+VLOOKUP($A63,'[2]DdaAñoBase CHI'!$A$6:$L$374,9,FALSE) -> 0 | N63: =+VLOOKUP($A63,'[2]DdaAñoBase CHI'!$A$6:$L$374,10,FALSE) -> 0 | O63: 0 | P63: 0 | Q63: 0 | R63: 0 | T63: =+VLOOKUP($A63,'[2]DdaAñoBase CHI'!$A$6:$L$374,12,FALSE) -> 0
A64: MTD_5 Agro | B64: =+VLOOKUP($A64,'[2]DdaAñoBase CHI'!$A$6:$L$374,2,FALSE) -> 0 | C64: =+VLOOKUP($A64,'[2]DdaAñoBase CHI'!$A$6:$L$374,3,FALSE) -> 0 | D64: =+VLOOKUP($A64,'[2]DdaAñoBase CHI'!$A$6:$L$374,4,FALSE) -> 0 | E64: =+VLOOKUP($A64,'[2]DdaAñoBase CHI'!$A$6:$L$374,5,FALSE) -> 0 | F64: 0 | G64: 0 | H64: 0 | I64: 0 | K64: =+VLOOKUP($A64,'[2]DdaAñoBase CHI'!$A$6:$L$374,7,FALSE) -> 0 | L64: =+VLOOKUP($A64,'[2]DdaAñoBase CHI'!$A$6:$L$374,8,FALSE) -> 0 | M64: =+VLOOKUP($A64,'[2]DdaAñoBase CHI'!$A$6:$L$374,9,FALSE) -> 0 | N64: =+VLOOKUP($A64,'[2]DdaAñoBase CHI'!$A$6:$L$374,10,FALSE) -> 0 | O64: 0 | P64: 0 | Q64: 0 | R64: 0 | T64: =+VLOOKUP($A64,'[2]DdaAñoBase CHI'!$A$6:$L$374,12,FALSE) -> 0
A65: MTD_5 Jub. 1 | B65: =+VLOOKUP($A65,'[2]DdaAñoBase CHI'!$A$6:$L$374,2,FALSE) -> 0 | C65: =+VLOOKUP($A65,'[2]DdaAñoBase CHI'!$A$6:$L$374,3,FALSE) -> 0 | D65: =+VLOOKUP($A65,'[2]DdaAñoBase CHI'!$A$6:$L$374,4,FALSE) -> 0 | E65: =+VLOOKUP($A65,'[2]DdaAñoBase CHI'!$A$6:$L$374,5,FALSE) -> 0 | F65: 0 | G65: 0 | H65: 0 | I65: 0 | K65: =+VLOOKUP($A65,'[2]DdaAñoBase CHI'!$A$6:$L$374,7,FALSE) -> 0 | L65: =+VLOOKUP($A65,'[2]DdaAñoBase CHI'!$A$6:$L$374,8,FALSE) -> 0 | M65: =+VLOOKUP($A65,'[2]DdaAñoBase CHI'!$A$6:$L$374,9,FALSE) -> 0 | N65: =+VLOOKUP($A65,'[2]DdaAñoBase CHI'!$A$6:$L$374,10,FALSE) -> 0 | O65: 0 | P65: 0 | Q65: 0 | R65: 0 | T65: =+VLOOKUP($A65,'[2]DdaAñoBase CHI'!$A$6:$L$374,12,FALSE) -> 0
A66: MTD_5 Jub. 2 | B66: =+VLOOKUP($A66,'[2]DdaAñoBase CHI'!$A$6:$L$374,2,FALSE) -> 0 | C66: =+VLOOKUP($A66,'[2]DdaAñoBase CHI'!$A$6:$L$374,3,FALSE) -> 0 | D66: =+VLOOKUP($A66,'[2]DdaAñoBase CHI'!$A$6:$L$374,4,FALSE) -> 0 | E66: =+VLOOKUP($A66,'[2]DdaAñoBase CHI'!$A$6:$L$374,5,FALSE) -> 0 | F66: 0 | G66: 0 | H66: 0 | I66: 0 | K66: =+VLOOKUP($A66,'[2]DdaAñoBase CHI'!$A$6:$L$374,7,FALSE) -> 0 | L66: =+VLOOKUP($A66,'[2]DdaAñoBase CHI'!$A$6:$L$374,8,FALSE) -> 0 | M66: =+VLOOKUP($A66,'[2]DdaAñoBase CHI'!$A$6:$L$374,9,FALSE) -> 0 | N66: =+VLOOKUP($A66,'[2]DdaAñoBase CHI'!$A$6:$L$374,10,FALSE) -> 0 | O66: 0 | P66: 0 | Q66: 0 | R66: 0 | T66: =+VLOOKUP($A66,'[2]DdaAñoBase CHI'!$A$6:$L$374,12,FALSE) -> 0
A67: MTD_5 Político | B67: =+VLOOKUP($A67,'[2]DdaAñoBase CHI'!$A$6:$L$374,2,FALSE) -> 0 | C67: =+VLOOKUP($A67,'[2]DdaAñoBase CHI'!$A$6:$L$374,3,FALSE) -> 0 | D67: =+VLOOKUP($A67,'[2]DdaAñoBase CHI'!$A$6:$L$374,4,FALSE) -> 0 | E67: =+VLOOKUP($A67,'[2]DdaAñoBase CHI'!$A$6:$L$374,5,FALSE) -> 0 | F67: 0 | G67: 0 | H67: 0 | I67: 0 | K67: =+VLOOKUP($A67,'[2]DdaAñoBase CHI'!$A$6:$L$374,7,FALSE) -> 0 | L67: =+VLOOKUP($A67,'[2]DdaAñoBase CHI'!$A$6:$L$374,8,FALSE) -> 0 | M67: =+VLOOKUP($A67,'[2]DdaAñoBase CHI'!$A$6:$L$374,9,FALSE) -> 0 | N67: =+VLOOKUP($A67,'[2]DdaAñoBase CHI'!$A$6:$L$374,10,FALSE) -> 0 | O67: 0 | P67: 0 | Q67: 0 | R67: 0 | T67: =+VLOOKUP($A67,'[2]DdaAñoBase CHI'!$A$6:$L$374,12,FALSE) -> 0
A68: MTD_5 x1 | B68: =+VLOOKUP($A68,'[2]DdaAñoBase CHI'!$A$6:$L$374,2,FALSE) -> 0 | C68: =+VLOOKUP($A68,'[2]DdaAñoBase CHI'!$A$6:$L$374,3,FALSE) -> 0 | D68: =+VLOOKUP($A68,'[2]DdaAñoBase CHI'!$A$6:$L$374,4,FALSE) -> 0 | E68: =+VLOOKUP($A68,'[2]DdaAñoBase CHI'!$A$6:$L$374,5,FALSE) -> 0 | F68: 0 | G68: 0 | H68: 0 | I68: 0 | K68: =+VLOOKUP($A68,'[2]DdaAñoBase CHI'!$A$6:$L$374,7,FALSE) -> 0 | L68: =+VLOOKUP($A68,'[2]DdaAñoBase CHI'!$A$6:$L$374,8,FALSE) -> 0 | M68: =+VLOOKUP($A68,'[2]DdaAñoBase CHI'!$A$6:$L$374,9,FALSE) -> 0 | N68: =+VLOOKUP($A68,'[2]DdaAñoBase CHI'!$A$6:$L$374,10,FALSE) -> 0 | O68: 0 | P68: 0 | Q68: 0 | R68: 0 | T68: =+VLOOKUP($A68,'[2]DdaAñoBase CHI'!$A$6:$L$374,12,FALSE) -> 0
A69: MTD_5 x2 | B69: =+VLOOKUP($A69,'[2]DdaAñoBase CHI'!$A$6:$L$374,2,FALSE) -> 0 | C69: =+VLOOKUP($A69,'[2]DdaAñoBase CHI'!$A$6:$L$374,3,FALSE) -> 0 | D69: =+VLOOKUP($A69,'[2]DdaAñoBase CHI'!$A$6:$L$374,4,FALSE) -> 0 | E69: =+VLOOKUP($A69,'[2]DdaAñoBase CHI'!$A$6:$L$374,5,FALSE) -> 0 | F69: 0 | G69: 0 | H69: 0 | I69: 0 | K69: =+VLOOKUP($A69,'[2]DdaAñoBase CHI'!$A$6:$L$374,7,FALSE) -> 0 | L69: =+VLOOKUP($A69,'[2]DdaAñoBase CHI'!$A$6:$L$374,8,FALSE) -> 0 | M69: =+VLOOKUP($A69,'[2]DdaAñoBase CHI'!$A$6:$L$374,9,FALSE) -> 0 | N69: =+VLOOKUP($A69,'[2]DdaAñoBase CHI'!$A$6:$L$374,10,FALSE) -> 0 | O69: 0 | P69: 0 | Q69: 0 | R69: 0 | T69: =+VLOOKUP($A69,'[2]DdaAñoBase CHI'!$A$6:$L$374,12,FALSE) -> 0
A70: MTD_5 Discap. | B70: =+VLOOKUP($A70,'[2]DdaAñoBase CHI'!$A$6:$L$374,2,FALSE) -> 0 | C70: =+VLOOKUP($A70,'[2]DdaAñoBase CHI'!$A$6:$L$374,3,FALSE) -> 0 | D70: =+VLOOKUP($A70,'[2]DdaAñoBase CHI'!$A$6:$L$374,4,FALSE) -> 0 | E70: =+VLOOKUP($A70,'[2]DdaAñoBase CHI'!$A$6:$L$374,5,FALSE) -> 0 | F70: 0 | G70: 0 | H70: 0 | I70: 0 | K70: =+VLOOKUP($A70,'[2]DdaAñoBase CHI'!$A$6:$L$374,7,FALSE) -> 0 | L70: =+VLOOKUP($A70,'[2]DdaAñoBase CHI'!$A$6:$L$374,8,FALSE) -> 0 | M70: =+VLOOKUP($A70,'[2]DdaAñoBase CHI'!$A$6:$L$374,9,FALSE) -> 0 | N70: =+VLOOKUP($A70,'[2]DdaAñoBase CHI'!$A$6:$L$374,10,FALSE) -> 0 | O70: 0 | P70: 0 | Q70: 0 | R70: 0 | T70: =+VLOOKUP($A70,'[2]DdaAñoBase CHI'!$A$6:$L$374,12,FALSE) -> 0
A71: MTD_5 Discapacitados 601-más | B71: =+VLOOKUP($A71,'[2]DdaAñoBase CHI'!$A$6:$L$374,2,FALSE) -> 0 | C71: =+VLOOKUP($A71,'[2]DdaAñoBase CHI'!$A$6:$L$374,3,FALSE) -> 0 | D71: =+VLOOKUP($A71,'[2]DdaAñoBase CHI'!$A$6:$L$374,4,FALSE) -> 0 | E71: =+VLOOKUP($A71,'[2]DdaAñoBase CHI'!$A$6:$L$374,5,FALSE) -> 0 | F71: 0 | G71: 0 | H71: 0 | I71: 0 | K71: =+VLOOKUP($A71,'[2]DdaAñoBase CHI'!$A$6:$L$374,7,FALSE) -> 0 | L71: =+VLOOKUP($A71,'[2]DdaAñoBase CHI'!$A$6:$L$374,8,FALSE) -> 0 | M71: =+VLOOKUP($A71,'[2]DdaAñoBase CHI'!$A$6:$L$374,9,FALSE) -> 0 | N71: =+VLOOKUP($A71,'[2]DdaAñoBase CHI'!$A$6:$L$374,10,FALSE) -> 0 | O71: 0 | P71: 0 | Q71: 0 | R71: 0 | T71: =+VLOOKUP($A71,'[2]DdaAñoBase CHI'!$A$6:$L$374,12,FALSE) -> 0
A72: MTD_5 Cruz Roja | B72: =+VLOOKUP($A72,'[2]DdaAñoBase CHI'!$A$6:$L$374,2,FALSE) -> 0 | C72: =+VLOOKUP($A72,'[2]DdaAñoBase CHI'!$A$6:$L$374,3,FALSE) -> 0 | D72: =+VLOOKUP($A72,'[2]DdaAñoBase CHI'!$A$6:$L$374,4,FALSE) -> 0 | E72: =+VLOOKUP($A72,'[2]DdaAñoBase CHI'!$A$6:$L$374,5,FALSE) -> 0 | F72: 0 | G72: 0 | H72: 0 | I72: 0 | K72: =+VLOOKUP($A72,'[2]DdaAñoBase CHI'!$A$6:$L$374,7,FALSE) -> 0 | L72: =+VLOOKUP($A72,'[2]DdaAñoBase CHI'!$A$6:$L$374,8,FALSE) -> 0 | M72: =+VLOOKUP($A72,'[2]DdaAñoBase CHI'!$A$6:$L$374,9,FALSE) -> 0 | N72: =+VLOOKUP($A72,'[2]DdaAñoBase CHI'!$A$6:$L$374,10,FALSE) -> 0 | O72: 0 | P72: 0 | Q72: 0 | R72: 0 | T72: =+VLOOKUP($A72,'[2]DdaAñoBase CHI'!$A$6:$L$374,12,FALSE) -> 0
A73: BTH | B73: =+SUM(B74:B76) -> 0 | C73: =+SUM(C74:C76) -> 653.625 | D73: =+SUM(D74:D76) -> 0 | E73: =+SUM(E74:E76) -> 0 | F73: 0 | G73: 0.001111064433 | H73: 0 | I73: 0 | K73: =+VLOOKUP($A73,'[2]DdaAñoBase CHI'!$A$6:$L$374,7,FALSE) -> 0 | L73: =+VLOOKUP($A73,'[2]DdaAñoBase CHI'!$A$6:$L$374,8,FALSE) -> 10 | M73: =+VLOOKUP($A73,'[2]DdaAñoBase CHI'!$A$6:$L$374,9,FALSE) -> 0 | N73: =+VLOOKUP($A73,'[2]DdaAñoBase CHI'!$A$6:$L$374,10,FALSE) -> 0 | O73: 0 | P73: 0.0005267582845 | Q73: 0 | R73: 0 | T73: =+SUM(T74:T76) -> 0.7114133333
A74: BTH Punta | B74: =+VLOOKUP($A74,'[2]DdaAñoBase CHI'!$A$6:$L$374,2,FALSE) -> 0 | C74: =+VLOOKUP($A74,'[2]DdaAñoBase CHI'!$A$6:$L$374,3,FALSE) -> 45.782 | D74: =+VLOOKUP($A74,'[2]DdaAñoBase CHI'!$A$6:$L$374,4,FALSE) -> 0 | E74: =+VLOOKUP($A74,'[2]DdaAñoBase CHI'!$A$6:$L$374,5,FALSE) -> 0 | F74: 0 | G74: 7.782253108e-05 | H74: 0 | I74: 0 | K74: 0 | L74: 0 | M74: 0 | N74: 0 | O74: 0 | P74: 0 | Q74: 0 | R74: 0 | T74: =+VLOOKUP($A74,'[2]DdaAñoBase CHI'!$A$6:$L$374,12,FALSE) -> 0.1325833333
A75: BTH Fuera de Punta Medio | B75: =+VLOOKUP($A75,'[2]DdaAñoBase CHI'!$A$6:$L$374,2,FALSE) -> 0 | C75: =+VLOOKUP($A75,'[2]DdaAñoBase CHI'!$A$6:$L$374,3,FALSE) -> 281.913 | D75: =+VLOOKUP($A75,'[2]DdaAñoBase CHI'!$A$6:$L$374,4,FALSE) -> 0 | E75: =+VLOOKUP($A75,'[2]DdaAñoBase CHI'!$A$6:$L$374,5,FALSE) -> 0 | F75: =+B75/B$7 -> 0 | G75: =+C75/C$7 -> 0.000479209803 | H75: =+D75/D$7 -> 0 | I75: =+E75/E$7 -> 0 | K75: 0 | L75: 0 | M75: 0 | N75: 0 | O75: =+K75/K$7 -> 0 | P75: =+L75/L$7 -> 0 | Q75: =+M75/M$7 -> 0 | R75: =+N75/N$7 -> 0 | T75: =+VLOOKUP($A75,'[2]DdaAñoBase CHI'!$A$6:$L$374,12,FALSE) -> 0.36158
A76: BTH Fuera de Punta Bajo | B76: =+VLOOKUP($A76,'[2]DdaAñoBase CHI'!$A$6:$L$374,2,FALSE) -> 0 | C76: =+VLOOKUP($A76,'[2]DdaAñoBase CHI'!$A$6:$L$374,3,FALSE) -> 325.93 | D76: =+VLOOKUP($A76,'[2]DdaAñoBase CHI'!$A$6:$L$374,4,FALSE) -> 0 | E76: =+VLOOKUP($A76,'[2]DdaAñoBase CHI'!$A$6:$L$374,5,FALSE) -> 0 | F76: 0 | G76: 0.0005540320989 | H76: 0 | I76: 0 | K76: 0 | L76: 0 | M76: 0 | N76: 0 | O76: =+K76/K$7 -> 0 | P76: =+L76/L$7 -> 0 | Q76: =+M76/M$7 -> 0 | R76: =+N76/N$7 -> 0 | T76: =+VLOOKUP($A76,'[2]DdaAñoBase CHI'!$A$6:$L$374,12,FALSE) -> 0.21725
A77: BTD | B77: =+SUM(B78,B89,B100,B111,B122) -> 168.666 | C77: =+SUM(C78,C89,C100,C111,C122) -> 206004.539 | D77: =+SUM(D78,D89,D100,D111,D122) -> 0 | E77: =+SUM(E78,E89,E100,E111,E122) -> 139.03 | F77: 0.0003797989036 | G77: 0.3501768083 | H77: 0 | I77: 0.1997538147 | K77: =+SUM(K78,K89,K100,K111,K122) -> 3 | L77: =+SUM(L78,L89,L100,L111,L122) -> 1215.75 | M77: =+SUM(M78,M89,M100,M111,M122) -> 0 | N77: =+SUM(N78,N89,N100,N111,N122) -> 1.833333333 | O77: 1.799698493e-05 | P77: 0.06404063843 | Q77: 0 | R77: 0.03430387306 | T77: =+SUM(T78,T89,T100,T111,T122) -> 59.85716333 | AA77: =+D77 -> 0 | AB77: =+E77 -> 139.03
A78: BTD_1 (0-10,000) | B78: =+SUM(B79:B88) -> 150.411 | C78: =+SUM(C79:C88) -> 56310.831 | D78: =+SUM(D79:D88) -> 0 | E78: =+SUM(E79:E88) -> 139.03 | F78: 0.0003386926404 | G78: 0.09571996408 | H78: 0 | I78: 0.1997538147 | K78: =+SUM(K79:K88) -> 2.916666667 | L78: =+SUM(L79:L88) -> 846 | M78: =+SUM(M79:M88) -> 0 | N78: =+SUM(N79:N88) -> 1.833333333 | O78: 1.749706868e-05 | P78: 0.04456375086 | Q78: 0 | R78: 0.03430387306 | T78: =+SUM(T79:T88) -> 22.83758
A79: BTD_1 Regular | B79: =+VLOOKUP($A79,'[2]DdaAñoBase CHI'!$A$6:$L$374,2,FALSE) -> 150.411 | C79: =+VLOOKUP($A79,'[2]DdaAñoBase CHI'!$A$6:$L$374,3,FALSE) -> 56009.971 | D79: =+VLOOKUP($A79,'[2]DdaAñoBase CHI'!$A$6:$L$374,4,FALSE) -> 0 | E79: =+VLOOKUP($A79,'[2]DdaAñoBase CHI'!$A$6:$L$374,5,FALSE) -> 139.03 | F79: 0.0003386926404 | G79: 0.09520854722 | H79: 0 | I79: 0.1997538147 | K79: =+VLOOKUP($A79,'[2]DdaAñoBase CHI'!$A$6:$L$374,7,FALSE) -> 2.916666667 | L79: =+VLOOKUP($A79,'[2]DdaAñoBase CHI'!$A$6:$L$374,8,FALSE) -> 839.5 | M79: =+VLOOKUP($A79,'[2]DdaAñoBase CHI'!$A$6:$L$374,9,FALSE) -> 0 | N79: =+VLOOKUP($A79,'[2]DdaAñoBase CHI'!$A$6:$L$374,10,FALSE) -> 1.833333333 | O79: 1.749706868e-05 | P79: 0.04422135798 | Q79: 0 | R79: 0.03430387306 | T79: =+VLOOKUP($A79,'[2]DdaAñoBase CHI'!$A$6:$L$374,12,FALSE) -> 22.70824667 | AA79: 4026.381383 | AB79: 16105.52553 | AD79: 126.3359167
A80: BTD_1 Agro | B80: =+VLOOKUP($A80,'[2]DdaAñoBase CHI'!$A$6:$L$374,2,FALSE) -> 0 | C80: =+VLOOKUP($A80,'[2]DdaAñoBase CHI'!$A$6:$L$374,3,FALSE) -> 244.04 | D80: =+VLOOKUP($A80,'[2]DdaAñoBase CHI'!$A$6:$L$374,4,FALSE) -> 0 | E80: =+VLOOKUP($A80,'[2]DdaAñoBase CHI'!$A$6:$L$374,5,FALSE) -> 0 | F80: 0 | G80: 0.0004148313853 | H80: 0 | I80: 0 | K80: =+VLOOKUP($A80,'[2]DdaAñoBase CHI'!$A$6:$L$374,7,FALSE) -> 0 | L80: =+VLOOKUP($A80,'[2]DdaAñoBase CHI'!$A$6:$L$374,8,FALSE) -> 6.5 | M80: =+VLOOKUP($A80,'[2]DdaAñoBase CHI'!$A$6:$L$374,9,FALSE) -> 0 | N80: =+VLOOKUP($A80,'[2]DdaAñoBase CHI'!$A$6:$L$374,10,FALSE) -> 0 | O80: 0 | P80: 0.0003423928849 | Q80: 0 | R80: 0 | T80: =+VLOOKUP($A80,'[2]DdaAñoBase CHI'!$A$6:$L$374,12,FALSE) -> 0.1293333333 | AA80: 83.27774248 | AB80: 333.1109699
A81: BTD_1 Jub. 1 | B81: =+VLOOKUP($A81,'[2]DdaAñoBase CHI'!$A$6:$L$374,2,FALSE) -> 0 | C81: =+VLOOKUP($A81,'[2]DdaAñoBase CHI'!$A$6:$L$374,3,FALSE) -> 0 | D81: =+VLOOKUP($A81,'[2]DdaAñoBase CHI'!$A$6:$L$374,4,FALSE) -> 0 | E81: =+VLOOKUP($A81,'[2]DdaAñoBase CHI'!$A$6:$L$374,5,FALSE) -> 0 | F81: 0 | G81: 0 | H81: 0 | I81: 0 | K81: =+VLOOKUP($A81,'[2]DdaAñoBase CHI'!$A$6:$L$374,7,FALSE) -> 0 | L81: =+VLOOKUP($A81,'[2]DdaAñoBase CHI'!$A$6:$L$374,8,FALSE) -> 0 | M81: =+VLOOKUP($A81,'[2]DdaAñoBase CHI'!$A$6:$L$374,9,FALSE) -> 0 | N81: =+VLOOKUP($A81,'[2]DdaAñoBase CHI'!$A$6:$L$374,10,FALSE) -> 0 | O81: 0 | P81: 0 | Q81: 0 | R81: 0 | T81: =+VLOOKUP($A81,'[2]DdaAñoBase CHI'!$A$6:$L$374,12,FALSE) -> 0 | AA81: =+AA79/AA80 -> 48.34882963 | AB81: =+AB79/AB80 -> 48.34882963 | AD81: =+AD79/Y80 -> 
A82: BTD_1 Jub. 2 | B82: =+VLOOKUP($A82,'[2]DdaAñoBase CHI'!$A$6:$L$374,2,FALSE) -> 0 | C82: =+VLOOKUP($A82,'[2]DdaAñoBase CHI'!$A$6:$L$374,3,FALSE) -> 0 | D82: =+VLOOKUP($A82,'[2]DdaAñoBase CHI'!$A$6:$L$374,4,FALSE) -> 0 | E82: =+VLOOKUP($A82,'[2]DdaAñoBase CHI'!$A$6:$L$374,5,FALSE) -> 0 | F82: 0 | G82: 0 | H82: 0 | I82: 0 | K82: =+VLOOKUP($A82,'[2]DdaAñoBase CHI'!$A$6:$L$374,7,FALSE) -> 0 | L82: =+VLOOKUP($A82,'[2]DdaAñoBase CHI'!$A$6:$L$374,8,FALSE) -> 0 | M82: =+VLOOKUP($A82,'[2]DdaAñoBase CHI'!$A$6:$L$374,9,FALSE) -> 0 | N82: =+VLOOKUP($A82,'[2]DdaAñoBase CHI'!$A$6:$L$374,10,FALSE) -> 0 | O82: 0 | P82: 0 | Q82: 0 | R82: 0 | T82: =+VLOOKUP($A82,'[2]DdaAñoBase CHI'!$A$6:$L$374,12,FALSE) -> 0 | AA82: =+AA81*10 -> 483.4882963 | AB82: =+AB81*10 -> 483.4882963 | AD82: =+AD81*10 -> 
A83: BTD_1 Político | B83: =+VLOOKUP($A83,'[2]DdaAñoBase CHI'!$A$6:$L$374,2,FALSE) -> 0 | C83: =+VLOOKUP($A83,'[2]DdaAñoBase CHI'!$A$6:$L$374,3,FALSE) -> 0 | D83: =+VLOOKUP($A83,'[2]DdaAñoBase CHI'!$A$6:$L$374,4,FALSE) -> 0 | E83: =+VLOOKUP($A83,'[2]DdaAñoBase CHI'!$A$6:$L$374,5,FALSE) -> 0 | F83: 0 | G83: 0 | H83: 0 | I83: 0 | K83: =+VLOOKUP($A83,'[2]DdaAñoBase CHI'!$A$6:$L$374,7,FALSE) -> 0 | L83: =+VLOOKUP($A83,'[2]DdaAñoBase CHI'!$A$6:$L$374,8,FALSE) -> 0 | M83: =+VLOOKUP($A83,'[2]DdaAñoBase CHI'!$A$6:$L$374,9,FALSE) -> 0 | N83: =+VLOOKUP($A83,'[2]DdaAñoBase CHI'!$A$6:$L$374,10,FALSE) -> 0 | O83: 0 | P83: 0 | Q83: 0 | R83: 0 | T83: =+VLOOKUP($A83,'[2]DdaAñoBase CHI'!$A$6:$L$374,12,FALSE) -> 0 | AA83: =+AA82/AA79 -> 0.1200801043 | AB83: =+AB82/AB79 -> 0.03002002607
A84: BTD_1 x1 | B84: =+VLOOKUP($A84,'[2]DdaAñoBase CHI'!$A$6:$L$374,2,FALSE) -> 0 | C84: =+VLOOKUP($A84,'[2]DdaAñoBase CHI'!$A$6:$L$374,3,FALSE) -> 0 | D84: =+VLOOKUP($A84,'[2]DdaAñoBase CHI'!$A$6:$L$374,4,FALSE) -> 0 | E84: =+VLOOKUP($A84,'[2]DdaAñoBase CHI'!$A$6:$L$374,5,FALSE) -> 0 | F84: 0 | G84: 0 | H84: 0 | I84: 0 | K84: =+VLOOKUP($A84,'[2]DdaAñoBase CHI'!$A$6:$L$374,7,FALSE) -> 0 | L84: =+VLOOKUP($A84,'[2]DdaAñoBase CHI'!$A$6:$L$374,8,FALSE) -> 0 | M84: =+VLOOKUP($A84,'[2]DdaAñoBase CHI'!$A$6:$L$374,9,FALSE) -> 0 | N84: =+VLOOKUP($A84,'[2]DdaAñoBase CHI'!$A$6:$L$374,10,FALSE) -> 0 | O84: 0 | P84: 0 | Q84: 0 | R84: 0 | T84: =+VLOOKUP($A84,'[2]DdaAñoBase CHI'!$A$6:$L$374,12,FALSE) -> 0
A85: BTD_1 x2 | B85: =+VLOOKUP($A85,'[2]DdaAñoBase CHI'!$A$6:$L$374,2,FALSE) -> 0 | C85: =+VLOOKUP($A85,'[2]DdaAñoBase CHI'!$A$6:$L$374,3,FALSE) -> 0 | D85: =+VLOOKUP($A85,'[2]DdaAñoBase CHI'!$A$6:$L$374,4,FALSE) -> 0 | E85: =+VLOOKUP($A85,'[2]DdaAñoBase CHI'!$A$6:$L$374,5,FALSE) -> 0 | F85: 0 | G85: 0 | H85: 0 | I85: 0 | K85: =+VLOOKUP($A85,'[2]DdaAñoBase CHI'!$A$6:$L$374,7,FALSE) -> 0 | L85: =+VLOOKUP($A85,'[2]DdaAñoBase CHI'!$A$6:$L$374,8,FALSE) -> 0 | M85: =+VLOOKUP($A85,'[2]DdaAñoBase CHI'!$A$6:$L$374,9,FALSE) -> 0 | N85: =+VLOOKUP($A85,'[2]DdaAñoBase CHI'!$A$6:$L$374,10,FALSE) -> 0 | O85: 0 | P85: 0 | Q85: 0 | R85: 0 | T85: =+VLOOKUP($A85,'[2]DdaAñoBase CHI'!$A$6:$L$374,12,FALSE) -> 0
A86: BTD_1 Discap. | B86: =+VLOOKUP($A86,'[2]DdaAñoBase CHI'!$A$6:$L$374,2,FALSE) -> 0 | C86: =+VLOOKUP($A86,'[2]DdaAñoBase CHI'!$A$6:$L$374,3,FALSE) -> 0 | D86: =+VLOOKUP($A86,'[2]DdaAñoBase CHI'!$A$6:$L$374,4,FALSE) -> 0 | E86: =+VLOOKUP($A86,'[2]DdaAñoBase CHI'!$A$6:$L$374,5,FALSE) -> 0 | F86: 0 | G86: 0 | H86: 0 | I86: 0 | K86: =+VLOOKUP($A86,'[2]DdaAñoBase CHI'!$A$6:$L$374,7,FALSE) -> 0 | L86: =+VLOOKUP($A86,'[2]DdaAñoBase CHI'!$A$6:$L$374,8,FALSE) -> 0 | M86: =+VLOOKUP($A86,'[2]DdaAñoBase CHI'!$A$6:$L$374,9,FALSE) -> 0 | N86: =+VLOOKUP($A86,'[2]DdaAñoBase CHI'!$A$6:$L$374,10,FALSE) -> 0 | O86: 0 | P86: 0 | Q86: 0 | R86: 0 | T86: =+VLOOKUP($A86,'[2]DdaAñoBase CHI'!$A$6:$L$374,12,FALSE) -> 0
A87: BTD_1 Discapacitados 601-más | B87: =+VLOOKUP($A87,'[2]DdaAñoBase CHI'!$A$6:$L$374,2,FALSE) -> 0 | C87: =+VLOOKUP($A87,'[2]DdaAñoBase CHI'!$A$6:$L$374,3,FALSE) -> 0 | D87: =+VLOOKUP($A87,'[2]DdaAñoBase CHI'!$A$6:$L$374,4,FALSE) -> 0 | E87: =+VLOOKUP($A87,'[2]DdaAñoBase CHI'!$A$6:$L$374,5,FALSE) -> 0 | F87: 0 | G87: 0 | H87: 0 | I87: 0 | K87: =+VLOOKUP($A87,'[2]DdaAñoBase CHI'!$A$6:$L$374,7,FALSE) -> 0 | L87: =+VLOOKUP($A87,'[2]DdaAñoBase CHI'!$A$6:$L$374,8,FALSE) -> 0 | M87: =+VLOOKUP($A87,'[2]DdaAñoBase CHI'!$A$6:$L$374,9,FALSE) -> 0 | N87: =+VLOOKUP($A87,'[2]DdaAñoBase CHI'!$A$6:$L$374,10,FALSE) -> 0 | O87: 0 | P87: 0 | Q87: 0 | R87: 0 | T87: =+VLOOKUP($A87,'[2]DdaAñoBase CHI'!$A$6:$L$374,12,FALSE) -> 0
A88: BTD_1 Cruz Roja | B88: =+VLOOKUP($A88,'[2]DdaAñoBase CHI'!$A$6:$L$374,2,FALSE) -> 0 | C88: =+VLOOKUP($A88,'[2]DdaAñoBase CHI'!$A$6:$L$374,3,FALSE) -> 56.82 | D88: =+VLOOKUP($A88,'[2]DdaAñoBase CHI'!$A$6:$L$374,4,FALSE) -> 0 | E88: =+VLOOKUP($A88,'[2]DdaAñoBase CHI'!$A$6:$L$374,5,FALSE) -> 0 | F88: 0 | G88: 9.658547498e-05 | H88: 0 | I88: 0 | K88: =+VLOOKUP($A88,'[2]DdaAñoBase CHI'!$A$6:$L$374,7,FALSE) -> 0 | L88: =+VLOOKUP($A88,'[2]DdaAñoBase CHI'!$A$6:$L$374,8,FALSE) -> 0 | M88: =+VLOOKUP($A88,'[2]DdaAñoBase CHI'!$A$6:$L$374,9,FALSE) -> 0 | N88: =+VLOOKUP($A88,'[2]DdaAñoBase CHI'!$A$6:$L$374,10,FALSE) -> 0 | O88: 0 | P88: 0 | Q88: 0 | R88: 0 | T88: =+VLOOKUP($A88,'[2]DdaAñoBase CHI'!$A$6:$L$374,12,FALSE) -> 0
A89: BTD_2 (10,001-30,000) | B89: =+SUM(B90:B99) -> 18.255 | C89: =+SUM(C90:C99) -> 50286.107 | D89: =+SUM(D90:D99) -> 0 | E89: =+SUM(E90:E99) -> 0 | F89: 4.110626317e-05 | G89: 0.0854788372 | H89: 0 | I89: 0 | K89: =+SUM(K90:K99) -> 0.08333333333 | L89: =+SUM(L90:L99) -> 267.0833333 | M89: =+SUM(M90:M99) -> 0 | N89: =+SUM(N90:N99) -> 0 | O89: 4.99916248e-07 | P89: 0.01406883585 | Q89: 0 | R89: 0 | T89: =+SUM(T90:T99) -> 14.88425
A90: BTD_2 Regular | B90: =+VLOOKUP($A90,'[2]DdaAñoBase CHI'!$A$6:$L$374,2,FALSE) -> 18.255 | C90: =+VLOOKUP($A90,'[2]DdaAñoBase CHI'!$A$6:$L$374,3,FALSE) -> 50123.227 | D90: =+VLOOKUP($A90,'[2]DdaAñoBase CHI'!$A$6:$L$374,4,FALSE) -> 0 | E90: =+VLOOKUP($A90,'[2]DdaAñoBase CHI'!$A$6:$L$374,5,FALSE) -> 0 | F90: =+B90/B$7 -> 4.110626317e-05 | G90: =+C90/C$7 -> 0.08520196564 | H90: =+D90/D$7 -> 0 | I90: =+E90/E$7 -> 0 | K90: =+VLOOKUP($A90,'[2]DdaAñoBase CHI'!$A$6:$L$374,7,FALSE) -> 0.08333333333 | L90: =+VLOOKUP($A90,'[2]DdaAñoBase CHI'!$A$6:$L$374,8,FALSE) -> 266.0833333 | M90: =+VLOOKUP($A90,'[2]DdaAñoBase CHI'!$A$6:$L$374,9,FALSE) -> 0 | N90: =+VLOOKUP($A90,'[2]DdaAñoBase CHI'!$A$6:$L$374,10,FALSE) -> 0 | O90: 4.99916248e-07 | P90: 0.01401616002 | Q90: 0 | R90: 0 | T90: =+VLOOKUP($A90,'[2]DdaAñoBase CHI'!$A$6:$L$374,12,FALSE) -> 14.85225
A91: BTD_2 Agro | B91: =+VLOOKUP($A91,'[2]DdaAñoBase CHI'!$A$6:$L$374,2,FALSE) -> 0 | C91: =+VLOOKUP($A91,'[2]DdaAñoBase CHI'!$A$6:$L$374,3,FALSE) -> 162.88 | D91: =+VLOOKUP($A91,'[2]DdaAñoBase CHI'!$A$6:$L$374,4,FALSE) -> 0 | E91: =+VLOOKUP($A91,'[2]DdaAñoBase CHI'!$A$6:$L$374,5,FALSE) -> 0 | F91: 0 | G91: 0.0002768715622 | H91: 0 | I91: 0 | K91: =+VLOOKUP($A91,'[2]DdaAñoBase CHI'!$A$6:$L$374,7,FALSE) -> 0 | L91: =+VLOOKUP($A91,'[2]DdaAñoBase CHI'!$A$6:$L$374,8,FALSE) -> 1 | M91: =+VLOOKUP($A91,'[2]DdaAñoBase CHI'!$A$6:$L$374,9,FALSE) -> 0 | N91: =+VLOOKUP($A91,'[2]DdaAñoBase CHI'!$A$6:$L$374,10,FALSE) -> 0 | O91: 0 | P91: 5.267582845e-05 | Q91: 0 | R91: 0 | T91: =+VLOOKUP($A91,'[2]DdaAñoBase CHI'!$A$6:$L$374,12,FALSE) -> 0.032
A92: BTD_2 Jub. 1 | B92: =+VLOOKUP($A92,'[2]DdaAñoBase CHI'!$A$6:$L$374,2,FALSE) -> 0 | C92: =+VLOOKUP($A92,'[2]DdaAñoBase CHI'!$A$6:$L$374,3,FALSE) -> 0 | D92: =+VLOOKUP($A92,'[2]DdaAñoBase CHI'!$A$6:$L$374,4,FALSE) -> 0 | E92: =+VLOOKUP($A92,'[2]DdaAñoBase CHI'!$A$6:$L$374,5,FALSE) -> 0 | F92: 0 | G92: 0 | H92: 0 | I92: 0 | K92: =+VLOOKUP($A92,'[2]DdaAñoBase CHI'!$A$6:$L$374,7,FALSE) -> 0 | L92: =+VLOOKUP($A92,'[2]DdaAñoBase CHI'!$A$6:$L$374,8,FALSE) -> 0 | M92: =+VLOOKUP($A92,'[2]DdaAñoBase CHI'!$A$6:$L$374,9,FALSE) -> 0 | N92: =+VLOOKUP($A92,'[2]DdaAñoBase CHI'!$A$6:$L$374,10,FALSE) -> 0 | O92: 0 | P92: 0 | Q92: 0 | R92: 0 | T92: =+VLOOKUP($A92,'[2]DdaAñoBase CHI'!$A$6:$L$374,12,FALSE) -> 0
A93: BTD_2 Jub. 2 | B93: =+VLOOKUP($A93,'[2]DdaAñoBase CHI'!$A$6:$L$374,2,FALSE) -> 0 | C93: =+VLOOKUP($A93,'[2]DdaAñoBase CHI'!$A$6:$L$374,3,FALSE) -> 0 | D93: =+VLOOKUP($A93,'[2]DdaAñoBase CHI'!$A$6:$L$374,4,FALSE) -> 0 | E93: =+VLOOKUP($A93,'[2]DdaAñoBase CHI'!$A$6:$L$374,5,FALSE) -> 0 | F93: 0 | G93: 0 | H93: 0 | I93: 0 | K93: =+VLOOKUP($A93,'[2]DdaAñoBase CHI'!$A$6:$L$374,7,FALSE) -> 0 | L93: =+VLOOKUP($A93,'[2]DdaAñoBase CHI'!$A$6:$L$374,8,FALSE) -> 0 | M93: =+VLOOKUP($A93,'[2]DdaAñoBase CHI'!$A$6:$L$374,9,FALSE) -> 0 | N93: =+VLOOKUP($A93,'[2]DdaAñoBase CHI'!$A$6:$L$374,10,FALSE) -> 0 | O93: 0 | P93: 0 | Q93: 0 | R93: 0 | T93: =+VLOOKUP($A93,'[2]DdaAñoBase CHI'!$A$6:$L$374,12,FALSE) -> 0
A94: BTD_2 Político | B94: =+VLOOKUP($A94,'[2]DdaAñoBase CHI'!$A$6:$L$374,2,FALSE) -> 0 | C94: =+VLOOKUP($A94,'[2]DdaAñoBase CHI'!$A$6:$L$374,3,FALSE) -> 0 | D94: =+VLOOKUP($A94,'[2]DdaAñoBase CHI'!$A$6:$L$374,4,FALSE) -> 0 | E94: =+VLOOKUP($A94,'[2]DdaAñoBase CHI'!$A$6:$L$374,5,FALSE) -> 0 | F94: 0 | G94: 0 | H94: 0 | I94: 0 | K94: =+VLOOKUP($A94,'[2]DdaAñoBase CHI'!$A$6:$L$374,7,FALSE) -> 0 | L94: =+VLOOKUP($A94,'[2]DdaAñoBase CHI'!$A$6:$L$374,8,FALSE) -> 0 | M94: =+VLOOKUP($A94,'[2]DdaAñoBase CHI'!$A$6:$L$374,9,FALSE) -> 0 | N94: =+VLOOKUP($A94,'[2]DdaAñoBase CHI'!$A$6:$L$374,10,FALSE) -> 0 | O94: 0 | P94: 0 | Q94: 0 | R94: 0 | T94: =+VLOOKUP($A94,'[2]DdaAñoBase CHI'!$A$6:$L$374,12,FALSE) -> 0
A95: BTD_2 x1 | B95: =+VLOOKUP($A95,'[2]DdaAñoBase CHI'!$A$6:$L$374,2,FALSE) -> 0 | C95: =+VLOOKUP($A95,'[2]DdaAñoBase CHI'!$A$6:$L$374,3,FALSE) -> 0 | D95: =+VLOOKUP($A95,'[2]DdaAñoBase CHI'!$A$6:$L$374,4,FALSE) -> 0 | E95: =+VLOOKUP($A95,'[2]DdaAñoBase CHI'!$A$6:$L$374,5,FALSE) -> 0 | F95: 0 | G95: 0 | H95: 0 | I95: 0 | K95: =+VLOOKUP($A95,'[2]DdaAñoBase CHI'!$A$6:$L$374,7,FALSE) -> 0 | L95: =+VLOOKUP($A95,'[2]DdaAñoBase CHI'!$A$6:$L$374,8,FALSE) -> 0 | M95: =+VLOOKUP($A95,'[2]DdaAñoBase CHI'!$A$6:$L$374,9,FALSE) -> 0 | N95: =+VLOOKUP($A95,'[2]DdaAñoBase CHI'!$A$6:$L$374,10,FALSE) -> 0 | O95: 0 | P95: 0 | Q95: 0 | R95: 0 | T95: =+VLOOKUP($A95,'[2]DdaAñoBase CHI'!$A$6:$L$374,12,FALSE) -> 0
A96: BTD_2 x2 | B96: =+VLOOKUP($A96,'[2]DdaAñoBase CHI'!$A$6:$L$374,2,FALSE) -> 0 | C96: =+VLOOKUP($A96,'[2]DdaAñoBase CHI'!$A$6:$L$374,3,FALSE) -> 0 | D96: =+VLOOKUP($A96,'[2]DdaAñoBase CHI'!$A$6:$L$374,4,FALSE) -> 0 | E96: =+VLOOKUP($A96,'[2]DdaAñoBase CHI'!$A$6:$L$374,5,FALSE) -> 0 | F96: 0 | G96: 0 | H96: 0 | I96: 0 | K96: =+VLOOKUP($A96,'[2]DdaAñoBase CHI'!$A$6:$L$374,7,FALSE) -> 0 | L96: =+VLOOKUP($A96,'[2]DdaAñoBase CHI'!$A$6:$L$374,8,FALSE) -> 0 | M96: =+VLOOKUP($A96,'[2]DdaAñoBase CHI'!$A$6:$L$374,9,FALSE) -> 0 | N96: =+VLOOKUP($A96,'[2]DdaAñoBase CHI'!$A$6:$L$374,10,FALSE) -> 0 | O96: 0 | P96: 0 | Q96: 0 | R96: 0 | T96: =+VLOOKUP($A96,'[2]DdaAñoBase CHI'!$A$6:$L$374,12,FALSE) -> 0
A97: BTD_2 Discap. | B97: =+VLOOKUP($A97,'[2]DdaAñoBase CHI'!$A$6:$L$374,2,FALSE) -> 0 | C97: =+VLOOKUP($A97,'[2]DdaAñoBase CHI'!$A$6:$L$374,3,FALSE) -> 0 | D97: =+VLOOKUP($A97,'[2]DdaAñoBase CHI'!$A$6:$L$374,4,FALSE) -> 0 | E97: =+VLOOKUP($A97,'[2]DdaAñoBase CHI'!$A$6:$L$374,5,FALSE) -> 0 | F97: 0 | G97: 0 | H97: 0 | I97: 0 | K97: =+VLOOKUP($A97,'[2]DdaAñoBase CHI'!$A$6:$L$374,7,FALSE) -> 0 | L97: =+VLOOKUP($A97,'[2]DdaAñoBase CHI'!$A$6:$L$374,8,FALSE) -> 0 | M97: =+VLOOKUP($A97,'[2]DdaAñoBase CHI'!$A$6:$L$374,9,FALSE) -> 0 | N97: =+VLOOKUP($A97,'[2]DdaAñoBase CHI'!$A$6:$L$374,10,FALSE) -> 0 | O97: 0 | P97: 0 | Q97: 0 | R97: 0 | T97: =+VLOOKUP($A97,'[2]DdaAñoBase CHI'!$A$6:$L$374,12,FALSE) -> 0
A98: BTD_2 Discapacitados 601-más | B98: =+VLOOKUP($A98,'[2]DdaAñoBase CHI'!$A$6:$L$374,2,FALSE) -> 0 | C98: =+VLOOKUP($A98,'[2]DdaAñoBase CHI'!$A$6:$L$374,3,FALSE) -> 0 | D98: =+VLOOKUP($A98,'[2]DdaAñoBase CHI'!$A$6:$L$374,4,FALSE) -> 0 | E98: =+VLOOKUP($A98,'[2]DdaAñoBase CHI'!$A$6:$L$374,5,FALSE) -> 0 | F98: 0 | G98: 0 | H98: 0 | I98: 0 | K98: =+VLOOKUP($A98,'[2]DdaAñoBase CHI'!$A$6:$L$374,7,FALSE) -> 0 | L98: =+VLOOKUP($A98,'[2]DdaAñoBase CHI'!$A$6:$L$374,8,FALSE) -> 0 | M98: =+VLOOKUP($A98,'[2]DdaAñoBase CHI'!$A$6:$L$374,9,FALSE) -> 0 | N98: =+VLOOKUP($A98,'[2]DdaAñoBase CHI'!$A$6:$L$374,10,FALSE) -> 0 | O98: 0 | P98: 0 | Q98: 0 | R98: 0 | T98: =+VLOOKUP($A98,'[2]DdaAñoBase CHI'!$A$6:$L$374,12,FALSE) -> 0
A99: BTD_2 Cruz Roja | B99: =+VLOOKUP($A99,'[2]DdaAñoBase CHI'!$A$6:$L$374,2,FALSE) -> 0 | C99: =+VLOOKUP($A99,'[2]DdaAñoBase CHI'!$A$6:$L$374,3,FALSE) -> 0 | D99: =+VLOOKUP($A99,'[2]DdaAñoBase CHI'!$A$6:$L$374,4,FALSE) -> 0 | E99: =+VLOOKUP($A99,'[2]DdaAñoBase CHI'!$A$6:$L$374,5,FALSE) -> 0 | F99: 0 | G99: 0 | H99: 0 | I99: 0 | K99: =+VLOOKUP($A99,'[2]DdaAñoBase CHI'!$A$6:$L$374,7,FALSE) -> 0 | L99: =+VLOOKUP($A99,'[2]DdaAñoBase CHI'!$A$6:$L$374,8,FALSE) -> 0 | M99: =+VLOOKUP($A99,'[2]DdaAñoBase CHI'!$A$6:$L$374,9,FALSE) -> 0 | N99: =+VLOOKUP($A99,'[2]DdaAñoBase CHI'!$A$6:$L$374,10,FALSE) -> 0 | O99: 0 | P99: 0 | Q99: 0 | R99: 0 | T99: =+VLOOKUP($A99,'[2]DdaAñoBase CHI'!$A$6:$L$374,12,FALSE) -> 0
A100: BTD_3 (30,001-50,000) | B100: =+SUM(B101:B110) -> 0 | C100: =+SUM(C101:C110) -> 22044.606 | D100: =+SUM(D101:D110) -> 0 | E100: =+SUM(E101:E110) -> 0 | F100: 0 | G100: 0.03747252273 | H100: 0 | I100: 0 | K100: =+SUM(K101:K110) -> 0 | L100: =+SUM(L101:L110) -> 47 | M100: =+SUM(M101:M110) -> 0 | N100: =+SUM(N101:N110) -> 0 | O100: 0 | P100: 0.002475763937 | Q100: 0 | R100: 0 | T100: =+SUM(T101:T110) -> 5.495833333
A101: BTD_3 Regular | B101: =+VLOOKUP($A101,'[2]DdaAñoBase CHI'!$A$6:$L$374,2,FALSE) -> 0 | C101: =+VLOOKUP($A101,'[2]DdaAñoBase CHI'!$A$6:$L$374,3,FALSE) -> 21561.726 | D101: =+VLOOKUP($A101,'[2]DdaAñoBase CHI'!$A$6:$L$374,4,FALSE) -> 0 | E101: =+VLOOKUP($A101,'[2]DdaAñoBase CHI'!$A$6:$L$374,5,FALSE) -> 0 | F101: 0 | G101: 0.03665169918 | H101: 0 | I101: 0 | K101: =+VLOOKUP($A101,'[2]DdaAñoBase CHI'!$A$6:$L$374,7,FALSE) -> 0 | L101: =+VLOOKUP($A101,'[2]DdaAñoBase CHI'!$A$6:$L$374,8,FALSE) -> 46 | M101: =+VLOOKUP($A101,'[2]DdaAñoBase CHI'!$A$6:$L$374,9,FALSE) -> 0 | N101: =+VLOOKUP($A101,'[2]DdaAñoBase CHI'!$A$6:$L$374,10,FALSE) -> 0 | O101: 0 | P101: 0.002423088108 | Q101: 0 | R101: 0 | T101: =+VLOOKUP($A101,'[2]DdaAñoBase CHI'!$A$6:$L$374,12,FALSE) -> 5.389833333
A102: BTD_3 Agro | B102: =+VLOOKUP($A102,'[2]DdaAñoBase CHI'!$A$6:$L$374,2,FALSE) -> 0 | C102: =+VLOOKUP($A102,'[2]DdaAñoBase CHI'!$A$6:$L$374,3,FALSE) -> 482.88 | D102: =+VLOOKUP($A102,'[2]DdaAñoBase CHI'!$A$6:$L$374,4,FALSE) -> 0 | E102: =+VLOOKUP($A102,'[2]DdaAñoBase CHI'!$A$6:$L$374,5,FALSE) -> 0 | F102: 0 | G102: 0.0008208235509 | H102: 0 | I102: 0 | K102: =+VLOOKUP($A102,'[2]DdaAñoBase CHI'!$A$6:$L$374,7,FALSE) -> 0 | L102: =+VLOOKUP($A102,'[2]DdaAñoBase CHI'!$A$6:$L$374,8,FALSE) -> 1 | M102: =+VLOOKUP($A102,'[2]DdaAñoBase CHI'!$A$6:$L$374,9,FALSE) -> 0 | N102: =+VLOOKUP($A102,'[2]DdaAñoBase CHI'!$A$6:$L$374,10,FALSE) -> 0 | O102: 0 | P102: 5.267582845e-05 | Q102: 0 | R102: 0 | T102: =+VLOOKUP($A102,'[2]DdaAñoBase CHI'!$A$6:$L$374,12,FALSE) -> 0.106
A103: BTD_3 Jub. 1 | B103: =+VLOOKUP($A103,'[2]DdaAñoBase CHI'!$A$6:$L$374,2,FALSE) -> 0 | C103: =+VLOOKUP($A103,'[2]DdaAñoBase CHI'!$A$6:$L$374,3,FALSE) -> 0 | D103: =+VLOOKUP($A103,'[2]DdaAñoBase CHI'!$A$6:$L$374,4,FALSE) -> 0 | E103: =+VLOOKUP($A103,'[2]DdaAñoBase CHI'!$A$6:$L$374,5,FALSE) -> 0 | F103: 0 | G103: 0 | H103: 0 | I103: 0 | K103: =+VLOOKUP($A103,'[2]DdaAñoBase CHI'!$A$6:$L$374,7,FALSE) -> 0 | L103: =+VLOOKUP($A103,'[2]DdaAñoBase CHI'!$A$6:$L$374,8,FALSE) -> 0 | M103: =+VLOOKUP($A103,'[2]DdaAñoBase CHI'!$A$6:$L$374,9,FALSE) -> 0 | N103: =+VLOOKUP($A103,'[2]DdaAñoBase CHI'!$A$6:$L$374,10,FALSE) -> 0 | O103: 0 | P103: 0 | Q103: 0 | R103: 0 | T103: =+VLOOKUP($A103,'[2]DdaAñoBase CHI'!$A$6:$L$374,12,FALSE) -> 0
A104: BTD_3 Jub. 2 | B104: =+VLOOKUP($A104,'[2]DdaAñoBase CHI'!$A$6:$L$374,2,FALSE) -> 0 | C104: =+VLOOKUP($A104,'[2]DdaAñoBase CHI'!$A$6:$L$374,3,FALSE) -> 0 | D104: =+VLOOKUP($A104,'[2]DdaAñoBase CHI'!$A$6:$L$374,4,FALSE) -> 0 | E104: =+VLOOKUP($A104,'[2]DdaAñoBase CHI'!$A$6:$L$374,5,FALSE) -> 0 | F104: 0 | G104: 0 | H104: 0 | I104: 0 | K104: =+VLOOKUP($A104,'[2]DdaAñoBase CHI'!$A$6:$L$374,7,FALSE) -> 0 | L104: =+VLOOKUP($A104,'[2]DdaAñoBase CHI'!$A$6:$L$374,8,FALSE) -> 0 | M104: =+VLOOKUP($A104,'[2]DdaAñoBase CHI'!$A$6:$L$374,9,FALSE) -> 0 | N104: =+VLOOKUP($A104,'[2]DdaAñoBase CHI'!$A$6:$L$374,10,FALSE) -> 0 | O104: 0 | P104: 0 | Q104: 0 | R104: 0 | T104: =+VLOOKUP($A104,'[2]DdaAñoBase CHI'!$A$6:$L$374,12,FALSE) -> 0
A105: BTD_3 Político | B105: =+VLOOKUP($A105,'[2]DdaAñoBase CHI'!$A$6:$L$374,2,FALSE) -> 0 | C105: =+VLOOKUP($A105,'[2]DdaAñoBase CHI'!$A$6:$L$374,3,FALSE) -> 0 | D105: =+VLOOKUP($A105,'[2]DdaAñoBase CHI'!$A$6:$L$374,4,FALSE) -> 0 | E105: =+VLOOKUP($A105,'[2]DdaAñoBase CHI'!$A$6:$L$374,5,FALSE) -> 0 | F105: 0 | G105: 0 | H105: 0 | I105: 0 | K105: =+VLOOKUP($A105,'[2]DdaAñoBase CHI'!$A$6:$L$374,7,FALSE) -> 0 | L105: =+VLOOKUP($A105,'[2]DdaAñoBase CHI'!$A$6:$L$374,8,FALSE) -> 0 | M105: =+VLOOKUP($A105,'[2]DdaAñoBase CHI'!$A$6:$L$374,9,FALSE) -> 0 | N105: =+VLOOKUP($A105,'[2]DdaAñoBase CHI'!$A$6:$L$374,10,FALSE) -> 0 | O105: 0 | P105: 0 | Q105: 0 | R105: 0 | T105: =+VLOOKUP($A105,'[2]DdaAñoBase CHI'!$A$6:$L$374,12,FALSE) -> 0
A106: BTD_3 x1 | B106: =+VLOOKUP($A106,'[2]DdaAñoBase CHI'!$A$6:$L$374,2,FALSE) -> 0 | C106: =+VLOOKUP($A106,'[2]DdaAñoBase CHI'!$A$6:$L$374,3,FALSE) -> 0 | D106: =+VLOOKUP($A106,'[2]DdaAñoBase CHI'!$A$6:$L$374,4,FALSE) -> 0 | E106: =+VLOOKUP($A106,'[2]DdaAñoBase CHI'!$A$6:$L$374,5,FALSE) -> 0 | F106: 0 | G106: 0 | H106: 0 | I106: 0 | K106: =+VLOOKUP($A106,'[2]DdaAñoBase CHI'!$A$6:$L$374,7,FALSE) -> 0 | L106: =+VLOOKUP($A106,'[2]DdaAñoBase CHI'!$A$6:$L$374,8,FALSE) -> 0 | M106: =+VLOOKUP($A106,'[2]DdaAñoBase CHI'!$A$6:$L$374,9,FALSE) -> 0 | N106: =+VLOOKUP($A106,'[2]DdaAñoBase CHI'!$A$6:$L$374,10,FALSE) -> 0 | O106: 0 | P106: 0 | Q106: 0 | R106: 0 | T106: =+VLOOKUP($A106,'[2]DdaAñoBase CHI'!$A$6:$L$374,12,FALSE) -> 0
A107: BTD_3 x2 | B107: =+VLOOKUP($A107,'[2]DdaAñoBase CHI'!$A$6:$L$374,2,FALSE) -> 0 | C107: =+VLOOKUP($A107,'[2]DdaAñoBase CHI'!$A$6:$L$374,3,FALSE) -> 0 | D107: =+VLOOKUP($A107,'[2]DdaAñoBase CHI'!$A$6:$L$374,4,FALSE) -> 0 | E107: =+VLOOKUP($A107,'[2]DdaAñoBase CHI'!$A$6:$L$374,5,FALSE) -> 0 | F107: 0 | G107: 0 | H107: 0 | I107: 0 | K107: =+VLOOKUP($A107,'[2]DdaAñoBase CHI'!$A$6:$L$374,7,FALSE) -> 0 | L107: =+VLOOKUP($A107,'[2]DdaAñoBase CHI'!$A$6:$L$374,8,FALSE) -> 0 | M107: =+VLOOKUP($A107,'[2]DdaAñoBase CHI'!$A$6:$L$374,9,FALSE) -> 0 | N107: =+VLOOKUP($A107,'[2]DdaAñoBase CHI'!$A$6:$L$374,10,FALSE) -> 0 | O107: 0 | P107: 0 | Q107: 0 | R107: 0 | T107: =+VLOOKUP($A107,'[2]DdaAñoBase CHI'!$A$6:$L$374,12,FALSE) -> 0
A108: BTD_3 Discap. | B108: =+VLOOKUP($A108,'[2]DdaAñoBase CHI'!$A$6:$L$374,2,FALSE) -> 0 | C108: =+VLOOKUP($A108,'[2]DdaAñoBase CHI'!$A$6:$L$374,3,FALSE) -> 0 | D108: =+VLOOKUP($A108,'[2]DdaAñoBase CHI'!$A$6:$L$374,4,FALSE) -> 0 | E108: =+VLOOKUP($A108,'[2]DdaAñoBase CHI'!$A$6:$L$374,5,FALSE) -> 0 | F108: 0 | G108: 0 | H108: 0 | I108: 0 | K108: =+VLOOKUP($A108,'[2]DdaAñoBase CHI'!$A$6:$L$374,7,FALSE) -> 0 | L108: =+VLOOKUP($A108,'[2]DdaAñoBase CHI'!$A$6:$L$374,8,FALSE) -> 0 | M108: =+VLOOKUP($A108,'[2]DdaAñoBase CHI'!$A$6:$L$374,9,FALSE) -> 0 | N108: =+VLOOKUP($A108,'[2]DdaAñoBase CHI'!$A$6:$L$374,10,FALSE) -> 0 | O108: 0 | P108: 0 | Q108: 0 | R108: 0 | T108: =+VLOOKUP($A108,'[2]DdaAñoBase CHI'!$A$6:$L$374,12,FALSE) -> 0
A109: BTD_3 Discapacitados 601-más | B109: =+VLOOKUP($A109,'[2]DdaAñoBase CHI'!$A$6:$L$374,2,FALSE) -> 0 | C109: =+VLOOKUP($A109,'[2]DdaAñoBase CHI'!$A$6:$L$374,3,FALSE) -> 0 | D109: =+VLOOKUP($A109,'[2]DdaAñoBase CHI'!$A$6:$L$374,4,FALSE) -> 0 | E109: =+VLOOKUP($A109,'[2]DdaAñoBase CHI'!$A$6:$L$374,5,FALSE) -> 0 | F109: 0 | G109: 0 | H109: 0 | I109: 0 | K109: =+VLOOKUP($A109,'[2]DdaAñoBase CHI'!$A$6:$L$374,7,FALSE) -> 0 | L109: =+VLOOKUP($A109,'[2]DdaAñoBase CHI'!$A$6:$L$374,8,FALSE) -> 0 | M109: =+VLOOKUP($A109,'[2]DdaAñoBase CHI'!$A$6:$L$374,9,FALSE) -> 0 | N109: =+VLOOKUP($A109,'[2]DdaAñoBase CHI'!$A$6:$L$374,10,FALSE) -> 0 | O109: 0 | P109: 0 | Q109: 0 | R109: 0 | T109: =+VLOOKUP($A109,'[2]DdaAñoBase CHI'!$A$6:$L$374,12,FALSE) -> 0
A110: BTD_3 Cruz Roja | B110: =+VLOOKUP($A110,'[2]DdaAñoBase CHI'!$A$6:$L$374,2,FALSE) -> 0 | C110: =+VLOOKUP($A110,'[2]DdaAñoBase CHI'!$A$6:$L$374,3,FALSE) -> 0 | D110: =+VLOOKUP($A110,'[2]DdaAñoBase CHI'!$A$6:$L$374,4,FALSE) -> 0 | E110: =+VLOOKUP($A110,'[2]DdaAñoBase CHI'!$A$6:$L$374,5,FALSE) -> 0 | F110: 0 | G110: 0 | H110: 0 | I110: 0 | K110: =+VLOOKUP($A110,'[2]DdaAñoBase CHI'!$A$6:$L$374,7,FALSE) -> 0 | L110: =+VLOOKUP($A110,'[2]DdaAñoBase CHI'!$A$6:$L$374,8,FALSE) -> 0 | M110: =+VLOOKUP($A110,'[2]DdaAñoBase CHI'!$A$6:$L$374,9,FALSE) -> 0 | N110: =+VLOOKUP($A110,'[2]DdaAñoBase CHI'!$A$6:$L$374,10,FALSE) -> 0 | O110: 0 | P110: 0 | Q110: 0 | R110: 0 | T110: =+VLOOKUP($A110,'[2]DdaAñoBase CHI'!$A$6:$L$374,12,FALSE) -> 0
A111: BTD_4 (50,001-más) | B111: =+SUM(B112:B121) -> 0 | C111: =+SUM(C112:C121) -> 77362.995 | D111: =+SUM(D112:D121) -> 0 | E111: =+SUM(E112:E121) -> 0 | F111: 0 | G111: 0.1315054843 | H111: 0 | I111: 0 | K111: =+SUM(K112:K121) -> 0 | L111: =+SUM(L112:L121) -> 55.66666667 | M111: =+SUM(M112:M121) -> 0 | N111: =+SUM(N112:N121) -> 0 | O111: 0 | P111: 0.002932287783 | Q111: 0 | R111: 0 | T111: =+SUM(T112:T121) -> 16.6395
A112: BTD_4 Regular | B112: =+VLOOKUP($A112,'[2]DdaAñoBase CHI'!$A$6:$L$374,2,FALSE) -> 0 | C112: =+VLOOKUP($A112,'[2]DdaAñoBase CHI'!$A$6:$L$374,3,FALSE) -> 77362.995 | D112: =+VLOOKUP($A112,'[2]DdaAñoBase CHI'!$A$6:$L$374,4,FALSE) -> 0 | E112: =+VLOOKUP($A112,'[2]DdaAñoBase CHI'!$A$6:$L$374,5,FALSE) -> 0 | F112: 0 | G112: 0.1315054843 | H112: 0 | I112: 0 | K112: =+VLOOKUP($A112,'[2]DdaAñoBase CHI'!$A$6:$L$374,7,FALSE) -> 0 | L112: =+VLOOKUP($A112,'[2]DdaAñoBase CHI'!$A$6:$L$374,8,FALSE) -> 55.66666667 | M112: =+VLOOKUP($A112,'[2]DdaAñoBase CHI'!$A$6:$L$374,9,FALSE) -> 0 | N112: =+VLOOKUP($A112,'[2]DdaAñoBase CHI'!$A$6:$L$374,10,FALSE) -> 0 | O112: 0 | P112: 0.002932287783 | Q112: 0 | R112: 0 | T112: =+VLOOKUP($A112,'[2]DdaAñoBase CHI'!$A$6:$L$374,12,FALSE) -> 16.6395
A113: BTD_4 Agro | B113: =+VLOOKUP($A113,'[2]DdaAñoBase CHI'!$A$6:$L$374,2,FALSE) -> 0 | C113: =+VLOOKUP($A113,'[2]DdaAñoBase CHI'!$A$6:$L$374,3,FALSE) -> 0 | D113: =+VLOOKUP($A113,'[2]DdaAñoBase CHI'!$A$6:$L$374,4,FALSE) -> 0 | E113: =+VLOOKUP($A113,'[2]DdaAñoBase CHI'!$A$6:$L$374,5,FALSE) -> 0 | F113: 0 | G113: 0 | H113: 0 | I113: 0 | K113: =+VLOOKUP($A113,'[2]DdaAñoBase CHI'!$A$6:$L$374,7,FALSE) -> 0 | L113: =+VLOOKUP($A113,'[2]DdaAñoBase CHI'!$A$6:$L$374,8,FALSE) -> 0 | M113: =+VLOOKUP($A113,'[2]DdaAñoBase CHI'!$A$6:$L$374,9,FALSE) -> 0 | N113: =+VLOOKUP($A113,'[2]DdaAñoBase CHI'!$A$6:$L$374,10,FALSE) -> 0 | O113: 0 | P113: 0 | Q113: 0 | R113: 0 | T113: =+VLOOKUP($A113,'[2]DdaAñoBase CHI'!$A$6:$L$374,12,FALSE) -> 0
A114: BTD_4 Jub. 1 | B114: =+VLOOKUP($A114,'[2]DdaAñoBase CHI'!$A$6:$L$374,2,FALSE) -> 0 | C114: =+VLOOKUP($A114,'[2]DdaAñoBase CHI'!$A$6:$L$374,3,FALSE) -> 0 | D114: =+VLOOKUP($A114,'[2]DdaAñoBase CHI'!$A$6:$L$374,4,FALSE) -> 0 | E114: =+VLOOKUP($A114,'[2]DdaAñoBase CHI'!$A$6:$L$374,5,FALSE) -> 0 | F114: 0 | G114: 0 | H114: 0 | I114: 0 | K114: =+VLOOKUP($A114,'[2]DdaAñoBase CHI'!$A$6:$L$374,7,FALSE) -> 0 | L114: =+VLOOKUP($A114,'[2]DdaAñoBase CHI'!$A$6:$L$374,8,FALSE) -> 0 | M114: =+VLOOKUP($A114,'[2]DdaAñoBase CHI'!$A$6:$L$374,9,FALSE) -> 0 | N114: =+VLOOKUP($A114,'[2]DdaAñoBase CHI'!$A$6:$L$374,10,FALSE) -> 0 | O114: 0 | P114: 0 | Q114: 0 | R114: 0 | T114: =+VLOOKUP($A114,'[2]DdaAñoBase CHI'!$A$6:$L$374,12,FALSE) -> 0
A115: BTD_4 Jub. 2 | B115: =+VLOOKUP($A115,'[2]DdaAñoBase CHI'!$A$6:$L$374,2,FALSE) -> 0 | C115: =+VLOOKUP($A115,'[2]DdaAñoBase CHI'!$A$6:$L$374,3,FALSE) -> 0 | D115: =+VLOOKUP($A115,'[2]DdaAñoBase CHI'!$A$6:$L$374,4,FALSE) -> 0 | E115: =+VLOOKUP($A115,'[2]DdaAñoBase CHI'!$A$6:$L$374,5,FALSE) -> 0 | F115: 0 | G115: 0 | H115: 0 | I115: 0 | K115: =+VLOOKUP($A115,'[2]DdaAñoBase CHI'!$A$6:$L$374,7,FALSE) -> 0 | L115: =+VLOOKUP($A115,'[2]DdaAñoBase CHI'!$A$6:$L$374,8,FALSE) -> 0 | M115: =+VLOOKUP($A115,'[2]DdaAñoBase CHI'!$A$6:$L$374,9,FALSE) -> 0 | N115: =+VLOOKUP($A115,'[2]DdaAñoBase CHI'!$A$6:$L$374,10,FALSE) -> 0 | O115: 0 | P115: 0 | Q115: 0 | R115: 0 | T115: =+VLOOKUP($A115,'[2]DdaAñoBase CHI'!$A$6:$L$374,12,FALSE) -> 0
A116: BTD_4 Político | B116: =+VLOOKUP($A116,'[2]DdaAñoBase CHI'!$A$6:$L$374,2,FALSE) -> 0 | C116: =+VLOOKUP($A116,'[2]DdaAñoBase CHI'!$A$6:$L$374,3,FALSE) -> 0 | D116: =+VLOOKUP($A116,'[2]DdaAñoBase CHI'!$A$6:$L$374,4,FALSE) -> 0 | E116: =+VLOOKUP($A116,'[2]DdaAñoBase CHI'!$A$6:$L$374,5,FALSE) -> 0 | F116: 0 | G116: 0 | H116: 0 | I116: 0 | K116: =+VLOOKUP($A116,'[2]DdaAñoBase CHI'!$A$6:$L$374,7,FALSE) -> 0 | L116: =+VLOOKUP($A116,'[2]DdaAñoBase CHI'!$A$6:$L$374,8,FALSE) -> 0 | M116: =+VLOOKUP($A116,'[2]DdaAñoBase CHI'!$A$6:$L$374,9,FALSE) -> 0 | N116: =+VLOOKUP($A116,'[2]DdaAñoBase CHI'!$A$6:$L$374,10,FALSE) -> 0 | O116: 0 | P116: 0 | Q116: 0 | R116: 0 | T116: =+VLOOKUP($A116,'[2]DdaAñoBase CHI'!$A$6:$L$374,12,FALSE) -> 0
A117: BTD_4 x1 | B117: =+VLOOKUP($A117,'[2]DdaAñoBase CHI'!$A$6:$L$374,2,FALSE) -> 0 | C117: =+VLOOKUP($A117,'[2]DdaAñoBase CHI'!$A$6:$L$374,3,FALSE) -> 0 | D117: =+VLOOKUP($A117,'[2]DdaAñoBase CHI'!$A$6:$L$374,4,FALSE) -> 0 | E117: =+VLOOKUP($A117,'[2]DdaAñoBase CHI'!$A$6:$L$374,5,FALSE) -> 0 | F117: 0 | G117: 0 | H117: 0 | I117: 0 | K117: =+VLOOKUP($A117,'[2]DdaAñoBase CHI'!$A$6:$L$374,7,FALSE) -> 0 | L117: =+VLOOKUP($A117,'[2]DdaAñoBase CHI'!$A$6:$L$374,8,FALSE) -> 0 | M117: =+VLOOKUP($A117,'[2]DdaAñoBase CHI'!$A$6:$L$374,9,FALSE) -> 0 | N117: =+VLOOKUP($A117,'[2]DdaAñoBase CHI'!$A$6:$L$374,10,FALSE) -> 0 | O117: 0 | P117: 0 | Q117: 0 | R117: 0 | T117: =+VLOOKUP($A117,'[2]DdaAñoBase CHI'!$A$6:$L$374,12,FALSE) -> 0
A118: BTD_4 x2 | B118: =+VLOOKUP($A118,'[2]DdaAñoBase CHI'!$A$6:$L$374,2,FALSE) -> 0 | C118: =+VLOOKUP($A118,'[2]DdaAñoBase CHI'!$A$6:$L$374,3,FALSE) -> 0 | D118: =+VLOOKUP($A118,'[2]DdaAñoBase CHI'!$A$6:$L$374,4,FALSE) -> 0 | E118: =+VLOOKUP($A118,'[2]DdaAñoBase CHI'!$A$6:$L$374,5,FALSE) -> 0 | F118: 0 | G118: 0 | H118: 0 | I118: 0 | K118: =+VLOOKUP($A118,'[2]DdaAñoBase CHI'!$A$6:$L$374,7,FALSE) -> 0 | L118: =+VLOOKUP($A118,'[2]DdaAñoBase CHI'!$A$6:$L$374,8,FALSE) -> 0 | M118: =+VLOOKUP($A118,'[2]DdaAñoBase CHI'!$A$6:$L$374,9,FALSE) -> 0 | N118: =+VLOOKUP($A118,'[2]DdaAñoBase CHI'!$A$6:$L$374,10,FALSE) -> 0 | O118: 0 | P118: 0 | Q118: 0 | R118: 0 | T118: =+VLOOKUP($A118,'[2]DdaAñoBase CHI'!$A$6:$L$374,12,FALSE) -> 0
A119: BTD_4 Discap. | B119: =+VLOOKUP($A119,'[2]DdaAñoBase CHI'!$A$6:$L$374,2,FALSE) -> 0 | C119: =+VLOOKUP($A119,'[2]DdaAñoBase CHI'!$A$6:$L$374,3,FALSE) -> 0 | D119: =+VLOOKUP($A119,'[2]DdaAñoBase CHI'!$A$6:$L$374,4,FALSE) -> 0 | E119: =+VLOOKUP($A119,'[2]DdaAñoBase CHI'!$A$6:$L$374,5,FALSE) -> 0 | F119: 0 | G119: 0 | H119: 0 | I119: 0 | K119: =+VLOOKUP($A119,'[2]DdaAñoBase CHI'!$A$6:$L$374,7,FALSE) -> 0 | L119: =+VLOOKUP($A119,'[2]DdaAñoBase CHI'!$A$6:$L$374,8,FALSE) -> 0 | M119: =+VLOOKUP($A119,'[2]DdaAñoBase CHI'!$A$6:$L$374,9,FALSE) -> 0 | N119: =+VLOOKUP($A119,'[2]DdaAñoBase CHI'!$A$6:$L$374,10,FALSE) -> 0 | O119: 0 | P119: 0 | Q119: 0 | R119: 0 | T119: =+VLOOKUP($A119,'[2]DdaAñoBase CHI'!$A$6:$L$374,12,FALSE) -> 0
A120: BTD_4 Discapacitados 601-más | B120: =+VLOOKUP($A120,'[2]DdaAñoBase CHI'!$A$6:$L$374,2,FALSE) -> 0 | C120: =+VLOOKUP($A120,'[2]DdaAñoBase CHI'!$A$6:$L$374,3,FALSE) -> 0 | D120: =+VLOOKUP($A120,'[2]DdaAñoBase CHI'!$A$6:$L$374,4,FALSE) -> 0 | E120: =+VLOOKUP($A120,'[2]DdaAñoBase CHI'!$A$6:$L$374,5,FALSE) -> 0 | F120: 0 | G120: 0 | H120: 0 | I120: 0 | K120: =+VLOOKUP($A120,'[2]DdaAñoBase CHI'!$A$6:$L$374,7,FALSE) -> 0 | L120: =+VLOOKUP($A120,'[2]DdaAñoBase CHI'!$A$6:$L$374,8,FALSE) -> 0 | M120: =+VLOOKUP($A120,'[2]DdaAñoBase CHI'!$A$6:$L$374,9,FALSE) -> 0 | N120: =+VLOOKUP($A120,'[2]DdaAñoBase CHI'!$A$6:$L$374,10,FALSE) -> 0 | O120: 0 | P120: 0 | Q120: 0 | R120: 0 | T120: =+VLOOKUP($A120,'[2]DdaAñoBase CHI'!$A$6:$L$374,12,FALSE) -> 0
A121: BTD_4 Cruz Roja | B121: =+VLOOKUP($A121,'[2]DdaAñoBase CHI'!$A$6:$L$374,2,FALSE) -> 0 | C121: =+VLOOKUP($A121,'[2]DdaAñoBase CHI'!$A$6:$L$374,3,FALSE) -> 0 | D121: =+VLOOKUP($A121,'[2]DdaAñoBase CHI'!$A$6:$L$374,4,FALSE) -> 0 | E121: =+VLOOKUP($A121,'[2]DdaAñoBase CHI'!$A$6:$L$374,5,FALSE) -> 0 | F121: 0 | G121: 0 | H121: 0 | I121: 0 | K121: =+VLOOKUP($A121,'[2]DdaAñoBase CHI'!$A$6:$L$374,7,FALSE) -> 0 | L121: =+VLOOKUP($A121,'[2]DdaAñoBase CHI'!$A$6:$L$374,8,FALSE) -> 0 | M121: =+VLOOKUP($A121,'[2]DdaAñoBase CHI'!$A$6:$L$374,9,FALSE) -> 0 | N121: =+VLOOKUP($A121,'[2]DdaAñoBase CHI'!$A$6:$L$374,10,FALSE) -> 0 | O121: 0 | P121: 0 | Q121: 0 | R121: 0 | T121: =+VLOOKUP($A121,'[2]DdaAñoBase CHI'!$A$6:$L$374,12,FALSE) -> 0
A122: BTD_5 (xxx) | B122: =+SUM(B123:B132) -> 0 | C122: =+SUM(C123:C132) -> 0 | D122: =+SUM(D123:D132) -> 0 | E122: =+SUM(E123:E132) -> 0 | F122: 0 | G122: 0 | H122: 0 | I122: 0 | K122: =+SUM(K123:K132) -> 0 | L122: =+SUM(L123:L132) -> 0 | M122: =+SUM(M123:M132) -> 0 | N122: =+SUM(N123:N132) -> 0 | O122: 0 | P122: 0 | Q122: 0 | R122: 0 | T122: =+SUM(T123:T132) -> 0
A123: BTD_5 Regular | B123: =+VLOOKUP($A123,'[2]DdaAñoBase CHI'!$A$6:$L$374,2,FALSE) -> 0 | C123: =+VLOOKUP($A123,'[2]DdaAñoBase CHI'!$A$6:$L$374,3,FALSE) -> 0 | D123: =+VLOOKUP($A123,'[2]DdaAñoBase CHI'!$A$6:$L$374,4,FALSE) -> 0 | E123: =+VLOOKUP($A123,'[2]DdaAñoBase CHI'!$A$6:$L$374,5,FALSE) -> 0 | F123: 0 | G123: 0 | H123: 0 | I123: 0 | K123: =+VLOOKUP($A123,'[2]DdaAñoBase CHI'!$A$6:$L$374,7,FALSE) -> 0 | L123: =+VLOOKUP($A123,'[2]DdaAñoBase CHI'!$A$6:$L$374,8,FALSE) -> 0 | M123: =+VLOOKUP($A123,'[2]DdaAñoBase CHI'!$A$6:$L$374,9,FALSE) -> 0 | N123: =+VLOOKUP($A123,'[2]DdaAñoBase CHI'!$A$6:$L$374,10,FALSE) -> 0 | O123: 0 | P123: 0 | Q123: 0 | R123: 0 | T123: =+VLOOKUP($A123,'[2]DdaAñoBase CHI'!$A$6:$L$374,12,FALSE) -> 0
A124: BTD_5 Agro | B124: =+VLOOKUP($A124,'[2]DdaAñoBase CHI'!$A$6:$L$374,2,FALSE) -> 0 | C124: =+VLOOKUP($A124,'[2]DdaAñoBase CHI'!$A$6:$L$374,3,FALSE) -> 0 | D124: =+VLOOKUP($A124,'[2]DdaAñoBase CHI'!$A$6:$L$374,4,FALSE) -> 0 | E124: =+VLOOKUP($A124,'[2]DdaAñoBase CHI'!$A$6:$L$374,5,FALSE) -> 0 | F124: 0 | G124: 0 | H124: 0 | I124: 0 | K124: =+VLOOKUP($A124,'[2]DdaAñoBase CHI'!$A$6:$L$374,7,FALSE) -> 0 | L124: =+VLOOKUP($A124,'[2]DdaAñoBase CHI'!$A$6:$L$374,8,FALSE) -> 0 | M124: =+VLOOKUP($A124,'[2]DdaAñoBase CHI'!$A$6:$L$374,9,FALSE) -> 0 | N124: =+VLOOKUP($A124,'[2]DdaAñoBase CHI'!$A$6:$L$374,10,FALSE) -> 0 | O124: 0 | P124: 0 | Q124: 0 | R124: 0 | T124: =+VLOOKUP($A124,'[2]DdaAñoBase CHI'!$A$6:$L$374,12,FALSE) -> 0
A125: BTD_5 Jub. 1 | B125: =+VLOOKUP($A125,'[2]DdaAñoBase CHI'!$A$6:$L$374,2,FALSE) -> 0 | C125: =+VLOOKUP($A125,'[2]DdaAñoBase CHI'!$A$6:$L$374,3,FALSE) -> 0 | D125: =+VLOOKUP($A125,'[2]DdaAñoBase CHI'!$A$6:$L$374,4,FALSE) -> 0 | E125: =+VLOOKUP($A125,'[2]DdaAñoBase CHI'!$A$6:$L$374,5,FALSE) -> 0 | F125: 0 | G125: 0 | H125: 0 | I125: 0 | K125: =+VLOOKUP($A125,'[2]DdaAñoBase CHI'!$A$6:$L$374,7,FALSE) -> 0 | L125: =+VLOOKUP($A125,'[2]DdaAñoBase CHI'!$A$6:$L$374,8,FALSE) -> 0 | M125: =+VLOOKUP($A125,'[2]DdaAñoBase CHI'!$A$6:$L$374,9,FALSE) -> 0 | N125: =+VLOOKUP($A125,'[2]DdaAñoBase CHI'!$A$6:$L$374,10,FALSE) -> 0 | O125: 0 | P125: 0 | Q125: 0 | R125: 0 | T125: =+VLOOKUP($A125,'[2]DdaAñoBase CHI'!$A$6:$L$374,12,FALSE) -> 0
A126: BTD_5 Jub. 2 | B126: =+VLOOKUP($A126,'[2]DdaAñoBase CHI'!$A$6:$L$374,2,FALSE) -> 0 | C126: =+VLOOKUP($A126,'[2]DdaAñoBase CHI'!$A$6:$L$374,3,FALSE) -> 0 | D126: =+VLOOKUP($A126,'[2]DdaAñoBase CHI'!$A$6:$L$374,4,FALSE) -> 0 | E126: =+VLOOKUP($A126,'[2]DdaAñoBase CHI'!$A$6:$L$374,5,FALSE) -> 0 | F126: 0 | G126: 0 | H126: 0 | I126: 0 | K126: =+VLOOKUP($A126,'[2]DdaAñoBase CHI'!$A$6:$L$374,7,FALSE) -> 0 | L126: =+VLOOKUP($A126,'[2]DdaAñoBase CHI'!$A$6:$L$374,8,FALSE) -> 0 | M126: =+VLOOKUP($A126,'[2]DdaAñoBase CHI'!$A$6:$L$374,9,FALSE) -> 0 | N126: =+VLOOKUP($A126,'[2]DdaAñoBase CHI'!$A$6:$L$374,10,FALSE) -> 0 | O126: 0 | P126: 0 | Q126: 0 | R126: 0 | T126: =+VLOOKUP($A126,'[2]DdaAñoBase CHI'!$A$6:$L$374,12,FALSE) -> 0
A127: BTD_5 Político | B127: =+VLOOKUP($A127,'[2]DdaAñoBase CHI'!$A$6:$L$374,2,FALSE) -> 0 | C127: =+VLOOKUP($A127,'[2]DdaAñoBase CHI'!$A$6:$L$374,3,FALSE) -> 0 | D127: =+VLOOKUP($A127,'[2]DdaAñoBase CHI'!$A$6:$L$374,4,FALSE) -> 0 | E127: =+VLOOKUP($A127,'[2]DdaAñoBase CHI'!$A$6:$L$374,5,FALSE) -> 0 | F127: 0 | G127: 0 | H127: 0 | I127: 0 | K127: =+VLOOKUP($A127,'[2]DdaAñoBase CHI'!$A$6:$L$374,7,FALSE) -> 0 | L127: =+VLOOKUP($A127,'[2]DdaAñoBase CHI'!$A$6:$L$374,8,FALSE) -> 0 | M127: =+VLOOKUP($A127,'[2]DdaAñoBase CHI'!$A$6:$L$374,9,FALSE) -> 0 | N127: =+VLOOKUP($A127,'[2]DdaAñoBase CHI'!$A$6:$L$374,10,FALSE) -> 0 | O127: 0 | P127: 0 | Q127: 0 | R127: 0 | T127: =+VLOOKUP($A127,'[2]DdaAñoBase CHI'!$A$6:$L$374,12,FALSE) -> 0
A128: BTD_5 x1 | B128: =+VLOOKUP($A128,'[2]DdaAñoBase CHI'!$A$6:$L$374,2,FALSE) -> 0 | C128: =+VLOOKUP($A128,'[2]DdaAñoBase CHI'!$A$6:$L$374,3,FALSE) -> 0 | D128: =+VLOOKUP($A128,'[2]DdaAñoBase CHI'!$A$6:$L$374,4,FALSE) -> 0 | E128: =+VLOOKUP($A128,'[2]DdaAñoBase CHI'!$A$6:$L$374,5,FALSE) -> 0 | F128: 0 | G128: 0 | H128: 0 | I128: 0 | K128: =+VLOOKUP($A128,'[2]DdaAñoBase CHI'!$A$6:$L$374,7,FALSE) -> 0 | L128: =+VLOOKUP($A128,'[2]DdaAñoBase CHI'!$A$6:$L$374,8,FALSE) -> 0 | M128: =+VLOOKUP($A128,'[2]DdaAñoBase CHI'!$A$6:$L$374,9,FALSE) -> 0 | N128: =+VLOOKUP($A128,'[2]DdaAñoBase CHI'!$A$6:$L$374,10,FALSE) -> 0 | O128: 0 | P128: 0 | Q128: 0 | R128: 0 | T128: =+VLOOKUP($A128,'[2]DdaAñoBase CHI'!$A$6:$L$374,12,FALSE) -> 0
A129: BTD_5 x2 | B129: =+VLOOKUP($A129,'[2]DdaAñoBase CHI'!$A$6:$L$374,2,FALSE) -> 0 | C129: =+VLOOKUP($A129,'[2]DdaAñoBase CHI'!$A$6:$L$374,3,FALSE) -> 0 | D129: =+VLOOKUP($A129,'[2]DdaAñoBase CHI'!$A$6:$L$374,4,FALSE) -> 0 | E129: =+VLOOKUP($A129,'[2]DdaAñoBase CHI'!$A$6:$L$374,5,FALSE) -> 0 | F129: 0 | G129: 0 | H129: 0 | I129: 0 | K129: =+VLOOKUP($A129,'[2]DdaAñoBase CHI'!$A$6:$L$374,7,FALSE) -> 0 | L129: =+VLOOKUP($A129,'[2]DdaAñoBase CHI'!$A$6:$L$374,8,FALSE) -> 0 | M129: =+VLOOKUP($A129,'[2]DdaAñoBase CHI'!$A$6:$L$374,9,FALSE) -> 0 | N129: =+VLOOKUP($A129,'[2]DdaAñoBase CHI'!$A$6:$L$374,10,FALSE) -> 0 | O129: 0 | P129: 0 | Q129: 0 | R129: 0 | T129: =+VLOOKUP($A129,'[2]DdaAñoBase CHI'!$A$6:$L$374,12,FALSE) -> 0
A130: BTD_5 Discap. | B130: =+VLOOKUP($A130,'[2]DdaAñoBase CHI'!$A$6:$L$374,2,FALSE) -> 0 | C130: =+VLOOKUP($A130,'[2]DdaAñoBase CHI'!$A$6:$L$374,3,FALSE) -> 0 | D130: =+VLOOKUP($A130,'[2]DdaAñoBase CHI'!$A$6:$L$374,4,FALSE) -> 0 | E130: =+VLOOKUP($A130,'[2]DdaAñoBase CHI'!$A$6:$L$374,5,FALSE) -> 0 | F130: 0 | G130: 0 | H130: 0 | I130: 0 | K130: =+VLOOKUP($A130,'[2]DdaAñoBase CHI'!$A$6:$L$374,7,FALSE) -> 0 | L130: =+VLOOKUP($A130,'[2]DdaAñoBase CHI'!$A$6:$L$374,8,FALSE) -> 0 | M130: =+VLOOKUP($A130,'[2]DdaAñoBase CHI'!$A$6:$L$374,9,FALSE) -> 0 | N130: =+VLOOKUP($A130,'[2]DdaAñoBase CHI'!$A$6:$L$374,10,FALSE) -> 0 | O130: 0 | P130: 0 | Q130: 0 | R130: 0 | T130: =+VLOOKUP($A130,'[2]DdaAñoBase CHI'!$A$6:$L$374,12,FALSE) -> 0
A131: BTD_5 Discapacitados 601-más | B131: =+VLOOKUP($A131,'[2]DdaAñoBase CHI'!$A$6:$L$374,2,FALSE) -> 0 | C131: =+VLOOKUP($A131,'[2]DdaAñoBase CHI'!$A$6:$L$374,3,FALSE) -> 0 | D131: =+VLOOKUP($A131,'[2]DdaAñoBase CHI'!$A$6:$L$374,4,FALSE) -> 0 | E131: =+VLOOKUP($A131,'[2]DdaAñoBase CHI'!$A$6:$L$374,5,FALSE) -> 0 | F131: 0 | G131: 0 | H131: 0 | I131: 0 | K131: =+VLOOKUP($A131,'[2]DdaAñoBase CHI'!$A$6:$L$374,7,FALSE) -> 0 | L131: =+VLOOKUP($A131,'[2]DdaAñoBase CHI'!$A$6:$L$374,8,FALSE) -> 0 | M131: =+VLOOKUP($A131,'[2]DdaAñoBase CHI'!$A$6:$L$374,9,FALSE) -> 0 | N131: =+VLOOKUP($A131,'[2]DdaAñoBase CHI'!$A$6:$L$374,10,FALSE) -> 0 | O131: 0 | P131: 0 | Q131: 0 | R131: 0 | T131: =+VLOOKUP($A131,'[2]DdaAñoBase CHI'!$A$6:$L$374,12,FALSE) -> 0
A132: BTD_5 Cruz Roja | B132: =+VLOOKUP($A132,'[2]DdaAñoBase CHI'!$A$6:$L$374,2,FALSE) -> 0 | C132: =+VLOOKUP($A132,'[2]DdaAñoBase CHI'!$A$6:$L$374,3,FALSE) -> 0 | D132: =+VLOOKUP($A132,'[2]DdaAñoBase CHI'!$A$6:$L$374,4,FALSE) -> 0 | E132: =+VLOOKUP($A132,'[2]DdaAñoBase CHI'!$A$6:$L$374,5,FALSE) -> 0 | F132: 0 | G132: 0 | H132: 0 | I132: 0 | K132: =+VLOOKUP($A132,'[2]DdaAñoBase CHI'!$A$6:$L$374,7,FALSE) -> 0 | L132: =+VLOOKUP($A132,'[2]DdaAñoBase CHI'!$A$6:$L$374,8,FALSE) -> 0 | M132: =+VLOOKUP($A132,'[2]DdaAñoBase CHI'!$A$6:$L$374,9,FALSE) -> 0 | N132: =+VLOOKUP($A132,'[2]DdaAñoBase CHI'!$A$6:$L$374,10,FALSE) -> 0 | O132: 0 | P132: 0 | Q132: 0 | R132: 0 | T132: =+VLOOKUP($A132,'[2]DdaAñoBase CHI'!$A$6:$L$374,12,FALSE) -> 0
A133: BTS | B133: =+SUM(B134,B145,B156,B167,B178) -> 443193.029 | C133: =+SUM(C134,C145,C156,C167,C178) -> 180864.826 | D133: =+SUM(D134,D145,D156,D167,D178) -> 2.25 | E133: =+SUM(E134,E145,E156,E167,E178) -> 556.96 | F133: 0.9979736668 | G133: 0.3074430681 | H133: 5.454985698e-05 | I133: 0.8002221438 | K133: =+SUM(K134,K145,K156,K167,K178) -> 166546.3333 | L133: =+SUM(L134,L145,L156,L167,L178) -> 17478.05952 | M133: =+SUM(M134,M145,M156,M167,M178) -> 0 | N133: =+SUM(N134,N145,N156,N167,N178) -> 51.58333333 | O133: 0.999110617 | P133: 0.920671265 | Q133: 0 | R133: 0.9651862466 | T133: =+SUM(T134,T145,T156,T167,T178) -> 0
A134: BTS_1 (0-300) | B134: =+SUM(B135:B144) -> 203999.211 | C134: =+SUM(C135:C144) -> 10478.094 | D134: =+SUM(D135:D144) -> 0.93 | E134: =+SUM(E135:E144) -> 16.733 | F134: 0.4593615587 | G134: 0.01781118771 | H134: 2.254727422e-05 | I134: 0.02404143409 | K134: =+SUM(K135:K144) -> 133422 | L134: =+SUM(L135:L144) -> 9229.72619 | M134: =+SUM(M135:M144) -> 0 | N134: =+SUM(N135:N144) -> 27.25 | O134: 0.8003979077 | P134: 0.4861834734 | Q134: 0 | R134: 0.5098802951 | T134: =+SUM(T135:T144) -> 0
A135: BTS_1 Regular | B135: =+VLOOKUP($A135,'[2]DdaAñoBase CHI'!$A$6:$L$374,2,FALSE) -> 138555.41 | C135: =+VLOOKUP($A135,'[2]DdaAñoBase CHI'!$A$6:$L$374,3,FALSE) -> 10430.494 | D135: =+VLOOKUP($A135,'[2]DdaAñoBase CHI'!$A$6:$L$374,4,FALSE) -> 0.93 | E135: =+VLOOKUP($A135,'[2]DdaAñoBase CHI'!$A$6:$L$374,5,FALSE) -> 16.733 | F135: 0.3119964474 | G135: 0.01773027486 | H135: 2.254727422e-05 | I135: 0.02404143409 | K135: =+VLOOKUP($A135,'[2]DdaAñoBase CHI'!$A$6:$L$374,7,FALSE) -> 96549.33333 | L135: =+VLOOKUP($A135,'[2]DdaAñoBase CHI'!$A$6:$L$374,8,FALSE) -> 9207.5 | M135: =+VLOOKUP($A135,'[2]DdaAñoBase CHI'!$A$6:$L$374,9,FALSE) -> 0 | N135: =+VLOOKUP($A135,'[2]DdaAñoBase CHI'!$A$6:$L$374,10,FALSE) -> 27.25 | O135: 0.5791989656 | P135: 0.4850126904 | Q135: 0 | R135: 0.5098802951 | T135: =+VLOOKUP($A135,'[2]DdaAñoBase CHI'!$A$6:$L$374,12,FALSE) -> 0
A136: BTS_1 Agro | B136: =+VLOOKUP($A136,'[2]DdaAñoBase CHI'!$A$6:$L$374,2,FALSE) -> 0 | C136: =+VLOOKUP($A136,'[2]DdaAñoBase CHI'!$A$6:$L$374,3,FALSE) -> 44.835 | D136: =+VLOOKUP($A136,'[2]DdaAñoBase CHI'!$A$6:$L$374,4,FALSE) -> 0 | E136: =+VLOOKUP($A136,'[2]DdaAñoBase CHI'!$A$6:$L$374,5,FALSE) -> 0 | F136: 0 | G136: 7.621277316e-05 | H136: 0 | I136: 0 | K136: =+VLOOKUP($A136,'[2]DdaAñoBase CHI'!$A$6:$L$374,7,FALSE) -> 0 | L136: =+VLOOKUP($A136,'[2]DdaAñoBase CHI'!$A$6:$L$374,8,FALSE) -> 20.08333333 | M136: =+VLOOKUP($A136,'[2]DdaAñoBase CHI'!$A$6:$L$374,9,FALSE) -> 0 | N136: =+VLOOKUP($A136,'[2]DdaAñoBase CHI'!$A$6:$L$374,10,FALSE) -> 0 | O136: 0 | P136: 0.001057906221 | Q136: 0 | R136: 0 | T136: =+VLOOKUP($A136,'[2]DdaAñoBase CHI'!$A$6:$L$374,12,FALSE) -> 0
A137: BTS_1 Jub. 1 | B137: =+VLOOKUP($A137,'[2]DdaAñoBase CHI'!$A$6:$L$374,2,FALSE) -> 65186.348 | C137: =+VLOOKUP($A137,'[2]DdaAñoBase CHI'!$A$6:$L$374,3,FALSE) -> 0 | D137: =+VLOOKUP($A137,'[2]DdaAñoBase CHI'!$A$6:$L$374,4,FALSE) -> 0 | E137: =+VLOOKUP($A137,'[2]DdaAñoBase CHI'!$A$6:$L$374,5,FALSE) -> 0 | F137: 0.1467853835 | G137: 0 | H137: 0 | I137: 0 | K137: =+VLOOKUP($A137,'[2]DdaAñoBase CHI'!$A$6:$L$374,7,FALSE) -> 36747.33333 | L137: =+VLOOKUP($A137,'[2]DdaAñoBase CHI'!$A$6:$L$374,8,FALSE) -> 0 | M137: =+VLOOKUP($A137,'[2]DdaAñoBase CHI'!$A$6:$L$374,9,FALSE) -> 0 | N137: =+VLOOKUP($A137,'[2]DdaAñoBase CHI'!$A$6:$L$374,10,FALSE) -> 0 | O137: 0.2204470681 | P137: 0 | Q137: 0 | R137: 0 | T137: =+VLOOKUP($A137,'[2]DdaAñoBase CHI'!$A$6:$L$374,12,FALSE) -> 0
A138: BTS_1 Jub. 2 | B138: =+VLOOKUP($A138,'[2]DdaAñoBase CHI'!$A$6:$L$374,2,FALSE) -> 0 | C138: =+VLOOKUP($A138,'[2]DdaAñoBase CHI'!$A$6:$L$374,3,FALSE) -> 0 | D138: =+VLOOKUP($A138,'[2]DdaAñoBase CHI'!$A$6:$L$374,4,FALSE) -> 0 | E138: =+VLOOKUP($A138,'[2]DdaAñoBase CHI'!$A$6:$L$374,5,FALSE) -> 0 | F138: 0 | G138: 0 | H138: 0 | I138: 0 | K138: =+VLOOKUP($A138,'[2]DdaAñoBase CHI'!$A$6:$L$374,7,FALSE) -> 0 | L138: =+VLOOKUP($A138,'[2]DdaAñoBase CHI'!$A$6:$L$374,8,FALSE) -> 0 | M138: =+VLOOKUP($A138,'[2]DdaAñoBase CHI'!$A$6:$L$374,9,FALSE) -> 0 | N138: =+VLOOKUP($A138,'[2]DdaAñoBase CHI'!$A$6:$L$374,10,FALSE) -> 0 | O138: 0 | P138: 0 | Q138: 0 | R138: 0 | T138: =+VLOOKUP($A138,'[2]DdaAñoBase CHI'!$A$6:$L$374,12,FALSE) -> 0
A139: BTS_1 Político | B139: =+VLOOKUP($A139,'[2]DdaAñoBase CHI'!$A$6:$L$374,2,FALSE) -> 0 | C139: =+VLOOKUP($A139,'[2]DdaAñoBase CHI'!$A$6:$L$374,3,FALSE) -> 2.075 | D139: =+VLOOKUP($A139,'[2]DdaAñoBase CHI'!$A$6:$L$374,4,FALSE) -> 0 | E139: =+VLOOKUP($A139,'[2]DdaAñoBase CHI'!$A$6:$L$374,5,FALSE) -> 0 | F139: 0 | G139: 3.527188676e-06 | H139: 0 | I139: 0 | K139: =+VLOOKUP($A139,'[2]DdaAñoBase CHI'!$A$6:$L$374,7,FALSE) -> 0 | L139: =+VLOOKUP($A139,'[2]DdaAñoBase CHI'!$A$6:$L$374,8,FALSE) -> 1.142857143 | M139: =+VLOOKUP($A139,'[2]DdaAñoBase CHI'!$A$6:$L$374,9,FALSE) -> 0 | N139: =+VLOOKUP($A139,'[2]DdaAñoBase CHI'!$A$6:$L$374,10,FALSE) -> 0 | O139: 0 | P139: 6.020094679e-05 | Q139: 0 | R139: 0 | T139: =+VLOOKUP($A139,'[2]DdaAñoBase CHI'!$A$6:$L$374,12,FALSE) -> 0
A140: BTS_1 x1 | B140: =+VLOOKUP($A140,'[2]DdaAñoBase CHI'!$A$6:$L$374,2,FALSE) -> 0 | C140: =+VLOOKUP($A140,'[2]DdaAñoBase CHI'!$A$6:$L$374,3,FALSE) -> 0 | D140: =+VLOOKUP($A140,'[2]DdaAñoBase CHI'!$A$6:$L$374,4,FALSE) -> 0 | E140: =+VLOOKUP($A140,'[2]DdaAñoBase CHI'!$A$6:$L$374,5,FALSE) -> 0 | F140: 0 | G140: 0 | H140: 0 | I140: 0 | K140: =+VLOOKUP($A140,'[2]DdaAñoBase CHI'!$A$6:$L$374,7,FALSE) -> 0 | L140: =+VLOOKUP($A140,'[2]DdaAñoBase CHI'!$A$6:$L$374,8,FALSE) -> 0 | M140: =+VLOOKUP($A140,'[2]DdaAñoBase CHI'!$A$6:$L$374,9,FALSE) -> 0 | N140: =+VLOOKUP($A140,'[2]DdaAñoBase CHI'!$A$6:$L$374,10,FALSE) -> 0 | O140: =+K140/K$7 -> 0 | P140: =+L140/L$7 -> 0 | Q140: =+M140/M$7 -> 0 | R140: =+N140/N$7 -> 0 | T140: =+VLOOKUP($A140,'[2]DdaAñoBase CHI'!$A$6:$L$374,12,FALSE) -> 0
A141: BTS_1 x2 | B141: =+VLOOKUP($A141,'[2]DdaAñoBase CHI'!$A$6:$L$374,2,FALSE) -> 0 | C141: =+VLOOKUP($A141,'[2]DdaAñoBase CHI'!$A$6:$L$374,3,FALSE) -> 0 | D141: =+VLOOKUP($A141,'[2]DdaAñoBase CHI'!$A$6:$L$374,4,FALSE) -> 0 | E141: =+VLOOKUP($A141,'[2]DdaAñoBase CHI'!$A$6:$L$374,5,FALSE) -> 0 | F141: 0 | G141: 0 | H141: 0 | I141: 0 | K141: =+VLOOKUP($A141,'[2]DdaAñoBase CHI'!$A$6:$L$374,7,FALSE) -> 0 | L141: =+VLOOKUP($A141,'[2]DdaAñoBase CHI'!$A$6:$L$374,8,FALSE) -> 0 | M141: =+VLOOKUP($A141,'[2]DdaAñoBase CHI'!$A$6:$L$374,9,FALSE) -> 0 | N141: =+VLOOKUP($A141,'[2]DdaAñoBase CHI'!$A$6:$L$374,10,FALSE) -> 0 | O141: 0 | P141: 0 | Q141: 0 | R141: 0 | T141: =+VLOOKUP($A141,'[2]DdaAñoBase CHI'!$A$6:$L$374,12,FALSE) -> 0
A142: BTS_1 Discap. | B142: =+VLOOKUP($A142,'[2]DdaAñoBase CHI'!$A$6:$L$374,2,FALSE) -> 257.453 | C142: =+VLOOKUP($A142,'[2]DdaAñoBase CHI'!$A$6:$L$374,3,FALSE) -> 0 | D142: =+VLOOKUP($A142,'[2]DdaAñoBase CHI'!$A$6:$L$374,4,FALSE) -> 0 | E142: =+VLOOKUP($A142,'[2]DdaAñoBase CHI'!$A$6:$L$374,5,FALSE) -> 0 | F142: 0.0005797277882 | G142: 0 | H142: 0 | I142: 0 | K142: =+VLOOKUP($A142,'[2]DdaAñoBase CHI'!$A$6:$L$374,7,FALSE) -> 125.3333333 | L142: =+VLOOKUP($A142,'[2]DdaAñoBase CHI'!$A$6:$L$374,8,FALSE) -> 0 | M142: =+VLOOKUP($A142,'[2]DdaAñoBase CHI'!$A$6:$L$374,9,FALSE) -> 0 | N142: =+VLOOKUP($A142,'[2]DdaAñoBase CHI'!$A$6:$L$374,10,FALSE) -> 0 | O142: 0.000751874037 | P142: 0 | Q142: 0 | R142: 0 | T142: =+VLOOKUP($A142,'[2]DdaAñoBase CHI'!$A$6:$L$374,12,FALSE) -> 0
A143: BTS_1 Discapacitados 601-más | B143: =+VLOOKUP($A143,'[2]DdaAñoBase CHI'!$A$6:$L$374,2,FALSE) -> 0 | C143: =+VLOOKUP($A143,'[2]DdaAñoBase CHI'!$A$6:$L$374,3,FALSE) -> 0 | D143: =+VLOOKUP($A143,'[2]DdaAñoBase CHI'!$A$6:$L$374,4,FALSE) -> 0 | E143: =+VLOOKUP($A143,'[2]DdaAñoBase CHI'!$A$6:$L$374,5,FALSE) -> 0 | F143: 0 | G143: 0 | H143: 0 | I143: 0 | K143: =+VLOOKUP($A143,'[2]DdaAñoBase CHI'!$A$6:$L$374,7,FALSE) -> 0 | L143: =+VLOOKUP($A143,'[2]DdaAñoBase CHI'!$A$6:$L$374,8,FALSE) -> 0 | M143: =+VLOOKUP($A143,'[2]DdaAñoBase CHI'!$A$6:$L$374,9,FALSE) -> 0 | N143: =+VLOOKUP($A143,'[2]DdaAñoBase CHI'!$A$6:$L$374,10,FALSE) -> 0 | O143: 0 | P143: 0 | Q143: 0 | R143: 0 | T143: =+VLOOKUP($A143,'[2]DdaAñoBase CHI'!$A$6:$L$374,12,FALSE) -> 0
A144: BTS_1 Cruz Roja | B144: =+VLOOKUP($A144,'[2]DdaAñoBase CHI'!$A$6:$L$374,2,FALSE) -> 0 | C144: =+VLOOKUP($A144,'[2]DdaAñoBase CHI'!$A$6:$L$374,3,FALSE) -> 0.69 | D144: =+VLOOKUP($A144,'[2]DdaAñoBase CHI'!$A$6:$L$374,4,FALSE) -> 0 | E144: =+VLOOKUP($A144,'[2]DdaAñoBase CHI'!$A$6:$L$374,5,FALSE) -> 0 | F144: 0 | G144: 1.172896476e-06 | H144: 0 | I144: 0 | K144: =+VLOOKUP($A144,'[2]DdaAñoBase CHI'!$A$6:$L$374,7,FALSE) -> 0 | L144: =+VLOOKUP($A144,'[2]DdaAñoBase CHI'!$A$6:$L$374,8,FALSE) -> 1 | M144: =+VLOOKUP($A144,'[2]DdaAñoBase CHI'!$A$6:$L$374,9,FALSE) -> 0 | N144: =+VLOOKUP($A144,'[2]DdaAñoBase CHI'!$A$6:$L$374,10,FALSE) -> 0 | O144: 0 | P144: 5.267582845e-05 | Q144: 0 | R144: 0 | T144: =+VLOOKUP($A144,'[2]DdaAñoBase CHI'!$A$6:$L$374,12,FALSE) -> 0
A145: BTS_2 (301-750) | B145: =+SUM(B146:B155) -> 145101.478 | C145: =+SUM(C146:C155) -> 21167.32 | D145: =+SUM(D146:D155) -> 0.448 | E145: =+SUM(E146:E155) -> 48.676 | F145: 0.3267367593 | G145: 0.03598126815 | H145: 1.086148263e-05 | I145: 0.06993610506 | K145: =+SUM(K146:K155) -> 27414.58333 | L145: =+SUM(L146:L155) -> 3658.166667 | M145: =+SUM(M146:M155) -> 0 | N145: =+SUM(N146:N155) -> 7 | O145: 0.1644599477 | P145: 0.1926969598 | Q145: 0 | R145: 0.1309784244 | T145: =+SUM(T146:T155) -> 0
A146: BTS_2 Regular | B146: =+VLOOKUP($A146,'[2]DdaAñoBase CHI'!$A$6:$L$374,2,FALSE) -> 85766.439 | C146: =+VLOOKUP($A146,'[2]DdaAñoBase CHI'!$A$6:$L$374,3,FALSE) -> 21039.87 | D146: =+VLOOKUP($A146,'[2]DdaAñoBase CHI'!$A$6:$L$374,4,FALSE) -> 0.448 | E146: =+VLOOKUP($A146,'[2]DdaAñoBase CHI'!$A$6:$L$374,5,FALSE) -> 48.676 | F146: 0.1931272426 | G146: 0.03576462227 | H146: 1.086148263e-05 | I146: 0.06993610506 | K146: =+VLOOKUP($A146,'[2]DdaAñoBase CHI'!$A$6:$L$374,7,FALSE) -> 16287.41667 | L146: =+VLOOKUP($A146,'[2]DdaAñoBase CHI'!$A$6:$L$374,8,FALSE) -> 3636 | M146: =+VLOOKUP($A146,'[2]DdaAñoBase CHI'!$A$6:$L$374,9,FALSE) -> 0 | N146: =+VLOOKUP($A146,'[2]DdaAñoBase CHI'!$A$6:$L$374,10,FALSE) -> 7 | O146: 0.09770813076 | P146: 0.1915293122 | Q146: 0 | R146: 0.1309784244 | T146: =+VLOOKUP($A146,'[2]DdaAñoBase CHI'!$A$6:$L$374,12,FALSE) -> 0
A147: BTS_2 Agro | B147: =+VLOOKUP($A147,'[2]DdaAñoBase CHI'!$A$6:$L$374,2,FALSE) -> 0 | C147: =+VLOOKUP($A147,'[2]DdaAñoBase CHI'!$A$6:$L$374,3,FALSE) -> 117.011 | D147: =+VLOOKUP($A147,'[2]DdaAñoBase CHI'!$A$6:$L$374,4,FALSE) -> 0 | E147: =+VLOOKUP($A147,'[2]DdaAñoBase CHI'!$A$6:$L$374,5,FALSE) -> 0 | F147: 0 | G147: 0.0001989011442 | H147: 0 | I147: 0 | K147: =+VLOOKUP($A147,'[2]DdaAñoBase CHI'!$A$6:$L$374,7,FALSE) -> 0 | L147: =+VLOOKUP($A147,'[2]DdaAñoBase CHI'!$A$6:$L$374,8,FALSE) -> 19.16666667 | M147: =+VLOOKUP($A147,'[2]DdaAñoBase CHI'!$A$6:$L$374,9,FALSE) -> 0 | N147: =+VLOOKUP($A147,'[2]DdaAñoBase CHI'!$A$6:$L$374,10,FALSE) -> 0 | O147: 0 | P147: 0.001009620045 | Q147: 0 | R147: 0 | T147: =+VLOOKUP($A147,'[2]DdaAñoBase CHI'!$A$6:$L$374,12,FALSE) -> 0
A148: BTS_2 Jub. 1 | B148: =+VLOOKUP($A148,'[2]DdaAñoBase CHI'!$A$6:$L$374,2,FALSE) -> 47271.896 | C148: =+VLOOKUP($A148,'[2]DdaAñoBase CHI'!$A$6:$L$374,3,FALSE) -> 0 | D148: =+VLOOKUP($A148,'[2]DdaAñoBase CHI'!$A$6:$L$374,4,FALSE) -> 0 | E148: =+VLOOKUP($A148,'[2]DdaAñoBase CHI'!$A$6:$L$374,5,FALSE) -> 0 | F148: 0.1064459599 | G148: 0 | H148: 0 | I148: 0 | K148: =+VLOOKUP($A148,'[2]DdaAñoBase CHI'!$A$6:$L$374,7,FALSE) -> 9602.583333 | L148: =+VLOOKUP($A148,'[2]DdaAñoBase CHI'!$A$6:$L$374,8,FALSE) -> 0 | M148: =+VLOOKUP($A148,'[2]DdaAñoBase CHI'!$A$6:$L$374,9,FALSE) -> 0 | N148: =+VLOOKUP($A148,'[2]DdaAñoBase CHI'!$A$6:$L$374,10,FALSE) -> 0 | O148: 0.05760584918 | P148: 0 | Q148: 0 | R148: 0 | T148: =+VLOOKUP($A148,'[2]DdaAñoBase CHI'!$A$6:$L$374,12,FALSE) -> 0
A149: BTS_2 Jub. 2 | B149: =+VLOOKUP($A149,'[2]DdaAñoBase CHI'!$A$6:$L$374,2,FALSE) -> 11781.277 | C149: =+VLOOKUP($A149,'[2]DdaAñoBase CHI'!$A$6:$L$374,3,FALSE) -> 0 | D149: =+VLOOKUP($A149,'[2]DdaAñoBase CHI'!$A$6:$L$374,4,FALSE) -> 0 | E149: =+VLOOKUP($A149,'[2]DdaAñoBase CHI'!$A$6:$L$374,5,FALSE) -> 0 | F149: 0.02652885636 | G149: 0 | H149: 0 | I149: 0 | K149: =+VLOOKUP($A149,'[2]DdaAñoBase CHI'!$A$6:$L$374,7,FALSE) -> 1470.75 | L149: =+VLOOKUP($A149,'[2]DdaAñoBase CHI'!$A$6:$L$374,8,FALSE) -> 0 | M149: =+VLOOKUP($A149,'[2]DdaAñoBase CHI'!$A$6:$L$374,9,FALSE) -> 0 | N149: =+VLOOKUP($A149,'[2]DdaAñoBase CHI'!$A$6:$L$374,10,FALSE) -> 0 | O149: 0.008823021862 | P149: 0 | Q149: 0 | R149: 0 | T149: =+VLOOKUP($A149,'[2]DdaAñoBase CHI'!$A$6:$L$374,12,FALSE) -> 0
A150: BTS_2 Político | B150: =+VLOOKUP($A150,'[2]DdaAñoBase CHI'!$A$6:$L$374,2,FALSE) -> 0 | C150: =+VLOOKUP($A150,'[2]DdaAñoBase CHI'!$A$6:$L$374,3,FALSE) -> 5.17 | D150: =+VLOOKUP($A150,'[2]DdaAñoBase CHI'!$A$6:$L$374,4,FALSE) -> 0 | E150: =+VLOOKUP($A150,'[2]DdaAñoBase CHI'!$A$6:$L$374,5,FALSE) -> 0 | F150: 0 | G150: 8.788224317e-06 | H150: 0 | I150: 0 | K150: =+VLOOKUP($A150,'[2]DdaAñoBase CHI'!$A$6:$L$374,7,FALSE) -> 0 | L150: =+VLOOKUP($A150,'[2]DdaAñoBase CHI'!$A$6:$L$374,8,FALSE) -> 1 | M150: =+VLOOKUP($A150,'[2]DdaAñoBase CHI'!$A$6:$L$374,9,FALSE) -> 0 | N150: =+VLOOKUP($A150,'[2]DdaAñoBase CHI'!$A$6:$L$374,10,FALSE) -> 0 | O150: 0 | P150: 5.267582845e-05 | Q150: 0 | R150: 0 | T150: =+VLOOKUP($A150,'[2]DdaAñoBase CHI'!$A$6:$L$374,12,FALSE) -> 0
A151: BTS_2 x1 | B151: =+VLOOKUP($A151,'[2]DdaAñoBase CHI'!$A$6:$L$374,2,FALSE) -> 0 | C151: =+VLOOKUP($A151,'[2]DdaAñoBase CHI'!$A$6:$L$374,3,FALSE) -> 0 | D151: =+VLOOKUP($A151,'[2]DdaAñoBase CHI'!$A$6:$L$374,4,FALSE) -> 0 | E151: =+VLOOKUP($A151,'[2]DdaAñoBase CHI'!$A$6:$L$374,5,FALSE) -> 0 | F151: 0 | G151: 0 | H151: 0 | I151: 0 | K151: =+VLOOKUP($A151,'[2]DdaAñoBase CHI'!$A$6:$L$374,7,FALSE) -> 0 | L151: =+VLOOKUP($A151,'[2]DdaAñoBase CHI'!$A$6:$L$374,8,FALSE) -> 0 | M151: =+VLOOKUP($A151,'[2]DdaAñoBase CHI'!$A$6:$L$374,9,FALSE) -> 0 | N151: =+VLOOKUP($A151,'[2]DdaAñoBase CHI'!$A$6:$L$374,10,FALSE) -> 0 | O151: 0 | P151: 0 | Q151: 0 | R151: 0 | T151: =+VLOOKUP($A151,'[2]DdaAñoBase CHI'!$A$6:$L$374,12,FALSE) -> 0
A152: BTS_2 x2 | B152: =+VLOOKUP($A152,'[2]DdaAñoBase CHI'!$A$6:$L$374,2,FALSE) -> 0 | C152: =+VLOOKUP($A152,'[2]DdaAñoBase CHI'!$A$6:$L$374,3,FALSE) -> 0 | D152: =+VLOOKUP($A152,'[2]DdaAñoBase CHI'!$A$6:$L$374,4,FALSE) -> 0 | E152: =+VLOOKUP($A152,'[2]DdaAñoBase CHI'!$A$6:$L$374,5,FALSE) -> 0 | F152: 0 | G152: 0 | H152: 0 | I152: 0 | K152: =+VLOOKUP($A152,'[2]DdaAñoBase CHI'!$A$6:$L$374,7,FALSE) -> 0 | L152: =+VLOOKUP($A152,'[2]DdaAñoBase CHI'!$A$6:$L$374,8,FALSE) -> 0 | M152: =+VLOOKUP($A152,'[2]DdaAñoBase CHI'!$A$6:$L$374,9,FALSE) -> 0 | N152: =+VLOOKUP($A152,'[2]DdaAñoBase CHI'!$A$6:$L$374,10,FALSE) -> 0 | O152: 0 | P152: 0 | Q152: 0 | R152: 0 | T152: =+VLOOKUP($A152,'[2]DdaAñoBase CHI'!$A$6:$L$374,12,FALSE) -> 0
A153: BTS_2 Discap. | B153: =+VLOOKUP($A153,'[2]DdaAñoBase CHI'!$A$6:$L$374,2,FALSE) -> 281.866 | C153: =+VLOOKUP($A153,'[2]DdaAñoBase CHI'!$A$6:$L$374,3,FALSE) -> 0 | D153: =+VLOOKUP($A153,'[2]DdaAñoBase CHI'!$A$6:$L$374,4,FALSE) -> 0 | E153: =+VLOOKUP($A153,'[2]DdaAñoBase CHI'!$A$6:$L$374,5,FALSE) -> 0 | F153: 0.0006347005191 | G153: 0 | H153: 0 | I153: 0 | K153: =+VLOOKUP($A153,'[2]DdaAñoBase CHI'!$A$6:$L$374,7,FALSE) -> 53.83333333 | L153: =+VLOOKUP($A153,'[2]DdaAñoBase CHI'!$A$6:$L$374,8,FALSE) -> 0 | M153: =+VLOOKUP($A153,'[2]DdaAñoBase CHI'!$A$6:$L$374,9,FALSE) -> 0 | N153: =+VLOOKUP($A153,'[2]DdaAñoBase CHI'!$A$6:$L$374,10,FALSE) -> 0 | O153: 0.0003229458962 | P153: 0 | Q153: 0 | R153: 0 | T153: =+VLOOKUP($A153,'[2]DdaAñoBase CHI'!$A$6:$L$374,12,FALSE) -> 0
A154: BTS_2 Discapacitados 601-más | B154: =+VLOOKUP($A154,'[2]DdaAñoBase CHI'!$A$6:$L$374,2,FALSE) -> 0 | C154: =+VLOOKUP($A154,'[2]DdaAñoBase CHI'!$A$6:$L$374,3,FALSE) -> 0 | D154: =+VLOOKUP($A154,'[2]DdaAñoBase CHI'!$A$6:$L$374,4,FALSE) -> 0 | E154: =+VLOOKUP($A154,'[2]DdaAñoBase CHI'!$A$6:$L$374,5,FALSE) -> 0 | F154: =+B154/B$7 -> 0 | G154: =+C154/C$7 -> 0 | H154: =+D154/D$7 -> 0 | I154: =+E154/E$7 -> 0 | K154: =+VLOOKUP($A154,'[2]DdaAñoBase CHI'!$A$6:$L$374,7,FALSE) -> 0 | L154: =+VLOOKUP($A154,'[2]DdaAñoBase CHI'!$A$6:$L$374,8,FALSE) -> 0 | M154: =+VLOOKUP($A154,'[2]DdaAñoBase CHI'!$A$6:$L$374,9,FALSE) -> 0 | N154: =+VLOOKUP($A154,'[2]DdaAñoBase CHI'!$A$6:$L$374,10,FALSE) -> 0 | O154: 0 | P154: 0 | Q154: 0 | R154: 0 | T154: =+VLOOKUP($A154,'[2]DdaAñoBase CHI'!$A$6:$L$374,12,FALSE) -> 0
A155: BTS_2 Cruz Roja | B155: =+VLOOKUP($A155,'[2]DdaAñoBase CHI'!$A$6:$L$374,2,FALSE) -> 0 | C155: =+VLOOKUP($A155,'[2]DdaAñoBase CHI'!$A$6:$L$374,3,FALSE) -> 5.269 | D155: =+VLOOKUP($A155,'[2]DdaAñoBase CHI'!$A$6:$L$374,4,FALSE) -> 0 | E155: =+VLOOKUP($A155,'[2]DdaAñoBase CHI'!$A$6:$L$374,5,FALSE) -> 0 | F155: 0 | G155: 8.956509463e-06 | H155: 0 | I155: 0 | K155: =+VLOOKUP($A155,'[2]DdaAñoBase CHI'!$A$6:$L$374,7,FALSE) -> 0 | L155: =+VLOOKUP($A155,'[2]DdaAñoBase CHI'!$A$6:$L$374,8,FALSE) -> 2 | M155: =+VLOOKUP($A155,'[2]DdaAñoBase CHI'!$A$6:$L$374,9,FALSE) -> 0 | N155: =+VLOOKUP($A155,'[2]DdaAñoBase CHI'!$A$6:$L$374,10,FALSE) -> 0 | O155: 0 | P155: 0.0001053516569 | Q155: 0 | R155: 0 | T155: =+VLOOKUP($A155,'[2]DdaAñoBase CHI'!$A$6:$L$374,12,FALSE) -> 0
A156: BTS_3 (751-más) | B156: =+SUM(B157:B166) -> 94092.34 | C156: =+SUM(C157:C166) -> 149219.412 | D156: =+SUM(D157:D166) -> 0.872 | E156: =+SUM(E157:E166) -> 491.551 | F156: 0.2118753487 | G156: 0.2536506122 | H156: 2.114110013e-05 | I156: 0.7062446047 | K156: =+SUM(K157:K166) -> 5709.75 | L156: =+SUM(L157:L166) -> 4590.166667 | M156: =+SUM(M157:M166) -> 0 | N156: =+SUM(N157:N166) -> 17.33333333 | O156: 0.03425276157 | P156: 0.2417908319 | Q156: 0 | R156: 0.3243275271 | T156: =+SUM(T157:T166) -> 0
A157: BTS_3 Regular | B157: =+VLOOKUP($A157,'[2]DdaAñoBase CHI'!$A$6:$L$374,2,FALSE) -> 70595.95 | C157: =+VLOOKUP($A157,'[2]DdaAñoBase CHI'!$A$6:$L$374,3,FALSE) -> 147910.315 | D157: =+VLOOKUP($A157,'[2]DdaAñoBase CHI'!$A$6:$L$374,4,FALSE) -> 0.872 | E157: =+VLOOKUP($A157,'[2]DdaAñoBase CHI'!$A$6:$L$374,5,FALSE) -> 491.551 | F157: 0.1589666228 | G157: 0.2514253437 | H157: 2.114110013e-05 | I157: 0.7062446047 | K157: =+VLOOKUP($A157,'[2]DdaAñoBase CHI'!$A$6:$L$374,7,FALSE) -> 3892 | L157: =+VLOOKUP($A157,'[2]DdaAñoBase CHI'!$A$6:$L$374,8,FALSE) -> 4524.333333 | M157: =+VLOOKUP($A157,'[2]DdaAñoBase CHI'!$A$6:$L$374,9,FALSE) -> 0 | N157: =+VLOOKUP($A157,'[2]DdaAñoBase CHI'!$A$6:$L$374,10,FALSE) -> 17.33333333 | O157: 0.02334808845 | P157: 0.2383230065 | Q157: 0 | R157: 0.3243275271 | T157: =+VLOOKUP($A157,'[2]DdaAñoBase CHI'!$A$6:$L$374,12,FALSE) -> 0
A158: BTS_3 Agro | B158: =+VLOOKUP($A158,'[2]DdaAñoBase CHI'!$A$6:$L$374,2,FALSE) -> 0 | C158: =+VLOOKUP($A158,'[2]DdaAñoBase CHI'!$A$6:$L$374,3,FALSE) -> 1227.298 | D158: =+VLOOKUP($A158,'[2]DdaAñoBase CHI'!$A$6:$L$374,4,FALSE) -> 0 | E158: =+VLOOKUP($A158,'[2]DdaAñoBase CHI'!$A$6:$L$374,5,FALSE) -> 0 | F158: 0 | G158: 0.002086222462 | H158: 0 | I158: 0 | K158: =+VLOOKUP($A158,'[2]DdaAñoBase CHI'!$A$6:$L$374,7,FALSE) -> 0 | L158: =+VLOOKUP($A158,'[2]DdaAñoBase CHI'!$A$6:$L$374,8,FALSE) -> 59.83333333 | M158: =+VLOOKUP($A158,'[2]DdaAñoBase CHI'!$A$6:$L$374,9,FALSE) -> 0 | N158: =+VLOOKUP($A158,'[2]DdaAñoBase CHI'!$A$6:$L$374,10,FALSE) -> 0 | O158: 0 | P158: 0.003151770402 | Q158: 0 | R158: 0 | T158: =+VLOOKUP($A158,'[2]DdaAñoBase CHI'!$A$6:$L$374,12,FALSE) -> 0
A159: BTS_3 Jub. 1 | B159: =+VLOOKUP($A159,'[2]DdaAñoBase CHI'!$A$6:$L$374,2,FALSE) -> 0 | C159: =+VLOOKUP($A159,'[2]DdaAñoBase CHI'!$A$6:$L$374,3,FALSE) -> 0 | D159: =+VLOOKUP($A159,'[2]DdaAñoBase CHI'!$A$6:$L$374,4,FALSE) -> 0 | E159: =+VLOOKUP($A159,'[2]DdaAñoBase CHI'!$A$6:$L$374,5,FALSE) -> 0 | F159: 0 | G159: 0 | H159: 0 | I159: 0 | K159: =+VLOOKUP($A159,'[2]DdaAñoBase CHI'!$A$6:$L$374,7,FALSE) -> 0 | L159: =+VLOOKUP($A159,'[2]DdaAñoBase CHI'!$A$6:$L$374,8,FALSE) -> 0 | M159: =+VLOOKUP($A159,'[2]DdaAñoBase CHI'!$A$6:$L$374,9,FALSE) -> 0 | N159: =+VLOOKUP($A159,'[2]DdaAñoBase CHI'!$A$6:$L$374,10,FALSE) -> 0 | O159: 0 | P159: 0 | Q159: 0 | R159: 0 | T159: =+VLOOKUP($A159,'[2]DdaAñoBase CHI'!$A$6:$L$374,12,FALSE) -> 0
A160: BTS_3 Jub. 2 | B160: =+VLOOKUP($A160,'[2]DdaAñoBase CHI'!$A$6:$L$374,2,FALSE) -> 23496.39 | C160: =+VLOOKUP($A160,'[2]DdaAñoBase CHI'!$A$6:$L$374,3,FALSE) -> 0 | D160: =+VLOOKUP($A160,'[2]DdaAñoBase CHI'!$A$6:$L$374,4,FALSE) -> 0 | E160: =+VLOOKUP($A160,'[2]DdaAñoBase CHI'!$A$6:$L$374,5,FALSE) -> 0 | F160: 0.05290872588 | G160: 0 | H160: 0 | I160: 0 | K160: =+VLOOKUP($A160,'[2]DdaAñoBase CHI'!$A$6:$L$374,7,FALSE) -> 1807.666667 | L160: =+VLOOKUP($A160,'[2]DdaAñoBase CHI'!$A$6:$L$374,8,FALSE) -> 0 | M160: =+VLOOKUP($A160,'[2]DdaAñoBase CHI'!$A$6:$L$374,9,FALSE) -> 0 | N160: =+VLOOKUP($A160,'[2]DdaAñoBase CHI'!$A$6:$L$374,10,FALSE) -> 0 | O160: 0.01084418325 | P160: 0 | Q160: 0 | R160: 0 | T160: =+VLOOKUP($A160,'[2]DdaAñoBase CHI'!$A$6:$L$374,12,FALSE) -> 0
A161: BTS_3 Político | B161: =+VLOOKUP($A161,'[2]DdaAñoBase CHI'!$A$6:$L$374,2,FALSE) -> 0 | C161: =+VLOOKUP($A161,'[2]DdaAñoBase CHI'!$A$6:$L$374,3,FALSE) -> 0 | D161: =+VLOOKUP($A161,'[2]DdaAñoBase CHI'!$A$6:$L$374,4,FALSE) -> 0 | E161: =+VLOOKUP($A161,'[2]DdaAñoBase CHI'!$A$6:$L$374,5,FALSE) -> 0 | F161: 0 | G161: 0 | H161: 0 | I161: 0 | K161: =+VLOOKUP($A161,'[2]DdaAñoBase CHI'!$A$6:$L$374,7,FALSE) -> 0 | L161: =+VLOOKUP($A161,'[2]DdaAñoBase CHI'!$A$6:$L$374,8,FALSE) -> 0 | M161: =+VLOOKUP($A161,'[2]DdaAñoBase CHI'!$A$6:$L$374,9,FALSE) -> 0 | N161: =+VLOOKUP($A161,'[2]DdaAñoBase CHI'!$A$6:$L$374,10,FALSE) -> 0 | O161: 0 | P161: 0 | Q161: 0 | R161: 0 | T161: =+VLOOKUP($A161,'[2]DdaAñoBase CHI'!$A$6:$L$374,12,FALSE) -> 0
A162: BTS_3 x1 | B162: =+VLOOKUP($A162,'[2]DdaAñoBase CHI'!$A$6:$L$374,2,FALSE) -> 0 | C162: =+VLOOKUP($A162,'[2]DdaAñoBase CHI'!$A$6:$L$374,3,FALSE) -> 0 | D162: =+VLOOKUP($A162,'[2]DdaAñoBase CHI'!$A$6:$L$374,4,FALSE) -> 0 | E162: =+VLOOKUP($A162,'[2]DdaAñoBase CHI'!$A$6:$L$374,5,FALSE) -> 0 | F162: 0 | G162: 0 | H162: 0 | I162: 0 | K162: =+VLOOKUP($A162,'[2]DdaAñoBase CHI'!$A$6:$L$374,7,FALSE) -> 0 | L162: =+VLOOKUP($A162,'[2]DdaAñoBase CHI'!$A$6:$L$374,8,FALSE) -> 0 | M162: =+VLOOKUP($A162,'[2]DdaAñoBase CHI'!$A$6:$L$374,9,FALSE) -> 0 | N162: =+VLOOKUP($A162,'[2]DdaAñoBase CHI'!$A$6:$L$374,10,FALSE) -> 0 | O162: 0 | P162: 0 | Q162: 0 | R162: 0 | T162: =+VLOOKUP($A162,'[2]DdaAñoBase CHI'!$A$6:$L$374,12,FALSE) -> 0
A163: BTS_3 x2 | B163: =+VLOOKUP($A163,'[2]DdaAñoBase CHI'!$A$6:$L$374,2,FALSE) -> 0 | C163: =+VLOOKUP($A163,'[2]DdaAñoBase CHI'!$A$6:$L$374,3,FALSE) -> 0 | D163: =+VLOOKUP($A163,'[2]DdaAñoBase CHI'!$A$6:$L$374,4,FALSE) -> 0 | E163: =+VLOOKUP($A163,'[2]DdaAñoBase CHI'!$A$6:$L$374,5,FALSE) -> 0 | F163: 0 | G163: 0 | H163: 0 | I163: 0 | K163: =+VLOOKUP($A163,'[2]DdaAñoBase CHI'!$A$6:$L$374,7,FALSE) -> 0 | L163: =+VLOOKUP($A163,'[2]DdaAñoBase CHI'!$A$6:$L$374,8,FALSE) -> 0 | M163: =+VLOOKUP($A163,'[2]DdaAñoBase CHI'!$A$6:$L$374,9,FALSE) -> 0 | N163: =+VLOOKUP($A163,'[2]DdaAñoBase CHI'!$A$6:$L$374,10,FALSE) -> 0 | O163: 0 | P163: 0 | Q163: 0 | R163: 0 | T163: =+VLOOKUP($A163,'[2]DdaAñoBase CHI'!$A$6:$L$374,12,FALSE) -> 0
A164: BTS_3 Discap. | B164: =+VLOOKUP($A164,'[2]DdaAñoBase CHI'!$A$6:$L$374,2,FALSE) -> 0 | C164: =+VLOOKUP($A164,'[2]DdaAñoBase CHI'!$A$6:$L$374,3,FALSE) -> 0 | D164: =+VLOOKUP($A164,'[2]DdaAñoBase CHI'!$A$6:$L$374,4,FALSE) -> 0 | E164: =+VLOOKUP($A164,'[2]DdaAñoBase CHI'!$A$6:$L$374,5,FALSE) -> 0 | F164: 0 | G164: 0 | H164: 0 | I164: 0 | K164: =+VLOOKUP($A164,'[2]DdaAñoBase CHI'!$A$6:$L$374,7,FALSE) -> 10.08333333 | L164: =+VLOOKUP($A164,'[2]DdaAñoBase CHI'!$A$6:$L$374,8,FALSE) -> 0 | M164: =+VLOOKUP($A164,'[2]DdaAñoBase CHI'!$A$6:$L$374,9,FALSE) -> 0 | N164: =+VLOOKUP($A164,'[2]DdaAñoBase CHI'!$A$6:$L$374,10,FALSE) -> 0 | O164: 6.048986601e-05 | P164: 0 | Q164: 0 | R164: 0 | T164: =+VLOOKUP($A164,'[2]DdaAñoBase CHI'!$A$6:$L$374,12,FALSE) -> 0
A165: BTS_3 Discapacitados 601-más | B165: =+VLOOKUP($A165,'[2]DdaAñoBase CHI'!$A$6:$L$374,2,FALSE) -> 0 | C165: =+VLOOKUP($A165,'[2]DdaAñoBase CHI'!$A$6:$L$374,3,FALSE) -> 0 | D165: =+VLOOKUP($A165,'[2]DdaAñoBase CHI'!$A$6:$L$374,4,FALSE) -> 0 | E165: =+VLOOKUP($A165,'[2]DdaAñoBase CHI'!$A$6:$L$374,5,FALSE) -> 0 | F165: 0 | G165: 0 | H165: 0 | I165: 0 | K165: =+VLOOKUP($A165,'[2]DdaAñoBase CHI'!$A$6:$L$374,7,FALSE) -> 0 | L165: =+VLOOKUP($A165,'[2]DdaAñoBase CHI'!$A$6:$L$374,8,FALSE) -> 0 | M165: =+VLOOKUP($A165,'[2]DdaAñoBase CHI'!$A$6:$L$374,9,FALSE) -> 0 | N165: =+VLOOKUP($A165,'[2]DdaAñoBase CHI'!$A$6:$L$374,10,FALSE) -> 0 | O165: 0 | P165: 0 | Q165: 0 | R165: 0 | T165: =+VLOOKUP($A165,'[2]DdaAñoBase CHI'!$A$6:$L$374,12,FALSE) -> 0
A166: BTS_3 Cruz Roja | B166: =+VLOOKUP($A166,'[2]DdaAñoBase CHI'!$A$6:$L$374,2,FALSE) -> 0 | C166: =+VLOOKUP($A166,'[2]DdaAñoBase CHI'!$A$6:$L$374,3,FALSE) -> 81.799 | D166: =+VLOOKUP($A166,'[2]DdaAñoBase CHI'!$A$6:$L$374,4,FALSE) -> 0 | E166: =+VLOOKUP($A166,'[2]DdaAñoBase CHI'!$A$6:$L$374,5,FALSE) -> 0 | F166: 0 | G166: 0.0001390460272 | H166: 0 | I166: 0 | K166: =+VLOOKUP($A166,'[2]DdaAñoBase CHI'!$A$6:$L$374,7,FALSE) -> 0 | L166: =+VLOOKUP($A166,'[2]DdaAñoBase CHI'!$A$6:$L$374,8,FALSE) -> 6 | M166: =+VLOOKUP($A166,'[2]DdaAñoBase CHI'!$A$6:$L$374,9,FALSE) -> 0 | N166: =+VLOOKUP($A166,'[2]DdaAñoBase CHI'!$A$6:$L$374,10,FALSE) -> 0 | O166: 0 | P166: 0.0003160549707 | Q166: 0 | R166: 0 | T166: =+VLOOKUP($A166,'[2]DdaAñoBase CHI'!$A$6:$L$374,12,FALSE) -> 0
A167: BTS_4 (xxx) | B167: =+SUM(B168:B177) -> 0 | C167: =+SUM(C168:C177) -> 0 | D167: =+SUM(D168:D177) -> 0 | E167: =+SUM(E168:E177) -> 0 | F167: 0 | G167: 0 | H167: 0 | I167: 0 | K167: =+SUM(K168:K177) -> 0 | L167: =+SUM(L168:L177) -> 0 | M167: =+SUM(M168:M177) -> 0 | N167: =+SUM(N168:N177) -> 0 | O167: 0 | P167: 0 | Q167: 0 | R167: 0 | T167: =+SUM(T168:T177) -> 0
A168: BTS_4 Regular | B168: =+VLOOKUP($A168,'[2]DdaAñoBase CHI'!$A$6:$L$374,2,FALSE) -> 0 | C168: =+VLOOKUP($A168,'[2]DdaAñoBase CHI'!$A$6:$L$374,3,FALSE) -> 0 | D168: =+VLOOKUP($A168,'[2]DdaAñoBase CHI'!$A$6:$L$374,4,FALSE) -> 0 | E168: =+VLOOKUP($A168,'[2]DdaAñoBase CHI'!$A$6:$L$374,5,FALSE) -> 0 | F168: 0 | G168: 0 | H168: 0 | I168: 0 | K168: =+VLOOKUP($A168,'[2]DdaAñoBase CHI'!$A$6:$L$374,7,FALSE) -> 0 | L168: =+VLOOKUP($A168,'[2]DdaAñoBase CHI'!$A$6:$L$374,8,FALSE) -> 0 | M168: =+VLOOKUP($A168,'[2]DdaAñoBase CHI'!$A$6:$L$374,9,FALSE) -> 0 | N168: =+VLOOKUP($A168,'[2]DdaAñoBase CHI'!$A$6:$L$374,10,FALSE) -> 0 | O168: 0 | P168: 0 | Q168: 0 | R168: 0 | T168: =+VLOOKUP($A168,'[2]DdaAñoBase CHI'!$A$6:$L$374,12,FALSE) -> 0
A169: BTS_4 Agro | B169: =+VLOOKUP($A169,'[2]DdaAñoBase CHI'!$A$6:$L$374,2,FALSE) -> 0 | C169: =+VLOOKUP($A169,'[2]DdaAñoBase CHI'!$A$6:$L$374,3,FALSE) -> 0 | D169: =+VLOOKUP($A169,'[2]DdaAñoBase CHI'!$A$6:$L$374,4,FALSE) -> 0 | E169: =+VLOOKUP($A169,'[2]DdaAñoBase CHI'!$A$6:$L$374,5,FALSE) -> 0 | F169: 0 | G169: 0 | H169: 0 | I169: 0 | K169: =+VLOOKUP($A169,'[2]DdaAñoBase CHI'!$A$6:$L$374,7,FALSE) -> 0 | L169: =+VLOOKUP($A169,'[2]DdaAñoBase CHI'!$A$6:$L$374,8,FALSE) -> 0 | M169: =+VLOOKUP($A169,'[2]DdaAñoBase CHI'!$A$6:$L$374,9,FALSE) -> 0 | N169: =+VLOOKUP($A169,'[2]DdaAñoBase CHI'!$A$6:$L$374,10,FALSE) -> 0 | O169: 0 | P169: 0 | Q169: 0 | R169: 0 | T169: =+VLOOKUP($A169,'[2]DdaAñoBase CHI'!$A$6:$L$374,12,FALSE) -> 0
A170: BTS_4 Jub. 1 | B170: =+VLOOKUP($A170,'[2]DdaAñoBase CHI'!$A$6:$L$374,2,FALSE) -> 0 | C170: =+VLOOKUP($A170,'[2]DdaAñoBase CHI'!$A$6:$L$374,3,FALSE) -> 0 | D170: =+VLOOKUP($A170,'[2]DdaAñoBase CHI'!$A$6:$L$374,4,FALSE) -> 0 | E170: =+VLOOKUP($A170,'[2]DdaAñoBase CHI'!$A$6:$L$374,5,FALSE) -> 0 | F170: 0 | G170: 0 | H170: 0 | I170: 0 | K170: =+VLOOKUP($A170,'[2]DdaAñoBase CHI'!$A$6:$L$374,7,FALSE) -> 0 | L170: =+VLOOKUP($A170,'[2]DdaAñoBase CHI'!$A$6:$L$374,8,FALSE) -> 0 | M170: =+VLOOKUP($A170,'[2]DdaAñoBase CHI'!$A$6:$L$374,9,FALSE) -> 0 | N170: =+VLOOKUP($A170,'[2]DdaAñoBase CHI'!$A$6:$L$374,10,FALSE) -> 0 | O170: 0 | P170: 0 | Q170: 0 | R170: 0 | T170: =+VLOOKUP($A170,'[2]DdaAñoBase CHI'!$A$6:$L$374,12,FALSE) -> 0
A171: BTS_4 Jub. 2 | B171: =+VLOOKUP($A171,'[2]DdaAñoBase CHI'!$A$6:$L$374,2,FALSE) -> 0 | C171: =+VLOOKUP($A171,'[2]DdaAñoBase CHI'!$A$6:$L$374,3,FALSE) -> 0 | D171: =+VLOOKUP($A171,'[2]DdaAñoBase CHI'!$A$6:$L$374,4,FALSE) -> 0 | E171: =+VLOOKUP($A171,'[2]DdaAñoBase CHI'!$A$6:$L$374,5,FALSE) -> 0 | F171: 0 | G171: 0 | H171: 0 | I171: 0 | K171: =+VLOOKUP($A171,'[2]DdaAñoBase CHI'!$A$6:$L$374,7,FALSE) -> 0 | L171: =+VLOOKUP($A171,'[2]DdaAñoBase CHI'!$A$6:$L$374,8,FALSE) -> 0 | M171: =+VLOOKUP($A171,'[2]DdaAñoBase CHI'!$A$6:$L$374,9,FALSE) -> 0 | N171: =+VLOOKUP($A171,'[2]DdaAñoBase CHI'!$A$6:$L$374,10,FALSE) -> 0 | O171: 0 | P171: 0 | Q171: 0 | R171: 0 | T171: =+VLOOKUP($A171,'[2]DdaAñoBase CHI'!$A$6:$L$374,12,FALSE) -> 0
A172: BTS_4 Político | B172: =+VLOOKUP($A172,'[2]DdaAñoBase CHI'!$A$6:$L$374,2,FALSE) -> 0 | C172: =+VLOOKUP($A172,'[2]DdaAñoBase CHI'!$A$6:$L$374,3,FALSE) -> 0 | D172: =+VLOOKUP($A172,'[2]DdaAñoBase CHI'!$A$6:$L$374,4,FALSE) -> 0 | E172: =+VLOOKUP($A172,'[2]DdaAñoBase CHI'!$A$6:$L$374,5,FALSE) -> 0 | F172: 0 | G172: 0 | H172: 0 | I172: 0 | K172: =+VLOOKUP($A172,'[2]DdaAñoBase CHI'!$A$6:$L$374,7,FALSE) -> 0 | L172: =+VLOOKUP($A172,'[2]DdaAñoBase CHI'!$A$6:$L$374,8,FALSE) -> 0 | M172: =+VLOOKUP($A172,'[2]DdaAñoBase CHI'!$A$6:$L$374,9,FALSE) -> 0 | N172: =+VLOOKUP($A172,'[2]DdaAñoBase CHI'!$A$6:$L$374,10,FALSE) -> 0 | O172: 0 | P172: 0 | Q172: 0 | R172: 0 | T172: =+VLOOKUP($A172,'[2]DdaAñoBase CHI'!$A$6:$L$374,12,FALSE) -> 0
A173: BTS_4 x1 | B173: =+VLOOKUP($A173,'[2]DdaAñoBase CHI'!$A$6:$L$374,2,FALSE) -> 0 | C173: =+VLOOKUP($A173,'[2]DdaAñoBase CHI'!$A$6:$L$374,3,FALSE) -> 0 | D173: =+VLOOKUP($A173,'[2]DdaAñoBase CHI'!$A$6:$L$374,4,FALSE) -> 0 | E173: =+VLOOKUP($A173,'[2]DdaAñoBase CHI'!$A$6:$L$374,5,FALSE) -> 0 | F173: 0 | G173: 0 | H173: 0 | I173: 0 | K173: =+VLOOKUP($A173,'[2]DdaAñoBase CHI'!$A$6:$L$374,7,FALSE) -> 0 | L173: =+VLOOKUP($A173,'[2]DdaAñoBase CHI'!$A$6:$L$374,8,FALSE) -> 0 | M173: =+VLOOKUP($A173,'[2]DdaAñoBase CHI'!$A$6:$L$374,9,FALSE) -> 0 | N173: =+VLOOKUP($A173,'[2]DdaAñoBase CHI'!$A$6:$L$374,10,FALSE) -> 0 | O173: 0 | P173: 0 | Q173: 0 | R173: 0 | T173: =+VLOOKUP($A173,'[2]DdaAñoBase CHI'!$A$6:$L$374,12,FALSE) -> 0
A174: BTS_4 x2 | B174: =+VLOOKUP($A174,'[2]DdaAñoBase CHI'!$A$6:$L$374,2,FALSE) -> 0 | C174: =+VLOOKUP($A174,'[2]DdaAñoBase CHI'!$A$6:$L$374,3,FALSE) -> 0 | D174: =+VLOOKUP($A174,'[2]DdaAñoBase CHI'!$A$6:$L$374,4,FALSE) -> 0 | E174: =+VLOOKUP($A174,'[2]DdaAñoBase CHI'!$A$6:$L$374,5,FALSE) -> 0 | F174: 0 | G174: 0 | H174: 0 | I174: 0 | K174: =+VLOOKUP($A174,'[2]DdaAñoBase CHI'!$A$6:$L$374,7,FALSE) -> 0 | L174: =+VLOOKUP($A174,'[2]DdaAñoBase CHI'!$A$6:$L$374,8,FALSE) -> 0 | M174: =+VLOOKUP($A174,'[2]DdaAñoBase CHI'!$A$6:$L$374,9,FALSE) -> 0 | N174: =+VLOOKUP($A174,'[2]DdaAñoBase CHI'!$A$6:$L$374,10,FALSE) -> 0 | O174: 0 | P174: 0 | Q174: 0 | R174: 0 | T174: =+VLOOKUP($A174,'[2]DdaAñoBase CHI'!$A$6:$L$374,12,FALSE) -> 0
A175: BTS_4 Discap. | B175: =+VLOOKUP($A175,'[2]DdaAñoBase CHI'!$A$6:$L$374,2,FALSE) -> 0 | C175: =+VLOOKUP($A175,'[2]DdaAñoBase CHI'!$A$6:$L$374,3,FALSE) -> 0 | D175: =+VLOOKUP($A175,'[2]DdaAñoBase CHI'!$A$6:$L$374,4,FALSE) -> 0 | E175: =+VLOOKUP($A175,'[2]DdaAñoBase CHI'!$A$6:$L$374,5,FALSE) -> 0 | F175: 0 | G175: 0 | H175: 0 | I175: 0 | K175: =+VLOOKUP($A175,'[2]DdaAñoBase CHI'!$A$6:$L$374,7,FALSE) -> 0 | L175: =+VLOOKUP($A175,'[2]DdaAñoBase CHI'!$A$6:$L$374,8,FALSE) -> 0 | M175: =+VLOOKUP($A175,'[2]DdaAñoBase CHI'!$A$6:$L$374,9,FALSE) -> 0 | N175: =+VLOOKUP($A175,'[2]DdaAñoBase CHI'!$A$6:$L$374,10,FALSE) -> 0 | O175: 0 | P175: 0 | Q175: 0 | R175: 0 | T175: =+VLOOKUP($A175,'[2]DdaAñoBase CHI'!$A$6:$L$374,12,FALSE) -> 0
A176: BTS_4 Discapacitados 601-más | B176: =+VLOOKUP($A176,'[2]DdaAñoBase CHI'!$A$6:$L$374,2,FALSE) -> 0 | C176: =+VLOOKUP($A176,'[2]DdaAñoBase CHI'!$A$6:$L$374,3,FALSE) -> 0 | D176: =+VLOOKUP($A176,'[2]DdaAñoBase CHI'!$A$6:$L$374,4,FALSE) -> 0 | E176: =+VLOOKUP($A176,'[2]DdaAñoBase CHI'!$A$6:$L$374,5,FALSE) -> 0 | F176: 0 | G176: 0 | H176: 0 | I176: 0 | K176: =+VLOOKUP($A176,'[2]DdaAñoBase CHI'!$A$6:$L$374,7,FALSE) -> 0 | L176: =+VLOOKUP($A176,'[2]DdaAñoBase CHI'!$A$6:$L$374,8,FALSE) -> 0 | M176: =+VLOOKUP($A176,'[2]DdaAñoBase CHI'!$A$6:$L$374,9,FALSE) -> 0 | N176: =+VLOOKUP($A176,'[2]DdaAñoBase CHI'!$A$6:$L$374,10,FALSE) -> 0 | O176: 0 | P176: 0 | Q176: 0 | R176: 0 | T176: =+VLOOKUP($A176,'[2]DdaAñoBase CHI'!$A$6:$L$374,12,FALSE) -> 0
A177: BTS_4 Cruz Roja | B177: =+VLOOKUP($A177,'[2]DdaAñoBase CHI'!$A$6:$L$374,2,FALSE) -> 0 | C177: =+VLOOKUP($A177,'[2]DdaAñoBase CHI'!$A$6:$L$374,3,FALSE) -> 0 | D177: =+VLOOKUP($A177,'[2]DdaAñoBase CHI'!$A$6:$L$374,4,FALSE) -> 0 | E177: =+VLOOKUP($A177,'[2]DdaAñoBase CHI'!$A$6:$L$374,5,FALSE) -> 0 | F177: 0 | G177: 0 | H177: 0 | I177: 0 | K177: =+VLOOKUP($A177,'[2]DdaAñoBase CHI'!$A$6:$L$374,7,FALSE) -> 0 | L177: =+VLOOKUP($A177,'[2]DdaAñoBase CHI'!$A$6:$L$374,8,FALSE) -> 0 | M177: =+VLOOKUP($A177,'[2]DdaAñoBase CHI'!$A$6:$L$374,9,FALSE) -> 0 | N177: =+VLOOKUP($A177,'[2]DdaAñoBase CHI'!$A$6:$L$374,10,FALSE) -> 0 | O177: 0 | P177: 0 | Q177: 0 | R177: 0 | T177: =+VLOOKUP($A177,'[2]DdaAñoBase CHI'!$A$6:$L$374,12,FALSE) -> 0
A178: BTS_5 (xxx) | B178: =+SUM(B179:B188) -> 0 | C178: =+SUM(C179:C188) -> 0 | D178: =+SUM(D179:D188) -> 0 | E178: =+SUM(E179:E188) -> 0 | F178: 0 | G178: 0 | H178: 0 | I178: 0 | K178: =+SUM(K179:K188) -> 0 | L178: =+SUM(L179:L188) -> 0 | M178: =+SUM(M179:M188) -> 0 | N178: =+SUM(N179:N188) -> 0 | O178: 0 | P178: 0 | Q178: 0 | R178: 0 | T178: =+SUM(T179:T188) -> 0
A179: BTS_5 Regular | B179: =+VLOOKUP($A179,'[2]DdaAñoBase CHI'!$A$6:$L$374,2,FALSE) -> 0 | C179: =+VLOOKUP($A179,'[2]DdaAñoBase CHI'!$A$6:$L$374,3,FALSE) -> 0 | D179: =+VLOOKUP($A179,'[2]DdaAñoBase CHI'!$A$6:$L$374,4,FALSE) -> 0 | E179: =+VLOOKUP($A179,'[2]DdaAñoBase CHI'!$A$6:$L$374,5,FALSE) -> 0 | F179: 0 | G179: 0 | H179: 0 | I179: 0 | K179: =+VLOOKUP($A179,'[2]DdaAñoBase CHI'!$A$6:$L$374,7,FALSE) -> 0 | L179: =+VLOOKUP($A179,'[2]DdaAñoBase CHI'!$A$6:$L$374,8,FALSE) -> 0 | M179: =+VLOOKUP($A179,'[2]DdaAñoBase CHI'!$A$6:$L$374,9,FALSE) -> 0 | N179: =+VLOOKUP($A179,'[2]DdaAñoBase CHI'!$A$6:$L$374,10,FALSE) -> 0 | O179: 0 | P179: 0 | Q179: 0 | R179: 0 | T179: =+VLOOKUP($A179,'[2]DdaAñoBase CHI'!$A$6:$L$374,12,FALSE) -> 0
A180: BTS_5 Agro | B180: =+VLOOKUP($A180,'[2]DdaAñoBase CHI'!$A$6:$L$374,2,FALSE) -> 0 | C180: =+VLOOKUP($A180,'[2]DdaAñoBase CHI'!$A$6:$L$374,3,FALSE) -> 0 | D180: =+VLOOKUP($A180,'[2]DdaAñoBase CHI'!$A$6:$L$374,4,FALSE) -> 0 | E180: =+VLOOKUP($A180,'[2]DdaAñoBase CHI'!$A$6:$L$374,5,FALSE) -> 0 | F180: 0 | G180: 0 | H180: 0 | I180: 0 | K180: =+VLOOKUP($A180,'[2]DdaAñoBase CHI'!$A$6:$L$374,7,FALSE) -> 0 | L180: =+VLOOKUP($A180,'[2]DdaAñoBase CHI'!$A$6:$L$374,8,FALSE) -> 0 | M180: =+VLOOKUP($A180,'[2]DdaAñoBase CHI'!$A$6:$L$374,9,FALSE) -> 0 | N180: =+VLOOKUP($A180,'[2]DdaAñoBase CHI'!$A$6:$L$374,10,FALSE) -> 0 | O180: 0 | P180: 0 | Q180: 0 | R180: 0 | T180: =+VLOOKUP($A180,'[2]DdaAñoBase CHI'!$A$6:$L$374,12,FALSE) -> 0
A181: BTS_5 Jub. 1 | B181: =+VLOOKUP($A181,'[2]DdaAñoBase CHI'!$A$6:$L$374,2,FALSE) -> 0 | C181: =+VLOOKUP($A181,'[2]DdaAñoBase CHI'!$A$6:$L$374,3,FALSE) -> 0 | D181: =+VLOOKUP($A181,'[2]DdaAñoBase CHI'!$A$6:$L$374,4,FALSE) -> 0 | E181: =+VLOOKUP($A181,'[2]DdaAñoBase CHI'!$A$6:$L$374,5,FALSE) -> 0 | F181: 0 | G181: 0 | H181: 0 | I181: 0 | K181: =+VLOOKUP($A181,'[2]DdaAñoBase CHI'!$A$6:$L$374,7,FALSE) -> 0 | L181: =+VLOOKUP($A181,'[2]DdaAñoBase CHI'!$A$6:$L$374,8,FALSE) -> 0 | M181: =+VLOOKUP($A181,'[2]DdaAñoBase CHI'!$A$6:$L$374,9,FALSE) -> 0 | N181: =+VLOOKUP($A181,'[2]DdaAñoBase CHI'!$A$6:$L$374,10,FALSE) -> 0 | O181: 0 | P181: 0 | Q181: 0 | R181: 0 | T181: =+VLOOKUP($A181,'[2]DdaAñoBase CHI'!$A$6:$L$374,12,FALSE) -> 0
A182: BTS_5 Jub. 2 | B182: =+VLOOKUP($A182,'[2]DdaAñoBase CHI'!$A$6:$L$374,2,FALSE) -> 0 | C182: =+VLOOKUP($A182,'[2]DdaAñoBase CHI'!$A$6:$L$374,3,FALSE) -> 0 | D182: =+VLOOKUP($A182,'[2]DdaAñoBase CHI'!$A$6:$L$374,4,FALSE) -> 0 | E182: =+VLOOKUP($A182,'[2]DdaAñoBase CHI'!$A$6:$L$374,5,FALSE) -> 0 | F182: 0 | G182: 0 | H182: 0 | I182: 0 | K182: =+VLOOKUP($A182,'[2]DdaAñoBase CHI'!$A$6:$L$374,7,FALSE) -> 0 | L182: =+VLOOKUP($A182,'[2]DdaAñoBase CHI'!$A$6:$L$374,8,FALSE) -> 0 | M182: =+VLOOKUP($A182,'[2]DdaAñoBase CHI'!$A$6:$L$374,9,FALSE) -> 0 | N182: =+VLOOKUP($A182,'[2]DdaAñoBase CHI'!$A$6:$L$374,10,FALSE) -> 0 | O182: 0 | P182: 0 | Q182: 0 | R182: 0 | T182: =+VLOOKUP($A182,'[2]DdaAñoBase CHI'!$A$6:$L$374,12,FALSE) -> 0
A183: BTS_5 Político | B183: =+VLOOKUP($A183,'[2]DdaAñoBase CHI'!$A$6:$L$374,2,FALSE) -> 0 | C183: =+VLOOKUP($A183,'[2]DdaAñoBase CHI'!$A$6:$L$374,3,FALSE) -> 0 | D183: =+VLOOKUP($A183,'[2]DdaAñoBase CHI'!$A$6:$L$374,4,FALSE) -> 0 | E183: =+VLOOKUP($A183,'[2]DdaAñoBase CHI'!$A$6:$L$374,5,FALSE) -> 0 | F183: 0 | G183: 0 | H183: 0 | I183: 0 | K183: =+VLOOKUP($A183,'[2]DdaAñoBase CHI'!$A$6:$L$374,7,FALSE) -> 0 | L183: =+VLOOKUP($A183,'[2]DdaAñoBase CHI'!$A$6:$L$374,8,FALSE) -> 0 | M183: =+VLOOKUP($A183,'[2]DdaAñoBase CHI'!$A$6:$L$374,9,FALSE) -> 0 | N183: =+VLOOKUP($A183,'[2]DdaAñoBase CHI'!$A$6:$L$374,10,FALSE) -> 0 | O183: 0 | P183: 0 | Q183: 0 | R183: 0 | T183: =+VLOOKUP($A183,'[2]DdaAñoBase CHI'!$A$6:$L$374,12,FALSE) -> 0
A184: BTS_5 x1 | B184: =+VLOOKUP($A184,'[2]DdaAñoBase CHI'!$A$6:$L$374,2,FALSE) -> 0 | C184: =+VLOOKUP($A184,'[2]DdaAñoBase CHI'!$A$6:$L$374,3,FALSE) -> 0 | D184: =+VLOOKUP($A184,'[2]DdaAñoBase CHI'!$A$6:$L$374,4,FALSE) -> 0 | E184: =+VLOOKUP($A184,'[2]DdaAñoBase CHI'!$A$6:$L$374,5,FALSE) -> 0 | F184: 0 | G184: 0 | H184: 0 | I184: 0 | K184: =+VLOOKUP($A184,'[2]DdaAñoBase CHI'!$A$6:$L$374,7,FALSE) -> 0 | L184: =+VLOOKUP($A184,'[2]DdaAñoBase CHI'!$A$6:$L$374,8,FALSE) -> 0 | M184: =+VLOOKUP($A184,'[2]DdaAñoBase CHI'!$A$6:$L$374,9,FALSE) -> 0 | N184: =+VLOOKUP($A184,'[2]DdaAñoBase CHI'!$A$6:$L$374,10,FALSE) -> 0 | O184: 0 | P184: 0 | Q184: 0 | R184: 0 | T184: =+VLOOKUP($A184,'[2]DdaAñoBase CHI'!$A$6:$L$374,12,FALSE) -> 0
A185: BTS_5 x2 | B185: =+VLOOKUP($A185,'[2]DdaAñoBase CHI'!$A$6:$L$374,2,FALSE) -> 0 | C185: =+VLOOKUP($A185,'[2]DdaAñoBase CHI'!$A$6:$L$374,3,FALSE) -> 0 | D185: =+VLOOKUP($A185,'[2]DdaAñoBase CHI'!$A$6:$L$374,4,FALSE) -> 0 | E185: =+VLOOKUP($A185,'[2]DdaAñoBase CHI'!$A$6:$L$374,5,FALSE) -> 0 | F185: 0 | G185: 0 | H185: 0 | I185: 0 | K185: =+VLOOKUP($A185,'[2]DdaAñoBase CHI'!$A$6:$L$374,7,FALSE) -> 0 | L185: =+VLOOKUP($A185,'[2]DdaAñoBase CHI'!$A$6:$L$374,8,FALSE) -> 0 | M185: =+VLOOKUP($A185,'[2]DdaAñoBase CHI'!$A$6:$L$374,9,FALSE) -> 0 | N185: =+VLOOKUP($A185,'[2]DdaAñoBase CHI'!$A$6:$L$374,10,FALSE) -> 0 | O185: 0 | P185: 0 | Q185: 0 | R185: 0 | T185: =+VLOOKUP($A185,'[2]DdaAñoBase CHI'!$A$6:$L$374,12,FALSE) -> 0
A186: BTS_5 Discap. | B186: =+VLOOKUP($A186,'[2]DdaAñoBase CHI'!$A$6:$L$374,2,FALSE) -> 0 | C186: =+VLOOKUP($A186,'[2]DdaAñoBase CHI'!$A$6:$L$374,3,FALSE) -> 0 | D186: =+VLOOKUP($A186,'[2]DdaAñoBase CHI'!$A$6:$L$374,4,FALSE) -> 0 | E186: =+VLOOKUP($A186,'[2]DdaAñoBase CHI'!$A$6:$L$374,5,FALSE) -> 0 | F186: 0 | G186: 0 | H186: 0 | I186: 0 | K186: =+VLOOKUP($A186,'[2]DdaAñoBase CHI'!$A$6:$L$374,7,FALSE) -> 0 | L186: =+VLOOKUP($A186,'[2]DdaAñoBase CHI'!$A$6:$L$374,8,FALSE) -> 0 | M186: =+VLOOKUP($A186,'[2]DdaAñoBase CHI'!$A$6:$L$374,9,FALSE) -> 0 | N186: =+VLOOKUP($A186,'[2]DdaAñoBase CHI'!$A$6:$L$374,10,FALSE) -> 0 | O186: 0 | P186: 0 | Q186: 0 | R186: 0 | T186: =+VLOOKUP($A186,'[2]DdaAñoBase CHI'!$A$6:$L$374,12,FALSE) -> 0
A187: BTS_5 Discapacitados 601-más | B187: =+VLOOKUP($A187,'[2]DdaAñoBase CHI'!$A$6:$L$374,2,FALSE) -> 0 | C187: =+VLOOKUP($A187,'[2]DdaAñoBase CHI'!$A$6:$L$374,3,FALSE) -> 0 | D187: =+VLOOKUP($A187,'[2]DdaAñoBase CHI'!$A$6:$L$374,4,FALSE) -> 0 | E187: =+VLOOKUP($A187,'[2]DdaAñoBase CHI'!$A$6:$L$374,5,FALSE) -> 0 | F187: 0 | G187: 0 | H187: 0 | I187: 0 | K187: =+VLOOKUP($A187,'[2]DdaAñoBase CHI'!$A$6:$L$374,7,FALSE) -> 0 | L187: =+VLOOKUP($A187,'[2]DdaAñoBase CHI'!$A$6:$L$374,8,FALSE) -> 0 | M187: =+VLOOKUP($A187,'[2]DdaAñoBase CHI'!$A$6:$L$374,9,FALSE) -> 0 | N187: =+VLOOKUP($A187,'[2]DdaAñoBase CHI'!$A$6:$L$374,10,FALSE) -> 0 | O187: 0 | P187: 0 | Q187: 0 | R187: 0 | T187: =+VLOOKUP($A187,'[2]DdaAñoBase CHI'!$A$6:$L$374,12,FALSE) -> 0
A188: BTS_5 Cruz Roja | B188: =+VLOOKUP($A188,'[2]DdaAñoBase CHI'!$A$6:$L$374,2,FALSE) -> 0 | C188: =+VLOOKUP($A188,'[2]DdaAñoBase CHI'!$A$6:$L$374,3,FALSE) -> 0 | D188: =+VLOOKUP($A188,'[2]DdaAñoBase CHI'!$A$6:$L$374,4,FALSE) -> 0 | E188: =+VLOOKUP($A188,'[2]DdaAñoBase CHI'!$A$6:$L$374,5,FALSE) -> 0 | F188: 0 | G188: 0 | H188: 0 | I188: 0 | K188: =+VLOOKUP($A188,'[2]DdaAñoBase CHI'!$A$6:$L$374,7,FALSE) -> 0 | L188: =+VLOOKUP($A188,'[2]DdaAñoBase CHI'!$A$6:$L$374,8,FALSE) -> 0 | M188: =+VLOOKUP($A188,'[2]DdaAñoBase CHI'!$A$6:$L$374,9,FALSE) -> 0 | N188: =+VLOOKUP($A188,'[2]DdaAñoBase CHI'!$A$6:$L$374,10,FALSE) -> 0 | O188: 0 | P188: 0 | Q188: 0 | R188: 0 | T188: =+VLOOKUP($A188,'[2]DdaAñoBase CHI'!$A$6:$L$374,12,FALSE) -> 0
A189: Alumbrado Público | B189: =+VLOOKUP($A189,'[2]DdaAñoBase CHI'!$A$6:$L$374,2,FALSE) -> 0 | C189: =+VLOOKUP($A189,'[2]DdaAñoBase CHI'!$A$6:$L$374,3,FALSE) -> 0 | D189: =+VLOOKUP($A189,'[2]DdaAñoBase CHI'!$A$6:$L$374,4,FALSE) -> 41244.42 | E189: =+VLOOKUP($A189,'[2]DdaAñoBase CHI'!$A$6:$L$374,5,FALSE) -> 0 | F189: 0 | G189: 0 | H189: 0.9999454276 | I189: 0 | K189: =+VLOOKUP($A189,'[2]DdaAñoBase CHI'!$A$6:$L$374,7,FALSE) -> 0 | L189: =+VLOOKUP($A189,'[2]DdaAñoBase CHI'!$A$6:$L$374,8,FALSE) -> 0 | M189: =+VLOOKUP($A189,'[2]DdaAñoBase CHI'!$A$6:$L$374,9,FALSE) -> 2 | N189: =+VLOOKUP($A189,'[2]DdaAñoBase CHI'!$A$6:$L$374,10,FALSE) -> 0 | O189: 0 | P189: 0 | Q189: 1 | R189: 0
A190: GRANDES CLIENTES | B190: =+SUM(B191:B192) -> 0 | C190: =+SUM(C191:C192) -> 0 | D190: =+SUM(D191:D192) -> 0 | E190: =+SUM(E191:E192) -> 0 | F190: 0 | G190: 0 | H190: 0 | I190: 0 | K190: =+SUM(K191:K192) -> 0 | L190: =+SUM(L191:L192) -> 0 | M190: =+SUM(M191:M192) -> 0 | N190: =+SUM(N191:N192) -> 0 | O190: 0 | P190: 0 | Q190: 0 | R190: 0 | T190: =+SUM(T191:T192) -> 0
A191: MTD_GC | B191: =+VLOOKUP($A191,'[2]DdaAñoBase CHI'!$A$6:$L$374,2,FALSE) -> 0 | C191: =+VLOOKUP($A191,'[2]DdaAñoBase CHI'!$A$6:$L$374,3,FALSE) -> 0 | D191: =+VLOOKUP($A191,'[2]DdaAñoBase CHI'!$A$6:$L$374,4,FALSE) -> 0 | E191: =+VLOOKUP($A191,'[2]DdaAñoBase CHI'!$A$6:$L$374,5,FALSE) -> 0 | F191: 0 | G191: 0 | H191: 0 | I191: 0 | K191: =+VLOOKUP($A191,'[2]DdaAñoBase CHI'!$A$6:$L$374,7,FALSE) -> 0 | L191: =+VLOOKUP($A191,'[2]DdaAñoBase CHI'!$A$6:$L$374,8,FALSE) -> 0 | M191: =+VLOOKUP($A191,'[2]DdaAñoBase CHI'!$A$6:$L$374,9,FALSE) -> 0 | N191: =+VLOOKUP($A191,'[2]DdaAñoBase CHI'!$A$6:$L$374,10,FALSE) -> 0 | O191: 0 | P191: 0 | Q191: 0 | R191: 0 | T191: =+VLOOKUP($A191,'[2]DdaAñoBase CHI'!$A$6:$L$374,12,FALSE) -> 0
A192: BTD_GC | B192: =+VLOOKUP($A192,'[2]DdaAñoBase CHI'!$A$6:$L$374,2,FALSE) -> 0 | C192: =+VLOOKUP($A192,'[2]DdaAñoBase CHI'!$A$6:$L$374,3,FALSE) -> 0 | D192: =+VLOOKUP($A192,'[2]DdaAñoBase CHI'!$A$6:$L$374,4,FALSE) -> 0 | E192: =+VLOOKUP($A192,'[2]DdaAñoBase CHI'!$A$6:$L$374,5,FALSE) -> 0 | F192: 0 | G192: 0 | H192: 0 | I192: 0 | K192: =+VLOOKUP($A192,'[2]DdaAñoBase CHI'!$A$6:$L$374,7,FALSE) -> 0 | L192: =+VLOOKUP($A192,'[2]DdaAñoBase CHI'!$A$6:$L$374,8,FALSE) -> 0 | M192: =+VLOOKUP($A192,'[2]DdaAñoBase CHI'!$A$6:$L$374,9,FALSE) -> 0 | N192: =+VLOOKUP($A192,'[2]DdaAñoBase CHI'!$A$6:$L$374,10,FALSE) -> 0 | O192: 0 | P192: 0 | Q192: 0 | R192: 0 | T192: =+VLOOKUP($A192,'[2]DdaAñoBase CHI'!$A$6:$L$374,12,FALSE) -> 0
A193: BTSH | B193: =+SUM(B194,B198,B202) -> 0 | C193: =+SUM(C194,C198,C202) -> 43.702 | D193: =+SUM(D194,D198,D202) -> 0 | E193: =+SUM(E194,E198,E202) -> 0 | F193: =+B193/B$7 -> 0 | G193: =+C193/C$7 -> 7.428684315e-05 | H193: =+D193/D$7 -> 0 | I193: =+E193/E$7 -> 0 | K193: =+SUM(K194,K198,K202) -> 0 | L193: =+SUM(L194,L198,L202) -> 4.333333333 | M193: =+SUM(M194,M198,M202) -> 0 | N193: =+SUM(N194,N198,N202) -> 0 | O193: =+K193/K$7 -> 0 | P193: =+L193/L$7 -> 0.0002282619233 | Q193: =+M193/M$7 -> 0 | R193: =+N193/N$7 -> 0 | T193: =+SUM(T194,T198,T202) -> 0
A194: BTSH_1 | B194: =+VLOOKUP($A194,'[2]DdaAñoBase CHI'!$A$6:$L$374,2,FALSE) -> 0 | C194: =+VLOOKUP($A194,'[2]DdaAñoBase CHI'!$A$6:$L$374,3,FALSE) -> 43.702 | D194: =+VLOOKUP($A194,'[2]DdaAñoBase CHI'!$A$6:$L$374,4,FALSE) -> 0 | E194: =+VLOOKUP($A194,'[2]DdaAñoBase CHI'!$A$6:$L$374,5,FALSE) -> 0 | F194: 0 | G194: 7.428684315e-05 | H194: 0 | I194: 0 | K194: =+VLOOKUP($A194,'[2]DdaAñoBase CHI'!$A$6:$L$374,7,FALSE) -> 0 | L194: =+VLOOKUP($A194,'[2]DdaAñoBase CHI'!$A$6:$L$374,8,FALSE) -> 4.333333333 | M194: =+VLOOKUP($A194,'[2]DdaAñoBase CHI'!$A$6:$L$374,9,FALSE) -> 0 | N194: =+VLOOKUP($A194,'[2]DdaAñoBase CHI'!$A$6:$L$374,10,FALSE) -> 0 | O194: 0 | P194: 0.0002282619233 | Q194: 0 | R194: 0 | T194: =+VLOOKUP($A194,'[2]DdaAñoBase CHI'!$A$6:$L$374,12,FALSE) -> 0
A195: BTSH_1 Punta | B195: =+VLOOKUP($A195,'[2]DdaAñoBase CHI'!$A$6:$L$374,2,FALSE) -> 0 | C195: =+VLOOKUP($A195,'[2]DdaAñoBase CHI'!$A$6:$L$374,3,FALSE) -> 10.811 | D195: =+VLOOKUP($A195,'[2]DdaAñoBase CHI'!$A$6:$L$374,4,FALSE) -> 0 | E195: =+VLOOKUP($A195,'[2]DdaAñoBase CHI'!$A$6:$L$374,5,FALSE) -> 0 | F195: =+B195/B$7 -> 0 | G195: =+C195/C$7 -> 1.837707797e-05 | H195: =+D195/D$7 -> 0 | I195: =+E195/E$7 -> 0 | K195: =+VLOOKUP($A195,'[2]DdaAñoBase CHI'!$A$6:$L$374,7,FALSE) -> 0 | L195: =+VLOOKUP($A195,'[2]DdaAñoBase CHI'!$A$6:$L$374,8,FALSE) -> 4.333333333 | M195: =+VLOOKUP($A195,'[2]DdaAñoBase CHI'!$A$6:$L$374,9,FALSE) -> 0 | N195: =+VLOOKUP($A195,'[2]DdaAñoBase CHI'!$A$6:$L$374,10,FALSE) -> 0 | O195: =+K195/K$7 -> 0 | P195: =+L195/L$7 -> 0.0002282619233 | Q195: =+M195/M$7 -> 0 | R195: =+N195/N$7 -> 0 | T195: =+VLOOKUP($A195,'[2]DdaAñoBase CHI'!$A$6:$L$374,12,FALSE) -> 0
A196: BTSH_1 Fuera de Punta Medio | B196: =+VLOOKUP($A196,'[2]DdaAñoBase CHI'!$A$6:$L$374,2,FALSE) -> 0 | C196: =+VLOOKUP($A196,'[2]DdaAñoBase CHI'!$A$6:$L$374,3,FALSE) -> 13.252 | D196: =+VLOOKUP($A196,'[2]DdaAñoBase CHI'!$A$6:$L$374,4,FALSE) -> 0 | E196: =+VLOOKUP($A196,'[2]DdaAñoBase CHI'!$A$6:$L$374,5,FALSE) -> 0 | F196: 0 | G196: 2.252641173e-05 | H196: 0 | I196: 0 | K196: =+VLOOKUP($A196,'[2]DdaAñoBase CHI'!$A$6:$L$374,7,FALSE) -> 0 | L196: =+VLOOKUP($A196,'[2]DdaAñoBase CHI'!$A$6:$L$374,8,FALSE) -> 0 | M196: =+VLOOKUP($A196,'[2]DdaAñoBase CHI'!$A$6:$L$374,9,FALSE) -> 0 | N196: =+VLOOKUP($A196,'[2]DdaAñoBase CHI'!$A$6:$L$374,10,FALSE) -> 0 | O196: 0 | P196: 0 | Q196: 0 | R196: 0 | T196: =+VLOOKUP($A196,'[2]DdaAñoBase CHI'!$A$6:$L$374,12,FALSE) -> 0
A197: BTSH_1 Fuera de Punta Bajo | B197: =+VLOOKUP($A197,'[2]DdaAñoBase CHI'!$A$6:$L$374,2,FALSE) -> 0 | C197: =+VLOOKUP($A197,'[2]DdaAñoBase CHI'!$A$6:$L$374,3,FALSE) -> 19.639 | D197: =+VLOOKUP($A197,'[2]DdaAñoBase CHI'!$A$6:$L$374,4,FALSE) -> 0 | E197: =+VLOOKUP($A197,'[2]DdaAñoBase CHI'!$A$6:$L$374,5,FALSE) -> 0 | F197: 0 | G197: 3.338335345e-05 | H197: 0 | I197: 0 | K197: =+VLOOKUP($A197,'[2]DdaAñoBase CHI'!$A$6:$L$374,7,FALSE) -> 0 | L197: =+VLOOKUP($A197,'[2]DdaAñoBase CHI'!$A$6:$L$374,8,FALSE) -> 0 | M197: =+VLOOKUP($A197,'[2]DdaAñoBase CHI'!$A$6:$L$374,9,FALSE) -> 0 | N197: =+VLOOKUP($A197,'[2]DdaAñoBase CHI'!$A$6:$L$374,10,FALSE) -> 0 | O197: 0 | P197: 0 | Q197: 0 | R197: 0 | T197: =+VLOOKUP($A197,'[2]DdaAñoBase CHI'!$A$6:$L$374,12,FALSE) -> 0
A198: BTSH_2 | B198: =+VLOOKUP($A198,'[2]DdaAñoBase CHI'!$A$6:$L$374,2,FALSE) -> 0 | C198: =+VLOOKUP($A198,'[2]DdaAñoBase CHI'!$A$6:$L$374,3,FALSE) -> 0 | D198: =+VLOOKUP($A198,'[2]DdaAñoBase CHI'!$A$6:$L$374,4,FALSE) -> 0 | E198: =+VLOOKUP($A198,'[2]DdaAñoBase CHI'!$A$6:$L$374,5,FALSE) -> 0 | F198: 0 | G198: 0 | H198: 0 | I198: 0 | K198: =+VLOOKUP($A198,'[2]DdaAñoBase CHI'!$A$6:$L$374,7,FALSE) -> 0 | L198: =+VLOOKUP($A198,'[2]DdaAñoBase CHI'!$A$6:$L$374,8,FALSE) -> 0 | M198: =+VLOOKUP($A198,'[2]DdaAñoBase CHI'!$A$6:$L$374,9,FALSE) -> 0 | N198: =+VLOOKUP($A198,'[2]DdaAñoBase CHI'!$A$6:$L$374,10,FALSE) -> 0 | O198: 0 | P198: 0 | Q198: 0 | R198: 0 | T198: =+VLOOKUP($A198,'[2]DdaAñoBase CHI'!$A$6:$L$374,12,FALSE) -> 0
A199: BTSH_2 Punta | B199: =+VLOOKUP($A199,'[2]DdaAñoBase CHI'!$A$6:$L$374,2,FALSE) -> 0 | C199: =+VLOOKUP($A199,'[2]DdaAñoBase CHI'!$A$6:$L$374,3,FALSE) -> 0 | D199: =+VLOOKUP($A199,'[2]DdaAñoBase CHI'!$A$6:$L$374,4,FALSE) -> 0 | E199: =+VLOOKUP($A199,'[2]DdaAñoBase CHI'!$A$6:$L$374,5,FALSE) -> 0 | F199: 0 | G199: 0 | H199: 0 | I199: 0 | K199: =+VLOOKUP($A199,'[2]DdaAñoBase CHI'!$A$6:$L$374,7,FALSE) -> 0 | L199: =+VLOOKUP($A199,'[2]DdaAñoBase CHI'!$A$6:$L$374,8,FALSE) -> 0 | M199: =+VLOOKUP($A199,'[2]DdaAñoBase CHI'!$A$6:$L$374,9,FALSE) -> 0 | N199: =+VLOOKUP($A199,'[2]DdaAñoBase CHI'!$A$6:$L$374,10,FALSE) -> 0 | O199: 0 | P199: 0 | Q199: 0 | R199: 0 | T199: =+VLOOKUP($A199,'[2]DdaAñoBase CHI'!$A$6:$L$374,12,FALSE) -> 0
A200: BTSH_2 Fuera de Punta Medio | B200: =+VLOOKUP($A200,'[2]DdaAñoBase CHI'!$A$6:$L$374,2,FALSE) -> 0 | C200: =+VLOOKUP($A200,'[2]DdaAñoBase CHI'!$A$6:$L$374,3,FALSE) -> 0 | D200: =+VLOOKUP($A200,'[2]DdaAñoBase CHI'!$A$6:$L$374,4,FALSE) -> 0 | E200: =+VLOOKUP($A200,'[2]DdaAñoBase CHI'!$A$6:$L$374,5,FALSE) -> 0 | F200: 0 | G200: 0 | H200: 0 | I200: 0 | K200: =+VLOOKUP($A200,'[2]DdaAñoBase CHI'!$A$6:$L$374,7,FALSE) -> 0 | L200: =+VLOOKUP($A200,'[2]DdaAñoBase CHI'!$A$6:$L$374,8,FALSE) -> 0 | M200: =+VLOOKUP($A200,'[2]DdaAñoBase CHI'!$A$6:$L$374,9,FALSE) -> 0 | N200: =+VLOOKUP($A200,'[2]DdaAñoBase CHI'!$A$6:$L$374,10,FALSE) -> 0 | O200: 0 | P200: 0 | Q200: 0 | R200: 0 | T200: =+VLOOKUP($A200,'[2]DdaAñoBase CHI'!$A$6:$L$374,12,FALSE) -> 0
A201: BTSH_2 Fuera de Punta Bajo | B201: =+VLOOKUP($A201,'[2]DdaAñoBase CHI'!$A$6:$L$374,2,FALSE) -> 0 | C201: =+VLOOKUP($A201,'[2]DdaAñoBase CHI'!$A$6:$L$374,3,FALSE) -> 0 | D201: =+VLOOKUP($A201,'[2]DdaAñoBase CHI'!$A$6:$L$374,4,FALSE) -> 0 | E201: =+VLOOKUP($A201,'[2]DdaAñoBase CHI'!$A$6:$L$374,5,FALSE) -> 0 | F201: 0 | G201: 0 | H201: 0 | I201: 0 | K201: =+VLOOKUP($A201,'[2]DdaAñoBase CHI'!$A$6:$L$374,7,FALSE) -> 0 | L201: =+VLOOKUP($A201,'[2]DdaAñoBase CHI'!$A$6:$L$374,8,FALSE) -> 0 | M201: =+VLOOKUP($A201,'[2]DdaAñoBase CHI'!$A$6:$L$374,9,FALSE) -> 0 | N201: =+VLOOKUP($A201,'[2]DdaAñoBase CHI'!$A$6:$L$374,10,FALSE) -> 0 | O201: 0 | P201: 0 | Q201: 0 | R201: 0 | T201: =+VLOOKUP($A201,'[2]DdaAñoBase CHI'!$A$6:$L$374,12,FALSE) -> 0
A202: BTSH_3 | B202: =+VLOOKUP($A202,'[2]DdaAñoBase CHI'!$A$6:$L$374,2,FALSE) -> 0 | C202: =+VLOOKUP($A202,'[2]DdaAñoBase CHI'!$A$6:$L$374,3,FALSE) -> 0 | D202: =+VLOOKUP($A202,'[2]DdaAñoBase CHI'!$A$6:$L$374,4,FALSE) -> 0 | E202: =+VLOOKUP($A202,'[2]DdaAñoBase CHI'!$A$6:$L$374,5,FALSE) -> 0 | F202: 0 | G202: 0 | H202: 0 | I202: 0 | K202: =+VLOOKUP($A202,'[2]DdaAñoBase CHI'!$A$6:$L$374,7,FALSE) -> 0 | L202: =+VLOOKUP($A202,'[2]DdaAñoBase CHI'!$A$6:$L$374,8,FALSE) -> 0 | M202: =+VLOOKUP($A202,'[2]DdaAñoBase CHI'!$A$6:$L$374,9,FALSE) -> 0 | N202: =+VLOOKUP($A202,'[2]DdaAñoBase CHI'!$A$6:$L$374,10,FALSE) -> 0 | O202: 0 | P202: 0 | Q202: 0 | R202: 0 | T202: =+VLOOKUP($A202,'[2]DdaAñoBase CHI'!$A$6:$L$374,12,FALSE) -> 0
A203: BTSH_3 Punta | B203: =+VLOOKUP($A203,'[2]DdaAñoBase CHI'!$A$6:$L$374,2,FALSE) -> 0 | C203: =+VLOOKUP($A203,'[2]DdaAñoBase CHI'!$A$6:$L$374,3,FALSE) -> 0 | D203: =+VLOOKUP($A203,'[2]DdaAñoBase CHI'!$A$6:$L$374,4,FALSE) -> 0 | E203: =+VLOOKUP($A203,'[2]DdaAñoBase CHI'!$A$6:$L$374,5,FALSE) -> 0 | F203: 0 | G203: 0 | H203: 0 | I203: 0 | K203: =+VLOOKUP($A203,'[2]DdaAñoBase CHI'!$A$6:$L$374,7,FALSE) -> 0 | L203: =+VLOOKUP($A203,'[2]DdaAñoBase CHI'!$A$6:$L$374,8,FALSE) -> 0 | M203: =+VLOOKUP($A203,'[2]DdaAñoBase CHI'!$A$6:$L$374,9,FALSE) -> 0 | N203: =+VLOOKUP($A203,'[2]DdaAñoBase CHI'!$A$6:$L$374,10,FALSE) -> 0 | O203: 0 | P203: 0 | Q203: 0 | R203: 0 | T203: =+VLOOKUP($A203,'[2]DdaAñoBase CHI'!$A$6:$L$374,12,FALSE) -> 0
... 173 more rows

Sheet Límites
A1: Límites de Bloques y Escalones
B4: Límites superiores bloques/escalones (kWh mes) | H4: Límites superiores bloques/escalones (MWh mes)
A5: Límites Consumo por Categorías | B5: 1° | C5: 2° | D5: 3° | E5: 4° | F5: 5° | H5: 1° | I5: 2° | J5: 3° | K5: 4° | L5: 5°
A6: =+DdaAñoBase!A17 -> MTD | B6: 999999 | C6: 999999 | D6: 999999 | E6: 999999 | F6: 999999 | H6: =+B6/1000 -> 999.999 | I6: 999.999 | J6: 999.999 | K6: 999.999 | L6: 999.999
A7: =+DdaAñoBase!A77 -> BTD | B7: 10000 | C7: 30000 | D7: 50000 | E7: 999999 | F7: 999999 | H7: 10 | I7: 30 | J7: 50 | K7: 999.999 | L7: 999.999
A8: =+DdaAñoBase!A133 -> BTS | B8: 300 | C8: 750 | D8: 999999 | E8: 999999 | F8: 999999 | H8: 0.3 | I8: 0.75 | J8: 999.999 | K8: 999.999 | L8: 999.999
A9: =+DdaAñoBase!A206 -> BTS Prepago | B9: 999999 | C9: 999999 | D9: 999999 | E9: 999999 | F9: 999999 | H9: 999.999 | I9: 999.999 | J9: 999.999 | K9: 999.999 | L9: 999.999
A10: =+DdaAñoBase!A193 -> BTSH | B10: 300 | C10: 750 | D10: 999999 | E10: 999999 | F10: 999999 | H10: 0.3 | I10: 0.75 | J10: 999.999 | K10: 999.999 | L10: 999.999
A11: =+DdaAñoBase!A321 -> X3D | B11: 999999 | C11: 999999 | D11: 999999 | E11: 999999 | F11: 999999 | H11: 999.999 | I11: 999.999 | J11: 999.999 | K11: 999.999 | L11: 999.999
A13: Punto de Corte Subcategorías subsidiadas | B13: kWh mes | H13: MWh mes
A14: Jubilados - 2 | B14: 600 | H14: =+B14/1000 -> 0.6
A15: Discapacitados- 2 | B15: 600 | H15: =+B15/1000 -> 0.6
A16: x2 | B16: 600 | H16: =+B16/1000 -> 0.6
A17: Nota: el modelo no permite que el punto de corte de las subcategoría Jubilados2, Discapacitados2 o x2, sea mayor que el primer escalón de MTD, BTD ni XXD
A20: Subsidios | B20: u.m. | C20: Alicuota
A21: Regular | B21: % | C21: 0
A22: Agro | B22: % | C22: 0.05
A23: Jub. 1 | B23: % | C23: 0.25
A24: Jub. 2 | B24: % | C24: 0.25
A25: Político | B25: % | C25: 0.5
A26: x1 | B26: % | C26: 0
A27: x2 | B27: % | C27: 0
A28: Discap. | B28: % | C28: 0.25
A29: Discapacitados 601-más | B29: % | C29: 0.25
A30: Cruz Roja | B30: % | C30: 1
A31: GC | B31: % | C31: 0

Sheet Diseño
A1: Diseño de Cargos
B4: CD | G4: CCOMF | L4: CCOMV | Q4: CSERAP | V4: CX | AA4: CENEGEN | AF4: CPOTGEN | AK4: CCONAP | AP4: CPT | AU4: CPET | AZ4: CPERDP | BE4: CPERDE
A5: Categorías | B5: Criterio de Recupero | D5: Cargo Relativo | G5: =+B5 -> Criterio de Recupero | I5: =+D5 -> Cargo Relativo | L5: =+G5 -> Criterio de Recupero | N5: =+I5 -> Cargo Relativo | Q5: =+L5 -> Criterio de Recupero | S5: =+N5 -> Cargo Relativo | V5: =+Q5 -> Criterio de Recupero | X5: =+S5 -> Cargo Relativo | AA5: =+V5 -> Criterio de Recupero | AC5: =+X5 -> Cargo Relativo | AF5: =+AA5 -> Criterio de Recupero | AH5: =+AC5 -> Cargo Relativo | AK5: =+AF5 -> Criterio de Recupero | AM5: =+AH5 -> Cargo Relativo | AP5: =+AK5 -> Criterio de Recupero | AR5: =+AM5 -> Cargo Relativo | AU5: =+AP5 -> Criterio de Recupero | AW5: =+AR5 -> Cargo Relativo | AZ5: =+AU5 -> Criterio de Recupero | BB5: =+AW5 -> Cargo Relativo | BE5: =+AZ5 -> Criterio de Recupero | BG5: =+BB5 -> Cargo Relativo
B6: Energía | C6: Potencia | D6: Energía | E6: Potencia | G6: Energía | H6: Cliente | I6: Energía | J6: Cliente | L6: Energía | M6: Potencia | N6: Energía | O6: Potencia | Q6: Energía | R6: Clientes | S6: Energía | T6: Cliente | V6: Energía | W6: Conexiones | X6: Energía | Y6: Conexiones | AA6: Energía | AB6: Potencia | AC6: Energía | AD6: Potencia | AF6: Energía | AG6: Potencia | AH6: Energía | AI6: Potencia | AK6: Energía | AL6: Potencia | AM6: Energía | AN6: Potencia | AP6: Energía | AQ6: Potencia | AR6: Energía | AS6: Potencia | AU6: Energía | AV6: Potencia | AW6: Energía | AX6: Potencia | AZ6: Energía | BA6: Potencia | BB6: Energía | BC6: Potencia | BE6: Energía | BF6: Potencia | BG6: Energía | BH6: Potencia
A7: =+DdaAñoBase!A7 -> TOTAL
A8: =+DdaAñoBase!A8 -> ATH | D8: 0 | E8: 0 | H8: 1 | J8: 14.19 | N8: 0 | O8: 0 | R8: 0 | S8: 0 | T8: 0 | V8: 0 | W8: 1 | Y8: 201.89 | AC8: 0 | AD8: 0 | AH8: 0 | AI8: 0 | AM8: 0 | AN8: 0 | AR8: 0 | AS8: 0 | AW8: 0 | AX8: 0 | BB8: 0 | BC8: 0 | BG8: 0 | BH8: 0
A9: =+DdaAñoBase!A9 -> ATH Punta | B9: 0 | C9: 1 | D9: 0 | E9: 6.1 | G9: 0 | J9: 0 | L9: 1 | M9: 0 | N9: 0.01121 | O9: 0 | Q9: 1 | S9: 0.00124 | T9: 0 | Y9: 0 | AA9: 1 | AB9: 0 | AC9: 0.20333 | AD9: 0 | AF9: 0.85 | AG9: 0.15 | AH9: 0.03775 | AI9: 2.19 | AK9: 1 | AL9: 0 | AM9: 0.00316 | AN9: 0 | AP9: 0.5 | AQ9: 0.5 | AR9: 0.00272 | AS9: 0.83 | AU9: 1 | AV9: 0 | AW9: 8e-05 | AX9: 0 | AZ9: 0 | BA9: 1 | BB9: 0 | BC9: 0 | BE9: 0.92 | BF9: 0.08 | BG9: 0.00798 | BH9: 0.18
A10: =+DdaAñoBase!A10 -> ATH Fuera de Punta Medio | B10: 0 | C10: 1 | D10: 0 | E10: 4.13 | G10: 0 | J10: 0 | L10: 1 | M10: 0 | N10: 0.01121 | O10: 0 | Q10: 1 | S10: 0.00124 | T10: 0 | Y10: 0 | AA10: 1 | AB10: 0 | AC10: 0.08916 | AD10: 0 | AF10: 0.85 | AG10: 0.15 | AH10: 0.03775 | AI10: 0 | AK10: 1 | AL10: 0 | AM10: 0.00316 | AN10: 0 | AP10: 0.5 | AQ10: 0.5 | AR10: 0.00272 | AS10: 0.04 | AU10: 1 | AV10: 0 | AW10: 8e-05 | AX10: 0 | AZ10: 0 | BA10: 0 | BB10: 0 | BC10: 0 | BE10: 0.92 | BF10: 0.08 | BG10: 0.00569 | BH10: 0.01
A11: =+DdaAñoBase!A11 -> ATH Fuera de Punta Bajo | B11: 0 | C11: 1 | D11: 0 | E11: 4.13 | G11: 0 | J11: 0 | L11: 1 | M11: 0 | N11: 0.01121 | O11: 0 | Q11: 1 | S11: 0.00124 | T11: 0 | Y11: 0 | AA11: 1 | AB11: 0 | AC11: 0.03129 | AD11: 0 | AF11: 0.85 | AG11: 0.15 | AH11: 0.03775 | AI11: 0 | AK11: 1 | AL11: 0 | AM11: 0.00316 | AN11: 0 | AP11: 0.5 | AQ11: 0.5 | AR11: 0.00272 | AS11: 0.04 | AU11: 1 | AV11: 0 | AW11: 8e-05 | AX11: 0 | AZ11: 0 | BA11: 0 | BB11: 0 | BC11: 0 | BE11: 0.92 | BF11: 0.08 | BG11: 0.00569 | BH11: 0.01
A12: =+DdaAñoBase!A12 -> ATD | B12: 0 | C12: 1 | D12: 0 | E12: 16.78 | G12: 0 | H12: 1 | J12: 14.19 | L12: 1 | M12: 0 | N12: 0.01121 | O12: 0 | Q12: 1 | R12: 0 | S12: 0.00124 | T12: 0 | V12: 0 | W12: 1 | Y12: 201.89 | AA12: 1 | AB12: 0 | AC12: 0.04317 | AD12: 0 | AF12: 0.85 | AG12: 0.15 | AH12: 0.06074 | AI12: 1.97 | AK12: 1 | AL12: 0 | AM12: 0.00316 | AN12: 0 | AP12: 0.5 | AQ12: 0.5 | AR12: 0.01006 | AS12: 1.84 | AU12: 1 | AV12: 0 | AW12: 8e-05 | AX12: 0 | AZ12: 0 | BA12: 1 | BB12: 0 | BC12: 0 | BE12: 0.92 | BF12: 0.08 | BG12: 0.00607 | BH12: 0.11
A13: =+DdaAñoBase!A13 -> MTH | D13: 0 | E13: 0 | H13: 1 | J13: 14.19 | N13: 0 | O13: 0 | R13: 0 | S13: 0 | T13: 0 | V13: 0 | W13: 1 | Y13: 141.31 | AC13: 0 | AD13: 0 | AH13: 0 | AI13: 0 | AM13: 0 | AN13: 0 | AP13: 0.5 | AQ13: 0.5 | AR13: 0 | AS13: 0 | AW13: 0 | AX13: 0 | BB13: 0 | BC13: 0 | BE13: 0.92 | BF13: 0.08 | BG13: 0 | BH13: 0
A14: =+DdaAñoBase!A14 -> MTH Punta | B14: 0 | C14: 1 | D14: 0 | E14: 23.2 | G14: 0 | J14: 0 | L14: 1 | M14: 0 | N14: 0.01121 | O14: 0 | Q14: 1 | S14: 0.00124 | T14: 0 | Y14: 0 | AA14: 1 | AB14: 0 | AC14: =0.22752*1.2 -> 0.273024 | AD14: 0 | AF14: 0.85 | AG14: 0.15 | AH14: 1e-05 | AI14: 0.01 | AK14: 1 | AL14: 0 | AM14: 0.00316 | AN14: 0 | AP14: 0.5 | AQ14: 0.5 | AR14: 0.00068 | AS14: 1.95 | AU14: 1 | AV14: 0 | AW14: 8e-05 | AX14: 0 | AZ14: 0 | BA14: 1 | BB14: 0 | BC14: 0 | BE14: 0.92 | BF14: 0.08 | BG14: 0.00807 | BH14: 0.19
A15: =+DdaAñoBase!A15 -> MTH Fuera de Punta Medio | B15: 0 | C15: 1 | D15: 0 | E15: 3.4 | G15: 0 | J15: 0 | L15: 1 | M15: 0 | N15: 0.01121 | O15: 0 | Q15: 1 | S15: 0.00124 | T15: 0 | Y15: 0 | AA15: 1 | AB15: 0 | AC15: =0.11375*1.05 -> 0.1194375 | AD15: 0 | AF15: 0.85 | AG15: 0.15 | AH15: 1e-05 | AI15: 0 | AK15: 1 | AL15: 0 | AM15: 0.00316 | AN15: 0 | AP15: 0.5 | AQ15: 0.5 | AR15: 0.00068 | AS15: 0.1 | AU15: 1 | AV15: 0 | AW15: 8e-05 | AX15: 0 | AZ15: 0 | BA15: 0 | BB15: 0 | BC15: 0 | BE15: 0.92 | BF15: 0.08 | BG15: 0.00603 | BH15: 0.12
A16: =+DdaAñoBase!A16 -> MTH Fuera de Punta Bajo | B16: 0 | C16: 1 | D16: 0 | E16: 3.4 | G16: 0 | J16: 0 | L16: 1 | M16: 0 | N16: 0.01121 | O16: 0 | Q16: 1 | S16: 0.00124 | T16: 0 | Y16: 0 | AA16: 1 | AB16: 0 | AC16: 0.05987 | AD16: 0 | AF16: 0.85 | AG16: 0.15 | AH16: 1e-05 | AI16: 0 | AK16: 1 | AL16: 0 | AM16: 0.00316 | AN16: 0 | AP16: 0.5 | AQ16: 0.5 | AR16: 0.00068 | AS16: 0.1 | AU16: 1 | AV16: 0 | AW16: 8e-05 | AX16: 0 | AZ16: 0 | BA16: 0 | BB16: 0 | BC16: 0 | BE16: 0.92 | BF16: 0.08 | BG16: 0.00603 | BH16: 0.12
A17: =+DdaAñoBase!A17 -> MTD | B17: 0 | C17: 1 | D17: 0 | E17: 0 | G17: 0 | H17: 1 | J17: 14.21 | L17: 1 | M17: 0 | N17: 0 | O17: 0 | Q17: 1 | R17: 0 | S17: 0 | T17: 0 | V17: 0 | W17: 1 | Y17: 141.31 | AA17: 1 | AB17: 0 | AC17: 0 | AD17: 0 | AF17: 0.85 | AG17: 0.15 | AH17: 0 | AI17: 0 | AK17: 1 | AL17: 0 | AM17: 0 | AN17: 0 | AP17: 0.5 | AQ17: 0.5 | AR17: 0 | AS17: 0 | AU17: 1 | AV17: 0 | AW17: 0 | AX17: 0 | AZ17: 0 | BA17: 1 | BB17: 0 | BC17: 0 | BE17: 0.92 | BF17: 0.08 | BG17: 0 | BH17: 0
A18: =+DdaAñoBase!A18 -> MTD_1 (0-10,000) | D18: 0 | E18: 22.12 | J18: 14.21 | N18: 0.01121 | O18: 0 | S18: 0.00124 | T18: 0 | Y18: 0 | AC18: 0.08235 | AD18: 0 | AH18: 0.0158 | AI18: 0.98 | AM18: 0.00316 | AN18: 0 | AR18: 0.00344 | AS18: 1.2 | AW18: 8e-05 | AX18: 0 | BB18: 0 | BC18: 0 | BG18: 0.00607 | BH18: 0.38
A19: =+DdaAñoBase!A29 -> MTD_2 (10,001-30,000) | D19: 0 | E19: 22.12 | J19: 14.21 | N19: 0.01121 | O19: 0 | S19: 0.00124 | T19: 0 | Y19: 0 | AC19: 0.08235 | AD19: 0 | AH19: 0.0158 | AI19: 0.98 | AM19: 0.00316 | AN19: 0 | AR19: 0.00344 | AS19: 1.2 | AW19: 8e-05 | AX19: 0 | BB19: 0 | BC19: 0 | BG19: 0.00607 | BH19: 0.19
A20: =+DdaAñoBase!A40 -> MTD_3 (30,001-50,000) | D20: 0 | E20: 22.12 | J20: 14.21 | N20: 0.01121 | O20: 0 | S20: 0.00124 | T20: 0 | Y20: 0 | AC20: 0.08235 | AD20: 0 | AH20: 0.0158 | AI20: 0.98 | AM20: 0.00316 | AN20: 0 | AR20: 0.00344 | AS20: 1.2 | AW20: 8e-05 | AX20: 0 | BB20: 0 | BC20: 0 | BG20: 0.00607 | BH20: 0.19
A21: =+DdaAñoBase!A51 -> MTD_4 (50,001-más) | D21: 0 | E21: 22.12 | J21: 14.21 | N21: 0.01121 | O21: 0 | S21: 0.00124 | T21: 0 | Y21: 0 | AC21: 0.08235 | AD21: 0 | AH21: 0.0158 | AI21: 0.98 | AM21: 0.00316 | AN21: 0 | AR21: 0.00344 | AS21: 1.2 | AW21: 8e-05 | AX21: 0 | BB21: 0 | BC21: 0 | BG21: 0.00607 | BH21: 0.19
A22: =+DdaAñoBase!A62 -> MTD_5 (xxx) | D22: 0 | E22: 0 | J22: 0 | N22: 0 | O22: 0 | S22: 0 | T22: 0 | Y22: 0 | AC22: 0 | AD22: 0 | AH22: 0 | AI22: 0 | AM22: 0 | AN22: 0 | AR22: 0 | AS22: 0 | AW22: 0 | AX22: 0 | BB22: 0 | BC22: 0 | BG22: 0 | BH22: 0
A23: =+DdaAñoBase!A73 -> BTH | B23: 0 | C23: 1 | D23: 0 | E23: 0 | H23: 1 | J23: 5.65 | L23: 1 | M23: 0 | N23: 0 | O23: 0 | Q23: 1 | R23: 0 | S23: 0 | T23: 0 | V23: 0 | W23: 1 | Y23: 71.76 | AC23: 0 | AD23: 0 | AH23: 0 | AI23: 0 | AM23: 0 | AN23: 0 | AR23: 0 | AS23: 0 | AW23: 0 | AX23: 0 | BB23: 0 | BC23: 0 | BG23: 0 | BH23: 0
A24: =+DdaAñoBase!A74 -> BTH Punta | B24: 0 | C24: 1 | D24: 0 | E24: 23.88 | G24: 0 | J24: 0 | L24: 1 | M24: 0 | N24: 0.01121 | O24: 0 | Q24: 1 | S24: 0.00124 | T24: 0 | Y24: 0 | AA24: 1 | AB24: 0 | AC24: 5.8 | AD24: 0 | AF24: 0.85 | AG24: 0.15 | AH24: 0.00051 | AI24: 0.04 | AK24: 1 | AL24: 0 | AM24: 0.00316 | AN24: 0 | AP24: 0.5 | AQ24: 0.5 | AR24: 0.03002 | AS24: =+AS14 -> 1.95 | AU24: 1 | AV24: 0 | AW24: 8e-05 | AX24: 0 | AZ24: 0 | BA24: 1 | BB24: 0 | BC24: 0 | BE24: 0.92 | BF24: 0.08 | BG24: 0.00747 | BH24: 0.13
A25: =+DdaAñoBase!A75 -> BTH Fuera de Punta Medio | B25: 0 | C25: 1 | D25: 0 | E25: 2.89 | G25: 0 | J25: 0 | L25: 1 | M25: 0 | N25: 0.01121 | O25: 0 | Q25: 1 | S25: 0.00124 | T25: 0 | Y25: 0 | AA25: 1 | AB25: 0 | AC25: 2.3 | AD25: 0 | AF25: 0.85 | AG25: 0.15 | AH25: 0.00051 | AI25: 0 | AK25: 1 | AL25: 0 | AM25: 0.00316 | AN25: 0 | AP25: 0.5 | AQ25: 0.5 | AR25: 0.03002 | AS25: =+AS15 -> 0.1 | AU25: 1 | AV25: 0 | AW25: 8e-05 | AX25: 0 | AZ25: 0 | BA25: 0 | BB25: 0 | BC25: 0 | BE25: 0.92 | BF25: 0.08 | BG25: 0.00565 | BH25: 0.12
A26: =+DdaAñoBase!A76 -> BTH Fuera de Punta Bajo | B26: 0 | C26: 1 | D26: 0 | E26: 2.89 | G26: 0 | J26: 0 | L26: 1 | M26: 0 | N26: 0.01121 | O26: 0 | Q26: 1 | S26: 0.00124 | T26: 0 | Y26: 0 | AA26: 1 | AB26: 0 | AC26: 1 | AD26: 0 | AF26: 0.85 | AG26: 0.15 | AH26: 0.00051 | AI26: 0 | AK26: 1 | AL26: 0 | AM26: 0.00316 | AN26: 0 | AP26: 0.5 | AQ26: 0.5 | AR26: 0.03002 | AS26: 0.1 | AU26: 1 | AV26: 0 | AW26: 8e-05 | AX26: 0 | AZ26: 0 | BA26: 0 | BB26: 0 | BC26: 0 | BE26: 0.92 | BF26: 0.08 | BG26: 0.00565 | BH26: 0.12
A27: =+DdaAñoBase!A77 -> BTD | B27: 0 | C27: 1 | D27: 0 | E27: 0 | G27: 0 | H27: 1 | J27: 5.65 | L27: 1 | M27: 0 | N27: 0 | O27: 0 | Q27: 1 | R27: 0 | S27: 0 | T27: 0 | V27: 0 | W27: 1 | Y27: 71.76 | AA27: 1 | AB27: 0 | AC27: 0 | AD27: 0 | AF27: 0.85 | AG27: 0.15 | AH27: 0 | AI27: 0 | AK27: 1 | AL27: 0 | AM27: 0 | AN27: 0 | AP27: 0.5 | AQ27: 0.5 | AR27: 0 | AS27: 0 | AU27: 1 | AV27: 0 | AW27: 0 | AX27: 0 | AZ27: 0 | BA27: 1 | BB27: 0 | BC27: 0 | BE27: 0.92 | BF27: 0.08 | BG27: 0 | BH27: 0
A28: =+DdaAñoBase!A78 -> BTD_1 (0-10,000) | D28: 0 | E28: 23.36 | J28: 5.65 | N28: 0.01124 | O28: 0 | S28: 0.00125 | T28: 0 | Y28: 0 | AC28: 0.07519 | AD28: 0 | AH28: 0.01655 | AI28: 0.92 | AM28: 0.00317 | AN28: 0 | AR28: 0.00262 | AS28: 0.75 | AW28: 8e-05 | AX28: 0 | BB28: 0 | BC28: 0 | BG28: 0.00608 | BH28: 0.16
A29: =+DdaAñoBase!A89 -> BTD_2 (10,001-30,000) | D29: 0 | E29: 23.36 | J29: 5.65 | N29: 0.01124 | O29: 0 | S29: 0.00125 | T29: 0 | Y29: 0 | AC29: 0.08094 | AD29: 0 | AH29: 0.01782 | AI29: 0.92 | AM29: 0.00317 | AN29: 0 | AR29: 0.00262 | AS29: 0.75 | AW29: 8e-05 | AX29: 0 | BB29: 0 | BC29: 0 | BG29: 0.00608 | BH29: 0.16
A30: =+DdaAñoBase!A100 -> BTD_3 (30,001-50,000) | D30: 0 | E30: 23.36 | J30: 5.65 | N30: 0.01124 | O30: 0 | S30: 0.00125 | T30: 0 | Y30: 0 | AC30: 0.08497 | AD30: 0 | AH30: 0.01869 | AI30: 0.92 | AM30: 0.00317 | AN30: 0 | AR30: 0.00262 | AS30: 0.75 | AW30: 8e-05 | AX30: 0 | BB30: 0 | BC30: 0 | BG30: 0.00608 | BH30: 0.16
A31: =+DdaAñoBase!A111 -> BTD_4 (50,001-más) | D31: 0 | E31: 23.36 | J31: 5.65 | N31: 0.01124 | O31: 0 | S31: 0.00125 | T31: 0 | Y31: 0 | AC31: 0.10337 | AD31: 0 | AH31: 0.02274 | AI31: 0.92 | AM31: 0.00317 | AN31: 0 | AR31: 0.00262 | AS31: 0.75 | AW31: 8e-05 | AX31: 0 | BB31: 0 | BC31: 0 | BG31: 0.00608 | BH31: 0.16
A32: =+DdaAñoBase!A122 -> BTD_5 (xxx) | D32: 0 | E32: 0 | J32: 0 | N32: 0 | O32: 0 | S32: 0 | T32: 0 | Y32: 0 | AC32: 0 | AD32: 0 | AH32: 0 | AI32: 0 | AM32: 0 | AN32: 0 | AR32: 0 | AS32: 0 | AW32: 0 | AX32: 0 | BB32: 0 | BC32: 0 | BG32: 0 | BH32: 0
A33: =+DdaAñoBase!A133 -> BTS | B33: 1 | C33: 0 | D33: 0 | E33: 0 | G33: 0 | H33: 1 | J33: 3.04 | L33: 1 | M33: 0 | N33: 0 | O33: 0 | Q33: 1 | R33: 0 | S33: 0 | T33: 0 | V33: 0 | W33: 1 | Y33: 16.65 | AA33: 1 | AB33: 0 | AC33: 0 | AD33: 0 | AF33: 1 | AG33: 0 | AH33: 0 | AI33: 0 | AK33: 1 | AL33: 0 | AM33: 0 | AN33: 0 | AP33: 1 | AQ33: 0 | AR33: 0 | AS33: 0 | AU33: 1 | AV33: 0 | AW33: 0 | AX33: 0 | AZ33: 1 | BA33: 0 | BB33: 0 | BC33: 0 | BE33: 1 | BF33: 0 | BG33: 0 | BH33: 0
A34: =+DdaAñoBase!A134 -> BTS_1 (0-300) | D34: 0.05935 | E34: 0 | J34: 3.04 | N34: 0.01205 | O34: 0 | S34: 0.00135 | T34: 0 | Y34: 0 | AC34: 0.05307618227 | AD34: 0 | AH34: 0.02052381773 | AI34: 0 | AM34: 0.0034 | AN34: 0 | AR34: 0.00655 | AS34: 0 | AW34: 8e-05 | AX34: 0 | BB34: 0 | BC34: 0 | BG34: 0.00709 | BH34: 0
A35: =+DdaAñoBase!A145 -> BTS_2 (301-750) | D35: 0.05935 | E35: 0 | J35: 3.04 | N35: 0.01205 | O35: 0 | S35: 0.00135 | T35: 0 | Y35: 0 | AC35: 0.08948673177 | AD35: 0 | AH35: 0.03460326823 | AI35: 0 | AM35: 0.0034 | AN35: 0 | AR35: 0.00655 | AS35: 0 | AW35: 8e-05 | AX35: 0 | BB35: 0 | BC35: 0 | BG35: 0.00709 | BH35: 0
A36: =+DdaAñoBase!A156 -> BTS_3 (751-más) | D36: 0.05935 | E36: 0 | J36: 3.04 | N36: 0.01205 | O36: 0 | S36: 0.00135 | T36: 0 | Y36: 0 | AC36: 0.1596972903 | AD36: 0 | AH36: 0.06175270973 | AI36: 0 | AM36: 0.0034 | AN36: 0 | AR36: 0.00655 | AS36: 0 | AW36: 8e-05 | AX36: 0 | BB36: 0 | BC36: 0 | BG36: 0.00709 | BH36: 0
A37: =+DdaAñoBase!A167 -> BTS_4 (xxx) | D37: 0 | E37: 0 | J37: 0 | N37: 0 | O37: 0 | S37: 0 | T37: 0 | Y37: 0 | AC37: 0 | AD37: 0 | AH37: 0 | AI37: 0 | AM37: 0 | AN37: 0 | AR37: 0 | AS37: 0 | AW37: 0 | AX37: 0 | BB37: 0 | BC37: 0 | BG37: 0 | BH37: 0
A38: =+DdaAñoBase!A178 -> BTS_5 (xxx) | D38: 0 | E38: 0 | J38: 0 | N38: 0 | O38: 0 | S38: 0 | T38: 0 | Y38: 0 | AC38: 0 | AD38: 0 | AH38: 0 | AI38: 0 | AM38: 0 | AN38: 0 | AR38: 0 | AS38: 0 | AW38: 0 | AX38: 0 | BB38: 0 | BC38: 0 | BG38: 0 | BH38: 0
A39: =+DdaAñoBase!A189 -> Alumbrado Público | D39: 0 | E39: 0 | J39: 0 | N39: 0 | O39: 0 | S39: 0 | T39: 0 | Y39: 0 | AC39: 0 | AD39: 0 | AH39: 0 | AI39: 0 | AM39: 0 | AN39: 0 | AR39: 0 | AS39: 0 | AW39: 0 | AX39: 0 | BB39: 0 | BC39: 0 | BG39: 0 | BH39: 0
A40: =+DdaAñoBase!A190 -> GRANDES CLIENTES | D40: 0 | E40: 0 | J40: 0 | N40: 0 | O40: 0 | S40: 0 | T40: 0 | Y40: 0 | AC40: 0 | AD40: 0 | AH40: 0 | AI40: 0 | AM40: 0 | AN40: 0 | AR40: 0 | AS40: 0 | AW40: 0 | AX40: 0 | BB40: 0 | BC40: 0 | BG40: 0 | BH40: 0
A41: =+DdaAñoBase!A191 -> MTD_GC | D41: 0 | E41: 0 | J41: 0 | N41: 0 | O41: 0 | S41: 0 | T41: 0 | Y41: 0 | AC41: 0 | AD41: 0 | AG41: 1 | AH41: 0 | AI41: 0 | AK41: =+AK17 -> 1 | AL41: =+AL17 -> 0 | AM41: 0 | AN41: 0 | AR41: 0 | AS41: 0 | AW41: 0 | AX41: 0 | BA41: 1 | BB41: 0 | BC41: 0 | BG41: 0 | BH41: 0
A42: =+DdaAñoBase!A192 -> BTD_GC | D42: 0 | E42: 0 | J42: 0 | N42: 0 | O42: 0 | S42: 0 | T42: 0 | Y42: 0 | AC42: 0 | AD42: 0 | AG42: 1 | AH42: 0 | AI42: 0 | AK42: =+AK27 -> 1 | AL42: =+AL27 -> 0 | AM42: 0 | AN42: 0 | AR42: 0 | AS42: 0 | AW42: 0 | AX42: 0 | BA42: 1 | BB42: 0 | BC42: 0 | BG42: 0 | BH42: 0
A43: =+DdaAñoBase!A193 -> BTSH | B43: =+B33 -> 1 | C43: =+C33 -> 0 | D43: 0.0644 | E43: 0 | G43: =+G33 -> 0 | H43: =+H33 -> 1 | J43: 3.04 | L43: =+L33 -> 1 | M43: =+M33 -> 0 | N43: 0.01151 | O43: 0 | Q43: =+Q33 -> 1 | R43: =+R33 -> 0 | S43: 0.0013 | T43: 0 | V43: =+V33 -> 0 | W43: =+W33 -> 1 | Y43: 16.65 | AA43: =+AA33 -> 1 | AB43: =+AB33 -> 0 | AD43: 0 | AF43: =+AF33 -> 1 | AG43: =+AG33 -> 0 | AH43: 0.03253 | AI43: 0 | AK43: =+AK33 -> 1 | AL43: =+AL33 -> 0 | AM43: 0.00322 | AN43: 0 | AP43: =+AP33 -> 1 | AQ43: =+AQ33 -> 0 | AR43: 0.00621 | AS43: 0 | AU43: =+AU33 -> 1 | AV43: =+AV33 -> 0 | AW43: 7e-05 | AX43: 0 | AZ43: =+AZ33 -> 1 | BA43: =+BA33 -> 0 | BB43: 0 | BC43: 0 | BE43: =+BE33 -> 1 | BF43: =+BF33 -> 0 | BG43: 0.007 | BH43: 0
A44: =+DdaAñoBase!A194 -> BTSH_1 | D44: 0.0644 | E44: 0 | J44: 3.04 | N44: 0.01151 | O44: 0 | S44: 0.0013 | T44: 0 | Y44: 0 | AD44: 0 | AH44: 0.03253 | AI44: 0 | AM44: 0.00322 | AN44: 0 | AR44: 0.00621 | AS44: 0 | AW44: 7e-05 | AX44: 0 | BB44: 0 | BC44: 0 | BG44: 0.007 | BH44: 0
A45: =+DdaAñoBase!A195 -> BTSH_1 Punta | B45: =+B34 -> 0 | C45: =+C34 -> 0 | D45: 0.0644 | E45: 0 | G45: 0 | H45: 0 | J45: 3.04 | L45: 0 | M45: 0 | N45: 0.01151 | O45: 0 | Q45: 0 | R45: 0 | S45: 0.0013 | T45: 0 | V45: 0 | W45: 0 | Y45: 0 | AA45: 0 | AB45: 0 | AC45: 38 | AD45: 0 | AF45: 0 | AG45: 0 | AH45: 0.03253 | AI45: 0 | AK45: 0 | AL45: 0 | AM45: 0.00322 | AN45: 0 | AP45: 0 | AQ45: 0 | AR45: 0.00621 | AS45: 0 | AU45: 0 | AV45: 0 | AW45: 7e-05 | AX45: 0 | AZ45: 0 | BA45: 0 | BB45: 0 | BC45: 0 | BE45: 0 | BF45: 0 | BG45: 0.007 | BH45: 0
A46: =+DdaAñoBase!A196 -> BTSH_1 Fuera de Punta Medio | B46: =+B45 -> 0 | C46: =+C45 -> 0 | D46: 0.0575 | E46: 0 | G46: 0 | H46: 0 | J46: 3.04 | L46: 0 | M46: 0 | N46: 0.01151 | O46: 0 | Q46: 0 | R46: 0 | S46: 0.0013 | T46: 0 | V46: 0 | W46: 0 | Y46: 0 | AA46: 0 | AB46: 0 | AC46: 8.5 | AD46: 0 | AF46: 0 | AG46: 0 | AH46: 0.03253 | AI46: 0 | AK46: 0 | AL46: 0 | AM46: 0.00322 | AN46: 0 | AP46: 0 | AQ46: 0 | AR46: 0.00621 | AS46: 0 | AU46: 0 | AV46: 0 | AW46: 7e-05 | AX46: 0 | AZ46: 0 | BA46: 0 | BB46: 0 | BC46: 0 | BE46: 0 | BF46: 0 | BG46: 0.007 | BH46: 0
A47: =+DdaAñoBase!A197 -> BTSH_1 Fuera de Punta Bajo | B47: =+B46 -> 0 | C47: 0 | D47: 0.05133 | E47: 0 | G47: 0 | H47: 0 | J47: 3.04 | L47: 0 | M47: 0 | N47: 0.01151 | O47: 0 | Q47: 0 | R47: 0 | S47: 0.0013 | T47: 0 | V47: 0 | W47: 0 | Y47: 0 | AA47: 0 | AB47: 0 | AC47: 0.1 | AD47: 0 | AF47: 0 | AG47: 0 | AH47: 0.03253 | AI47: 0 | AK47: 0 | AL47: 0 | AM47: 0.00322 | AN47: 0 | AP47: 0 | AQ47: 0 | AR47: 0.00621 | AS47: 0 | AU47: 0 | AV47: 0 | AW47: 7e-05 | AX47: 0 | AZ47: 0 | BA47: 0 | BB47: 0 | BC47: 0 | BE47: 0 | BF47: 0 | BG47: 0.007 | BH47: 0
A48: =+DdaAñoBase!A198 -> BTSH_2 | D48: 0 | E48: 0 | J48: 0 | N48: 0 | O48: 0 | S48: 0 | T48: 0 | Y48: 0 | AC48: 0 | AD48: 0 | AH48: 0 | AI48: 0 | AM48: 0 | AN48: 0 | AR48: 0 | AS48: 0 | AW48: 0 | AX48: 0 | BB48: 0 | BC48: 0 | BG48: 0 | BH48: 0
A49: =+DdaAñoBase!A199 -> BTSH_2 Punta | B49: =+B35 -> 0 | C49: =+C35 -> 0 | D49: 0 | E49: 0 | G49: 0 | H49: 0 | J49: 0 | L49: 0 | M49: 0 | N49: 0 | O49: 0 | Q49: 0 | R49: 0 | S49: 0 | T49: 0 | V49: 0 | W49: 0 | Y49: 0 | AA49: 0 | AB49: 0 | AC49: 0 | AD49: 0 | AF49: 0 | AG49: 0 | AH49: 0 | AI49: 0 | AK49: 0 | AL49: 0 | AM49: 0 | AN49: 0 | AP49: 0 | AQ49: 0 | AR49: 0 | AS49: 0 | AU49: 0 | AV49: 0 | AW49: 0 | AX49: 0 | AZ49: 0 | BA49: 0 | BB49: 0 | BC49: 0 | BE49: 0 | BF49: 0 | BG49: 0 | BH49: 0
A50: =+DdaAñoBase!A200 -> BTSH_2 Fuera de Punta Medio | B50: =+B49 -> 0 | C50: =+C49 -> 0 | D50: 0 | E50: 0 | G50: 0 | H50: 0 | J50: 0 | L50: 0 | M50: 0 | N50: 0 | O50: 0 | Q50: 0 | R50: 0 | S50: 0 | T50: 0 | V50: 0 | W50: 0 | Y50: 0 | AA50: 0 | AB50: 0 | AC50: 0 | AD50: 0 | AF50: 0 | AG50: 0 | AH50: 0 | AI50: 0 | AK50: 0 | AL50: 0 | AM50: 0 | AN50: 0 | AP50: 0 | AQ50: 0 | AR50: 0 | AS50: 0 | AU50: 0 | AV50: 0 | AW50: 0 | AX50: 0 | AZ50: 0 | BA50: 0 | BB50: 0 | BC50: 0 | BE50: 0 | BF50: 0 | BG50: 0 | BH50: 0
A51: =+DdaAñoBase!A201 -> BTSH_2 Fuera de Punta Bajo | B51: =+B50 -> 0 | C51: 0 | D51: 0 | E51: 0 | G51: 0 | H51: 0 | J51: 0 | L51: 0 | M51: 0 | N51: 0 | O51: 0 | Q51: 0 | R51: 0 | S51: 0 | T51: 0 | V51: 0 | W51: 0 | Y51: 0 | AA51: 0 | AB51: 0 | AC51: 0 | AD51: 0 | AF51: 0 | AG51: 0 | AH51: 0 | AI51: 0 | AK51: 0 | AL51: 0 | AM51: 0 | AN51: 0 | AP51: 0 | AQ51: 0 | AR51: 0 | AS51: 0 | AU51: 0 | AV51: 0 | AW51: 0 | AX51: 0 | AZ51: 0 | BA51: 0 | BB51: 0 | BC51: 0 | BE51: 0 | BF51: 0 | BG51: 0 | BH51: 0
A52: =+DdaAñoBase!A202 -> BTSH_3 | D52: 0 | E52: 0 | J52: 0 | N52: 0 | O52: 0 | S52: 0 | T52: 0 | Y52: 0 | AC52: 0 | AD52: 0 | AH52: 0 | AI52: 0 | AM52: 0 | AN52: 0 | AR52: 0 | AS52: 0 | AW52: 0 | AX52: 0 | BB52: 0 | BC52: 0 | BG52: 0 | BH52: 0
A53: =+DdaAñoBase!A203 -> BTSH_3 Punta | B53: =+B36 -> 0 | C53: =+C36 -> 0 | D53: 0 | E53: 0 | G53: 0 | H53: 0 | J53: 0 | L53: 0 | M53: 0 | N53: 0 | O53: 0 | Q53: 0 | R53: 0 | S53: 0 | T53: 0 | V53: 0 | W53: 0 | Y53: 0 | AA53: 0 | AB53: 0 | AC53: 0 | AD53: 0 | AF53: 0 | AG53: 0 | AH53: 0 | AI53: 0 | AK53: 0 | AL53: 0 | AM53: 0 | AN53: 0 | AP53: 0 | AQ53: 0 | AR53: 0 | AS53: 0 | AU53: 0 | AV53: 0 | AW53: 0 | AX53: 0 | AZ53: 0 | BA53: 0 | BB53: 0 | BC53: 0 | BE53: 0 | BF53: 0 | BG53: 0 | BH53: 0
A54: =+DdaAñoBase!A204 -> BTSH_3 Fuera de Punta Medio | B54: =+B53 -> 0 | C54: =+C53 -> 0 | D54: 0 | E54: 0 | G54: 0 | H54: 0 | J54: 0 | L54: 0 | M54: 0 | N54: 0 | O54: 0 | Q54: 0 | R54: 0 | S54: 0 | T54: 0 | V54: 0 | W54: 0 | Y54: 0 | AA54: 0 | AB54: 0 | AC54: 0 | AD54: 0 | AF54: 0 | AG54: 0 | AH54: 0 | AI54: 0 | AK54: 0 | AL54: 0 | AM54: 0 | AN54: 0 | AP54: 0 | AQ54: 0 | AR54: 0 | AS54: 0 | AU54: 0 | AV54: 0 | AW54: 0 | AX54: 0 | AZ54: 0 | BA54: 0 | BB54: 0 | BC54: 0 | BE54: 0 | BF54: 0 | BG54: 0 | BH54: 0
A55: =+DdaAñoBase!A205 -> BTSH_3 Fuera de Punta Bajo | B55: =+B54 -> 0 | C55: 0 | D55: 0 | E55: 0 | G55: 0 | H55: 0 | J55: 0 | L55: 0 | M55: 0 | N55: 0 | O55: 0 | Q55: 0 | R55: 0 | S55: 0 | T55: 0 | V55: 0 | W55: 0 | Y55: 0 | AA55: 0 | AB55: 0 | AC55: 0 | AD55: 0 | AF55: 0 | AG55: 0 | AH55: 0 | AI55: 0 | AK55: 0 | AL55: 0 | AM55: 0 | AN55: 0 | AP55: 0 | AQ55: 0 | AR55: 0 | AS55: 0 | AU55: 0 | AV55: 0 | AW55: 0 | AX55: 0 | AZ55: 0 | BA55: 0 | BB55: 0 | BC55: 0 | BE55: 0 | BF55: 0 | BG55: 0 | BH55: 0
A56: =+DdaAñoBase!A206 -> BTS Prepago | B56: 1 | C56: 0 | D56: 0 | E56: 0 | G56: 1 | H56: 0 | I56: 0.01223 | L56: 1 | M56: 0 | N56: 0 | O56: 0 | Q56: 1 | R56: 0 | S56: 0 | T56: 0 | V56: 0 | W56: 1 | Y56: 16.65 | AA56: 1 | AB56: 0 | AC56: 0 | AD56: 0 | AF56: 1 | AG56: 0 | AH56: 0 | AI56: 0 | AK56: 1 | AL56: 0 | AM56: 0.00342 | AN56: 0 | AP56: 1 | AQ56: 0 | AR56: 0 | AS56: 0 | AU56: 1 | AV56: 0 | AW56: 0 | AX56: 0 | AZ56: 1 | BA56: 0 | BB56: 0 | BC56: 0 | BE56: 1 | BF56: 0 | BG56: 0 | BH56: 0
A57: =+DdaAñoBase!A207 -> BTS Prep | D57: 0.05952 | E57: 0 | I57: 0.01223 | N57: 0.01207 | O57: 0 | S57: 0.00137 | T57: 0 | Y57: 0 | AC57: 0.04301622653 | AD57: 0 | AH57: 0.01663377347 | AI57: 0 | AM57: 0.00342 | AN57: 0 | AR57: 0.00656 | AS57: 0 | AW57: 8e-05 | AX57: 0 | BB57: 0 | BC57: 0 | BG57: 0.00779 | BH57: 0
A58: =+DdaAñoBase!A218 -> X1D_2 (10,001-30,000) | D58: 0 | E58: 0 | J58: 0 | N58: 0 | O58: 0 | S58: 0 | T58: 0 | Y58: 0 | AC58: 0 | AD58: 0 | AH58: 0 | AI58: 0 | AM58: 0 | AN58: 0 | AR58: 0 | AS58: 0 | AW58: 0 | AX58: 0 | BB58: 0 | BC58: 0 | BG58: 0 | BH58: 0
A59: =+DdaAñoBase!A229 -> X1D_3 (30,001-50,000) | D59: 0 | E59: 0 | J59: 0 | N59: 0 | O59: 0 | S59: 0 | T59: 0 | Y59: 0 | AC59: 0 | AD59: 0 | AH59: 0 | AI59: 0 | AM59: 0 | AN59: 0 | AR59: 0 | AS59: 0 | AW59: 0 | AX59: 0 | BB59: 0 | BC59: 0 | BG59: 0 | BH59: 0
A60: =+DdaAñoBase!A240 -> X1D_4 (50,001-más) | D60: 0 | E60: 0 | J60: 0 | N60: 0 | O60: 0 | S60: 0 | T60: 0 | Y60: 0 | AC60: 0 | AD60: 0 | AH60: 0 | AI60: 0 | AM60: 0 | AN60: 0 | AR60: 0 | AS60: 0 | AW60: 0 | AX60: 0 | BB60: 0 | BC60: 0 | BG60: 0 | BH60: 0
A61: =+DdaAñoBase!A251 -> X1D_5 (xxx) | D61: 0 | E61: 0 | J61: 0 | N61: 0 | O61: 0 | S61: 0 | T61: 0 | Y61: 0 | AC61: 0 | AD61: 0 | AH61: 0 | AI61: 0 | AM61: 0 | AN61: 0 | AR61: 0 | AS61: 0 | AW61: 0 | AX61: 0 | BB61: 0 | BC61: 0 | BG61: 0 | BH61: 0
A62: =+DdaAñoBase!A262 -> X2H | B62: 0 | C62: 1 | D62: 0 | E62: 0 | H62: 1 | J62: 0 | L62: 1 | M62: 0 | N62: 0 | O62: 0 | Q62: 1 | R62: 0 | S62: 0 | T62: 0 | V62: 0 | W62: 1 | Y62: 0 | AC62: 0 | AD62: 0 | AH62: 0 | AI62: 0 | AM62: 0 | AN62: 0 | AR62: 0 | AS62: 0 | AW62: 0 | AX62: 0 | BB62: 0 | BC62: 0 | BG62: 0 | BH62: 0
A63: =+DdaAñoBase!A263 -> X2H Punta | B63: 0 | C63: 1 | D63: 0 | E63: 0 | G63: 0 | H63: 1 | J63: 0 | L63: 1 | M63: 0 | N63: 0 | O63: 0 | Q63: 1 | S63: 0 | T63: 0 | V63: 0 | W63: 1 | Y63: 0 | AA63: 1 | AB63: 0 | AC63: 0 | AD63: 0 | AF63: 1 | AG63: 0 | AH63: 0 | AI63: 0 | AK63: 1 | AL63: 0 | AM63: 0 | AN63: 0 | AP63: 1 | AQ63: 0 | AR63: 0 | AS63: 0 | AU63: 1 | AV63: 0 | AW63: 0 | AX63: 0 | AZ63: 1 | BA63: 0 | BB63: 0 | BC63: 0 | BE63: 1 | BF63: 0 | BG63: 0 | BH63: 0
A64: =+DdaAñoBase!A264 -> X2H Fuera de Punta | B64: 0 | C64: 1 | D64: 0 | E64: 0 | G64: 0 | H64: 1 | J64: 0 | L64: 1 | M64: 0 | N64: 0 | O64: 0 | Q64: 1 | S64: 0 | T64: 0 | V64: 0 | W64: 1 | Y64: 0 | AA64: 1 | AB64: 0 | AC64: 0 | AD64: 0 | AF64: 1 | AG64: 0 | AH64: 0 | AI64: 0 | AK64: 1 | AL64: 0 | AM64: 0 | AN64: 0 | AP64: 1 | AQ64: 0 | AR64: 0 | AS64: 0 | AU64: 1 | AV64: 0 | AW64: 0 | AX64: 0 | AZ64: 1 | BA64: 0 | BB64: 0 | BC64: 0 | BE64: 1 | BF64: 0 | BG64: 0 | BH64: 0
A65: =+DdaAñoBase!A265 -> X2D | B65: 0 | C65: 1 | D65: 0 | E65: 0 | G65: 0 | H65: 1 | J65: 0 | L65: 1 | M65: 0 | N65: 0 | O65: 0 | Q65: 1 | R65: 0 | S65: 0 | T65: 0 | V65: 0 | W65: 1 | AA65: 1 | AB65: 0 | AC65: 0 | AD65: 0 | AF65: 1 | AG65: 0 | AH65: 0 | AI65: 0 | AK65: 1 | AL65: 0 | AM65: 0 | AN65: 0 | AP65: 1 | AQ65: 0 | AR65: 0 | AS65: 0 | AU65: 1 | AV65: 0 | AW65: 0 | AX65: 0 | AZ65: 0 | BA65: 1 | BB65: 0 | BC65: 0 | BE65: 1 | BF65: 0 | BG65: 0 | BH65: 0
A66: =+DdaAñoBase!A266 -> X2D_1 (0-10,000) | D66: 0 | E66: 0 | J66: 0 | N66: 0 | O66: 0 | S66: 0 | T66: 0 | Y66: 0 | AC66: 0 | AD66: 0 | AH66: 0 | AI66: 0 | AM66: 0 | AN66: 0 | AR66: 0 | AS66: 0 | AW66: 0 | AX66: 0 | BB66: 0 | BC66: 0 | BG66: 0 | BH66: 0
A67: =+DdaAñoBase!A277 -> X2D_2 (10,001-30,000) | D67: 0 | E67: 0 | J67: 0 | N67: 0 | O67: 0 | S67: 0 | T67: 0 | Y67: 0 | AC67: 0 | AD67: 0 | AH67: 0 | AI67: 0 | AM67: 0 | AN67: 0 | AR67: 0 | AS67: 0 | AW67: 0 | AX67: 0 | BB67: 0 | BC67: 0 | BG67: 0 | BH67: 0
A68: =+DdaAñoBase!A288 -> X2D_3 (30,001-50,000) | D68: 0 | E68: 0 | J68: 0 | N68: 0 | O68: 0 | S68: 0 | T68: 0 | Y68: 0 | AC68: 0 | AD68: 0 | AH68: 0 | AI68: 0 | AM68: 0 | AN68: 0 | AR68: 0 | AS68: 0 | AW68: 0 | AX68: 0 | BB68: 0 | BC68: 0 | BG68: 0 | BH68: 0
A69: =+DdaAñoBase!A299 -> X2D_4 (50,001-más) | D69: 0 | E69: 0 | J69: 0 | N69: 0 | O69: 0 | S69: 0 | T69: 0 | Y69: 0 | AC69: 0 | AD69: 0 | AH69: 0 | AI69: 0 | AM69: 0 | AN69: 0 | AR69: 0 | AS69: 0 | AW69: 0 | AX69: 0 | BB69: 0 | BC69: 0 | BG69: 0 | BH69: 0
A70: =+DdaAñoBase!A310 -> X2D_5 (xxx) | D70: 0 | E70: 0 | J70: 0 | N70: 0 | O70: 0 | S70: 0 | T70: 0 | Y70: 0 | AC70: 0 | AD70: 0 | AH70: 0 | AI70: 0 | AM70: 0 | AN70: 0 | AR70: 0 | AS70: 0 | AW70: 0 | AX70: 0 | BB70: 0 | BC70: 0 | BG70: 0 | BH70: 0
A71: =+DdaAñoBase!A321 -> X3D | B71: 0 | C71: 1 | D71: 0 | E71: 0 | G71: 0 | H71: 1 | J71: 0 | L71: 1 | M71: 0 | N71: 0 | O71: 0 | Q71: 1 | R71: 0 | S71: 0 | T71: 0 | V71: 0 | W71: 1 | Y71: 0 | AA71: 1 | AB71: 0 | AC71: 0 | AD71: 0 | AF71: 1 | AG71: 0 | AH71: 0 | AI71: 0 | AK71: 1 | AL71: 0 | AM71: 0 | AN71: 0 | AP71: 1 | AQ71: 0 | AR71: 0 | AS71: 0 | AU71: 1 | AV71: 0 | AW71: 0 | AX71: 0 | AZ71: 1 | BA71: 0 | BB71: 0 | BC71: 0 | BE71: 1 | BF71: 0 | BG71: 0 | BH71: 0
A72: =+DdaAñoBase!A322 -> X3D_1 (0-10,000) | D72: 0 | E72: 0 | J72: 0 | N72: 0 | O72: 0 | S72: 0 | T72: 0 | Y72: 0 | AC72: 0 | AD72: 0 | AH72: 0 | AI72: 0 | AM72: 0 | AN72: 0 | AR72: 0 | AS72: 0 | AW72: 0 | AX72: 0 | BB72: 0 | BC72: 0 | BG72: 0 | BH72: 0
A73: =+DdaAñoBase!A333 -> X3D_2 (10,001-30,000) | D73: 0 | E73: 0 | J73: 0 | N73: 0 | O73: 0 | S73: 0 | T73: 0 | Y73: 0 | AC73: 0 | AD73: 0 | AH73: 0 | AI73: 0 | AM73: 0 | AN73: 0 | AR73: 0 | AS73: 0 | AW73: 0 | AX73: 0 | BB73: 0 | BC73: 0 | BG73: 0 | BH73: 0
A74: =+DdaAñoBase!A344 -> X3D_3 (30,001-50,000) | D74: 0 | E74: 0 | J74: 0 | N74: 0 | O74: 0 | S74: 0 | T74: 0 | Y74: 0 | AC74: 0 | AD74: 0 | AH74: 0 | AI74: 0 | AM74: 0 | AN74: 0 | AR74: 0 | AS74: 0 | AW74: 0 | AX74: 0 | BB74: 0 | BC74: 0 | BG74: 0 | BH74: 0
A75: =+DdaAñoBase!A355 -> X3D_4 (50,001-más) | D75: 0 | E75: 0 | J75: 0 | N75: 0 | O75: 0 | S75: 0 | T75: 0 | Y75: 0 | AC75: 0 | AD75: 0 | AH75: 0 | AI75: 0 | AM75: 0 | AN75: 0 | AR75: 0 | AS75: 0 | AW75: 0 | AX75: 0 | BB75: 0 | BC75: 0 | BG75: 0 | BH75: 0
A76: =+DdaAñoBase!A366 -> X3D_5 (xxx) | D76: 0 | E76: 0 | J76: 0 | N76: 0 | O76: 0 | S76: 0 | T76: 0 | Y76: 0 | AC76: 0 | AD76: 0 | AH76: 0 | AI76: 0 | AM76: 0 | AN76: 0 | AR76: 0 | AS76: 0 | AW76: 0 | AX76: 0 | BB76: 0 | BC76: 0 | BG76: 0 | BH76: 0
A80: Tarifa Vigente
A81: =+A8 -> ATH | D81: =+IFERROR(VLOOKUP($A81,ITV_CD!$A$8:$AA$149,13,FALSE),0) -> 0 | E81: =+IFERROR(VLOOKUP($A81,ITV_CD!$A$8:$AA$149,21,FALSE),0) -> 0 | J81: =+IFERROR(VLOOKUP($A81,ITV_CCOMF!$A$8:$AA$149,13,FALSE),0) -> 14.19 | N81: =+IFERROR(VLOOKUP($A81,ITV_CCOMV!$A$8:$AA$149,13,FALSE),0) -> 0 | O81: =+IFERROR(VLOOKUP($A81,ITV_CCOMV!$A$8:$AA$149,21,FALSE),0) -> 0 | S81: =+IFERROR(VLOOKUP($A81,ITV_CSERAP!$A$8:$AA$149,13,FALSE),0) -> 0 | T81: =+IFERROR(VLOOKUP($A81,ITV_CSERAP!$A$8:$AA$149,21,FALSE),0) -> 0 | Y81: =+IFERROR(VLOOKUP($A81,ITV_CX!$A$8:$AA$149,13,FALSE),0) -> 201.89 | AC81: =+IFERROR(VLOOKUP($A81,ITV_CENEGEN!$A$9:$Z$150,13,FALSE),0) -> 0 | AD81: =+IFERROR(VLOOKUP($A81,ITV_CENEGEN!$A$9:$Z$150,21,FALSE),0) -> 0 | AH81: =+IFERROR(VLOOKUP($A81,ITV_CPOTGEN!$A$9:$Z$150,13,FALSE),0) -> 0 | AI81: =+IFERROR(VLOOKUP($A81,ITV_CPOTGEN!$A$9:$Z$150,21,FALSE),0) -> 0 | AM81: =+IFERROR(VLOOKUP($A81,ITV_CCONAP!$A$8:$Z$149,13,FALSE),0) -> 0 | AN81: =+IFERROR(VLOOKUP($A81,ITV_CCONAP!$A$8:$Z$149,21,FALSE),0) -> 0 | AR81: =+IFERROR(VLOOKUP($A81,ITV_CPT!$A$8:$Z$149,13,FALSE),0) -> 0 | AS81: =+IFERROR(VLOOKUP($A81,ITV_CPT!$A$8:$Z$149,21,FALSE),0) -> 0 | AW81: =+IFERROR(VLOOKUP($A81,ITV_CPET!$A$8:$Z$149,13,FALSE),0) -> 0 | AX81: =+IFERROR(VLOOKUP($A81,ITV_CPET!$A$8:$Z$149,21,FALSE),0) -> 0 | BB81: =+IFERROR(VLOOKUP($A81,ITV_CPERDP!$A$8:$Z$149,13,FALSE),0) -> 0 | BC81: =+IFERROR(VLOOKUP($A81,ITV_CPERDP!$A$8:$Z$149,21,FALSE),0) -> 0 | BG81: =+IFERROR(VLOOKUP($A81,ITV_CPERDE!$A$8:$Z$149,13,FALSE),0) -> 0 | BH81: =+IFERROR(VLOOKUP($A81,ITV_CPERDE!$A$8:$Z$149,21,FALSE),0) -> 0
A82: ATH Punta | D82: =+IFERROR(VLOOKUP($A82,ITV_CD!$A$8:$AA$149,13,FALSE),0) -> 0 | E82: =+IFERROR(VLOOKUP($A82,ITV_CD!$A$8:$AA$149,21,FALSE),0) -> 6.1 | J82: =+IFERROR(VLOOKUP($A82,ITV_CCOMF!$A$8:$AA$149,13,FALSE),0) -> 0 | N82: =+IFERROR(VLOOKUP($A82,ITV_CCOMV!$A$8:$AA$149,13,FALSE),0) -> 0.01121 | O82: =+IFERROR(VLOOKUP($A82,ITV_CCOMV!$A$8:$AA$149,21,FALSE),0) -> 0 | S82: =+IFERROR(VLOOKUP($A82,ITV_CSERAP!$A$8:$AA$149,13,FALSE),0) -> 0.00124 | T82: =+IFERROR(VLOOKUP($A82,ITV_CSERAP!$A$8:$AA$149,21,FALSE),0) -> 0 | Y82: =+IFERROR(VLOOKUP($A82,ITV_CX!$A$8:$AA$149,13,FALSE),0) -> 0 | AC82: =+IFERROR(VLOOKUP($A82,ITV_CENEGEN!$A$9:$Z$150,13,FALSE),0) -> 0.20333 | AD82: =+IFERROR(VLOOKUP($A82,ITV_CENEGEN!$A$9:$Z$150,21,FALSE),0) -> 0 | AH82: =+IFERROR(VLOOKUP($A82,ITV_CPOTGEN!$A$9:$Z$150,13,FALSE),0) -> 0.03775 | AI82: =+IFERROR(VLOOKUP($A82,ITV_CPOTGEN!$A$9:$Z$150,21,FALSE),0) -> 2.19 | AM82: =+IFERROR(VLOOKUP($A82,ITV_CCONAP!$A$8:$Z$149,13,FALSE),0) -> 0.00316 | AN82: =+IFERROR(VLOOKUP($A82,ITV_CCONAP!$A$8:$Z$149,21,FALSE),0) -> 0 | AR82: =+IFERROR(VLOOKUP($A82,ITV_CPT!$A$8:$Z$149,13,FALSE),0) -> 0.00272 | AS82: =+IFERROR(VLOOKUP($A82,ITV_CPT!$A$8:$Z$149,21,FALSE),0) -> 0.83 | AW82: =+IFERROR(VLOOKUP($A82,ITV_CPET!$A$8:$Z$149,13,FALSE),0) -> 8e-05 | AX82: =+IFERROR(VLOOKUP($A82,ITV_CPET!$A$8:$Z$149,21,FALSE),0) -> 0 | BB82: =+IFERROR(VLOOKUP($A82,ITV_CPERDP!$A$8:$Z$149,13,FALSE),0) -> 0 | BC82: =+IFERROR(VLOOKUP($A82,ITV_CPERDP!$A$8:$Z$149,21,FALSE),0) -> 0 | BG82: =+IFERROR(VLOOKUP($A82,ITV_CPERDE!$A$8:$Z$149,13,FALSE),0) -> 0.00798 | BH82: =+IFERROR(VLOOKUP($A82,ITV_CPERDE!$A$8:$Z$149,21,FALSE),0) -> 0.18
A83: ATH Fuera de Punta Medio | D83: =+IFERROR(VLOOKUP($A83,ITV_CD!$A$8:$AA$149,13,FALSE),0) -> 0 | E83: =+IFERROR(VLOOKUP($A83,ITV_CD!$A$8:$AA$149,21,FALSE),0) -> 4.13 | J83: =+IFERROR(VLOOKUP($A83,ITV_CCOMF!$A$8:$AA$149,13,FALSE),0) -> 0 | N83: =+IFERROR(VLOOKUP($A83,ITV_CCOMV!$A$8:$AA$149,13,FALSE),0) -> 0.01121 | O83: =+IFERROR(VLOOKUP($A83,ITV_CCOMV!$A$8:$AA$149,21,FALSE),0) -> 0 | S83: =+IFERROR(VLOOKUP($A83,ITV_CSERAP!$A$8:$AA$149,13,FALSE),0) -> 0.00124 | T83: =+IFERROR(VLOOKUP($A83,ITV_CSERAP!$A$8:$AA$149,21,FALSE),0) -> 0 | Y83: =+IFERROR(VLOOKUP($A83,ITV_CX!$A$8:$AA$149,13,FALSE),0) -> 0 | AC83: =+IFERROR(VLOOKUP($A83,ITV_CENEGEN!$A$9:$Z$150,13,FALSE),0) -> 0.08916 | AD83: =+IFERROR(VLOOKUP($A83,ITV_CENEGEN!$A$9:$Z$150,21,FALSE),0) -> 0 | AH83: =+IFERROR(VLOOKUP($A83,ITV_CPOTGEN!$A$9:$Z$150,13,FALSE),0) -> 0.03775 | AI83: =+IFERROR(VLOOKUP($A83,ITV_CPOTGEN!$A$9:$Z$150,21,FALSE),0) -> 0 | AM83: =+IFERROR(VLOOKUP($A83,ITV_CCONAP!$A$8:$Z$149,13,FALSE),0) -> 0.00316 | AN83: =+IFERROR(VLOOKUP($A83,ITV_CCONAP!$A$8:$Z$149,21,FALSE),0) -> 0 | AR83: =+IFERROR(VLOOKUP($A83,ITV_CPT!$A$8:$Z$149,13,FALSE),0) -> 0.00272 | AS83: =+IFERROR(VLOOKUP($A83,ITV_CPT!$A$8:$Z$149,21,FALSE),0) -> 0.04 | AW83: =+IFERROR(VLOOKUP($A83,ITV_CPET!$A$8:$Z$149,13,FALSE),0) -> 8e-05 | AX83: =+IFERROR(VLOOKUP($A83,ITV_CPET!$A$8:$Z$149,21,FALSE),0) -> 0 | BB83: =+IFERROR(VLOOKUP($A83,ITV_CPERDP!$A$8:$Z$149,13,FALSE),0) -> 0 | BC83: =+IFERROR(VLOOKUP($A83,ITV_CPERDP!$A$8:$Z$149,21,FALSE),0) -> 0 | BG83: =+IFERROR(VLOOKUP($A83,ITV_CPERDE!$A$8:$Z$149,13,FALSE),0) -> 0.00569 | BH83: =+IFERROR(VLOOKUP($A83,ITV_CPERDE!$A$8:$Z$149,21,FALSE),0) -> 0.01
A84: ATH Fuera de Punta Bajo | D84: =+IFERROR(VLOOKUP($A84,ITV_CD!$A$8:$AA$149,13,FALSE),0) -> 0 | E84: =+IFERROR(VLOOKUP($A84,ITV_CD!$A$8:$AA$149,21,FALSE),0) -> 4.13 | J84: =+IFERROR(VLOOKUP($A84,ITV_CCOMF!$A$8:$AA$149,13,FALSE),0) -> 0 | N84: =+IFERROR(VLOOKUP($A84,ITV_CCOMV!$A$8:$AA$149,13,FALSE),0) -> 0.01121 | O84: =+IFERROR(VLOOKUP($A84,ITV_CCOMV!$A$8:$AA$149,21,FALSE),0) -> 0 | S84: =+IFERROR(VLOOKUP($A84,ITV_CSERAP!$A$8:$AA$149,13,FALSE),0) -> 0.00124 | T84: =+IFERROR(VLOOKUP($A84,ITV_CSERAP!$A$8:$AA$149,21,FALSE),0) -> 0 | Y84: =+IFERROR(VLOOKUP($A84,ITV_CX!$A$8:$AA$149,13,FALSE),0) -> 0 | AC84: =+IFERROR(VLOOKUP($A84,ITV_CENEGEN!$A$9:$Z$150,13,FALSE),0) -> 0.03129 | AD84: =+IFERROR(VLOOKUP($A84,ITV_CENEGEN!$A$9:$Z$150,21,FALSE),0) -> 0 | AH84: =+IFERROR(VLOOKUP($A84,ITV_CPOTGEN!$A$9:$Z$150,13,FALSE),0) -> 0.03775 | AI84: =+IFERROR(VLOOKUP($A84,ITV_CPOTGEN!$A$9:$Z$150,21,FALSE),0) -> 0 | AM84: =+IFERROR(VLOOKUP($A84,ITV_CCONAP!$A$8:$Z$149,13,FALSE),0) -> 0.00316 | AN84: =+IFERROR(VLOOKUP($A84,ITV_CCONAP!$A$8:$Z$149,21,FALSE),0) -> 0 | AR84: =+IFERROR(VLOOKUP($A84,ITV_CPT!$A$8:$Z$149,13,FALSE),0) -> 0.00272 | AS84: =+IFERROR(VLOOKUP($A84,ITV_CPT!$A$8:$Z$149,21,FALSE),0) -> 0.04 | AW84: =+IFERROR(VLOOKUP($A84,ITV_CPET!$A$8:$Z$149,13,FALSE),0) -> 8e-05 | AX84: =+IFERROR(VLOOKUP($A84,ITV_CPET!$A$8:$Z$149,21,FALSE),0) -> 0 | BB84: =+IFERROR(VLOOKUP($A84,ITV_CPERDP!$A$8:$Z$149,13,FALSE),0) -> 0 | BC84: =+IFERROR(VLOOKUP($A84,ITV_CPERDP!$A$8:$Z$149,21,FALSE),0) -> 0 | BG84: =+IFERROR(VLOOKUP($A84,ITV_CPERDE!$A$8:$Z$149,13,FALSE),0) -> 0.00569 | BH84: =+IFERROR(VLOOKUP($A84,ITV_CPERDE!$A$8:$Z$149,21,FALSE),0) -> 0.01
A85: ATD | D85: =+IFERROR(VLOOKUP($A85,ITV_CD!$A$8:$AA$149,13,FALSE),0) -> 0 | E85: =+IFERROR(VLOOKUP($A85,ITV_CD!$A$8:$AA$149,21,FALSE),0) -> 16.78 | J85: =+IFERROR(VLOOKUP($A85,ITV_CCOMF!$A$8:$AA$149,13,FALSE),0) -> 14.19 | N85: =+IFERROR(VLOOKUP($A85,ITV_CCOMV!$A$8:$AA$149,13,FALSE),0) -> 0.01121 | O85: =+IFERROR(VLOOKUP($A85,ITV_CCOMV!$A$8:$AA$149,21,FALSE),0) -> 0 | S85: =+IFERROR(VLOOKUP($A85,ITV_CSERAP!$A$8:$AA$149,13,FALSE),0) -> 0.00124 | T85: =+IFERROR(VLOOKUP($A85,ITV_CSERAP!$A$8:$AA$149,21,FALSE),0) -> 0 | Y85: =+IFERROR(VLOOKUP($A85,ITV_CX!$A$8:$AA$149,13,FALSE),0) -> 201.89 | AC85: =+IFERROR(VLOOKUP($A85,ITV_CENEGEN!$A$9:$Z$150,13,FALSE),0) -> 0.04317 | AD85: =+IFERROR(VLOOKUP($A85,ITV_CENEGEN!$A$9:$Z$150,21,FALSE),0) -> 0 | AH85: =+IFERROR(VLOOKUP($A85,ITV_CPOTGEN!$A$9:$Z$150,13,FALSE),0) -> 0.06074 | AI85: =+IFERROR(VLOOKUP($A85,ITV_CPOTGEN!$A$9:$Z$150,21,FALSE),0) -> 1.97 | AM85: =+IFERROR(VLOOKUP($A85,ITV_CCONAP!$A$8:$Z$149,13,FALSE),0) -> 0.00316 | AN85: =+IFERROR(VLOOKUP($A85,ITV_CCONAP!$A$8:$Z$149,21,FALSE),0) -> 0 | AR85: =+IFERROR(VLOOKUP($A85,ITV_CPT!$A$8:$Z$149,13,FALSE),0) -> 0.01006 | AS85: =+IFERROR(VLOOKUP($A85,ITV_CPT!$A$8:$Z$149,21,FALSE),0) -> 1.84 | AW85: =+IFERROR(VLOOKUP($A85,ITV_CPET!$A$8:$Z$149,13,FALSE),0) -> 8e-05 | AX85: =+IFERROR(VLOOKUP($A85,ITV_CPET!$A$8:$Z$149,21,FALSE),0) -> 0 | BB85: =+IFERROR(VLOOKUP($A85,ITV_CPERDP!$A$8:$Z$149,13,FALSE),0) -> 0 | BC85: =+IFERROR(VLOOKUP($A85,ITV_CPERDP!$A$8:$Z$149,21,FALSE),0) -> 0 | BG85: =+IFERROR(VLOOKUP($A85,ITV_CPERDE!$A$8:$Z$149,13,FALSE),0) -> 0.00607 | BH85: =+IFERROR(VLOOKUP($A85,ITV_CPERDE!$A$8:$Z$149,21,FALSE),0) -> 0.11
A86: MTH | D86: =+IFERROR(VLOOKUP($A86,ITV_CD!$A$8:$AA$149,13,FALSE),0) -> 0 | E86: =+IFERROR(VLOOKUP($A86,ITV_CD!$A$8:$AA$149,21,FALSE),0) -> 0 | J86: =+IFERROR(VLOOKUP($A86,ITV_CCOMF!$A$8:$AA$149,13,FALSE),0) -> 14.19 | N86: =+IFERROR(VLOOKUP($A86,ITV_CCOMV!$A$8:$AA$149,13,FALSE),0) -> 0 | O86: =+IFERROR(VLOOKUP($A86,ITV_CCOMV!$A$8:$AA$149,21,FALSE),0) -> 0 | S86: =+IFERROR(VLOOKUP($A86,ITV_CSERAP!$A$8:$AA$149,13,FALSE),0) -> 0 | T86: =+IFERROR(VLOOKUP($A86,ITV_CSERAP!$A$8:$AA$149,21,FALSE),0) -> 0 | Y86: =+IFERROR(VLOOKUP($A86,ITV_CX!$A$8:$AA$149,13,FALSE),0) -> 141.31 | AC86: =+IFERROR(VLOOKUP($A86,ITV_CENEGEN!$A$9:$Z$150,13,FALSE),0) -> 0 | AD86: =+IFERROR(VLOOKUP($A86,ITV_CENEGEN!$A$9:$Z$150,21,FALSE),0) -> 0 | AH86: =+IFERROR(VLOOKUP($A86,ITV_CPOTGEN!$A$9:$Z$150,13,FALSE),0) -> 0 | AI86: =+IFERROR(VLOOKUP($A86,ITV_CPOTGEN!$A$9:$Z$150,21,FALSE),0) -> 0 | AM86: =+IFERROR(VLOOKUP($A86,ITV_CCONAP!$A$8:$Z$149,13,FALSE),0) -> 0 | AN86: =+IFERROR(VLOOKUP($A86,ITV_CCONAP!$A$8:$Z$149,21,FALSE),0) -> 0 | AR86: =+IFERROR(VLOOKUP($A86,ITV_CPT!$A$8:$Z$149,13,FALSE),0) -> 0 | AS86: =+IFERROR(VLOOKUP($A86,ITV_CPT!$A$8:$Z$149,21,FALSE),0) -> 0 | AW86: =+IFERROR(VLOOKUP($A86,ITV_CPET!$A$8:$Z$149,13,FALSE),0) -> 0 | AX86: =+IFERROR(VLOOKUP($A86,ITV_CPET!$A$8:$Z$149,21,FALSE),0) -> 0 | BB86: =+IFERROR(VLOOKUP($A86,ITV_CPERDP!$A$8:$Z$149,13,FALSE),0) -> 0 | BC86: =+IFERROR(VLOOKUP($A86,ITV_CPERDP!$A$8:$Z$149,21,FALSE),0) -> 0 | BG86: =+IFERROR(VLOOKUP($A86,ITV_CPERDE!$A$8:$Z$149,13,FALSE),0) -> 0 | BH86: =+IFERROR(VLOOKUP($A86,ITV_CPERDE!$A$8:$Z$149,21,FALSE),0) -> 0
A87: MTH Punta | D87: =+IFERROR(VLOOKUP($A87,ITV_CD!$A$8:$AA$149,13,FALSE),0) -> 0 | E87: =+IFERROR(VLOOKUP($A87,ITV_CD!$A$8:$AA$149,21,FALSE),0) -> 23.2 | J87: =+IFERROR(VLOOKUP($A87,ITV_CCOMF!$A$8:$AA$149,13,FALSE),0) -> 0 | N87: =+IFERROR(VLOOKUP($A87,ITV_CCOMV!$A$8:$AA$149,13,FALSE),0) -> 0.01121 | O87: =+IFERROR(VLOOKUP($A87,ITV_CCOMV!$A$8:$AA$149,21,FALSE),0) -> 0 | S87: =+IFERROR(VLOOKUP($A87,ITV_CSERAP!$A$8:$AA$149,13,FALSE),0) -> 0.00124 | T87: =+IFERROR(VLOOKUP($A87,ITV_CSERAP!$A$8:$AA$149,21,FALSE),0) -> 0 | Y87: =+IFERROR(VLOOKUP($A87,ITV_CX!$A$8:$AA$149,13,FALSE),0) -> 0 | AC87: =+IFERROR(VLOOKUP($A87,ITV_CENEGEN!$A$9:$Z$150,13,FALSE),0) -> 0.22752 | AD87: =+IFERROR(VLOOKUP($A87,ITV_CENEGEN!$A$9:$Z$150,21,FALSE),0) -> 0 | AH87: =+IFERROR(VLOOKUP($A87,ITV_CPOTGEN!$A$9:$Z$150,13,FALSE),0) -> 1e-05 | AI87: =+IFERROR(VLOOKUP($A87,ITV_CPOTGEN!$A$9:$Z$150,21,FALSE),0) -> 0.01 | AM87: =+IFERROR(VLOOKUP($A87,ITV_CCONAP!$A$8:$Z$149,13,FALSE),0) -> 0.00316 | AN87: =+IFERROR(VLOOKUP($A87,ITV_CCONAP!$A$8:$Z$149,21,FALSE),0) -> 0 | AR87: =+IFERROR(VLOOKUP($A87,ITV_CPT!$A$8:$Z$149,13,FALSE),0) -> 0.00068 | AS87: =+IFERROR(VLOOKUP($A87,ITV_CPT!$A$8:$Z$149,21,FALSE),0) -> 1.95 | AW87: =+IFERROR(VLOOKUP($A87,ITV_CPET!$A$8:$Z$149,13,FALSE),0) -> 8e-05 | AX87: =+IFERROR(VLOOKUP($A87,ITV_CPET!$A$8:$Z$149,21,FALSE),0) -> 0 | BB87: =+IFERROR(VLOOKUP($A87,ITV_CPERDP!$A$8:$Z$149,13,FALSE),0) -> 0 | BC87: =+IFERROR(VLOOKUP($A87,ITV_CPERDP!$A$8:$Z$149,21,FALSE),0) -> 0 | BG87: =+IFERROR(VLOOKUP($A87,ITV_CPERDE!$A$8:$Z$149,13,FALSE),0) -> 0.00807 | BH87: =+IFERROR(VLOOKUP($A87,ITV_CPERDE!$A$8:$Z$149,21,FALSE),0) -> 0.19
A88: =+A15 -> MTH Fuera de Punta Medio | D88: =+IFERROR(VLOOKUP($A88,ITV_CD!$A$8:$AA$149,13,FALSE),0) -> 0 | E88: =+IFERROR(VLOOKUP($A88,ITV_CD!$A$8:$AA$149,21,FALSE),0) -> 3.4 | J88: =+IFERROR(VLOOKUP($A88,ITV_CCOMF!$A$8:$AA$149,13,FALSE),0) -> 0 | N88: =+IFERROR(VLOOKUP($A88,ITV_CCOMV!$A$8:$AA$149,13,FALSE),0) -> 0.01121 | O88: =+IFERROR(VLOOKUP($A88,ITV_CCOMV!$A$8:$AA$149,21,FALSE),0) -> 0 | S88: =+IFERROR(VLOOKUP($A88,ITV_CSERAP!$A$8:$AA$149,13,FALSE),0) -> 0.00124 | T88: =+IFERROR(VLOOKUP($A88,ITV_CSERAP!$A$8:$AA$149,21,FALSE),0) -> 0 | Y88: =+IFERROR(VLOOKUP($A88,ITV_CX!$A$8:$AA$149,13,FALSE),0) -> 0 | AC88: =+IFERROR(VLOOKUP($A88,ITV_CENEGEN!$A$9:$Z$150,13,FALSE),0) -> 0.11375 | AD88: =+IFERROR(VLOOKUP($A88,ITV_CENEGEN!$A$9:$Z$150,21,FALSE),0) -> 0 | AH88: =+IFERROR(VLOOKUP($A88,ITV_CPOTGEN!$A$9:$Z$150,13,FALSE),0) -> 1e-05 | AI88: =+IFERROR(VLOOKUP($A88,ITV_CPOTGEN!$A$9:$Z$150,21,FALSE),0) -> 0 | AM88: =+IFERROR(VLOOKUP($A88,ITV_CCONAP!$A$8:$Z$149,13,FALSE),0) -> 0.00316 | AN88: =+IFERROR(VLOOKUP($A88,ITV_CCONAP!$A$8:$Z$149,21,FALSE),0) -> 0 | AR88: =+IFERROR(VLOOKUP($A88,ITV_CPT!$A$8:$Z$149,13,FALSE),0) -> 0.00068 | AS88: =+IFERROR(VLOOKUP($A88,ITV_CPT!$A$8:$Z$149,21,FALSE),0) -> 0.1 | AW88: =+IFERROR(VLOOKUP($A88,ITV_CPET!$A$8:$Z$149,13,FALSE),0) -> 8e-05 | AX88: =+IFERROR(VLOOKUP($A88,ITV_CPET!$A$8:$Z$149,21,FALSE),0) -> 0 | BB88: =+IFERROR(VLOOKUP($A88,ITV_CPERDP!$A$8:$Z$149,13,FALSE),0) -> 0 | BC88: =+IFERROR(VLOOKUP($A88,ITV_CPERDP!$A$8:$Z$149,21,FALSE),0) -> 0 | BG88: =+IFERROR(VLOOKUP($A88,ITV_CPERDE!$A$8:$Z$149,13,FALSE),0) -> 0.00603 | BH88: =+IFERROR(VLOOKUP($A88,ITV_CPERDE!$A$8:$Z$149,21,FALSE),0) -> 0.12
A89: MTH Fuera de Punta Bajo | D89: =+IFERROR(VLOOKUP($A89,ITV_CD!$A$8:$AA$149,13,FALSE),0) -> 0 | E89: =+IFERROR(VLOOKUP($A89,ITV_CD!$A$8:$AA$149,21,FALSE),0) -> 3.4 | J89: =+IFERROR(VLOOKUP($A89,ITV_CCOMF!$A$8:$AA$149,13,FALSE),0) -> 0 | N89: =+IFERROR(VLOOKUP($A89,ITV_CCOMV!$A$8:$AA$149,13,FALSE),0) -> 0.01121 | O89: =+IFERROR(VLOOKUP($A89,ITV_CCOMV!$A$8:$AA$149,21,FALSE),0) -> 0 | S89: =+IFERROR(VLOOKUP($A89,ITV_CSERAP!$A$8:$AA$149,13,FALSE),0) -> 0.00124 | T89: =+IFERROR(VLOOKUP($A89,ITV_CSERAP!$A$8:$AA$149,21,FALSE),0) -> 0 | Y89: =+IFERROR(VLOOKUP($A89,ITV_CX!$A$8:$AA$149,13,FALSE),0) -> 0 | AC89: =+IFERROR(VLOOKUP($A89,ITV_CENEGEN!$A$9:$Z$150,13,FALSE),0) -> 0.05987 | AD89: =+IFERROR(VLOOKUP($A89,ITV_CENEGEN!$A$9:$Z$150,21,FALSE),0) -> 0 | AH89: =+IFERROR(VLOOKUP($A89,ITV_CPOTGEN!$A$9:$Z$150,13,FALSE),0) -> 1e-05 | AI89: =+IFERROR(VLOOKUP($A89,ITV_CPOTGEN!$A$9:$Z$150,21,FALSE),0) -> 0 | AM89: =+IFERROR(VLOOKUP($A89,ITV_CCONAP!$A$8:$Z$149,13,FALSE),0) -> 0.00316 | AN89: =+IFERROR(VLOOKUP($A89,ITV_CCONAP!$A$8:$Z$149,21,FALSE),0) -> 0 | AR89: =+IFERROR(VLOOKUP($A89,ITV_CPT!$A$8:$Z$149,13,FALSE),0) -> 0.00068 | AS89: =+IFERROR(VLOOKUP($A89,ITV_CPT!$A$8:$Z$149,21,FALSE),0) -> 0.1 | AW89: =+IFERROR(VLOOKUP($A89,ITV_CPET!$A$8:$Z$149,13,FALSE),0) -> 8e-05 | AX89: =+IFERROR(VLOOKUP($A89,ITV_CPET!$A$8:$Z$149,21,FALSE),0) -> 0 | BB89: =+IFERROR(VLOOKUP($A89,ITV_CPERDP!$A$8:$Z$149,13,FALSE),0) -> 0 | BC89: =+IFERROR(VLOOKUP($A89,ITV_CPERDP!$A$8:$Z$149,21,FALSE),0) -> 0 | BG89: =+IFERROR(VLOOKUP($A89,ITV_CPERDE!$A$8:$Z$149,13,FALSE),0) -> 0.00603 | BH89: =+IFERROR(VLOOKUP($A89,ITV_CPERDE!$A$8:$Z$149,21,FALSE),0) -> 0.12
A90: MTD | D90: =+IFERROR(VLOOKUP($A90,ITV_CD!$A$8:$AA$149,13,FALSE),0) -> 0 | E90: =+IFERROR(VLOOKUP($A90,ITV_CD!$A$8:$AA$149,21,FALSE),0) -> 0 | J90: =+IFERROR(VLOOKUP($A90,ITV_CCOMF!$A$8:$AA$149,13,FALSE),0) -> 14.21 | N90: =+IFERROR(VLOOKUP($A90,ITV_CCOMV!$A$8:$AA$149,13,FALSE),0) -> 0 | O90: =+IFERROR(VLOOKUP($A90,ITV_CCOMV!$A$8:$AA$149,21,FALSE),0) -> 0 | S90: =+IFERROR(VLOOKUP($A90,ITV_CSERAP!$A$8:$AA$149,13,FALSE),0) -> 0 | T90: =+IFERROR(VLOOKUP($A90,ITV_CSERAP!$A$8:$AA$149,21,FALSE),0) -> 0 | Y90: =+IFERROR(VLOOKUP($A90,ITV_CX!$A$8:$AA$149,13,FALSE),0) -> 141.31 | AC90: =+IFERROR(VLOOKUP($A90,ITV_CENEGEN!$A$9:$Z$150,13,FALSE),0) -> 0 | AD90: =+IFERROR(VLOOKUP($A90,ITV_CENEGEN!$A$9:$Z$150,21,FALSE),0) -> 0 | AH90: =+IFERROR(VLOOKUP($A90,ITV_CPOTGEN!$A$9:$Z$150,13,FALSE),0) -> 0 | AI90: =+IFERROR(VLOOKUP($A90,ITV_CPOTGEN!$A$9:$Z$150,21,FALSE),0) -> 0 | AM90: =+IFERROR(VLOOKUP($A90,ITV_CCONAP!$A$8:$Z$149,13,FALSE),0) -> 0 | AN90: =+IFERROR(VLOOKUP($A90,ITV_CCONAP!$A$8:$Z$149,21,FALSE),0) -> 0 | AR90: =+IFERROR(VLOOKUP($A90,ITV_CPT!$A$8:$Z$149,13,FALSE),0) -> 0 | AS90: =+IFERROR(VLOOKUP($A90,ITV_CPT!$A$8:$Z$149,21,FALSE),0) -> 0 | AW90: =+IFERROR(VLOOKUP($A90,ITV_CPET!$A$8:$Z$149,13,FALSE),0) -> 0 | AX90: =+IFERROR(VLOOKUP($A90,ITV_CPET!$A$8:$Z$149,21,FALSE),0) -> 0 | BB90: =+IFERROR(VLOOKUP($A90,ITV_CPERDP!$A$8:$Z$149,13,FALSE),0) -> 0 | BC90: =+IFERROR(VLOOKUP($A90,ITV_CPERDP!$A$8:$Z$149,21,FALSE),0) -> 0 | BG90: =+IFERROR(VLOOKUP($A90,ITV_CPERDE!$A$8:$Z$149,13,FALSE),0) -> 0 | BH90: =+IFERROR(VLOOKUP($A90,ITV_CPERDE!$A$8:$Z$149,21,FALSE),0) -> 0
A91: MTD_1 (0-10,000) | D91: =+IFERROR(VLOOKUP($A91,ITV_CD!$A$8:$AA$149,13,FALSE),0) -> 0 | E91: =+IFERROR(VLOOKUP($A91,ITV_CD!$A$8:$AA$149,21,FALSE),0) -> 22.12 | J91: =+IFERROR(VLOOKUP($A91,ITV_CCOMF!$A$8:$AA$149,13,FALSE),0) -> 14.21 | N91: =+IFERROR(VLOOKUP($A91,ITV_CCOMV!$A$8:$AA$149,13,FALSE),0) -> 0.01121 | O91: =+IFERROR(VLOOKUP($A91,ITV_CCOMV!$A$8:$AA$149,21,FALSE),0) -> 0 | S91: =+IFERROR(VLOOKUP($A91,ITV_CSERAP!$A$8:$AA$149,13,FALSE),0) -> 0.00124 | T91: =+IFERROR(VLOOKUP($A91,ITV_CSERAP!$A$8:$AA$149,21,FALSE),0) -> 0 | Y91: =+IFERROR(VLOOKUP($A91,ITV_CX!$A$8:$AA$149,13,FALSE),0) -> 0 | AC91: =+IFERROR(VLOOKUP($A91,ITV_CENEGEN!$A$9:$Z$150,13,FALSE),0) -> 0.08235 | AD91: =+IFERROR(VLOOKUP($A91,ITV_CENEGEN!$A$9:$Z$150,21,FALSE),0) -> 0 | AH91: =+IFERROR(VLOOKUP($A91,ITV_CPOTGEN!$A$9:$Z$150,13,FALSE),0) -> 0.0158 | AI91: =+IFERROR(VLOOKUP($A91,ITV_CPOTGEN!$A$9:$Z$150,21,FALSE),0) -> 0.98 | AM91: =+IFERROR(VLOOKUP($A91,ITV_CCONAP!$A$8:$Z$149,13,FALSE),0) -> 0.00316 | AN91: =+IFERROR(VLOOKUP($A91,ITV_CCONAP!$A$8:$Z$149,21,FALSE),0) -> 0 | AR91: =+IFERROR(VLOOKUP($A91,ITV_CPT!$A$8:$Z$149,13,FALSE),0) -> 0.00344 | AS91: =+IFERROR(VLOOKUP($A91,ITV_CPT!$A$8:$Z$149,21,FALSE),0) -> 1.2 | AW91: =+IFERROR(VLOOKUP($A91,ITV_CPET!$A$8:$Z$149,13,FALSE),0) -> 8e-05 | AX91: =+IFERROR(VLOOKUP($A91,ITV_CPET!$A$8:$Z$149,21,FALSE),0) -> 0 | BB91: =+IFERROR(VLOOKUP($A91,ITV_CPERDP!$A$8:$Z$149,13,FALSE),0) -> 0 | BC91: =+IFERROR(VLOOKUP($A91,ITV_CPERDP!$A$8:$Z$149,21,FALSE),0) -> 0 | BG91: =+IFERROR(VLOOKUP($A91,ITV_CPERDE!$A$8:$Z$149,13,FALSE),0) -> 0.00607 | BH91: =+IFERROR(VLOOKUP($A91,ITV_CPERDE!$A$8:$Z$149,21,FALSE),0) -> 0.19
A92: MTD_2 (10,001-30,000) | D92: =+IFERROR(VLOOKUP($A92,ITV_CD!$A$8:$AA$149,13,FALSE),0) -> 0 | E92: =+IFERROR(VLOOKUP($A92,ITV_CD!$A$8:$AA$149,21,FALSE),0) -> 22.12 | J92: =+IFERROR(VLOOKUP($A92,ITV_CCOMF!$A$8:$AA$149,13,FALSE),0) -> 14.21 | N92: =+IFERROR(VLOOKUP($A92,ITV_CCOMV!$A$8:$AA$149,13,FALSE),0) -> 0.01121 | O92: =+IFERROR(VLOOKUP($A92,ITV_CCOMV!$A$8:$AA$149,21,FALSE),0) -> 0 | S92: =+IFERROR(VLOOKUP($A92,ITV_CSERAP!$A$8:$AA$149,13,FALSE),0) -> 0.00124 | T92: =+IFERROR(VLOOKUP($A92,ITV_CSERAP!$A$8:$AA$149,21,FALSE),0) -> 0 | Y92: =+IFERROR(VLOOKUP($A92,ITV_CX!$A$8:$AA$149,13,FALSE),0) -> 0 | AC92: =+IFERROR(VLOOKUP($A92,ITV_CENEGEN!$A$9:$Z$150,13,FALSE),0) -> 0.08235 | AD92: =+IFERROR(VLOOKUP($A92,ITV_CENEGEN!$A$9:$Z$150,21,FALSE),0) -> 0 | AH92: =+IFERROR(VLOOKUP($A92,ITV_CPOTGEN!$A$9:$Z$150,13,FALSE),0) -> 0.0158 | AI92: =+IFERROR(VLOOKUP($A92,ITV_CPOTGEN!$A$9:$Z$150,21,FALSE),0) -> 0.98 | AM92: =+IFERROR(VLOOKUP($A92,ITV_CCONAP!$A$8:$Z$149,13,FALSE),0) -> 0.00316 | AN92: =+IFERROR(VLOOKUP($A92,ITV_CCONAP!$A$8:$Z$149,21,FALSE),0) -> 0 | AR92: =+IFERROR(VLOOKUP($A92,ITV_CPT!$A$8:$Z$149,13,FALSE),0) -> 0.00344 | AS92: =+IFERROR(VLOOKUP($A92,ITV_CPT!$A$8:$Z$149,21,FALSE),0) -> 1.2 | AW92: =+IFERROR(VLOOKUP($A92,ITV_CPET!$A$8:$Z$149,13,FALSE),0) -> 8e-05 | AX92: =+IFERROR(VLOOKUP($A92,ITV_CPET!$A$8:$Z$149,21,FALSE),0) -> 0 | BB92: =+IFERROR(VLOOKUP($A92,ITV_CPERDP!$A$8:$Z$149,13,FALSE),0) -> 0 | BC92: =+IFERROR(VLOOKUP($A92,ITV_CPERDP!$A$8:$Z$149,21,FALSE),0) -> 0 | BG92: =+IFERROR(VLOOKUP($A92,ITV_CPERDE!$A$8:$Z$149,13,FALSE),0) -> 0.00607 | BH92: =+IFERROR(VLOOKUP($A92,ITV_CPERDE!$A$8:$Z$149,21,FALSE),0) -> 0.19
A93: MTD_3 (30,001-50,000) | D93: =+IFERROR(VLOOKUP($A93,ITV_CD!$A$8:$AA$149,13,FALSE),0) -> 0 | E93: =+IFERROR(VLOOKUP($A93,ITV_CD!$A$8:$AA$149,21,FALSE),0) -> 22.12 | J93: =+IFERROR(VLOOKUP($A93,ITV_CCOMF!$A$8:$AA$149,13,FALSE),0) -> 14.21 | N93: =+IFERROR(VLOOKUP($A93,ITV_CCOMV!$A$8:$AA$149,13,FALSE),0) -> 0.01121 | O93: =+IFERROR(VLOOKUP($A93,ITV_CCOMV!$A$8:$AA$149,21,FALSE),0) -> 0 | S93: =+IFERROR(VLOOKUP($A93,ITV_CSERAP!$A$8:$AA$149,13,FALSE),0) -> 0.00124 | T93: =+IFERROR(VLOOKUP($A93,ITV_CSERAP!$A$8:$AA$149,21,FALSE),0) -> 0 | Y93: =+IFERROR(VLOOKUP($A93,ITV_CX!$A$8:$AA$149,13,FALSE),0) -> 0 | AC93: =+IFERROR(VLOOKUP($A93,ITV_CENEGEN!$A$9:$Z$150,13,FALSE),0) -> 0.08235 | AD93: =+IFERROR(VLOOKUP($A93,ITV_CENEGEN!$A$9:$Z$150,21,FALSE),0) -> 0 | AH93: =+IFERROR(VLOOKUP($A93,ITV_CPOTGEN!$A$9:$Z$150,13,FALSE),0) -> 0.0158 | AI93: =+IFERROR(VLOOKUP($A93,ITV_CPOTGEN!$A$9:$Z$150,21,FALSE),0) -> 0.98 | AM93: =+IFERROR(VLOOKUP($A93,ITV_CCONAP!$A$8:$Z$149,13,FALSE),0) -> 0.00316 | AN93: =+IFERROR(VLOOKUP($A93,ITV_CCONAP!$A$8:$Z$149,21,FALSE),0) -> 0 | AR93: =+IFERROR(VLOOKUP($A93,ITV_CPT!$A$8:$Z$149,13,FALSE),0) -> 0.00344 | AS93: =+IFERROR(VLOOKUP($A93,ITV_CPT!$A$8:$Z$149,21,FALSE),0) -> 1.2 | AW93: =+IFERROR(VLOOKUP($A93,ITV_CPET!$A$8:$Z$149,13,FALSE),0) -> 8e-05 | AX93: =+IFERROR(VLOOKUP($A93,ITV_CPET!$A$8:$Z$149,21,FALSE),0) -> 0 | BB93: =+IFERROR(VLOOKUP($A93,ITV_CPERDP!$A$8:$Z$149,13,FALSE),0) -> 0 | BC93: =+IFERROR(VLOOKUP($A93,ITV_CPERDP!$A$8:$Z$149,21,FALSE),0) -> 0 | BG93: =+IFERROR(VLOOKUP($A93,ITV_CPERDE!$A$8:$Z$149,13,FALSE),0) -> 0.00607 | BH93: =+IFERROR(VLOOKUP($A93,ITV_CPERDE!$A$8:$Z$149,21,FALSE),0) -> 0.19
A94: MTD_4 (50,001-más) | D94: =+IFERROR(VLOOKUP($A94,ITV_CD!$A$8:$AA$149,13,FALSE),0) -> 0 | E94: =+IFERROR(VLOOKUP($A94,ITV_CD!$A$8:$AA$149,21,FALSE),0) -> 22.12 | J94: =+IFERROR(VLOOKUP($A94,ITV_CCOMF!$A$8:$AA$149,13,FALSE),0) -> 14.21 | N94: =+IFERROR(VLOOKUP($A94,ITV_CCOMV!$A$8:$AA$149,13,FALSE),0) -> 0.01121 | O94: =+IFERROR(VLOOKUP($A94,ITV_CCOMV!$A$8:$AA$149,21,FALSE),0) -> 0 | S94: =+IFERROR(VLOOKUP($A94,ITV_CSERAP!$A$8:$AA$149,13,FALSE),0) -> 0.00124 | T94: =+IFERROR(VLOOKUP($A94,ITV_CSERAP!$A$8:$AA$149,21,FALSE),0) -> 0 | Y94: =+IFERROR(VLOOKUP($A94,ITV_CX!$A$8:$AA$149,13,FALSE),0) -> 0 | AC94: =+IFERROR(VLOOKUP($A94,ITV_CENEGEN!$A$9:$Z$150,13,FALSE),0) -> 0.08235 | AD94: =+IFERROR(VLOOKUP($A94,ITV_CENEGEN!$A$9:$Z$150,21,FALSE),0) -> 0 | AH94: =+IFERROR(VLOOKUP($A94,ITV_CPOTGEN!$A$9:$Z$150,13,FALSE),0) -> 0.0158 | AI94: =+IFERROR(VLOOKUP($A94,ITV_CPOTGEN!$A$9:$Z$150,21,FALSE),0) -> 0.98 | AM94: =+IFERROR(VLOOKUP($A94,ITV_CCONAP!$A$8:$Z$149,13,FALSE),0) -> 0.00316 | AN94: =+IFERROR(VLOOKUP($A94,ITV_CCONAP!$A$8:$Z$149,21,FALSE),0) -> 0 | AR94: =+IFERROR(VLOOKUP($A94,ITV_CPT!$A$8:$Z$149,13,FALSE),0) -> 0.00344 | AS94: =+IFERROR(VLOOKUP($A94,ITV_CPT!$A$8:$Z$149,21,FALSE),0) -> 1.2 | AW94: =+IFERROR(VLOOKUP($A94,ITV_CPET!$A$8:$Z$149,13,FALSE),0) -> 8e-05 | AX94: =+IFERROR(VLOOKUP($A94,ITV_CPET!$A$8:$Z$149,21,FALSE),0) -> 0 | BB94: =+IFERROR(VLOOKUP($A94,ITV_CPERDP!$A$8:$Z$149,13,FALSE),0) -> 0 | BC94: =+IFERROR(VLOOKUP($A94,ITV_CPERDP!$A$8:$Z$149,21,FALSE),0) -> 0 | BG94: =+IFERROR(VLOOKUP($A94,ITV_CPERDE!$A$8:$Z$149,13,FALSE),0) -> 0.00607 | BH94: =+IFERROR(VLOOKUP($A94,ITV_CPERDE!$A$8:$Z$149,21,FALSE),0) -> 0.19
A95: MTD_5 (xxx) | D95: =+IFERROR(VLOOKUP($A95,ITV_CD!$A$8:$AA$149,13,FALSE),0) -> 0 | E95: =+IFERROR(VLOOKUP($A95,ITV_CD!$A$8:$AA$149,21,FALSE),0) -> 0 | J95: =+IFERROR(VLOOKUP($A95,ITV_CCOMF!$A$8:$AA$149,13,FALSE),0) -> 0 | N95: =+IFERROR(VLOOKUP($A95,ITV_CCOMV!$A$8:$AA$149,13,FALSE),0) -> 0 | O95: =+IFERROR(VLOOKUP($A95,ITV_CCOMV!$A$8:$AA$149,21,FALSE),0) -> 0 | S95: =+IFERROR(VLOOKUP($A95,ITV_CSERAP!$A$8:$AA$149,13,FALSE),0) -> 0 | T95: =+IFERROR(VLOOKUP($A95,ITV_CSERAP!$A$8:$AA$149,21,FALSE),0) -> 0 | Y95: =+IFERROR(VLOOKUP($A95,ITV_CX!$A$8:$AA$149,13,FALSE),0) -> 0 | AC95: =+IFERROR(VLOOKUP($A95,ITV_CENEGEN!$A$9:$Z$150,13,FALSE),0) -> 0 | AD95: =+IFERROR(VLOOKUP($A95,ITV_CENEGEN!$A$9:$Z$150,21,FALSE),0) -> 0 | AH95: =+IFERROR(VLOOKUP($A95,ITV_CPOTGEN!$A$9:$Z$150,13,FALSE),0) -> 0 | AI95: =+IFERROR(VLOOKUP($A95,ITV_CPOTGEN!$A$9:$Z$150,21,FALSE),0) -> 0 | AM95: =+IFERROR(VLOOKUP($A95,ITV_CCONAP!$A$8:$Z$149,13,FALSE),0) -> 0 | AN95: =+IFERROR(VLOOKUP($A95,ITV_CCONAP!$A$8:$Z$149,21,FALSE),0) -> 0 | AR95: =+IFERROR(VLOOKUP($A95,ITV_CPT!$A$8:$Z$149,13,FALSE),0) -> 0 | AS95: =+IFERROR(VLOOKUP($A95,ITV_CPT!$A$8:$Z$149,21,FALSE),0) -> 0 | AW95: =+IFERROR(VLOOKUP($A95,ITV_CPET!$A$8:$Z$149,13,FALSE),0) -> 0 | AX95: =+IFERROR(VLOOKUP($A95,ITV_CPET!$A$8:$Z$149,21,FALSE),0) -> 0 | BB95: =+IFERROR(VLOOKUP($A95,ITV_CPERDP!$A$8:$Z$149,13,FALSE),0) -> 0 | BC95: =+IFERROR(VLOOKUP($A95,ITV_CPERDP!$A$8:$Z$149,21,FALSE),0) -> 0 | BG95: =+IFERROR(VLOOKUP($A95,ITV_CPERDE!$A$8:$Z$149,13,FALSE),0) -> 0 | BH95: =+IFERROR(VLOOKUP($A95,ITV_CPERDE!$A$8:$Z$149,21,FALSE),0) -> 0
A96: BTH | D96: =+IFERROR(VLOOKUP($A96,ITV_CD!$A$8:$AA$149,13,FALSE),0) -> 0 | E96: =+IFERROR(VLOOKUP($A96,ITV_CD!$A$8:$AA$149,21,FALSE),0) -> 0 | J96: =+IFERROR(VLOOKUP($A96,ITV_CCOMF!$A$8:$AA$149,13,FALSE),0) -> 5.65 | N96: =+IFERROR(VLOOKUP($A96,ITV_CCOMV!$A$8:$AA$149,13,FALSE),0) -> 0 | O96: =+IFERROR(VLOOKUP($A96,ITV_CCOMV!$A$8:$AA$149,21,FALSE),0) -> 0 | S96: =+IFERROR(VLOOKUP($A96,ITV_CSERAP!$A$8:$AA$149,13,FALSE),0) -> 0 | T96: =+IFERROR(VLOOKUP($A96,ITV_CSERAP!$A$8:$AA$149,21,FALSE),0) -> 0 | Y96: =+IFERROR(VLOOKUP($A96,ITV_CX!$A$8:$AA$149,13,FALSE),0) -> 71.76 | AC96: =+IFERROR(VLOOKUP($A96,ITV_CENEGEN!$A$9:$Z$150,13,FALSE),0) -> 0 | AD96: =+IFERROR(VLOOKUP($A96,ITV_CENEGEN!$A$9:$Z$150,21,FALSE),0) -> 0 | AH96: =+IFERROR(VLOOKUP($A96,ITV_CPOTGEN!$A$9:$Z$150,13,FALSE),0) -> 0 | AI96: =+IFERROR(VLOOKUP($A96,ITV_CPOTGEN!$A$9:$Z$150,21,FALSE),0) -> 0 | AM96: =+IFERROR(VLOOKUP($A96,ITV_CCONAP!$A$8:$Z$149,13,FALSE),0) -> 0 | AN96: =+IFERROR(VLOOKUP($A96,ITV_CCONAP!$A$8:$Z$149,21,FALSE),0) -> 0 | AR96: =+IFERROR(VLOOKUP($A96,ITV_CPT!$A$8:$Z$149,13,FALSE),0) -> 0 | AS96: =+IFERROR(VLOOKUP($A96,ITV_CPT!$A$8:$Z$149,21,FALSE),0) -> 0 | AW96: =+IFERROR(VLOOKUP($A96,ITV_CPET!$A$8:$Z$149,13,FALSE),0) -> 0 | AX96: =+IFERROR(VLOOKUP($A96,ITV_CPET!$A$8:$Z$149,21,FALSE),0) -> 0 | BB96: =+IFERROR(VLOOKUP($A96,ITV_CPERDP!$A$8:$Z$149,13,FALSE),0) -> 0 | BC96: =+IFERROR(VLOOKUP($A96,ITV_CPERDP!$A$8:$Z$149,21,FALSE),0) -> 0 | BG96: =+IFERROR(VLOOKUP($A96,ITV_CPERDE!$A$8:$Z$149,13,FALSE),0) -> 0 | BH96: =+IFERROR(VLOOKUP($A96,ITV_CPERDE!$A$8:$Z$149,21,FALSE),0) -> 0
A97: BTH Punta | D97: =+IFERROR(VLOOKUP($A97,ITV_CD!$A$8:$AA$149,13,FALSE),0) -> 0 | E97: =+IFERROR(VLOOKUP($A97,ITV_CD!$A$8:$AA$149,21,FALSE),0) -> 23.88 | J97: =+IFERROR(VLOOKUP($A97,ITV_CCOMF!$A$8:$AA$149,13,FALSE),0) -> 0 | N97: =+IFERROR(VLOOKUP($A97,ITV_CCOMV!$A$8:$AA$149,13,FALSE),0) -> 0.01121 | O97: =+IFERROR(VLOOKUP($A97,ITV_CCOMV!$A$8:$AA$149,21,FALSE),0) -> 0 | S97: =+IFERROR(VLOOKUP($A97,ITV_CSERAP!$A$8:$AA$149,13,FALSE),0) -> 0.00124 | T97: =+IFERROR(VLOOKUP($A97,ITV_CSERAP!$A$8:$AA$149,21,FALSE),0) -> 0 | Y97: =+IFERROR(VLOOKUP($A97,ITV_CX!$A$8:$AA$149,13,FALSE),0) -> 0 | AC97: =+IFERROR(VLOOKUP($A97,ITV_CENEGEN!$A$9:$Z$150,13,FALSE),0) -> 0.18645 | AD97: =+IFERROR(VLOOKUP($A97,ITV_CENEGEN!$A$9:$Z$150,21,FALSE),0) -> 0 | AH97: =+IFERROR(VLOOKUP($A97,ITV_CPOTGEN!$A$9:$Z$150,13,FALSE),0) -> 0.00051 | AI97: =+IFERROR(VLOOKUP($A97,ITV_CPOTGEN!$A$9:$Z$150,21,FALSE),0) -> 0.04 | AM97: =+IFERROR(VLOOKUP($A97,ITV_CCONAP!$A$8:$Z$149,13,FALSE),0) -> 0.00316 | AN97: =+IFERROR(VLOOKUP($A97,ITV_CCONAP!$A$8:$Z$149,21,FALSE),0) -> 0 | AR97: =+IFERROR(VLOOKUP($A97,ITV_CPT!$A$8:$Z$149,13,FALSE),0) -> 0.03002 | AS97: =+IFERROR(VLOOKUP($A97,ITV_CPT!$A$8:$Z$149,21,FALSE),0) -> 6.15 | AW97: =+IFERROR(VLOOKUP($A97,ITV_CPET!$A$8:$Z$149,13,FALSE),0) -> 8e-05 | AX97: =+IFERROR(VLOOKUP($A97,ITV_CPET!$A$8:$Z$149,21,FALSE),0) -> 0 | BB97: =+IFERROR(VLOOKUP($A97,ITV_CPERDP!$A$8:$Z$149,13,FALSE),0) -> 0 | BC97: =+IFERROR(VLOOKUP($A97,ITV_CPERDP!$A$8:$Z$149,21,FALSE),0) -> 0 | BG97: =+IFERROR(VLOOKUP($A97,ITV_CPERDE!$A$8:$Z$149,13,FALSE),0) -> 0.00747 | BH97: =+IFERROR(VLOOKUP($A97,ITV_CPERDE!$A$8:$Z$149,21,FALSE),0) -> 0.13
A98: =+A25 -> BTH Fuera de Punta Medio | D98: =+IFERROR(VLOOKUP($A98,ITV_CD!$A$8:$AA$149,13,FALSE),0) -> 0 | E98: =+IFERROR(VLOOKUP($A98,ITV_CD!$A$8:$AA$149,21,FALSE),0) -> 2.89 | J98: =+IFERROR(VLOOKUP($A98,ITV_CCOMF!$A$8:$AA$149,13,FALSE),0) -> 0 | N98: =+IFERROR(VLOOKUP($A98,ITV_CCOMV!$A$8:$AA$149,13,FALSE),0) -> 0.01121 | O98: =+IFERROR(VLOOKUP($A98,ITV_CCOMV!$A$8:$AA$149,21,FALSE),0) -> 0 | S98: =+IFERROR(VLOOKUP($A98,ITV_CSERAP!$A$8:$AA$149,13,FALSE),0) -> 0.00124 | T98: =+IFERROR(VLOOKUP($A98,ITV_CSERAP!$A$8:$AA$149,21,FALSE),0) -> 0 | Y98: =+IFERROR(VLOOKUP($A98,ITV_CX!$A$8:$AA$149,13,FALSE),0) -> 0 | AC98: =+IFERROR(VLOOKUP($A98,ITV_CENEGEN!$A$9:$Z$150,13,FALSE),0) -> 0.07663 | AD98: =+IFERROR(VLOOKUP($A98,ITV_CENEGEN!$A$9:$Z$150,21,FALSE),0) -> 0 | AH98: =+IFERROR(VLOOKUP($A98,ITV_CPOTGEN!$A$9:$Z$150,13,FALSE),0) -> 0.00051 | AI98: =+IFERROR(VLOOKUP($A98,ITV_CPOTGEN!$A$9:$Z$150,21,FALSE),0) -> 0 | AM98: =+IFERROR(VLOOKUP($A98,ITV_CCONAP!$A$8:$Z$149,13,FALSE),0) -> 0.00316 | AN98: =+IFERROR(VLOOKUP($A98,ITV_CCONAP!$A$8:$Z$149,21,FALSE),0) -> 0 | AR98: =+IFERROR(VLOOKUP($A98,ITV_CPT!$A$8:$Z$149,13,FALSE),0) -> 0.03002 | AS98: =+IFERROR(VLOOKUP($A98,ITV_CPT!$A$8:$Z$149,21,FALSE),0) -> 6.15 | AW98: =+IFERROR(VLOOKUP($A98,ITV_CPET!$A$8:$Z$149,13,FALSE),0) -> 8e-05 | AX98: =+IFERROR(VLOOKUP($A98,ITV_CPET!$A$8:$Z$149,21,FALSE),0) -> 0 | BB98: =+IFERROR(VLOOKUP($A98,ITV_CPERDP!$A$8:$Z$149,13,FALSE),0) -> 0 | BC98: =+IFERROR(VLOOKUP($A98,ITV_CPERDP!$A$8:$Z$149,21,FALSE),0) -> 0 | BG98: =+IFERROR(VLOOKUP($A98,ITV_CPERDE!$A$8:$Z$149,13,FALSE),0) -> 0.00565 | BH98: =+IFERROR(VLOOKUP($A98,ITV_CPERDE!$A$8:$Z$149,21,FALSE),0) -> 0.12
A99: BTH Fuera de Punta Bajo | D99: =+IFERROR(VLOOKUP($A99,ITV_CD!$A$8:$AA$149,13,FALSE),0) -> 0 | E99: =+IFERROR(VLOOKUP($A99,ITV_CD!$A$8:$AA$149,21,FALSE),0) -> 2.89 | J99: =+IFERROR(VLOOKUP($A99,ITV_CCOMF!$A$8:$AA$149,13,FALSE),0) -> 0 | N99: =+IFERROR(VLOOKUP($A99,ITV_CCOMV!$A$8:$AA$149,13,FALSE),0) -> 0.01121 | O99: =+IFERROR(VLOOKUP($A99,ITV_CCOMV!$A$8:$AA$149,21,FALSE),0) -> 0 | S99: =+IFERROR(VLOOKUP($A99,ITV_CSERAP!$A$8:$AA$149,13,FALSE),0) -> 0.00124 | T99: =+IFERROR(VLOOKUP($A99,ITV_CSERAP!$A$8:$AA$149,21,FALSE),0) -> 0 | Y99: =+IFERROR(VLOOKUP($A99,ITV_CX!$A$8:$AA$149,13,FALSE),0) -> 0 | AC99: =+IFERROR(VLOOKUP($A99,ITV_CENEGEN!$A$9:$Z$150,13,FALSE),0) -> 0.02554 | AD99: =+IFERROR(VLOOKUP($A99,ITV_CENEGEN!$A$9:$Z$150,21,FALSE),0) -> 0 | AH99: =+IFERROR(VLOOKUP($A99,ITV_CPOTGEN!$A$9:$Z$150,13,FALSE),0) -> 0.00051 | AI99: =+IFERROR(VLOOKUP($A99,ITV_CPOTGEN!$A$9:$Z$150,21,FALSE),0) -> 0 | AM99: =+IFERROR(VLOOKUP($A99,ITV_CCONAP!$A$8:$Z$149,13,FALSE),0) -> 0.00316 | AN99: =+IFERROR(VLOOKUP($A99,ITV_CCONAP!$A$8:$Z$149,21,FALSE),0) -> 0 | AR99: =+IFERROR(VLOOKUP($A99,ITV_CPT!$A$8:$Z$149,13,FALSE),0) -> 0.03002 | AS99: =+IFERROR(VLOOKUP($A99,ITV_CPT!$A$8:$Z$149,21,FALSE),0) -> 6.15 | AW99: =+IFERROR(VLOOKUP($A99,ITV_CPET!$A$8:$Z$149,13,FALSE),0) -> 8e-05 | AX99: =+IFERROR(VLOOKUP($A99,ITV_CPET!$A$8:$Z$149,21,FALSE),0) -> 0 | BB99: =+IFERROR(VLOOKUP($A99,ITV_CPERDP!$A$8:$Z$149,13,FALSE),0) -> 0 | BC99: =+IFERROR(VLOOKUP($A99,ITV_CPERDP!$A$8:$Z$149,21,FALSE),0) -> 0 | BG99: =+IFERROR(VLOOKUP($A99,ITV_CPERDE!$A$8:$Z$149,13,FALSE),0) -> 0.00565 | BH99: =+IFERROR(VLOOKUP($A99,ITV_CPERDE!$A$8:$Z$149,21,FALSE),0) -> 0.12
A100: BTD | D100: =+IFERROR(VLOOKUP($A100,ITV_CD!$A$8:$AA$149,13,FALSE),0) -> 0 | E100: =+IFERROR(VLOOKUP($A100,ITV_CD!$A$8:$AA$149,21,FALSE),0) -> 0 | J100: =+IFERROR(VLOOKUP($A100,ITV_CCOMF!$A$8:$AA$149,13,FALSE),0) -> 5.65 | N100: =+IFERROR(VLOOKUP($A100,ITV_CCOMV!$A$8:$AA$149,13,FALSE),0) -> 0 | O100: =+IFERROR(VLOOKUP($A100,ITV_CCOMV!$A$8:$AA$149,21,FALSE),0) -> 0 | S100: =+IFERROR(VLOOKUP($A100,ITV_CSERAP!$A$8:$AA$149,13,FALSE),0) -> 0 | T100: =+IFERROR(VLOOKUP($A100,ITV_CSERAP!$A$8:$AA$149,21,FALSE),0) -> 0 | Y100: =+IFERROR(VLOOKUP($A100,ITV_CX!$A$8:$AA$149,13,FALSE),0) -> 71.76 | AC100: =+IFERROR(VLOOKUP($A100,ITV_CENEGEN!$A$9:$Z$150,13,FALSE),0) -> 0 | AD100: =+IFERROR(VLOOKUP($A100,ITV_CENEGEN!$A$9:$Z$150,21,FALSE),0) -> 0 | AH100: =+IFERROR(VLOOKUP($A100,ITV_CPOTGEN!$A$9:$Z$150,13,FALSE),0) -> 0 | AI100: =+IFERROR(VLOOKUP($A100,ITV_CPOTGEN!$A$9:$Z$150,21,FALSE),0) -> 0 | AM100: =+IFERROR(VLOOKUP($A100,ITV_CCONAP!$A$8:$Z$149,13,FALSE),0) -> 0 | AN100: =+IFERROR(VLOOKUP($A100,ITV_CCONAP!$A$8:$Z$149,21,FALSE),0) -> 0 | AR100: =+IFERROR(VLOOKUP($A100,ITV_CPT!$A$8:$Z$149,13,FALSE),0) -> 0 | AS100: =+IFERROR(VLOOKUP($A100,ITV_CPT!$A$8:$Z$149,21,FALSE),0) -> 0 | AW100: =+IFERROR(VLOOKUP($A100,ITV_CPET!$A$8:$Z$149,13,FALSE),0) -> 0 | AX100: =+IFERROR(VLOOKUP($A100,ITV_CPET!$A$8:$Z$149,21,FALSE),0) -> 0 | BB100: =+IFERROR(VLOOKUP($A100,ITV_CPERDP!$A$8:$Z$149,13,FALSE),0) -> 0 | BC100: =+IFERROR(VLOOKUP($A100,ITV_CPERDP!$A$8:$Z$149,21,FALSE),0) -> 0 | BG100: =+IFERROR(VLOOKUP($A100,ITV_CPERDE!$A$8:$Z$149,13,FALSE),0) -> 0 | BH100: =+IFERROR(VLOOKUP($A100,ITV_CPERDE!$A$8:$Z$149,21,FALSE),0) -> 0
A101: BTD_1 (0-10,000) | D101: =+IFERROR(VLOOKUP($A101,ITV_CD!$A$8:$AA$149,13,FALSE),0) -> 0 | E101: =+IFERROR(VLOOKUP($A101,ITV_CD!$A$8:$AA$149,21,FALSE),0) -> 23.36 | J101: =+IFERROR(VLOOKUP($A101,ITV_CCOMF!$A$8:$AA$149,13,FALSE),0) -> 5.65 | N101: =+IFERROR(VLOOKUP($A101,ITV_CCOMV!$A$8:$AA$149,13,FALSE),0) -> 0.01124 | O101: =+IFERROR(VLOOKUP($A101,ITV_CCOMV!$A$8:$AA$149,21,FALSE),0) -> 0 | S101: =+IFERROR(VLOOKUP($A101,ITV_CSERAP!$A$8:$AA$149,13,FALSE),0) -> 0.00125 | T101: =+IFERROR(VLOOKUP($A101,ITV_CSERAP!$A$8:$AA$149,21,FALSE),0) -> 0 | Y101: =+IFERROR(VLOOKUP($A101,ITV_CX!$A$8:$AA$149,13,FALSE),0) -> 0 | AC101: =+IFERROR(VLOOKUP($A101,ITV_CENEGEN!$A$9:$Z$150,13,FALSE),0) -> 0.07519 | AD101: =+IFERROR(VLOOKUP($A101,ITV_CENEGEN!$A$9:$Z$150,21,FALSE),0) -> 0 | AH101: =+IFERROR(VLOOKUP($A101,ITV_CPOTGEN!$A$9:$Z$150,13,FALSE),0) -> 0.01655 | AI101: =+IFERROR(VLOOKUP($A101,ITV_CPOTGEN!$A$9:$Z$150,21,FALSE),0) -> 0.92 | AM101: =+IFERROR(VLOOKUP($A101,ITV_CCONAP!$A$8:$Z$149,13,FALSE),0) -> 0.00317 | AN101: =+IFERROR(VLOOKUP($A101,ITV_CCONAP!$A$8:$Z$149,21,FALSE),0) -> 0 | AR101: =+IFERROR(VLOOKUP($A101,ITV_CPT!$A$8:$Z$149,13,FALSE),0) -> 0.00262 | AS101: =+IFERROR(VLOOKUP($A101,ITV_CPT!$A$8:$Z$149,21,FALSE),0) -> 0.75 | AW101: =+IFERROR(VLOOKUP($A101,ITV_CPET!$A$8:$Z$149,13,FALSE),0) -> 8e-05 | AX101: =+IFERROR(VLOOKUP($A101,ITV_CPET!$A$8:$Z$149,21,FALSE),0) -> 0 | BB101: =+IFERROR(VLOOKUP($A101,ITV_CPERDP!$A$8:$Z$149,13,FALSE),0) -> 0 | BC101: =+IFERROR(VLOOKUP($A101,ITV_CPERDP!$A$8:$Z$149,21,FALSE),0) -> 0 | BG101: =+IFERROR(VLOOKUP($A101,ITV_CPERDE!$A$8:$Z$149,13,FALSE),0) -> 0.00608 | BH101: =+IFERROR(VLOOKUP($A101,ITV_CPERDE!$A$8:$Z$149,21,FALSE),0) -> 0.16
A102: BTD_2 (10,001-30,000) | D102: =+IFERROR(VLOOKUP($A102,ITV_CD!$A$8:$AA$149,13,FALSE),0) -> 0 | E102: =+IFERROR(VLOOKUP($A102,ITV_CD!$A$8:$AA$149,21,FALSE),0) -> 23.36 | J102: =+IFERROR(VLOOKUP($A102,ITV_CCOMF!$A$8:$AA$149,13,FALSE),0) -> 5.65 | N102: =+IFERROR(VLOOKUP($A102,ITV_CCOMV!$A$8:$AA$149,13,FALSE),0) -> 0.01124 | O102: =+IFERROR(VLOOKUP($A102,ITV_CCOMV!$A$8:$AA$149,21,FALSE),0) -> 0 | S102: =+IFERROR(VLOOKUP($A102,ITV_CSERAP!$A$8:$AA$149,13,FALSE),0) -> 0.00125 | T102: =+IFERROR(VLOOKUP($A102,ITV_CSERAP!$A$8:$AA$149,21,FALSE),0) -> 0 | Y102: =+IFERROR(VLOOKUP($A102,ITV_CX!$A$8:$AA$149,13,FALSE),0) -> 0 | AC102: =+IFERROR(VLOOKUP($A102,ITV_CENEGEN!$A$9:$Z$150,13,FALSE),0) -> 0.08094 | AD102: =+IFERROR(VLOOKUP($A102,ITV_CENEGEN!$A$9:$Z$150,21,FALSE),0) -> 0 | AH102: =+IFERROR(VLOOKUP($A102,ITV_CPOTGEN!$A$9:$Z$150,13,FALSE),0) -> 0.01782 | AI102: =+IFERROR(VLOOKUP($A102,ITV_CPOTGEN!$A$9:$Z$150,21,FALSE),0) -> 0.92 | AM102: =+IFERROR(VLOOKUP($A102,ITV_CCONAP!$A$8:$Z$149,13,FALSE),0) -> 0.00317 | AN102: =+IFERROR(VLOOKUP($A102,ITV_CCONAP!$A$8:$Z$149,21,FALSE),0) -> 0 | AR102: =+IFERROR(VLOOKUP($A102,ITV_CPT!$A$8:$Z$149,13,FALSE),0) -> 0.00262 | AS102: =+IFERROR(VLOOKUP($A102,ITV_CPT!$A$8:$Z$149,21,FALSE),0) -> 0.75 | AW102: =+IFERROR(VLOOKUP($A102,ITV_CPET!$A$8:$Z$149,13,FALSE),0) -> 8e-05 | AX102: =+IFERROR(VLOOKUP($A102,ITV_CPET!$A$8:$Z$149,21,FALSE),0) -> 0 | BB102: =+IFERROR(VLOOKUP($A102,ITV_CPERDP!$A$8:$Z$149,13,FALSE),0) -> 0 | BC102: =+IFERROR(VLOOKUP($A102,ITV_CPERDP!$A$8:$Z$149,21,FALSE),0) -> 0 | BG102: =+IFERROR(VLOOKUP($A102,ITV_CPERDE!$A$8:$Z$149,13,FALSE),0) -> 0.00608 | BH102: =+IFERROR(VLOOKUP($A102,ITV_CPERDE!$A$8:$Z$149,21,FALSE),0) -> 0.16
A103: BTD_3 (30,001-50,000) | D103: =+IFERROR(VLOOKUP($A103,ITV_CD!$A$8:$AA$149,13,FALSE),0) -> 0 | E103: =+IFERROR(VLOOKUP($A103,ITV_CD!$A$8:$AA$149,21,FALSE),0) -> 23.36 | J103: =+IFERROR(VLOOKUP($A103,ITV_CCOMF!$A$8:$AA$149,13,FALSE),0) -> 5.65 | N103: =+IFERROR(VLOOKUP($A103,ITV_CCOMV!$A$8:$AA$149,13,FALSE),0) -> 0.01124 | O103: =+IFERROR(VLOOKUP($A103,ITV_CCOMV!$A$8:$AA$149,21,FALSE),0) -> 0 | S103: =+IFERROR(VLOOKUP($A103,ITV_CSERAP!$A$8:$AA$149,13,FALSE),0) -> 0.00125 | T103: =+IFERROR(VLOOKUP($A103,ITV_CSERAP!$A$8:$AA$149,21,FALSE),0) -> 0 | Y103: =+IFERROR(VLOOKUP($A103,ITV_CX!$A$8:$AA$149,13,FALSE),0) -> 0 | AC103: =+IFERROR(VLOOKUP($A103,ITV_CENEGEN!$A$9:$Z$150,13,FALSE),0) -> 0.08497 | AD103: =+IFERROR(VLOOKUP($A103,ITV_CENEGEN!$A$9:$Z$150,21,FALSE),0) -> 0 | AH103: =+IFERROR(VLOOKUP($A103,ITV_CPOTGEN!$A$9:$Z$150,13,FALSE),0) -> 0.01869 | AI103: =+IFERROR(VLOOKUP($A103,ITV_CPOTGEN!$A$9:$Z$150,21,FALSE),0) -> 0.92 | AM103: =+IFERROR(VLOOKUP($A103,ITV_CCONAP!$A$8:$Z$149,13,FALSE),0) -> 0.00317 | AN103: =+IFERROR(VLOOKUP($A103,ITV_CCONAP!$A$8:$Z$149,21,FALSE),0) -> 0 | AR103: =+IFERROR(VLOOKUP($A103,ITV_CPT!$A$8:$Z$149,13,FALSE),0) -> 0.00262 | AS103: =+IFERROR(VLOOKUP($A103,ITV_CPT!$A$8:$Z$149,21,FALSE),0) -> 0.75 | AW103: =+IFERROR(VLOOKUP($A103,ITV_CPET!$A$8:$Z$149,13,FALSE),0) -> 8e-05 | AX103: =+IFERROR(VLOOKUP($A103,ITV_CPET!$A$8:$Z$149,21,FALSE),0) -> 0 | BB103: =+IFERROR(VLOOKUP($A103,ITV_CPERDP!$A$8:$Z$149,13,FALSE),0) -> 0 | BC103: =+IFERROR(VLOOKUP($A103,ITV_CPERDP!$A$8:$Z$149,21,FALSE),0) -> 0 | BG103: =+IFERROR(VLOOKUP($A103,ITV_CPERDE!$A$8:$Z$149,13,FALSE),0) -> 0.00608 | BH103: =+IFERROR(VLOOKUP($A103,ITV_CPERDE!$A$8:$Z$149,21,FALSE),0) -> 0.16
A104: BTD_4 (50,001-más) | D104: =+IFERROR(VLOOKUP($A104,ITV_CD!$A$8:$AA$149,13,FALSE),0) -> 0 | E104: =+IFERROR(VLOOKUP($A104,ITV_CD!$A$8:$AA$149,21,FALSE),0) -> 23.36 | J104: =+IFERROR(VLOOKUP($A104,ITV_CCOMF!$A$8:$AA$149,13,FALSE),0) -> 5.65 | N104: =+IFERROR(VLOOKUP($A104,ITV_CCOMV!$A$8:$AA$149,13,FALSE),0) -> 0.01124 | O104: =+IFERROR(VLOOKUP($A104,ITV_CCOMV!$A$8:$AA$149,21,FALSE),0) -> 0 | S104: =+IFERROR(VLOOKUP($A104,ITV_CSERAP!$A$8:$AA$149,13,FALSE),0) -> 0.00125 | T104: =+IFERROR(VLOOKUP($A104,ITV_CSERAP!$A$8:$AA$149,21,FALSE),0) -> 0 | Y104: =+IFERROR(VLOOKUP($A104,ITV_CX!$A$8:$AA$149,13,FALSE),0) -> 0 | AC104: =+IFERROR(VLOOKUP($A104,ITV_CENEGEN!$A$9:$Z$150,13,FALSE),0) -> 0.10337 | AD104: =+IFERROR(VLOOKUP($A104,ITV_CENEGEN!$A$9:$Z$150,21,FALSE),0) -> 0 | AH104: =+IFERROR(VLOOKUP($A104,ITV_CPOTGEN!$A$9:$Z$150,13,FALSE),0) -> 0.02274 | AI104: =+IFERROR(VLOOKUP($A104,ITV_CPOTGEN!$A$9:$Z$150,21,FALSE),0) -> 0.92 | AM104: =+IFERROR(VLOOKUP($A104,ITV_CCONAP!$A$8:$Z$149,13,FALSE),0) -> 0.00317 | AN104: =+IFERROR(VLOOKUP($A104,ITV_CCONAP!$A$8:$Z$149,21,FALSE),0) -> 0 | AR104: =+IFERROR(VLOOKUP($A104,ITV_CPT!$A$8:$Z$149,13,FALSE),0) -> 0.00262 | AS104: =+IFERROR(VLOOKUP($A104,ITV_CPT!$A$8:$Z$149,21,FALSE),0) -> 0.75 | AW104: =+IFERROR(VLOOKUP($A104,ITV_CPET!$A$8:$Z$149,13,FALSE),0) -> 8e-05 | AX104: =+IFERROR(VLOOKUP($A104,ITV_CPET!$A$8:$Z$149,21,FALSE),0) -> 0 | BB104: =+IFERROR(VLOOKUP($A104,ITV_CPERDP!$A$8:$Z$149,13,FALSE),0) -> 0 | BC104: =+IFERROR(VLOOKUP($A104,ITV_CPERDP!$A$8:$Z$149,21,FALSE),0) -> 0 | BG104: =+IFERROR(VLOOKUP($A104,ITV_CPERDE!$A$8:$Z$149,13,FALSE),0) -> 0.00608 | BH104: =+IFERROR(VLOOKUP($A104,ITV_CPERDE!$A$8:$Z$149,21,FALSE),0) -> 0.16
A105: BTD_5 (xxx) | D105: =+IFERROR(VLOOKUP($A105,ITV_CD!$A$8:$AA$149,13,FALSE),0) -> 0 | E105: =+IFERROR(VLOOKUP($A105,ITV_CD!$A$8:$AA$149,21,FALSE),0) -> 0 | J105: =+IFERROR(VLOOKUP($A105,ITV_CCOMF!$A$8:$AA$149,13,FALSE),0) -> 0 | N105: =+IFERROR(VLOOKUP($A105,ITV_CCOMV!$A$8:$AA$149,13,FALSE),0) -> 0 | O105: =+IFERROR(VLOOKUP($A105,ITV_CCOMV!$A$8:$AA$149,21,FALSE),0) -> 0 | S105: =+IFERROR(VLOOKUP($A105,ITV_CSERAP!$A$8:$AA$149,13,FALSE),0) -> 0 | T105: =+IFERROR(VLOOKUP($A105,ITV_CSERAP!$A$8:$AA$149,21,FALSE),0) -> 0 | Y105: =+IFERROR(VLOOKUP($A105,ITV_CX!$A$8:$AA$149,13,FALSE),0) -> 0 | AC105: =+IFERROR(VLOOKUP($A105,ITV_CENEGEN!$A$9:$Z$150,13,FALSE),0) -> 0 | AD105: =+IFERROR(VLOOKUP($A105,ITV_CENEGEN!$A$9:$Z$150,21,FALSE),0) -> 0 | AH105: =+IFERROR(VLOOKUP($A105,ITV_CPOTGEN!$A$9:$Z$150,13,FALSE),0) -> 0 | AI105: =+IFERROR(VLOOKUP($A105,ITV_CPOTGEN!$A$9:$Z$150,21,FALSE),0) -> 0 | AM105: =+IFERROR(VLOOKUP($A105,ITV_CCONAP!$A$8:$Z$149,13,FALSE),0) -> 0 | AN105: =+IFERROR(VLOOKUP($A105,ITV_CCONAP!$A$8:$Z$149,21,FALSE),0) -> 0 | AR105: =+IFERROR(VLOOKUP($A105,ITV_CPT!$A$8:$Z$149,13,FALSE),0) -> 0 | AS105: =+IFERROR(VLOOKUP($A105,ITV_CPT!$A$8:$Z$149,21,FALSE),0) -> 0 | AW105: =+IFERROR(VLOOKUP($A105,ITV_CPET!$A$8:$Z$149,13,FALSE),0) -> 0 | AX105: =+IFERROR(VLOOKUP($A105,ITV_CPET!$A$8:$Z$149,21,FALSE),0) -> 0 | BB105: =+IFERROR(VLOOKUP($A105,ITV_CPERDP!$A$8:$Z$149,13,FALSE),0) -> 0 | BC105: =+IFERROR(VLOOKUP($A105,ITV_CPERDP!$A$8:$Z$149,21,FALSE),0) -> 0 | BG105: =+IFERROR(VLOOKUP($A105,ITV_CPERDE!$A$8:$Z$149,13,FALSE),0) -> 0 | BH105: =+IFERROR(VLOOKUP($A105,ITV_CPERDE!$A$8:$Z$149,21,FALSE),0) -> 0
A106: BTS | D106: =+IFERROR(VLOOKUP($A106,ITV_CD!$A$8:$AA$149,13,FALSE),0) -> 0 | E106: =+IFERROR(VLOOKUP($A106,ITV_CD!$A$8:$AA$149,21,FALSE),0) -> 0 | J106: =+IFERROR(VLOOKUP($A106,ITV_CCOMF!$A$8:$AA$149,13,FALSE),0) -> 3.04 | N106: =+IFERROR(VLOOKUP($A106,ITV_CCOMV!$A$8:$AA$149,13,FALSE),0) -> 0 | O106: =+IFERROR(VLOOKUP($A106,ITV_CCOMV!$A$8:$AA$149,21,FALSE),0) -> 0 | S106: =+IFERROR(VLOOKUP($A106,ITV_CSERAP!$A$8:$AA$149,13,FALSE),0) -> 0 | T106: =+IFERROR(VLOOKUP($A106,ITV_CSERAP!$A$8:$AA$149,21,FALSE),0) -> 0 | Y106: =+IFERROR(VLOOKUP($A106,ITV_CX!$A$8:$AA$149,13,FALSE),0) -> 16.65 | AC106: =+IFERROR(VLOOKUP($A106,ITV_CENEGEN!$A$9:$Z$150,13,FALSE),0) -> 0 | AD106: =+IFERROR(VLOOKUP($A106,ITV_CENEGEN!$A$9:$Z$150,21,FALSE),0) -> 0 | AH106: =+IFERROR(VLOOKUP($A106,ITV_CPOTGEN!$A$9:$Z$150,13,FALSE),0) -> 0 | AI106: =+IFERROR(VLOOKUP($A106,ITV_CPOTGEN!$A$9:$Z$150,21,FALSE),0) -> 0 | AM106: =+IFERROR(VLOOKUP($A106,ITV_CCONAP!$A$8:$Z$149,13,FALSE),0) -> 0 | AN106: =+IFERROR(VLOOKUP($A106,ITV_CCONAP!$A$8:$Z$149,21,FALSE),0) -> 0 | AR106: =+IFERROR(VLOOKUP($A106,ITV_CPT!$A$8:$Z$149,13,FALSE),0) -> 0 | AS106: =+IFERROR(VLOOKUP($A106,ITV_CPT!$A$8:$Z$149,21,FALSE),0) -> 0 | AW106: =+IFERROR(VLOOKUP($A106,ITV_CPET!$A$8:$Z$149,13,FALSE),0) -> 0 | AX106: =+IFERROR(VLOOKUP($A106,ITV_CPET!$A$8:$Z$149,21,FALSE),0) -> 0 | BB106: =+IFERROR(VLOOKUP($A106,ITV_CPERDP!$A$8:$Z$149,13,FALSE),0) -> 0 | BC106: =+IFERROR(VLOOKUP($A106,ITV_CPERDP!$A$8:$Z$149,21,FALSE),0) -> 0 | BG106: =+IFERROR(VLOOKUP($A106,ITV_CPERDE!$A$8:$Z$149,13,FALSE),0) -> 0 | BH106: =+IFERROR(VLOOKUP($A106,ITV_CPERDE!$A$8:$Z$149,21,FALSE),0) -> 0
A107: BTS_1 (0-300) | D107: =+IFERROR(VLOOKUP($A107,ITV_CD!$A$8:$AA$149,13,FALSE),0) -> 0.05935 | E107: =+IFERROR(VLOOKUP($A107,ITV_CD!$A$8:$AA$149,21,FALSE),0) -> 0 | J107: =+IFERROR(VLOOKUP($A107,ITV_CCOMF!$A$8:$AA$149,13,FALSE),0) -> 3.04 | N107: =+IFERROR(VLOOKUP($A107,ITV_CCOMV!$A$8:$AA$149,13,FALSE),0) -> 0.01205 | O107: =+IFERROR(VLOOKUP($A107,ITV_CCOMV!$A$8:$AA$149,21,FALSE),0) -> 0 | S107: =+IFERROR(VLOOKUP($A107,ITV_CSERAP!$A$8:$AA$149,13,FALSE),0) -> 0.00135 | T107: =+IFERROR(VLOOKUP($A107,ITV_CSERAP!$A$8:$AA$149,21,FALSE),0) -> 0 | Y107: =+IFERROR(VLOOKUP($A107,ITV_CX!$A$8:$AA$149,13,FALSE),0) -> 0 | AC107: =+IFERROR(VLOOKUP($A107,ITV_CENEGEN!$A$9:$Z$150,13,FALSE),0) -> 0.05307618227 | AD107: =+IFERROR(VLOOKUP($A107,ITV_CENEGEN!$A$9:$Z$150,21,FALSE),0) -> 0 | AH107: =+IFERROR(VLOOKUP($A107,ITV_CPOTGEN!$A$9:$Z$150,13,FALSE),0) -> 0.02052381773 | AI107: =+IFERROR(VLOOKUP($A107,ITV_CPOTGEN!$A$9:$Z$150,21,FALSE),0) -> 0 | AM107: =+IFERROR(VLOOKUP($A107,ITV_CCONAP!$A$8:$Z$149,13,FALSE),0) -> 0.0034 | AN107: =+IFERROR(VLOOKUP($A107,ITV_CCONAP!$A$8:$Z$149,21,FALSE),0) -> 0 | AR107: =+IFERROR(VLOOKUP($A107,ITV_CPT!$A$8:$Z$149,13,FALSE),0) -> 0.00655 | AS107: =+IFERROR(VLOOKUP($A107,ITV_CPT!$A$8:$Z$149,21,FALSE),0) -> 0 | AW107: =+IFERROR(VLOOKUP($A107,ITV_CPET!$A$8:$Z$149,13,FALSE),0) -> 8e-05 | AX107: =+IFERROR(VLOOKUP($A107,ITV_CPET!$A$8:$Z$149,21,FALSE),0) -> 0 | BB107: =+IFERROR(VLOOKUP($A107,ITV_CPERDP!$A$8:$Z$149,13,FALSE),0) -> 0 | BC107: =+IFERROR(VLOOKUP($A107,ITV_CPERDP!$A$8:$Z$149,21,FALSE),0) -> 0 | BG107: =+IFERROR(VLOOKUP($A107,ITV_CPERDE!$A$8:$Z$149,13,FALSE),0) -> 0.00709 | BH107: =+IFERROR(VLOOKUP($A107,ITV_CPERDE!$A$8:$Z$149,21,FALSE),0) -> 0
A108: BTS_2 (301-750) | D108: =+IFERROR(VLOOKUP($A108,ITV_CD!$A$8:$AA$149,13,FALSE),0) -> 0.05935 | E108: =+IFERROR(VLOOKUP($A108,ITV_CD!$A$8:$AA$149,21,FALSE),0) -> 0 | J108: =+IFERROR(VLOOKUP($A108,ITV_CCOMF!$A$8:$AA$149,13,FALSE),0) -> 3.04 | N108: =+IFERROR(VLOOKUP($A108,ITV_CCOMV!$A$8:$AA$149,13,FALSE),0) -> 0.01205 | O108: =+IFERROR(VLOOKUP($A108,ITV_CCOMV!$A$8:$AA$149,21,FALSE),0) -> 0 | S108: =+IFERROR(VLOOKUP($A108,ITV_CSERAP!$A$8:$AA$149,13,FALSE),0) -> 0.00135 | T108: =+IFERROR(VLOOKUP($A108,ITV_CSERAP!$A$8:$AA$149,21,FALSE),0) -> 0 | Y108: =+IFERROR(VLOOKUP($A108,ITV_CX!$A$8:$AA$149,13,FALSE),0) -> 0 | AC108: =+IFERROR(VLOOKUP($A108,ITV_CENEGEN!$A$9:$Z$150,13,FALSE),0) -> 0.08948673177 | AD108: =+IFERROR(VLOOKUP($A108,ITV_CENEGEN!$A$9:$Z$150,21,FALSE),0) -> 0 | AH108: =+IFERROR(VLOOKUP($A108,ITV_CPOTGEN!$A$9:$Z$150,13,FALSE),0) -> 0.03460326823 | AI108: =+IFERROR(VLOOKUP($A108,ITV_CPOTGEN!$A$9:$Z$150,21,FALSE),0) -> 0 | AM108: =+IFERROR(VLOOKUP($A108,ITV_CCONAP!$A$8:$Z$149,13,FALSE),0) -> 0.0034 | AN108: =+IFERROR(VLOOKUP($A108,ITV_CCONAP!$A$8:$Z$149,21,FALSE),0) -> 0 | AR108: =+IFERROR(VLOOKUP($A108,ITV_CPT!$A$8:$Z$149,13,FALSE),0) -> 0.00655 | AS108: =+IFERROR(VLOOKUP($A108,ITV_CPT!$A$8:$Z$149,21,FALSE),0) -> 0 | AW108: =+IFERROR(VLOOKUP($A108,ITV_CPET!$A$8:$Z$149,13,FALSE),0) -> 8e-05 | AX108: =+IFERROR(VLOOKUP($A108,ITV_CPET!$A$8:$Z$149,21,FALSE),0) -> 0 | BB108: =+IFERROR(VLOOKUP($A108,ITV_CPERDP!$A$8:$Z$149,13,FALSE),0) -> 0 | BC108: =+IFERROR(VLOOKUP($A108,ITV_CPERDP!$A$8:$Z$149,21,FALSE),0) -> 0 | BG108: =+IFERROR(VLOOKUP($A108,ITV_CPERDE!$A$8:$Z$149,13,FALSE),0) -> 0.00709 | BH108: =+IFERROR(VLOOKUP($A108,ITV_CPERDE!$A$8:$Z$149,21,FALSE),0) -> 0
A109: BTS_3 (751-más) | D109: =+IFERROR(VLOOKUP($A109,ITV_CD!$A$8:$AA$149,13,FALSE),0) -> 0.05935 | E109: =+IFERROR(VLOOKUP($A109,ITV_CD!$A$8:$AA$149,21,FALSE),0) -> 0 | J109: =+IFERROR(VLOOKUP($A109,ITV_CCOMF!$A$8:$AA$149,13,FALSE),0) -> 3.04 | N109: =+IFERROR(VLOOKUP($A109,ITV_CCOMV!$A$8:$AA$149,13,FALSE),0) -> 0.01205 | O109: =+IFERROR(VLOOKUP($A109,ITV_CCOMV!$A$8:$AA$149,21,FALSE),0) -> 0 | S109: =+IFERROR(VLOOKUP($A109,ITV_CSERAP!$A$8:$AA$149,13,FALSE),0) -> 0.00135 | T109: =+IFERROR(VLOOKUP($A109,ITV_CSERAP!$A$8:$AA$149,21,FALSE),0) -> 0 | Y109: =+IFERROR(VLOOKUP($A109,ITV_CX!$A$8:$AA$149,13,FALSE),0) -> 0 | AC109: =+IFERROR(VLOOKUP($A109,ITV_CENEGEN!$A$9:$Z$150,13,FALSE),0) -> 0.1596972903 | AD109: =+IFERROR(VLOOKUP($A109,ITV_CENEGEN!$A$9:$Z$150,21,FALSE),0) -> 0 | AH109: =+IFERROR(VLOOKUP($A109,ITV_CPOTGEN!$A$9:$Z$150,13,FALSE),0) -> 0.06175270973 | AI109: =+IFERROR(VLOOKUP($A109,ITV_CPOTGEN!$A$9:$Z$150,21,FALSE),0) -> 0 | AM109: =+IFERROR(VLOOKUP($A109,ITV_CCONAP!$A$8:$Z$149,13,FALSE),0) -> 0.0034 | AN109: =+IFERROR(VLOOKUP($A109,ITV_CCONAP!$A$8:$Z$149,21,FALSE),0) -> 0 | AR109: =+IFERROR(VLOOKUP($A109,ITV_CPT!$A$8:$Z$149,13,FALSE),0) -> 0.00655 | AS109: =+IFERROR(VLOOKUP($A109,ITV_CPT!$A$8:$Z$149,21,FALSE),0) -> 0 | AW109: =+IFERROR(VLOOKUP($A109,ITV_CPET!$A$8:$Z$149,13,FALSE),0) -> 8e-05 | AX109: =+IFERROR(VLOOKUP($A109,ITV_CPET!$A$8:$Z$149,21,FALSE),0) -> 0 | BB109: =+IFERROR(VLOOKUP($A109,ITV_CPERDP!$A$8:$Z$149,13,FALSE),0) -> 0 | BC109: =+IFERROR(VLOOKUP($A109,ITV_CPERDP!$A$8:$Z$149,21,FALSE),0) -> 0 | BG109: =+IFERROR(VLOOKUP($A109,ITV_CPERDE!$A$8:$Z$149,13,FALSE),0) -> 0.00709 | BH109: =+IFERROR(VLOOKUP($A109,ITV_CPERDE!$A$8:$Z$149,21,FALSE),0) -> 0
A110: BTS_4 (xxx) | D110: =+IFERROR(VLOOKUP($A110,ITV_CD!$A$8:$AA$149,13,FALSE),0) -> 0 | E110: =+IFERROR(VLOOKUP($A110,ITV_CD!$A$8:$AA$149,21,FALSE),0) -> 0 | J110: =+IFERROR(VLOOKUP($A110,ITV_CCOMF!$A$8:$AA$149,13,FALSE),0) -> 0 | N110: =+IFERROR(VLOOKUP($A110,ITV_CCOMV!$A$8:$AA$149,13,FALSE),0) -> 0 | O110: =+IFERROR(VLOOKUP($A110,ITV_CCOMV!$A$8:$AA$149,21,FALSE),0) -> 0 | S110: =+IFERROR(VLOOKUP($A110,ITV_CSERAP!$A$8:$AA$149,13,FALSE),0) -> 0 | T110: =+IFERROR(VLOOKUP($A110,ITV_CSERAP!$A$8:$AA$149,21,FALSE),0) -> 0 | Y110: =+IFERROR(VLOOKUP($A110,ITV_CX!$A$8:$AA$149,13,FALSE),0) -> 0 | AC110: =+IFERROR(VLOOKUP($A110,ITV_CENEGEN!$A$9:$Z$150,13,FALSE),0) -> 0 | AD110: =+IFERROR(VLOOKUP($A110,ITV_CENEGEN!$A$9:$Z$150,21,FALSE),0) -> 0 | AH110: =+IFERROR(VLOOKUP($A110,ITV_CPOTGEN!$A$9:$Z$150,13,FALSE),0) -> 0 | AI110: =+IFERROR(VLOOKUP($A110,ITV_CPOTGEN!$A$9:$Z$150,21,FALSE),0) -> 0 | AM110: =+IFERROR(VLOOKUP($A110,ITV_CCONAP!$A$8:$Z$149,13,FALSE),0) -> 0 | AN110: =+IFERROR(VLOOKUP($A110,ITV_CCONAP!$A$8:$Z$149,21,FALSE),0) -> 0 | AR110: =+IFERROR(VLOOKUP($A110,ITV_CPT!$A$8:$Z$149,13,FALSE),0) -> 0 | AS110: =+IFERROR(VLOOKUP($A110,ITV_CPT!$A$8:$Z$149,21,FALSE),0) -> 0 | AW110: =+IFERROR(VLOOKUP($A110,ITV_CPET!$A$8:$Z$149,13,FALSE),0) -> 0 | AX110: =+IFERROR(VLOOKUP($A110,ITV_CPET!$A$8:$Z$149,21,FALSE),0) -> 0 | BB110: =+IFERROR(VLOOKUP($A110,ITV_CPERDP!$A$8:$Z$149,13,FALSE),0) -> 0 | BC110: =+IFERROR(VLOOKUP($A110,ITV_CPERDP!$A$8:$Z$149,21,FALSE),0) -> 0 | BG110: =+IFERROR(VLOOKUP($A110,ITV_CPERDE!$A$8:$Z$149,13,FALSE),0) -> 0 | BH110: =+IFERROR(VLOOKUP($A110,ITV_CPERDE!$A$8:$Z$149,21,FALSE),0) -> 0
A111: BTS_5 (xxx) | D111: =+IFERROR(VLOOKUP($A111,ITV_CD!$A$8:$AA$149,13,FALSE),0) -> 0 | E111: =+IFERROR(VLOOKUP($A111,ITV_CD!$A$8:$AA$149,21,FALSE),0) -> 0 | J111: =+IFERROR(VLOOKUP($A111,ITV_CCOMF!$A$8:$AA$149,13,FALSE),0) -> 0 | N111: =+IFERROR(VLOOKUP($A111,ITV_CCOMV!$A$8:$AA$149,13,FALSE),0) -> 0 | O111: =+IFERROR(VLOOKUP($A111,ITV_CCOMV!$A$8:$AA$149,21,FALSE),0) -> 0 | S111: =+IFERROR(VLOOKUP($A111,ITV_CSERAP!$A$8:$AA$149,13,FALSE),0) -> 0 | T111: =+IFERROR(VLOOKUP($A111,ITV_CSERAP!$A$8:$AA$149,21,FALSE),0) -> 0 | Y111: =+IFERROR(VLOOKUP($A111,ITV_CX!$A$8:$AA$149,13,FALSE),0) -> 0 | AC111: =+IFERROR(VLOOKUP($A111,ITV_CENEGEN!$A$9:$Z$150,13,FALSE),0) -> 0 | AD111: =+IFERROR(VLOOKUP($A111,ITV_CENEGEN!$A$9:$Z$150,21,FALSE),0) -> 0 | AH111: =+IFERROR(VLOOKUP($A111,ITV_CPOTGEN!$A$9:$Z$150,13,FALSE),0) -> 0 | AI111: =+IFERROR(VLOOKUP($A111,ITV_CPOTGEN!$A$9:$Z$150,21,FALSE),0) -> 0 | AM111: =+IFERROR(VLOOKUP($A111,ITV_CCONAP!$A$8:$Z$149,13,FALSE),0) -> 0 | AN111: =+IFERROR(VLOOKUP($A111,ITV_CCONAP!$A$8:$Z$149,21,FALSE),0) -> 0 | AR111: =+IFERROR(VLOOKUP($A111,ITV_CPT!$A$8:$Z$149,13,FALSE),0) -> 0 | AS111: =+IFERROR(VLOOKUP($A111,ITV_CPT!$A$8:$Z$149,21,FALSE),0) -> 0 | AW111: =+IFERROR(VLOOKUP($A111,ITV_CPET!$A$8:$Z$149,13,FALSE),0) -> 0 | AX111: =+IFERROR(VLOOKUP($A111,ITV_CPET!$A$8:$Z$149,21,FALSE),0) -> 0 | BB111: =+IFERROR(VLOOKUP($A111,ITV_CPERDP!$A$8:$Z$149,13,FALSE),0) -> 0 | BC111: =+IFERROR(VLOOKUP($A111,ITV_CPERDP!$A$8:$Z$149,21,FALSE),0) -> 0 | BG111: =+IFERROR(VLOOKUP($A111,ITV_CPERDE!$A$8:$Z$149,13,FALSE),0) -> 0 | BH111: =+IFERROR(VLOOKUP($A111,ITV_CPERDE!$A$8:$Z$149,21,FALSE),0) -> 0
A112: Alumbrado Público | D112: =+IFERROR(VLOOKUP($A112,ITV_CD!$A$8:$AA$149,13,FALSE),0) -> 0 | E112: =+IFERROR(VLOOKUP($A112,ITV_CD!$A$8:$AA$149,21,FALSE),0) -> 0 | J112: =+IFERROR(VLOOKUP($A112,ITV_CCOMF!$A$8:$AA$149,13,FALSE),0) -> 0 | N112: =+IFERROR(VLOOKUP($A112,ITV_CCOMV!$A$8:$AA$149,13,FALSE),0) -> 0 | O112: =+IFERROR(VLOOKUP($A112,ITV_CCOMV!$A$8:$AA$149,21,FALSE),0) -> 0 | S112: =+IFERROR(VLOOKUP($A112,ITV_CSERAP!$A$8:$AA$149,13,FALSE),0) -> 0 | T112: =+IFERROR(VLOOKUP($A112,ITV_CSERAP!$A$8:$AA$149,21,FALSE),0) -> 0 | Y112: =+IFERROR(VLOOKUP($A112,ITV_CX!$A$8:$AA$149,13,FALSE),0) -> 0 | AC112: =+IFERROR(VLOOKUP($A112,ITV_CENEGEN!$A$9:$Z$150,13,FALSE),0) -> 0 | AD112: =+IFERROR(VLOOKUP($A112,ITV_CENEGEN!$A$9:$Z$150,21,FALSE),0) -> 0 | AH112: =+IFERROR(VLOOKUP($A112,ITV_CPOTGEN!$A$9:$Z$150,13,FALSE),0) -> 0 | AI112: =+IFERROR(VLOOKUP($A112,ITV_CPOTGEN!$A$9:$Z$150,21,FALSE),0) -> 0 | AM112: =+IFERROR(VLOOKUP($A112,ITV_CCONAP!$A$8:$Z$149,13,FALSE),0) -> 0 | AN112: =+IFERROR(VLOOKUP($A112,ITV_CCONAP!$A$8:$Z$149,21,FALSE),0) -> 0 | AR112: =+IFERROR(VLOOKUP($A112,ITV_CPT!$A$8:$Z$149,13,FALSE),0) -> 0 | AS112: =+IFERROR(VLOOKUP($A112,ITV_CPT!$A$8:$Z$149,21,FALSE),0) -> 0 | AW112: =+IFERROR(VLOOKUP($A112,ITV_CPET!$A$8:$Z$149,13,FALSE),0) -> 0 | AX112: =+IFERROR(VLOOKUP($A112,ITV_CPET!$A$8:$Z$149,21,FALSE),0) -> 0 | BB112: =+IFERROR(VLOOKUP($A112,ITV_CPERDP!$A$8:$Z$149,13,FALSE),0) -> 0 | BC112: =+IFERROR(VLOOKUP($A112,ITV_CPERDP!$A$8:$Z$149,21,FALSE),0) -> 0 | BG112: =+IFERROR(VLOOKUP($A112,ITV_CPERDE!$A$8:$Z$149,13,FALSE),0) -> 0 | BH112: =+IFERROR(VLOOKUP($A112,ITV_CPERDE!$A$8:$Z$149,21,FALSE),0) -> 0
A113: GRANDES CLIENTES | D113: =+IFERROR(VLOOKUP($A113,ITV_CD!$A$8:$AA$149,13,FALSE),0) -> 0 | E113: =+IFERROR(VLOOKUP($A113,ITV_CD!$A$8:$AA$149,21,FALSE),0) -> 0 | J113: =+IFERROR(VLOOKUP($A113,ITV_CCOMF!$A$8:$AA$149,13,FALSE),0) -> 0 | N113: =+IFERROR(VLOOKUP($A113,ITV_CCOMV!$A$8:$AA$149,13,FALSE),0) -> 0 | O113: =+IFERROR(VLOOKUP($A113,ITV_CCOMV!$A$8:$AA$149,21,FALSE),0) -> 0 | S113: =+IFERROR(VLOOKUP($A113,ITV_CSERAP!$A$8:$AA$149,13,FALSE),0) -> 0 | T113: =+IFERROR(VLOOKUP($A113,ITV_CSERAP!$A$8:$AA$149,21,FALSE),0) -> 0 | Y113: =+IFERROR(VLOOKUP($A113,ITV_CX!$A$8:$AA$149,13,FALSE),0) -> 0 | AC113: =+IFERROR(VLOOKUP($A113,ITV_CENEGEN!$A$9:$Z$150,13,FALSE),0) -> 0 | AD113: =+IFERROR(VLOOKUP($A113,ITV_CENEGEN!$A$9:$Z$150,21,FALSE),0) -> 0 | AH113: =+IFERROR(VLOOKUP($A113,ITV_CPOTGEN!$A$9:$Z$150,13,FALSE),0) -> 0 | AI113: =+IFERROR(VLOOKUP($A113,ITV_CPOTGEN!$A$9:$Z$150,21,FALSE),0) -> 0 | AM113: =+IFERROR(VLOOKUP($A113,ITV_CCONAP!$A$8:$Z$149,13,FALSE),0) -> 0 | AN113: =+IFERROR(VLOOKUP($A113,ITV_CCONAP!$A$8:$Z$149,21,FALSE),0) -> 0 | AR113: =+IFERROR(VLOOKUP($A113,ITV_CPT!$A$8:$Z$149,13,FALSE),0) -> 0 | AS113: =+IFERROR(VLOOKUP($A113,ITV_CPT!$A$8:$Z$149,21,FALSE),0) -> 0 | AW113: =+IFERROR(VLOOKUP($A113,ITV_CPET!$A$8:$Z$149,13,FALSE),0) -> 0 | AX113: =+IFERROR(VLOOKUP($A113,ITV_CPET!$A$8:$Z$149,21,FALSE),0) -> 0 | BB113: =+IFERROR(VLOOKUP($A113,ITV_CPERDP!$A$8:$Z$149,13,FALSE),0) -> 0 | BC113: =+IFERROR(VLOOKUP($A113,ITV_CPERDP!$A$8:$Z$149,21,FALSE),0) -> 0 | BG113: =+IFERROR(VLOOKUP($A113,ITV_CPERDE!$A$8:$Z$149,13,FALSE),0) -> 0 | BH113: =+IFERROR(VLOOKUP($A113,ITV_CPERDE!$A$8:$Z$149,21,FALSE),0) -> 0
A114: MTD_GC | D114: =+IFERROR(VLOOKUP($A114,ITV_CD!$A$8:$AA$149,13,FALSE),0) -> 0 | E114: =+IFERROR(VLOOKUP($A114,ITV_CD!$A$8:$AA$149,21,FALSE),0) -> 0 | J114: =+IFERROR(VLOOKUP($A114,ITV_CCOMF!$A$8:$AA$149,13,FALSE),0) -> 0 | N114: =+IFERROR(VLOOKUP($A114,ITV_CCOMV!$A$8:$AA$149,13,FALSE),0) -> 0 | O114: =+IFERROR(VLOOKUP($A114,ITV_CCOMV!$A$8:$AA$149,21,FALSE),0) -> 0 | S114: =+IFERROR(VLOOKUP($A114,ITV_CSERAP!$A$8:$AA$149,13,FALSE),0) -> 0 | T114: =+IFERROR(VLOOKUP($A114,ITV_CSERAP!$A$8:$AA$149,21,FALSE),0) -> 0 | Y114: =+IFERROR(VLOOKUP($A114,ITV_CX!$A$8:$AA$149,13,FALSE),0) -> 0 | AC114: =+IFERROR(VLOOKUP($A114,ITV_CENEGEN!$A$9:$Z$150,13,FALSE),0) -> 0 | AD114: =+IFERROR(VLOOKUP($A114,ITV_CENEGEN!$A$9:$Z$150,21,FALSE),0) -> 0 | AH114: =+IFERROR(VLOOKUP($A114,ITV_CPOTGEN!$A$9:$Z$150,13,FALSE),0) -> 0 | AI114: =+IFERROR(VLOOKUP($A114,ITV_CPOTGEN!$A$9:$Z$150,21,FALSE),0) -> 0 | AM114: =+IFERROR(VLOOKUP($A114,ITV_CCONAP!$A$8:$Z$149,13,FALSE),0) -> 0 | AN114: =+IFERROR(VLOOKUP($A114,ITV_CCONAP!$A$8:$Z$149,21,FALSE),0) -> 0 | AR114: =+IFERROR(VLOOKUP($A114,ITV_CPT!$A$8:$Z$149,13,FALSE),0) -> 0 | AS114: =+IFERROR(VLOOKUP($A114,ITV_CPT!$A$8:$Z$149,21,FALSE),0) -> 0 | AW114: =+IFERROR(VLOOKUP($A114,ITV_CPET!$A$8:$Z$149,13,FALSE),0) -> 0 | AX114: =+IFERROR(VLOOKUP($A114,ITV_CPET!$A$8:$Z$149,21,FALSE),0) -> 0 | BB114: =+IFERROR(VLOOKUP($A114,ITV_CPERDP!$A$8:$Z$149,13,FALSE),0) -> 0 | BC114: =+IFERROR(VLOOKUP($A114,ITV_CPERDP!$A$8:$Z$149,21,FALSE),0) -> 0 | BG114: =+IFERROR(VLOOKUP($A114,ITV_CPERDE!$A$8:$Z$149,13,FALSE),0) -> 0 | BH114: =+IFERROR(VLOOKUP($A114,ITV_CPERDE!$A$8:$Z$149,21,FALSE),0) -> 0
A115: BTD_GC | D115: =+IFERROR(VLOOKUP($A115,ITV_CD!$A$8:$AA$149,13,FALSE),0) -> 0 | E115: =+IFERROR(VLOOKUP($A115,ITV_CD!$A$8:$AA$149,21,FALSE),0) -> 0 | J115: =+IFERROR(VLOOKUP($A115,ITV_CCOMF!$A$8:$AA$149,13,FALSE),0) -> 0 | N115: =+IFERROR(VLOOKUP($A115,ITV_CCOMV!$A$8:$AA$149,13,FALSE),0) -> 0 | O115: =+IFERROR(VLOOKUP($A115,ITV_CCOMV!$A$8:$AA$149,21,FALSE),0) -> 0 | S115: =+IFERROR(VLOOKUP($A115,ITV_CSERAP!$A$8:$AA$149,13,FALSE),0) -> 0 | T115: =+IFERROR(VLOOKUP($A115,ITV_CSERAP!$A$8:$AA$149,21,FALSE),0) -> 0 | Y115: =+IFERROR(VLOOKUP($A115,ITV_CX!$A$8:$AA$149,13,FALSE),0) -> 0 | AC115: =+IFERROR(VLOOKUP($A115,ITV_CENEGEN!$A$9:$Z$150,13,FALSE),0) -> 0 | AD115: =+IFERROR(VLOOKUP($A115,ITV_CENEGEN!$A$9:$Z$150,21,FALSE),0) -> 0 | AH115: =+IFERROR(VLOOKUP($A115,ITV_CPOTGEN!$A$9:$Z$150,13,FALSE),0) -> 0 | AI115: =+IFERROR(VLOOKUP($A115,ITV_CPOTGEN!$A$9:$Z$150,21,FALSE),0) -> 0 | AM115: =+IFERROR(VLOOKUP($A115,ITV_CCONAP!$A$8:$Z$149,13,FALSE),0) -> 0 | AN115: =+IFERROR(VLOOKUP($A115,ITV_CCONAP!$A$8:$Z$149,21,FALSE),0) -> 0 | AR115: =+IFERROR(VLOOKUP($A115,ITV_CPT!$A$8:$Z$149,13,FALSE),0) -> 0 | AS115: =+IFERROR(VLOOKUP($A115,ITV_CPT!$A$8:$Z$149,21,FALSE),0) -> 0 | AW115: =+IFERROR(VLOOKUP($A115,ITV_CPET!$A$8:$Z$149,13,FALSE),0) -> 0 | AX115: =+IFERROR(VLOOKUP($A115,ITV_CPET!$A$8:$Z$149,21,FALSE),0) -> 0 | BB115: =+IFERROR(VLOOKUP($A115,ITV_CPERDP!$A$8:$Z$149,13,FALSE),0) -> 0 | BC115: =+IFERROR(VLOOKUP($A115,ITV_CPERDP!$A$8:$Z$149,21,FALSE),0) -> 0 | BG115: =+IFERROR(VLOOKUP($A115,ITV_CPERDE!$A$8:$Z$149,13,FALSE),0) -> 0 | BH115: =+IFERROR(VLOOKUP($A115,ITV_CPERDE!$A$8:$Z$149,21,FALSE),0) -> 0
A116: BTSH | D116: =+IFERROR(VLOOKUP($A116,ITV_CD!$A$8:$AA$149,13,FALSE),0) -> 0.0644 | E116: =+IFERROR(VLOOKUP($A116,ITV_CD!$A$8:$AA$149,21,FALSE),0) -> 0 | J116: =+IFERROR(VLOOKUP($A116,ITV_CCOMF!$A$8:$AA$149,13,FALSE),0) -> 3.04 | N116: =+IFERROR(VLOOKUP($A116,ITV_CCOMV!$A$8:$AA$149,13,FALSE),0) -> 0.01151 | O116: =+IFERROR(VLOOKUP($A116,ITV_CCOMV!$A$8:$AA$149,21,FALSE),0) -> 0 | S116: =+IFERROR(VLOOKUP($A116,ITV_CSERAP!$A$8:$AA$149,13,FALSE),0) -> 0.0013 | T116: =+IFERROR(VLOOKUP($A116,ITV_CSERAP!$A$8:$AA$149,21,FALSE),0) -> 0 | Y116: =+IFERROR(VLOOKUP($A116,ITV_CX!$A$8:$AA$149,13,FALSE),0) -> 16.65 | AC116: =+IFERROR(VLOOKUP($A116,ITV_CENEGEN!$A$9:$Z$150,13,FALSE),0) -> 0.1974 | AD116: =+IFERROR(VLOOKUP($A116,ITV_CENEGEN!$A$9:$Z$150,21,FALSE),0) -> 0 | AH116: =+IFERROR(VLOOKUP($A116,ITV_CPOTGEN!$A$9:$Z$150,13,FALSE),0) -> 0.03253 | AI116: =+IFERROR(VLOOKUP($A116,ITV_CPOTGEN!$A$9:$Z$150,21,FALSE),0) -> 0 | AM116: =+IFERROR(VLOOKUP($A116,ITV_CCONAP!$A$8:$Z$149,13,FALSE),0) -> 0.00322 | AN116: =+IFERROR(VLOOKUP($A116,ITV_CCONAP!$A$8:$Z$149,21,FALSE),0) -> 0 | AR116: =+IFERROR(VLOOKUP($A116,ITV_CPT!$A$8:$Z$149,13,FALSE),0) -> 0.00621 | AS116: =+IFERROR(VLOOKUP($A116,ITV_CPT!$A$8:$Z$149,21,FALSE),0) -> 0 | AW116: =+IFERROR(VLOOKUP($A116,ITV_CPET!$A$8:$Z$149,13,FALSE),0) -> 7e-05 | AX116: =+IFERROR(VLOOKUP($A116,ITV_CPET!$A$8:$Z$149,21,FALSE),0) -> 0 | BB116: =+IFERROR(VLOOKUP($A116,ITV_CPERDP!$A$8:$Z$149,13,FALSE),0) -> 0 | BC116: =+IFERROR(VLOOKUP($A116,ITV_CPERDP!$A$8:$Z$149,21,FALSE),0) -> 0 | BG116: =+IFERROR(VLOOKUP($A116,ITV_CPERDE!$A$8:$Z$149,13,FALSE),0) -> 0.007 | BH116: =+IFERROR(VLOOKUP($A116,ITV_CPERDE!$A$8:$Z$149,21,FALSE),0) -> 0
A117: BTSH_1 | D117: =+IFERROR(VLOOKUP($A117,ITV_CD!$A$8:$AA$149,13,FALSE),0) -> 0.0644 | E117: =+IFERROR(VLOOKUP($A117,ITV_CD!$A$8:$AA$149,21,FALSE),0) -> 0 | J117: =+IFERROR(VLOOKUP($A117,ITV_CCOMF!$A$8:$AA$149,13,FALSE),0) -> 3.04 | N117: =+IFERROR(VLOOKUP($A117,ITV_CCOMV!$A$8:$AA$149,13,FALSE),0) -> 0.01151 | O117: =+IFERROR(VLOOKUP($A117,ITV_CCOMV!$A$8:$AA$149,21,FALSE),0) -> 0 | S117: =+IFERROR(VLOOKUP($A117,ITV_CSERAP!$A$8:$AA$149,13,FALSE),0) -> 0.0013 | T117: =+IFERROR(VLOOKUP($A117,ITV_CSERAP!$A$8:$AA$149,21,FALSE),0) -> 0 | Y117: =+IFERROR(VLOOKUP($A117,ITV_CX!$A$8:$AA$149,13,FALSE),0) -> 0 | AC117: =+IFERROR(VLOOKUP($A117,ITV_CENEGEN!$A$9:$Z$150,13,FALSE),0) -> 0.1974 | AD117: =+IFERROR(VLOOKUP($A117,ITV_CENEGEN!$A$9:$Z$150,21,FALSE),0) -> 0 | AH117: =+IFERROR(VLOOKUP($A117,ITV_CPOTGEN!$A$9:$Z$150,13,FALSE),0) -> 0.03253 | AI117: =+IFERROR(VLOOKUP($A117,ITV_CPOTGEN!$A$9:$Z$150,21,FALSE),0) -> 0 | AM117: =+IFERROR(VLOOKUP($A117,ITV_CCONAP!$A$8:$Z$149,13,FALSE),0) -> 0.00322 | AN117: =+IFERROR(VLOOKUP($A117,ITV_CCONAP!$A$8:$Z$149,21,FALSE),0) -> 0 | AR117: =+IFERROR(VLOOKUP($A117,ITV_CPT!$A$8:$Z$149,13,FALSE),0) -> 0.00621 | AS117: =+IFERROR(VLOOKUP($A117,ITV_CPT!$A$8:$Z$149,21,FALSE),0) -> 0 | AW117: =+IFERROR(VLOOKUP($A117,ITV_CPET!$A$8:$Z$149,13,FALSE),0) -> 7e-05 | AX117: =+IFERROR(VLOOKUP($A117,ITV_CPET!$A$8:$Z$149,21,FALSE),0) -> 0 | BB117: =+IFERROR(VLOOKUP($A117,ITV_CPERDP!$A$8:$Z$149,13,FALSE),0) -> 0 | BC117: =+IFERROR(VLOOKUP($A117,ITV_CPERDP!$A$8:$Z$149,21,FALSE),0) -> 0 | BG117: =+IFERROR(VLOOKUP($A117,ITV_CPERDE!$A$8:$Z$149,13,FALSE),0) -> 0.007 | BH117: =+IFERROR(VLOOKUP($A117,ITV_CPERDE!$A$8:$Z$149,21,FALSE),0) -> 0
A118: BTSH_1 Punta | D118: =+IFERROR(VLOOKUP($A118,ITV_CD!$A$8:$AA$149,13,FALSE),0) -> 0.0644 | E118: =+IFERROR(VLOOKUP($A118,ITV_CD!$A$8:$AA$149,21,FALSE),0) -> 0 | J118: =+IFERROR(VLOOKUP($A118,ITV_CCOMF!$A$8:$AA$149,13,FALSE),0) -> 3.04 | N118: =+IFERROR(VLOOKUP($A118,ITV_CCOMV!$A$8:$AA$149,13,FALSE),0) -> 0.01151 | O118: =+IFERROR(VLOOKUP($A118,ITV_CCOMV!$A$8:$AA$149,21,FALSE),0) -> 0 | S118: =+IFERROR(VLOOKUP($A118,ITV_CSERAP!$A$8:$AA$149,13,FALSE),0) -> 0.0013 | T118: =+IFERROR(VLOOKUP($A118,ITV_CSERAP!$A$8:$AA$149,21,FALSE),0) -> 0 | Y118: =+IFERROR(VLOOKUP($A118,ITV_CX!$A$8:$AA$149,13,FALSE),0) -> 0 | AC118: =+IFERROR(VLOOKUP($A118,ITV_CENEGEN!$A$9:$Z$150,13,FALSE),0) -> 0.1974 | AD118: =+IFERROR(VLOOKUP($A118,ITV_CENEGEN!$A$9:$Z$150,21,FALSE),0) -> 0 | AH118: =+IFERROR(VLOOKUP($A118,ITV_CPOTGEN!$A$9:$Z$150,13,FALSE),0) -> 0.03253 | AI118: =+IFERROR(VLOOKUP($A118,ITV_CPOTGEN!$A$9:$Z$150,21,FALSE),0) -> 0 | AM118: =+IFERROR(VLOOKUP($A118,ITV_CCONAP!$A$8:$Z$149,13,FALSE),0) -> 0.00322 | AN118: =+IFERROR(VLOOKUP($A118,ITV_CCONAP!$A$8:$Z$149,21,FALSE),0) -> 0 | AR118: =+IFERROR(VLOOKUP($A118,ITV_CPT!$A$8:$Z$149,13,FALSE),0) -> 0.00621 | AS118: =+IFERROR(VLOOKUP($A118,ITV_CPT!$A$8:$Z$149,21,FALSE),0) -> 0 | AW118: =+IFERROR(VLOOKUP($A118,ITV_CPET!$A$8:$Z$149,13,FALSE),0) -> 7e-05 | AX118: =+IFERROR(VLOOKUP($A118,ITV_CPET!$A$8:$Z$149,21,FALSE),0) -> 0 | BB118: =+IFERROR(VLOOKUP($A118,ITV_CPERDP!$A$8:$Z$149,13,FALSE),0) -> 0 | BC118: =+IFERROR(VLOOKUP($A118,ITV_CPERDP!$A$8:$Z$149,21,FALSE),0) -> 0 | BG118: =+IFERROR(VLOOKUP($A118,ITV_CPERDE!$A$8:$Z$149,13,FALSE),0) -> 0.007 | BH118: =+IFERROR(VLOOKUP($A118,ITV_CPERDE!$A$8:$Z$149,21,FALSE),0) -> 0
A119: BTSH_1 Fuera de Punta Medio | D119: =+IFERROR(VLOOKUP($A119,ITV_CD!$A$8:$AA$149,13,FALSE),0) -> 0.0575 | E119: =+IFERROR(VLOOKUP($A119,ITV_CD!$A$8:$AA$149,21,FALSE),0) -> 0 | J119: =+IFERROR(VLOOKUP($A119,ITV_CCOMF!$A$8:$AA$149,13,FALSE),0) -> 3.04 | N119: =+IFERROR(VLOOKUP($A119,ITV_CCOMV!$A$8:$AA$149,13,FALSE),0) -> 0.01151 | O119: =+IFERROR(VLOOKUP($A119,ITV_CCOMV!$A$8:$AA$149,21,FALSE),0) -> 0 | S119: =+IFERROR(VLOOKUP($A119,ITV_CSERAP!$A$8:$AA$149,13,FALSE),0) -> 0.0013 | T119: =+IFERROR(VLOOKUP($A119,ITV_CSERAP!$A$8:$AA$149,21,FALSE),0) -> 0 | Y119: =+IFERROR(VLOOKUP($A119,ITV_CX!$A$8:$AA$149,13,FALSE),0) -> 0 | AC119: =+IFERROR(VLOOKUP($A119,ITV_CENEGEN!$A$9:$Z$150,13,FALSE),0) -> 0.08076 | AD119: =+IFERROR(VLOOKUP($A119,ITV_CENEGEN!$A$9:$Z$150,21,FALSE),0) -> 0 | AH119: =+IFERROR(VLOOKUP($A119,ITV_CPOTGEN!$A$9:$Z$150,13,FALSE),0) -> 0.03253 | AI119: =+IFERROR(VLOOKUP($A119,ITV_CPOTGEN!$A$9:$Z$150,21,FALSE),0) -> 0 | AM119: =+IFERROR(VLOOKUP($A119,ITV_CCONAP!$A$8:$Z$149,13,FALSE),0) -> 0.00322 | AN119: =+IFERROR(VLOOKUP($A119,ITV_CCONAP!$A$8:$Z$149,21,FALSE),0) -> 0 | AR119: =+IFERROR(VLOOKUP($A119,ITV_CPT!$A$8:$Z$149,13,FALSE),0) -> 0.00621 | AS119: =+IFERROR(VLOOKUP($A119,ITV_CPT!$A$8:$Z$149,21,FALSE),0) -> 0 | AW119: =+IFERROR(VLOOKUP($A119,ITV_CPET!$A$8:$Z$149,13,FALSE),0) -> 7e-05 | AX119: =+IFERROR(VLOOKUP($A119,ITV_CPET!$A$8:$Z$149,21,FALSE),0) -> 0 | BB119: =+IFERROR(VLOOKUP($A119,ITV_CPERDP!$A$8:$Z$149,13,FALSE),0) -> 0 | BC119: =+IFERROR(VLOOKUP($A119,ITV_CPERDP!$A$8:$Z$149,21,FALSE),0) -> 0 | BG119: =+IFERROR(VLOOKUP($A119,ITV_CPERDE!$A$8:$Z$149,13,FALSE),0) -> 0.007 | BH119: =+IFERROR(VLOOKUP($A119,ITV_CPERDE!$A$8:$Z$149,21,FALSE),0) -> 0
A120: BTSH_1 Fuera de Punta Bajo | D120: =+IFERROR(VLOOKUP($A120,ITV_CD!$A$8:$AA$149,13,FALSE),0) -> 0.05133 | E120: =+IFERROR(VLOOKUP($A120,ITV_CD!$A$8:$AA$149,21,FALSE),0) -> 0 | J120: =+IFERROR(VLOOKUP($A120,ITV_CCOMF!$A$8:$AA$149,13,FALSE),0) -> 3.04 | N120: =+IFERROR(VLOOKUP($A120,ITV_CCOMV!$A$8:$AA$149,13,FALSE),0) -> 0.01151 | O120: =+IFERROR(VLOOKUP($A120,ITV_CCOMV!$A$8:$AA$149,21,FALSE),0) -> 0 | S120: =+IFERROR(VLOOKUP($A120,ITV_CSERAP!$A$8:$AA$149,13,FALSE),0) -> 0.0013 | T120: =+IFERROR(VLOOKUP($A120,ITV_CSERAP!$A$8:$AA$149,21,FALSE),0) -> 0 | Y120: =+IFERROR(VLOOKUP($A120,ITV_CX!$A$8:$AA$149,13,FALSE),0) -> 0 | AC120: =+IFERROR(VLOOKUP($A120,ITV_CENEGEN!$A$9:$Z$150,13,FALSE),0) -> 0.00179 | AD120: =+IFERROR(VLOOKUP($A120,ITV_CENEGEN!$A$9:$Z$150,21,FALSE),0) -> 0 | AH120: =+IFERROR(VLOOKUP($A120,ITV_CPOTGEN!$A$9:$Z$150,13,FALSE),0) -> 0.03253 | AI120: =+IFERROR(VLOOKUP($A120,ITV_CPOTGEN!$A$9:$Z$150,21,FALSE),0) -> 0 | AM120: =+IFERROR(VLOOKUP($A120,ITV_CCONAP!$A$8:$Z$149,13,FALSE),0) -> 0.00322 | AN120: =+IFERROR(VLOOKUP($A120,ITV_CCONAP!$A$8:$Z$149,21,FALSE),0) -> 0 | AR120: =+IFERROR(VLOOKUP($A120,ITV_CPT!$A$8:$Z$149,13,FALSE),0) -> 0.00621 | AS120: =+IFERROR(VLOOKUP($A120,ITV_CPT!$A$8:$Z$149,21,FALSE),0) -> 0 | AW120: =+IFERROR(VLOOKUP($A120,ITV_CPET!$A$8:$Z$149,13,FALSE),0) -> 7e-05 | AX120: =+IFERROR(VLOOKUP($A120,ITV_CPET!$A$8:$Z$149,21,FALSE),0) -> 0 | BB120: =+IFERROR(VLOOKUP($A120,ITV_CPERDP!$A$8:$Z$149,13,FALSE),0) -> 0 | BC120: =+IFERROR(VLOOKUP($A120,ITV_CPERDP!$A$8:$Z$149,21,FALSE),0) -> 0 | BG120: =+IFERROR(VLOOKUP($A120,ITV_CPERDE!$A$8:$Z$149,13,FALSE),0) -> 0.007 | BH120: =+IFERROR(VLOOKUP($A120,ITV_CPERDE!$A$8:$Z$149,21,FALSE),0) -> 0
A121: BTSH_2 | D121: =+IFERROR(VLOOKUP($A121,ITV_CD!$A$8:$AA$149,13,FALSE),0) -> 0 | E121: =+IFERROR(VLOOKUP($A121,ITV_CD!$A$8:$AA$149,21,FALSE),0) -> 0 | J121: =+IFERROR(VLOOKUP($A121,ITV_CCOMF!$A$8:$AA$149,13,FALSE),0) -> 0 | N121: =+IFERROR(VLOOKUP($A121,ITV_CCOMV!$A$8:$AA$149,13,FALSE),0) -> 0 | O121: =+IFERROR(VLOOKUP($A121,ITV_CCOMV!$A$8:$AA$149,21,FALSE),0) -> 0 | S121: =+IFERROR(VLOOKUP($A121,ITV_CSERAP!$A$8:$AA$149,13,FALSE),0) -> 0 | T121: =+IFERROR(VLOOKUP($A121,ITV_CSERAP!$A$8:$AA$149,21,FALSE),0) -> 0 | Y121: =+IFERROR(VLOOKUP($A121,ITV_CX!$A$8:$AA$149,13,FALSE),0) -> 0 | AC121: =+IFERROR(VLOOKUP($A121,ITV_CENEGEN!$A$9:$Z$150,13,FALSE),0) -> 0 | AD121: =+IFERROR(VLOOKUP($A121,ITV_CENEGEN!$A$9:$Z$150,21,FALSE),0) -> 0 | AH121: =+IFERROR(VLOOKUP($A121,ITV_CPOTGEN!$A$9:$Z$150,13,FALSE),0) -> 0 | AI121: =+IFERROR(VLOOKUP($A121,ITV_CPOTGEN!$A$9:$Z$150,21,FALSE),0) -> 0 | AM121: =+IFERROR(VLOOKUP($A121,ITV_CCONAP!$A$8:$Z$149,13,FALSE),0) -> 0 | AN121: =+IFERROR(VLOOKUP($A121,ITV_CCONAP!$A$8:$Z$149,21,FALSE),0) -> 0 | AR121: =+IFERROR(VLOOKUP($A121,ITV_CPT!$A$8:$Z$149,13,FALSE),0) -> 0 | AS121: =+IFERROR(VLOOKUP($A121,ITV_CPT!$A$8:$Z$149,21,FALSE),0) -> 0 | AW121: =+IFERROR(VLOOKUP($A121,ITV_CPET!$A$8:$Z$149,13,FALSE),0) -> 0 | AX121: =+IFERROR(VLOOKUP($A121,ITV_CPET!$A$8:$Z$149,21,FALSE),0) -> 0 | BB121: =+IFERROR(VLOOKUP($A121,ITV_CPERDP!$A$8:$Z$149,13,FALSE),0) -> 0 | BC121: =+IFERROR(VLOOKUP($A121,ITV_CPERDP!$A$8:$Z$149,21,FALSE),0) -> 0 | BG121: =+IFERROR(VLOOKUP($A121,ITV_CPERDE!$A$8:$Z$149,13,FALSE),0) -> 0 | BH121: =+IFERROR(VLOOKUP($A121,ITV_CPERDE!$A$8:$Z$149,21,FALSE),0) -> 0
A122: BTSH_2 Punta | D122: =+IFERROR(VLOOKUP($A122,ITV_CD!$A$8:$AA$149,13,FALSE),0) -> 0 | E122: =+IFERROR(VLOOKUP($A122,ITV_CD!$A$8:$AA$149,21,FALSE),0) -> 0 | J122: =+IFERROR(VLOOKUP($A122,ITV_CCOMF!$A$8:$AA$149,13,FALSE),0) -> 0 | N122: =+IFERROR(VLOOKUP($A122,ITV_CCOMV!$A$8:$AA$149,13,FALSE),0) -> 0 | O122: =+IFERROR(VLOOKUP($A122,ITV_CCOMV!$A$8:$AA$149,21,FALSE),0) -> 0 | S122: =+IFERROR(VLOOKUP($A122,ITV_CSERAP!$A$8:$AA$149,13,FALSE),0) -> 0 | T122: =+IFERROR(VLOOKUP($A122,ITV_CSERAP!$A$8:$AA$149,21,FALSE),0) -> 0 | Y122: =+IFERROR(VLOOKUP($A122,ITV_CX!$A$8:$AA$149,13,FALSE),0) -> 0 | AC122: =+IFERROR(VLOOKUP($A122,ITV_CENEGEN!$A$9:$Z$150,13,FALSE),0) -> 0 | AD122: =+IFERROR(VLOOKUP($A122,ITV_CENEGEN!$A$9:$Z$150,21,FALSE),0) -> 0 | AH122: =+IFERROR(VLOOKUP($A122,ITV_CPOTGEN!$A$9:$Z$150,13,FALSE),0) -> 0 | AI122: =+IFERROR(VLOOKUP($A122,ITV_CPOTGEN!$A$9:$Z$150,21,FALSE),0) -> 0 | AM122: =+IFERROR(VLOOKUP($A122,ITV_CCONAP!$A$8:$Z$149,13,FALSE),0) -> 0 | AN122: =+IFERROR(VLOOKUP($A122,ITV_CCONAP!$A$8:$Z$149,21,FALSE),0) -> 0 | AR122: =+IFERROR(VLOOKUP($A122,ITV_CPT!$A$8:$Z$149,13,FALSE),0) -> 0 | AS122: =+IFERROR(VLOOKUP($A122,ITV_CPT!$A$8:$Z$149,21,FALSE),0) -> 0 | AW122: =+IFERROR(VLOOKUP($A122,ITV_CPET!$A$8:$Z$149,13,FALSE),0) -> 0 | AX122: =+IFERROR(VLOOKUP($A122,ITV_CPET!$A$8:$Z$149,21,FALSE),0) -> 0 | BB122: =+IFERROR(VLOOKUP($A122,ITV_CPERDP!$A$8:$Z$149,13,FALSE),0) -> 0 | BC122: =+IFERROR(VLOOKUP($A122,ITV_CPERDP!$A$8:$Z$149,21,FALSE),0) -> 0 | BG122: =+IFERROR(VLOOKUP($A122,ITV_CPERDE!$A$8:$Z$149,13,FALSE),0) -> 0 | BH122: =+IFERROR(VLOOKUP($A122,ITV_CPERDE!$A$8:$Z$149,21,FALSE),0) -> 0
A123: BTSH_2 Fuera de Punta Medio | D123: =+IFERROR(VLOOKUP($A123,ITV_CD!$A$8:$AA$149,13,FALSE),0) -> 0 | E123: =+IFERROR(VLOOKUP($A123,ITV_CD!$A$8:$AA$149,21,FALSE),0) -> 0 | J123: =+IFERROR(VLOOKUP($A123,ITV_CCOMF!$A$8:$AA$149,13,FALSE),0) -> 0 | N123: =+IFERROR(VLOOKUP($A123,ITV_CCOMV!$A$8:$AA$149,13,FALSE),0) -> 0 | O123: =+IFERROR(VLOOKUP($A123,ITV_CCOMV!$A$8:$AA$149,21,FALSE),0) -> 0 | S123: =+IFERROR(VLOOKUP($A123,ITV_CSERAP!$A$8:$AA$149,13,FALSE),0) -> 0 | T123: =+IFERROR(VLOOKUP($A123,ITV_CSERAP!$A$8:$AA$149,21,FALSE),0) -> 0 | Y123: =+IFERROR(VLOOKUP($A123,ITV_CX!$A$8:$AA$149,13,FALSE),0) -> 0 | AC123: =+IFERROR(VLOOKUP($A123,ITV_CENEGEN!$A$9:$Z$150,13,FALSE),0) -> 0 | AD123: =+IFERROR(VLOOKUP($A123,ITV_CENEGEN!$A$9:$Z$150,21,FALSE),0) -> 0 | AH123: =+IFERROR(VLOOKUP($A123,ITV_CPOTGEN!$A$9:$Z$150,13,FALSE),0) -> 0 | AI123: =+IFERROR(VLOOKUP($A123,ITV_CPOTGEN!$A$9:$Z$150,21,FALSE),0) -> 0 | AM123: =+IFERROR(VLOOKUP($A123,ITV_CCONAP!$A$8:$Z$149,13,FALSE),0) -> 0 | AN123: =+IFERROR(VLOOKUP($A123,ITV_CCONAP!$A$8:$Z$149,21,FALSE),0) -> 0 | AR123: =+IFERROR(VLOOKUP($A123,ITV_CPT!$A$8:$Z$149,13,FALSE),0) -> 0 | AS123: =+IFERROR(VLOOKUP($A123,ITV_CPT!$A$8:$Z$149,21,FALSE),0) -> 0 | AW123: =+IFERROR(VLOOKUP($A123,ITV_CPET!$A$8:$Z$149,13,FALSE),0) -> 0 | AX123: =+IFERROR(VLOOKUP($A123,ITV_CPET!$A$8:$Z$149,21,FALSE),0) -> 0 | BB123: =+IFERROR(VLOOKUP($A123,ITV_CPERDP!$A$8:$Z$149,13,FALSE),0) -> 0 | BC123: =+IFERROR(VLOOKUP($A123,ITV_CPERDP!$A$8:$Z$149,21,FALSE),0) -> 0 | BG123: =+IFERROR(VLOOKUP($A123,ITV_CPERDE!$A$8:$Z$149,13,FALSE),0) -> 0 | BH123: =+IFERROR(VLOOKUP($A123,ITV_CPERDE!$A$8:$Z$149,21,FALSE),0) -> 0
A124: BTSH_2 Fuera de Punta Bajo | D124: =+IFERROR(VLOOKUP($A124,ITV_CD!$A$8:$AA$149,13,FALSE),0) -> 0 | E124: =+IFERROR(VLOOKUP($A124,ITV_CD!$A$8:$AA$149,21,FALSE),0) -> 0 | J124: =+IFERROR(VLOOKUP($A124,ITV_CCOMF!$A$8:$AA$149,13,FALSE),0) -> 0 | N124: =+IFERROR(VLOOKUP($A124,ITV_CCOMV!$A$8:$AA$149,13,FALSE),0) -> 0 | O124: =+IFERROR(VLOOKUP($A124,ITV_CCOMV!$A$8:$AA$149,21,FALSE),0) -> 0 | S124: =+IFERROR(VLOOKUP($A124,ITV_CSERAP!$A$8:$AA$149,13,FALSE),0) -> 0 | T124: =+IFERROR(VLOOKUP($A124,ITV_CSERAP!$A$8:$AA$149,21,FALSE),0) -> 0 | Y124: =+IFERROR(VLOOKUP($A124,ITV_CX!$A$8:$AA$149,13,FALSE),0) -> 0 | AC124: =+IFERROR(VLOOKUP($A124,ITV_CENEGEN!$A$9:$Z$150,13,FALSE),0) -> 0 | AD124: =+IFERROR(VLOOKUP($A124,ITV_CENEGEN!$A$9:$Z$150,21,FALSE),0) -> 0 | AH124: =+IFERROR(VLOOKUP($A124,ITV_CPOTGEN!$A$9:$Z$150,13,FALSE),0) -> 0 | AI124: =+IFERROR(VLOOKUP($A124,ITV_CPOTGEN!$A$9:$Z$150,21,FALSE),0) -> 0 | AM124: =+IFERROR(VLOOKUP($A124,ITV_CCONAP!$A$8:$Z$149,13,FALSE),0) -> 0 | AN124: =+IFERROR(VLOOKUP($A124,ITV_CCONAP!$A$8:$Z$149,21,FALSE),0) -> 0 | AR124: =+IFERROR(VLOOKUP($A124,ITV_CPT!$A$8:$Z$149,13,FALSE),0) -> 0 | AS124: =+IFERROR(VLOOKUP($A124,ITV_CPT!$A$8:$Z$149,21,FALSE),0) -> 0 | AW124: =+IFERROR(VLOOKUP($A124,ITV_CPET!$A$8:$Z$149,13,FALSE),0) -> 0 | AX124: =+IFERROR(VLOOKUP($A124,ITV_CPET!$A$8:$Z$149,21,FALSE),0) -> 0 | BB124: =+IFERROR(VLOOKUP($A124,ITV_CPERDP!$A$8:$Z$149,13,FALSE),0) -> 0 | BC124: =+IFERROR(VLOOKUP($A124,ITV_CPERDP!$A$8:$Z$149,21,FALSE),0) -> 0 | BG124: =+IFERROR(VLOOKUP($A124,ITV_CPERDE!$A$8:$Z$149,13,FALSE),0) -> 0 | BH124: =+IFERROR(VLOOKUP($A124,ITV_CPERDE!$A$8:$Z$149,21,FALSE),0) -> 0
